Workbook

Sheet 2016AOW (hidden)
IV1: HIDE
A4: euro’s | B4: <=2,500 | C4: 2,501-3,000 | D4: 3,001-3,500 | E4: 3,501-4,000 | F4: 4,001-4,500 | G4: 4,501-5,000 | H4: 5,001-5,500 | I4: 5,501-6,000 | J4: 6,001-6,500 | K4: 6,501-7,000 | L4: 7,001-7,500 | M4: 7.5
A5: 0 | B5: 0.135 | C5: 0.135 | D5: 0.135 | E5: 0.14 | F5: 0.14 | G5: 0.14 | H5: 0.145 | I5: 0.145 | J5: 0.145 | K5: 0.145 | L5: 0.15 | M5: 0.15
A6: 20000 | B6: 0.135 | C6: 0.135 | D6: 0.135 | E6: 0.14 | F6: 0.14 | G6: 0.14 | H6: 0.145 | I6: 0.145 | J6: 0.145 | K6: 0.145 | L6: 0.15 | M6: 0.15
A7: 20500 | B7: 0.15 | C7: 0.15 | D7: 0.15 | E7: 0.155 | F7: 0.155 | G7: 0.155 | H7: 0.16 | I7: 0.16 | J7: 0.16 | K7: 0.165 | L7: 0.165 | M7: 0.165
A8: 21000 | B8: 0.16 | C8: 0.165 | D8: 0.165 | E8: 0.17 | F8: 0.17 | G8: 0.17 | H8: 0.175 | I8: 0.175 | J8: 0.175 | K8: 0.18 | L8: 0.18 | M8: 0.18
A9: 21500 | B9: 0.17 | C9: 0.175 | D9: 0.18 | E9: 0.18 | F9: 0.185 | G9: 0.185 | H9: 0.19 | I9: 0.19 | J9: 0.19 | K9: 0.195 | L9: 0.195 | M9: 0.195
A10: 22000 | B10: 0.18 | C10: 0.185 | D10: 0.19 | E10: 0.195 | F10: 0.2 | G10: 0.2 | H10: 0.2 | I10: 0.205 | J10: 0.205 | K10: 0.205 | L10: 0.21 | M10: 0.21
A11: 22500 | B11: 0.195 | C11: 0.195 | D11: 0.2 | E11: 0.205 | F11: 0.21 | G11: 0.215 | H11: 0.215 | I11: 0.215 | J11: 0.22 | K11: 0.22 | L11: 0.22 | M11: 0.225
A12: 23000 | B12: 0.2 | C12: 0.205 | D12: 0.21 | E12: 0.215 | F12: 0.22 | G12: 0.225 | H12: 0.225 | I12: 0.23 | J12: 0.23 | K12: 0.235 | L12: 0.235 | M12: 0.235
A13: 23500 | B13: 0.21 | C13: 0.215 | D13: 0.22 | E13: 0.225 | F13: 0.23 | G13: 0.235 | H13: 0.24 | I13: 0.24 | J13: 0.245 | K13: 0.245 | L13: 0.245 | M13: 0.25
A14: 24000 | B14: 0.215 | C14: 0.225 | D14: 0.23 | E14: 0.235 | F14: 0.24 | G14: 0.245 | H14: 0.25 | I14: 0.25 | J14: 0.255 | K14: 0.255 | L14: 0.26 | M14: 0.26
A15: 24500 | B15: 0.22 | C15: 0.23 | D15: 0.24 | E15: 0.245 | F15: 0.25 | G15: 0.255 | H15: 0.26 | I15: 0.26 | J15: 0.265 | K15: 0.27 | L15: 0.27 | M15: 0.27
A16: 25000 | B16: 0.225 | C16: 0.235 | D16: 0.245 | E16: 0.25 | F16: 0.26 | G16: 0.26 | H16: 0.265 | I16: 0.27 | J16: 0.275 | K16: 0.275 | L16: 0.28 | M16: 0.28
A17: 26000 | B17: 0.23 | C17: 0.24 | D17: 0.245 | E17: 0.255 | F17: 0.26 | G17: 0.27 | H17: 0.275 | I17: 0.28 | J17: 0.28 | K17: 0.285 | L17: 0.29 | M17: 0.29
A18: 27000 | B18: 0.23 | C18: 0.24 | D18: 0.25 | E18: 0.255 | F18: 0.265 | G18: 0.27 | H18: 0.28 | I18: 0.285 | J18: 0.29 | K18: 0.29 | L18: 0.295 | M18: 0.3
A19: 28000 | B19: 0.23 | C19: 0.24 | D19: 0.25 | E19: 0.26 | F19: 0.265 | G19: 0.275 | H19: 0.28 | I19: 0.285 | J19: 0.295 | K19: 0.3 | L19: 0.3 | M19: 0.305
A20: 29000 | B20: 0.235 | C20: 0.24 | D20: 0.25 | E20: 0.26 | F20: 0.27 | G20: 0.275 | H20: 0.28 | I20: 0.29 | J20: 0.295 | K20: 0.3 | L20: 0.305 | M20: 0.31
A21: 30000 | B21: 0.235 | C21: 0.245 | D21: 0.25 | E21: 0.26 | F21: 0.27 | G21: 0.275 | H21: 0.285 | I21: 0.29 | J21: 0.295 | K21: 0.305 | L21: 0.31 | M21: 0.315
A22: 31000 | B22: 0.245 | C22: 0.255 | D22: 0.26 | E22: 0.27 | F22: 0.28 | G22: 0.285 | H22: 0.295 | I22: 0.3 | J22: 0.31 | K22: 0.315 | L22: 0.32 | M22: 0.325
A23: 32000 | B23: 0.245 | C23: 0.255 | D23: 0.265 | E23: 0.275 | F23: 0.28 | G23: 0.29 | H23: 0.295 | I23: 0.305 | J23: 0.31 | K23: 0.315 | L23: 0.32 | M23: 0.325
A24: 33000 | B24: 0.245 | C24: 0.255 | D24: 0.265 | E24: 0.275 | F24: 0.285 | G24: 0.29 | H24: 0.3 | I24: 0.305 | J24: 0.31 | K24: 0.32 | L24: 0.325 | M24: 0.33
A25: 34000 | B25: 0.245 | C25: 0.255 | D25: 0.265 | E25: 0.275 | F25: 0.285 | G25: 0.29 | H25: 0.3 | I25: 0.305 | J25: 0.31 | K25: 0.32 | L25: 0.325 | M25: 0.33
A26: 35000 | B26: 0.245 | C26: 0.255 | D26: 0.265 | E26: 0.275 | F26: 0.285 | G26: 0.29 | H26: 0.3 | I26: 0.305 | J26: 0.31 | K26: 0.32 | L26: 0.325 | M26: 0.33
A27: 36000 | B27: 0.245 | C27: 0.255 | D27: 0.265 | E27: 0.275 | F27: 0.285 | G27: 0.29 | H27: 0.3 | I27: 0.305 | J27: 0.315 | K27: 0.32 | L27: 0.325 | M27: 0.33
A28: 37000 | B28: 0.245 | C28: 0.255 | D28: 0.265 | E28: 0.275 | F28: 0.285 | G28: 0.29 | H28: 0.3 | I28: 0.305 | J28: 0.315 | K28: 0.32 | L28: 0.325 | M28: 0.33
A29: 38000 | B29: 0.25 | C29: 0.255 | D29: 0.265 | E29: 0.275 | F29: 0.285 | G29: 0.29 | H29: 0.3 | I29: 0.31 | J29: 0.315 | K29: 0.32 | L29: 0.325 | M29: 0.33
A30: 39000 | B30: 0.25 | C30: 0.26 | D30: 0.265 | E30: 0.275 | F30: 0.285 | G30: 0.29 | H30: 0.3 | I30: 0.31 | J30: 0.315 | K30: 0.32 | L30: 0.325 | M30: 0.33
A31: 40000 | B31: 0.25 | C31: 0.26 | D31: 0.27 | E31: 0.275 | F31: 0.285 | G31: 0.29 | H31: 0.3 | I31: 0.31 | J31: 0.315 | K31: 0.32 | L31: 0.325 | M31: 0.335
A32: 41000 | B32: 0.255 | C32: 0.26 | D32: 0.27 | E32: 0.275 | F32: 0.285 | G32: 0.29 | H32: 0.3 | I32: 0.31 | J32: 0.315 | K32: 0.32 | L32: 0.325 | M32: 0.335
A33: 42000 | B33: 0.255 | C33: 0.265 | D33: 0.27 | E33: 0.28 | F33: 0.285 | G33: 0.295 | H33: 0.3 | I33: 0.31 | J33: 0.315 | K33: 0.32 | L33: 0.325 | M33: 0.335
A34: 43000 | B34: 0.255 | C34: 0.265 | D34: 0.275 | E34: 0.28 | F34: 0.29 | G34: 0.295 | H34: 0.3 | I34: 0.31 | J34: 0.315 | K34: 0.32 | L34: 0.325 | M34: 0.335
A35: 44000 | B35: 0.26 | C35: 0.27 | D35: 0.28 | E35: 0.285 | F35: 0.295 | G35: 0.3 | H35: 0.305 | I35: 0.315 | J35: 0.32 | K35: 0.325 | L35: 0.33 | M35: 0.335
A36: 45000 | B36: 0.265 | C36: 0.275 | D36: 0.285 | E36: 0.29 | F36: 0.3 | G36: 0.305 | H36: 0.31 | I36: 0.32 | J36: 0.325 | K36: 0.33 | L36: 0.335 | M36: 0.34
A37: 46000 | B37: 0.275 | C37: 0.285 | D37: 0.29 | E37: 0.3 | F37: 0.31 | G37: 0.315 | H37: 0.32 | I37: 0.33 | J37: 0.335 | K37: 0.34 | L37: 0.345 | M37: 0.35
A38: 47000 | B38: 0.28 | C38: 0.29 | D38: 0.295 | E38: 0.305 | F38: 0.315 | G38: 0.32 | H38: 0.325 | I38: 0.335 | J38: 0.34 | K38: 0.345 | L38: 0.35 | M38: 0.355
A39: 48000 | B39: 0.28 | C39: 0.29 | D39: 0.3 | E39: 0.31 | F39: 0.315 | G39: 0.325 | H39: 0.33 | I39: 0.34 | J39: 0.345 | K39: 0.35 | L39: 0.355 | M39: 0.36
A40: 49000 | B40: 0.285 | C40: 0.295 | D40: 0.305 | E40: 0.315 | F40: 0.32 | G40: 0.33 | H40: 0.335 | I40: 0.345 | J40: 0.35 | K40: 0.355 | L40: 0.36 | M40: 0.365
A41: 50000 | B41: 0.285 | C41: 0.3 | D41: 0.31 | E41: 0.315 | F41: 0.325 | G41: 0.335 | H41: 0.34 | I41: 0.35 | J41: 0.355 | K41: 0.36 | L41: 0.365 | M41: 0.37
A42: 51000 | B42: 0.285 | C42: 0.3 | D42: 0.315 | E42: 0.32 | F42: 0.33 | G42: 0.34 | H42: 0.345 | I42: 0.35 | J42: 0.36 | K42: 0.365 | L42: 0.37 | M42: 0.375
A43: 52000 | B43: 0.285 | C43: 0.3 | D43: 0.315 | E43: 0.325 | F43: 0.335 | G43: 0.34 | H43: 0.35 | I43: 0.355 | J43: 0.365 | K43: 0.37 | L43: 0.375 | M43: 0.38
A44: 53000 | B44: 0.285 | C44: 0.3 | D44: 0.315 | E44: 0.33 | F44: 0.34 | G44: 0.345 | H44: 0.355 | I44: 0.36 | J44: 0.365 | K44: 0.375 | L44: 0.38 | M44: 0.385
A45: 54000 | B45: 0.285 | C45: 0.3 | D45: 0.315 | E45: 0.33 | F45: 0.34 | G45: 0.35 | H45: 0.355 | I45: 0.365 | J45: 0.37 | K45: 0.38 | L45: 0.385 | M45: 0.39
A46: 55000 | B46: 0.285 | C46: 0.3 | D46: 0.315 | E46: 0.33 | F46: 0.345 | G46: 0.355 | H46: 0.36 | I46: 0.37 | J46: 0.375 | K46: 0.38 | L46: 0.385 | M46: 0.395
A47: 56000 | B47: 0.285 | C47: 0.3 | D47: 0.315 | E47: 0.33 | F47: 0.345 | G47: 0.355 | H47: 0.365 | I47: 0.37 | J47: 0.38 | K47: 0.385 | L47: 0.39 | M47: 0.395
A48: 57000 | B48: 0.285 | C48: 0.3 | D48: 0.315 | E48: 0.33 | F48: 0.345 | G48: 0.36 | H48: 0.37 | I48: 0.375 | J48: 0.38 | K48: 0.39 | L48: 0.395 | M48: 0.4
A49: 58000 | B49: 0.285 | C49: 0.3 | D49: 0.315 | E49: 0.33 | F49: 0.345 | G49: 0.36 | H49: 0.37 | I49: 0.38 | J49: 0.385 | K49: 0.39 | L49: 0.4 | M49: 0.405
A50: 59000 | B50: 0.285 | C50: 0.3 | D50: 0.315 | E50: 0.33 | F50: 0.345 | G50: 0.36 | H50: 0.375 | I50: 0.38 | J50: 0.39 | K50: 0.395 | L50: 0.4 | M50: 0.41
A51: 60000 | B51: 0.285 | C51: 0.3 | D51: 0.315 | E51: 0.33 | F51: 0.345 | G51: 0.36 | H51: 0.375 | I51: 0.385 | J51: 0.395 | K51: 0.4 | L51: 0.405 | M51: 0.41
A52: 61000 | B52: 0.285 | C52: 0.3 | D52: 0.315 | E52: 0.33 | F52: 0.345 | G52: 0.36 | H52: 0.375 | I52: 0.385 | J52: 0.395 | K52: 0.4 | L52: 0.41 | M52: 0.415
A53: 62000 | B53: 0.285 | C53: 0.3 | D53: 0.315 | E53: 0.33 | F53: 0.345 | G53: 0.36 | H53: 0.375 | I53: 0.39 | J53: 0.4 | K53: 0.405 | L53: 0.41 | M53: 0.415
A54: 63000 | B54: 0.285 | C54: 0.3 | D54: 0.315 | E54: 0.33 | F54: 0.345 | G54: 0.36 | H54: 0.375 | I54: 0.39 | J54: 0.4 | K54: 0.41 | L54: 0.415 | M54: 0.42
A55: 64000 | B55: 0.29 | C55: 0.3 | D55: 0.315 | E55: 0.33 | F55: 0.345 | G55: 0.36 | H55: 0.375 | I55: 0.39 | J55: 0.405 | K55: 0.41 | L55: 0.42 | M55: 0.425
A56: 65000 | B56: 0.29 | C56: 0.305 | D56: 0.32 | E56: 0.33 | F56: 0.345 | G56: 0.36 | H56: 0.375 | I56: 0.39 | J56: 0.405 | K56: 0.415 | L56: 0.425 | M56: 0.43
A57: 66000 | B57: 0.29 | C57: 0.305 | D57: 0.32 | E57: 0.33 | F57: 0.345 | G57: 0.36 | H57: 0.375 | I57: 0.39 | J57: 0.405 | K57: 0.415 | L57: 0.425 | M57: 0.43
A58: 67000 | B58: 0.295 | C58: 0.305 | D58: 0.32 | E58: 0.335 | F58: 0.345 | G58: 0.36 | H58: 0.375 | I58: 0.39 | J58: 0.405 | K58: 0.415 | L58: 0.425 | M58: 0.435
A59: 68000 | B59: 0.295 | C59: 0.31 | D59: 0.325 | E59: 0.335 | F59: 0.35 | G59: 0.36 | H59: 0.375 | I59: 0.39 | J59: 0.405 | K59: 0.415 | L59: 0.43 | M59: 0.44
A60: 69000 | B60: 0.295 | C60: 0.31 | D60: 0.325 | E60: 0.34 | F60: 0.35 | G60: 0.365 | H60: 0.375 | I60: 0.39 | J60: 0.405 | K60: 0.415 | L60: 0.43 | M60: 0.44
A61: 70000 | B61: 0.295 | C61: 0.31 | D61: 0.325 | E61: 0.34 | F61: 0.35 | G61: 0.365 | H61: 0.375 | I61: 0.39 | J61: 0.405 | K61: 0.415 | L61: 0.43 | M61: 0.44
A62: 71000 | B62: 0.3 | C62: 0.315 | D62: 0.33 | E62: 0.34 | F62: 0.355 | G62: 0.365 | H62: 0.38 | I62: 0.39 | J62: 0.405 | K62: 0.415 | L62: 0.43 | M62: 0.445
A63: 72000 | B63: 0.3 | C63: 0.315 | D63: 0.33 | E63: 0.345 | F63: 0.355 | G63: 0.37 | H63: 0.38 | I63: 0.39 | J63: 0.405 | K63: 0.415 | L63: 0.43 | M63: 0.445
A64: 73000 | B64: 0.3 | C64: 0.315 | D64: 0.33 | E64: 0.345 | F64: 0.36 | G64: 0.37 | H64: 0.38 | I64: 0.395 | J64: 0.405 | K64: 0.415 | L64: 0.43 | M64: 0.445
A65: 74000 | B65: 0.305 | C65: 0.32 | D65: 0.33 | E65: 0.345 | F65: 0.36 | G65: 0.37 | H65: 0.385 | I65: 0.395 | J65: 0.405 | K65: 0.415 | L65: 0.43 | M65: 0.445
A66: 75000 | B66: 0.305 | C66: 0.32 | D66: 0.335 | E66: 0.35 | F66: 0.36 | G66: 0.375 | H66: 0.385 | I66: 0.395 | J66: 0.405 | K66: 0.415 | L66: 0.43 | M66: 0.445
A67: 76000 | B67: 0.305 | C67: 0.32 | D67: 0.335 | E67: 0.35 | F67: 0.36 | G67: 0.375 | H67: 0.385 | I67: 0.4 | J67: 0.41 | K67: 0.42 | L67: 0.43 | M67: 0.445
A68: 77000 | B68: 0.305 | C68: 0.32 | D68: 0.335 | E68: 0.35 | F68: 0.365 | G68: 0.375 | H68: 0.39 | I68: 0.4 | J68: 0.41 | K68: 0.42 | L68: 0.43 | M68: 0.445
A69: 78000 | B69: 0.305 | C69: 0.32 | D69: 0.34 | E69: 0.35 | F69: 0.365 | G69: 0.38 | H69: 0.39 | I69: 0.4 | J69: 0.41 | K69: 0.425 | L69: 0.43 | M69: 0.445
A70: 79000 | B70: 0.305 | C70: 0.32 | D70: 0.34 | E70: 0.355 | F70: 0.365 | G70: 0.38 | H70: 0.39 | I70: 0.405 | J70: 0.415 | K70: 0.425 | L70: 0.435 | M70: 0.445
A71: 80000 | B71: 0.305 | C71: 0.32 | D71: 0.34 | E71: 0.355 | F71: 0.37 | G71: 0.38 | H71: 0.395 | I71: 0.405 | J71: 0.415 | K71: 0.425 | L71: 0.435 | M71: 0.445
A72: 81000 | B72: 0.305 | C72: 0.32 | D72: 0.34 | E72: 0.355 | F72: 0.37 | G72: 0.38 | H72: 0.395 | I72: 0.405 | J72: 0.415 | K72: 0.425 | L72: 0.435 | M72: 0.445
A73: 82000 | B73: 0.305 | C73: 0.32 | D73: 0.34 | E73: 0.355 | F73: 0.37 | G73: 0.38 | H73: 0.395 | I73: 0.405 | J73: 0.415 | K73: 0.425 | L73: 0.435 | M73: 0.445
A74: 83000 | B74: 0.305 | C74: 0.32 | D74: 0.34 | E74: 0.355 | F74: 0.37 | G74: 0.38 | H74: 0.395 | I74: 0.405 | J74: 0.415 | K74: 0.425 | L74: 0.435 | M74: 0.445
A75: 84000 | B75: 0.305 | C75: 0.32 | D75: 0.34 | E75: 0.355 | F75: 0.37 | G75: 0.38 | H75: 0.395 | I75: 0.405 | J75: 0.415 | K75: 0.425 | L75: 0.435 | M75: 0.445
A76: 85000 | B76: 0.305 | C76: 0.32 | D76: 0.34 | E76: 0.355 | F76: 0.37 | G76: 0.38 | H76: 0.395 | I76: 0.405 | J76: 0.415 | K76: 0.425 | L76: 0.435 | M76: 0.445
A77: 86000 | B77: 0.305 | C77: 0.32 | D77: 0.34 | E77: 0.355 | F77: 0.37 | G77: 0.38 | H77: 0.395 | I77: 0.405 | J77: 0.415 | K77: 0.425 | L77: 0.435 | M77: 0.445
A78: 87000 | B78: 0.305 | C78: 0.32 | D78: 0.34 | E78: 0.355 | F78: 0.37 | G78: 0.38 | H78: 0.395 | I78: 0.405 | J78: 0.415 | K78: 0.425 | L78: 0.435 | M78: 0.445
A79: 88000 | B79: 0.305 | C79: 0.32 | D79: 0.34 | E79: 0.355 | F79: 0.37 | G79: 0.38 | H79: 0.395 | I79: 0.405 | J79: 0.415 | K79: 0.425 | L79: 0.435 | M79: 0.445
A80: 89000 | B80: 0.305 | C80: 0.32 | D80: 0.34 | E80: 0.355 | F80: 0.37 | G80: 0.38 | H80: 0.395 | I80: 0.405 | J80: 0.415 | K80: 0.425 | L80: 0.435 | M80: 0.445
A81: 90000 | B81: 0.305 | C81: 0.32 | D81: 0.34 | E81: 0.355 | F81: 0.37 | G81: 0.38 | H81: 0.395 | I81: 0.405 | J81: 0.415 | K81: 0.425 | L81: 0.435 | M81: 0.445
A82: 91000 | B82: 0.305 | C82: 0.32 | D82: 0.34 | E82: 0.355 | F82: 0.37 | G82: 0.38 | H82: 0.395 | I82: 0.405 | J82: 0.415 | K82: 0.425 | L82: 0.435 | M82: 0.445
A83: 92000 | B83: 0.305 | C83: 0.32 | D83: 0.34 | E83: 0.355 | F83: 0.37 | G83: 0.38 | H83: 0.395 | I83: 0.405 | J83: 0.415 | K83: 0.425 | L83: 0.435 | M83: 0.445
A84: 93000 | B84: 0.305 | C84: 0.32 | D84: 0.34 | E84: 0.355 | F84: 0.37 | G84: 0.38 | H84: 0.395 | I84: 0.41 | J84: 0.42 | K84: 0.43 | L84: 0.44 | M84: 0.45
A85: 94000 | B85: 0.305 | C85: 0.32 | D85: 0.34 | E85: 0.355 | F85: 0.37 | G85: 0.38 | H85: 0.395 | I85: 0.41 | J85: 0.42 | K85: 0.43 | L85: 0.44 | M85: 0.45
A86: 95000 | B86: 0.305 | C86: 0.32 | D86: 0.34 | E86: 0.355 | F86: 0.37 | G86: 0.38 | H86: 0.395 | I86: 0.41 | J86: 0.42 | K86: 0.435 | L86: 0.44 | M86: 0.45
A87: 96000 | B87: 0.305 | C87: 0.32 | D87: 0.34 | E87: 0.355 | F87: 0.37 | G87: 0.38 | H87: 0.395 | I87: 0.41 | J87: 0.425 | K87: 0.435 | L87: 0.445 | M87: 0.455
A88: 97000 | B88: 0.305 | C88: 0.32 | D88: 0.34 | E88: 0.355 | F88: 0.37 | G88: 0.38 | H88: 0.395 | I88: 0.41 | J88: 0.425 | K88: 0.435 | L88: 0.445 | M88: 0.455
A89: 98000 | B89: 0.305 | C89: 0.32 | D89: 0.34 | E89: 0.355 | F89: 0.37 | G89: 0.38 | H89: 0.395 | I89: 0.41 | J89: 0.425 | K89: 0.44 | L89: 0.45 | M89: 0.455
A90: 99000 | B90: 0.305 | C90: 0.32 | D90: 0.34 | E90: 0.355 | F90: 0.37 | G90: 0.38 | H90: 0.395 | I90: 0.41 | J90: 0.425 | K90: 0.44 | L90: 0.45 | M90: 0.46
A91: 100000 | B91: 0.305 | C91: 0.32 | D91: 0.34 | E91: 0.355 | F91: 0.37 | G91: 0.38 | H91: 0.395 | I91: 0.41 | J91: 0.425 | K91: 0.44 | L91: 0.45 | M91: 0.46
A92: 101000 | B92: 0.305 | C92: 0.32 | D92: 0.34 | E92: 0.355 | F92: 0.37 | G92: 0.38 | H92: 0.395 | I92: 0.41 | J92: 0.425 | K92: 0.44 | L92: 0.45 | M92: 0.46
A93: 102000 | B93: 0.305 | C93: 0.32 | D93: 0.34 | E93: 0.355 | F93: 0.37 | G93: 0.38 | H93: 0.395 | I93: 0.41 | J93: 0.425 | K93: 0.44 | L93: 0.455 | M93: 0.465
A94: 103000 | B94: 0.305 | C94: 0.32 | D94: 0.34 | E94: 0.355 | F94: 0.37 | G94: 0.385 | H94: 0.4 | I94: 0.41 | J94: 0.425 | K94: 0.44 | L94: 0.455 | M94: 0.465
A95: 104000 | B95: 0.305 | C95: 0.32 | D95: 0.34 | E95: 0.355 | F95: 0.37 | G95: 0.385 | H95: 0.4 | I95: 0.415 | J95: 0.425 | K95: 0.44 | L95: 0.455 | M95: 0.465
A96: 105000 | B96: 0.305 | C96: 0.32 | D96: 0.34 | E96: 0.355 | F96: 0.37 | G96: 0.385 | H96: 0.4 | I96: 0.415 | J96: 0.425 | K96: 0.44 | L96: 0.455 | M96: 0.47
A97: 106000 | B97: 0.305 | C97: 0.32 | D97: 0.34 | E97: 0.355 | F97: 0.37 | G97: 0.385 | H97: 0.4 | I97: 0.415 | J97: 0.425 | K97: 0.44 | L97: 0.455 | M97: 0.47
A98: 107000 | B98: 0.305 | C98: 0.32 | D98: 0.34 | E98: 0.355 | F98: 0.37 | G98: 0.385 | H98: 0.4 | I98: 0.415 | J98: 0.43 | K98: 0.44 | L98: 0.455 | M98: 0.47
A99: 108000 | B99: 0.305 | C99: 0.32 | D99: 0.34 | E99: 0.355 | F99: 0.37 | G99: 0.385 | H99: 0.4 | I99: 0.415 | J99: 0.43 | K99: 0.44 | L99: 0.455 | M99: 0.47
A100: 109000 | B100: 0.305 | C100: 0.32 | D100: 0.34 | E100: 0.355 | F100: 0.37 | G100: 0.385 | H100: 0.4 | I100: 0.415 | J100: 0.43 | K100: 0.44 | L100: 0.455 | M100: 0.47
A101: 110000 | B101: 0.305 | C101: 0.32 | D101: 0.34 | E101: 0.355 | F101: 0.37 | G101: 0.39 | H101: 0.4 | I101: 0.415 | J101: 0.43 | K101: 0.445 | L101: 0.455 | M101: 0.47
A102: 999999999999 | B102: 0 | C102: 0 | D102: 0 | E102: 0 | F102: 0 | G102: 0 | H102: 0 | I102: 0 | J102: 0 | K102: 0 | L102: 0 | M102: 0

Sheet 2016BOX3 (hidden)
IV1: HIDE
A4: euro’s | B4: <=2,500 | C4: 2,501-3,000 | D4: 3,001-3,500 | E4: 3,501-4,000 | F4: 4,001-4,500 | G4: 4,501-5,000 | H4: 5,001-5,500 | I4: 5,501-6,000 | J4: 6,001-6,500 | K4: 6,501-7,000 | L4: 7,001-7,500 | M4: 7.5
A5: 0 | B5: 0.08 | C5: 0.08 | D5: 0.08 | E5: 0.085 | F5: 0.085 | G5: 0.085 | H5: 0.085 | I5: 0.085 | J5: 0.085 | K5: 0.09 | L5: 0.09 | M5: 0.09
A6: 19500 | B6: 0.08 | C6: 0.08 | D6: 0.08 | E6: 0.085 | F6: 0.085 | G6: 0.085 | H6: 0.085 | I6: 0.085 | J6: 0.085 | K6: 0.09 | L6: 0.09 | M6: 0.09
A7: 20000 | B7: 0.09 | C7: 0.09 | D7: 0.095 | E7: 0.095 | F7: 0.095 | G7: 0.095 | H7: 0.095 | I7: 0.1 | J7: 0.1 | K7: 0.1 | L7: 0.1 | M7: 0.1
A8: 20500 | B8: 0.095 | C8: 0.095 | D8: 0.1 | E8: 0.1 | F8: 0.1 | G8: 0.1 | H8: 0.105 | I8: 0.105 | J8: 0.105 | K8: 0.105 | L8: 0.105 | M8: 0.105
A9: 21000 | B9: 0.1 | C9: 0.1 | D9: 0.105 | E9: 0.105 | F9: 0.105 | G9: 0.105 | H9: 0.11 | I9: 0.11 | J9: 0.11 | K9: 0.11 | L9: 0.11 | M9: 0.115
A10: 21500 | B10: 0.105 | C10: 0.105 | D10: 0.11 | E10: 0.11 | F10: 0.11 | G10: 0.11 | H10: 0.115 | I10: 0.115 | J10: 0.115 | K10: 0.115 | L10: 0.115 | M10: 0.12
A11: 22000 | B11: 0.11 | C11: 0.11 | D11: 0.115 | E11: 0.115 | F11: 0.115 | G11: 0.115 | H11: 0.12 | I11: 0.12 | J11: 0.12 | K11: 0.12 | L11: 0.125 | M11: 0.125
A12: 22500 | B12: 0.115 | C12: 0.115 | D12: 0.12 | E12: 0.12 | F12: 0.12 | G12: 0.12 | H12: 0.125 | I12: 0.125 | J12: 0.125 | K12: 0.125 | L12: 0.125 | M12: 0.13
A13: 23000 | B13: 0.12 | C13: 0.12 | D13: 0.12 | E13: 0.125 | F13: 0.125 | G13: 0.125 | H13: 0.13 | I13: 0.13 | J13: 0.13 | K13: 0.13 | L13: 0.13 | M13: 0.135
A14: 23500 | B14: 0.125 | C14: 0.125 | D14: 0.125 | E14: 0.13 | F14: 0.13 | G14: 0.13 | H14: 0.13 | I14: 0.135 | J14: 0.135 | K14: 0.135 | L14: 0.135 | M14: 0.135
A15: 24000 | B15: 0.125 | C15: 0.13 | D15: 0.13 | E15: 0.13 | F15: 0.135 | G15: 0.135 | H15: 0.135 | I15: 0.135 | J15: 0.14 | K15: 0.14 | L15: 0.14 | M15: 0.14
A16: 24500 | B16: 0.13 | C16: 0.13 | D16: 0.135 | E16: 0.135 | F16: 0.135 | G16: 0.14 | H16: 0.14 | I16: 0.14 | J16: 0.145 | K16: 0.145 | L16: 0.145 | M16: 0.145
A17: 25000 | B17: 0.135 | C17: 0.135 | D17: 0.14 | E17: 0.14 | F17: 0.14 | G17: 0.14 | H17: 0.145 | I17: 0.145 | J17: 0.145 | K17: 0.15 | L17: 0.15 | M17: 0.15
A18: 26000 | B18: 0.14 | C18: 0.14 | D18: 0.145 | E18: 0.145 | F18: 0.15 | G18: 0.15 | H18: 0.15 | I18: 0.15 | J18: 0.155 | K18: 0.155 | L18: 0.155 | M18: 0.155
A19: 27000 | B19: 0.145 | C19: 0.15 | D19: 0.15 | E19: 0.155 | F19: 0.155 | G19: 0.155 | H19: 0.16 | I19: 0.16 | J19: 0.16 | K19: 0.16 | L19: 0.165 | M19: 0.165
A20: 28000 | B20: 0.15 | C20: 0.155 | D20: 0.155 | E20: 0.16 | F20: 0.16 | G20: 0.16 | H20: 0.165 | I20: 0.165 | J20: 0.165 | K20: 0.17 | L20: 0.17 | M20: 0.17
A21: 29000 | B21: 0.16 | C21: 0.16 | D21: 0.16 | E21: 0.165 | F21: 0.165 | G21: 0.17 | H21: 0.17 | I21: 0.17 | J21: 0.175 | K21: 0.175 | L21: 0.175 | M21: 0.175
A22: 30000 | B22: 0.165 | C22: 0.165 | D22: 0.165 | E22: 0.17 | F22: 0.17 | G22: 0.175 | H22: 0.175 | I22: 0.175 | J22: 0.18 | K22: 0.18 | L22: 0.18 | M22: 0.18
A23: 31000 | B23: 0.17 | C23: 0.17 | D23: 0.175 | E23: 0.175 | F23: 0.18 | G23: 0.18 | H23: 0.18 | I23: 0.185 | J23: 0.185 | K23: 0.185 | L23: 0.19 | M23: 0.19
A24: 32000 | B24: 0.17 | C24: 0.175 | D24: 0.175 | E24: 0.18 | F24: 0.18 | G24: 0.185 | H24: 0.185 | I24: 0.185 | J24: 0.19 | K24: 0.19 | L24: 0.19 | M24: 0.195
A25: 35000 | B25: 0.175 | C25: 0.175 | D25: 0.18 | E25: 0.18 | F25: 0.18 | G25: 0.185 | H25: 0.185 | I25: 0.19 | J25: 0.19 | K25: 0.19 | L25: 0.19 | M25: 0.195
A26: 36000 | B26: 0.175 | C26: 0.175 | D26: 0.18 | E26: 0.18 | F26: 0.185 | G26: 0.185 | H26: 0.185 | I26: 0.19 | J26: 0.19 | K26: 0.19 | L26: 0.195 | M26: 0.195
A27: 37000 | B27: 0.175 | C27: 0.18 | D27: 0.18 | E27: 0.185 | F27: 0.185 | G27: 0.185 | H27: 0.19 | I27: 0.19 | J27: 0.19 | K27: 0.195 | L27: 0.195 | M27: 0.195
A28: 38000 | B28: 0.175 | C28: 0.18 | D28: 0.18 | E28: 0.185 | F28: 0.185 | G28: 0.19 | H28: 0.19 | I28: 0.19 | J28: 0.195 | K28: 0.195 | L28: 0.195 | M28: 0.195
A29: 39000 | B29: 0.175 | C29: 0.18 | D29: 0.185 | E29: 0.185 | F29: 0.185 | G29: 0.19 | H29: 0.19 | I29: 0.195 | J29: 0.195 | K29: 0.195 | L29: 0.195 | M29: 0.2
A30: 40000 | B30: 0.18 | C30: 0.18 | D30: 0.185 | E30: 0.185 | F30: 0.19 | G30: 0.19 | H30: 0.19 | I30: 0.195 | J30: 0.195 | K30: 0.195 | L30: 0.2 | M30: 0.2
A31: 41000 | B31: 0.18 | C31: 0.18 | D31: 0.185 | E31: 0.185 | F31: 0.19 | G31: 0.19 | H31: 0.195 | I31: 0.195 | J31: 0.195 | K31: 0.2 | L31: 0.2 | M31: 0.2
A32: 43000 | B32: 0.18 | C32: 0.185 | D32: 0.185 | E32: 0.19 | F32: 0.19 | G32: 0.195 | H32: 0.195 | I32: 0.195 | J32: 0.2 | K32: 0.2 | L32: 0.2 | M32: 0.205
A33: 44000 | B33: 0.18 | C33: 0.185 | D33: 0.185 | E33: 0.19 | F33: 0.19 | G33: 0.195 | H33: 0.195 | I33: 0.2 | J33: 0.2 | K33: 0.2 | L33: 0.2 | M33: 0.205
A34: 45000 | B34: 0.185 | C34: 0.185 | D34: 0.19 | E34: 0.19 | F34: 0.19 | G34: 0.195 | H34: 0.195 | I34: 0.2 | J34: 0.2 | K34: 0.2 | L34: 0.205 | M34: 0.205
A35: 46000 | B35: 0.185 | C35: 0.185 | D35: 0.19 | E35: 0.19 | F35: 0.195 | G35: 0.195 | H35: 0.2 | I35: 0.2 | J35: 0.2 | K35: 0.205 | L35: 0.205 | M35: 0.205
A36: 47000 | B36: 0.185 | C36: 0.185 | D36: 0.19 | E36: 0.19 | F36: 0.195 | G36: 0.195 | H36: 0.2 | I36: 0.2 | J36: 0.205 | K36: 0.205 | L36: 0.205 | M36: 0.205
A37: 48000 | B37: 0.185 | C37: 0.19 | D37: 0.19 | E37: 0.195 | F37: 0.195 | G37: 0.195 | H37: 0.2 | I37: 0.2 | J37: 0.205 | K37: 0.205 | L37: 0.205 | M37: 0.21
A38: 49000 | B38: 0.185 | C38: 0.19 | D38: 0.19 | E38: 0.195 | F38: 0.195 | G38: 0.2 | H38: 0.2 | I38: 0.2 | J38: 0.205 | K38: 0.205 | L38: 0.21 | M38: 0.21
A39: 50000 | B39: 0.185 | C39: 0.19 | D39: 0.19 | E39: 0.195 | F39: 0.195 | G39: 0.2 | H39: 0.2 | I39: 0.205 | J39: 0.205 | K39: 0.205 | L39: 0.21 | M39: 0.21
A40: 51000 | B40: 0.19 | C40: 0.19 | D40: 0.195 | E40: 0.195 | F40: 0.2 | G40: 0.2 | H40: 0.2 | I40: 0.205 | J40: 0.205 | K40: 0.21 | L40: 0.21 | M40: 0.21
A41: 52000 | B41: 0.19 | C41: 0.19 | D41: 0.195 | E41: 0.195 | F41: 0.2 | G41: 0.2 | H41: 0.205 | I41: 0.205 | J41: 0.205 | K41: 0.21 | L41: 0.21 | M41: 0.21
A42: 55000 | B42: 0.19 | C42: 0.195 | D42: 0.195 | E42: 0.2 | F42: 0.2 | G42: 0.205 | H42: 0.205 | I42: 0.205 | J42: 0.21 | K42: 0.21 | L42: 0.21 | M42: 0.215
A43: 56000 | B43: 0.19 | C43: 0.195 | D43: 0.2 | E43: 0.2 | F43: 0.2 | G43: 0.205 | H43: 0.205 | I43: 0.21 | J43: 0.21 | K43: 0.21 | L43: 0.215 | M43: 0.215
A44: 57000 | B44: 0.195 | C44: 0.195 | D44: 0.2 | E44: 0.2 | F44: 0.205 | G44: 0.205 | H44: 0.21 | I44: 0.21 | J44: 0.215 | K44: 0.215 | L44: 0.215 | M44: 0.215
A45: 58000 | B45: 0.195 | C45: 0.2 | D45: 0.2 | E45: 0.205 | F45: 0.205 | G45: 0.21 | H45: 0.21 | I45: 0.215 | J45: 0.215 | K45: 0.215 | L45: 0.22 | M45: 0.22
A46: 59000 | B46: 0.195 | C46: 0.2 | D46: 0.205 | E46: 0.205 | F46: 0.21 | G46: 0.21 | H46: 0.21 | I46: 0.215 | J46: 0.215 | K46: 0.22 | L46: 0.22 | M46: 0.22
A47: 60000 | B47: 0.2 | C47: 0.2 | D47: 0.205 | E47: 0.21 | F47: 0.21 | G47: 0.21 | H47: 0.215 | I47: 0.215 | J47: 0.22 | K47: 0.22 | L47: 0.22 | M47: 0.225
A48: 61000 | B48: 0.2 | C48: 0.205 | D48: 0.205 | E48: 0.21 | F48: 0.21 | G48: 0.215 | H48: 0.215 | I48: 0.215 | J48: 0.22 | K48: 0.22 | L48: 0.225 | M48: 0.225
A49: 62000 | B49: 0.2 | C49: 0.205 | D49: 0.205 | E49: 0.21 | F49: 0.21 | G49: 0.215 | H49: 0.215 | I49: 0.22 | J49: 0.22 | K49: 0.22 | L49: 0.225 | M49: 0.225
A50: 63000 | B50: 0.2 | C50: 0.205 | D50: 0.205 | E50: 0.21 | F50: 0.215 | G50: 0.215 | H50: 0.215 | I50: 0.22 | J50: 0.22 | K50: 0.225 | L50: 0.225 | M50: 0.225
A51: 64000 | B51: 0.2 | C51: 0.205 | D51: 0.21 | E51: 0.21 | F51: 0.215 | G51: 0.215 | H51: 0.22 | I51: 0.22 | J51: 0.22 | K51: 0.225 | L51: 0.225 | M51: 0.225
A52: 65000 | B52: 0.2 | C52: 0.205 | D52: 0.21 | E52: 0.21 | F52: 0.215 | G52: 0.215 | H52: 0.22 | I52: 0.22 | J52: 0.225 | K52: 0.225 | L52: 0.225 | M52: 0.23
A53: 66000 | B53: 0.205 | C53: 0.205 | D53: 0.21 | E53: 0.21 | F53: 0.215 | G53: 0.215 | H53: 0.22 | I53: 0.22 | J53: 0.225 | K53: 0.225 | L53: 0.225 | M53: 0.23
A54: 67000 | B54: 0.205 | C54: 0.205 | D54: 0.21 | E54: 0.215 | F54: 0.215 | G54: 0.22 | H54: 0.22 | I54: 0.22 | J54: 0.225 | K54: 0.225 | L54: 0.23 | M54: 0.23
A55: 68000 | B55: 0.205 | C55: 0.21 | D55: 0.21 | E55: 0.215 | F55: 0.215 | G55: 0.22 | H55: 0.22 | I55: 0.225 | J55: 0.225 | K55: 0.225 | L55: 0.23 | M55: 0.23
A56: 70000 | B56: 0.205 | C56: 0.21 | D56: 0.21 | E56: 0.215 | F56: 0.22 | G56: 0.22 | H56: 0.22 | I56: 0.225 | J56: 0.225 | K56: 0.23 | L56: 0.23 | M56: 0.23
A57: 71000 | B57: 0.205 | C57: 0.21 | D57: 0.215 | E57: 0.215 | F57: 0.22 | G57: 0.22 | H57: 0.225 | I57: 0.225 | J57: 0.225 | K57: 0.23 | L57: 0.23 | M57: 0.23
A58: 72000 | B58: 0.205 | C58: 0.21 | D58: 0.215 | E58: 0.215 | F58: 0.22 | G58: 0.22 | H58: 0.225 | I58: 0.225 | J58: 0.23 | K58: 0.23 | L58: 0.23 | M58: 0.235
A59: 73000 | B59: 0.21 | C59: 0.21 | D59: 0.215 | E59: 0.215 | F59: 0.22 | G59: 0.22 | H59: 0.225 | I59: 0.225 | J59: 0.23 | K59: 0.23 | L59: 0.23 | M59: 0.235
A60: 74000 | B60: 0.21 | C60: 0.21 | D60: 0.215 | E60: 0.215 | F60: 0.22 | G60: 0.225 | H60: 0.225 | I60: 0.225 | J60: 0.23 | K60: 0.23 | L60: 0.235 | M60: 0.235
A61: 75000 | B61: 0.21 | C61: 0.21 | D61: 0.215 | E61: 0.22 | F61: 0.22 | G61: 0.225 | H61: 0.225 | I61: 0.225 | J61: 0.23 | K61: 0.23 | L61: 0.235 | M61: 0.235
A62: 76000 | B62: 0.21 | C62: 0.215 | D62: 0.215 | E62: 0.22 | F62: 0.22 | G62: 0.225 | H62: 0.225 | I62: 0.23 | J62: 0.23 | K62: 0.23 | L62: 0.235 | M62: 0.235
A63: 77000 | B63: 0.21 | C63: 0.215 | D63: 0.215 | E63: 0.22 | F63: 0.22 | G63: 0.225 | H63: 0.225 | I63: 0.23 | J63: 0.23 | K63: 0.235 | L63: 0.235 | M63: 0.235
A64: 79000 | B64: 0.21 | C64: 0.215 | D64: 0.215 | E64: 0.22 | F64: 0.225 | G64: 0.225 | H64: 0.23 | I64: 0.23 | J64: 0.23 | K64: 0.235 | L64: 0.235 | M64: 0.235
A65: 80000 | B65: 0.21 | C65: 0.215 | D65: 0.22 | E65: 0.22 | F65: 0.225 | G65: 0.225 | H65: 0.23 | I65: 0.23 | J65: 0.23 | K65: 0.235 | L65: 0.235 | M65: 0.24
A66: 81000 | B66: 0.21 | C66: 0.215 | D66: 0.22 | E66: 0.22 | F66: 0.225 | G66: 0.225 | H66: 0.23 | I66: 0.23 | J66: 0.235 | K66: 0.235 | L66: 0.235 | M66: 0.24
A67: 83000 | B67: 0.215 | C67: 0.215 | D67: 0.22 | E67: 0.22 | F67: 0.225 | G67: 0.225 | H67: 0.23 | I67: 0.23 | J67: 0.235 | K67: 0.235 | L67: 0.24 | M67: 0.24
A68: 84000 | B68: 0.215 | C68: 0.215 | D68: 0.22 | E68: 0.225 | F68: 0.225 | G68: 0.23 | H68: 0.23 | I68: 0.23 | J68: 0.235 | K68: 0.235 | L68: 0.24 | M68: 0.24
A69: 85000 | B69: 0.215 | C69: 0.215 | D69: 0.22 | E69: 0.225 | F69: 0.225 | G69: 0.23 | H69: 0.23 | I69: 0.235 | J69: 0.235 | K69: 0.235 | L69: 0.24 | M69: 0.24
A70: 87000 | B70: 0.215 | C70: 0.22 | D70: 0.22 | E70: 0.225 | F70: 0.225 | G70: 0.23 | H70: 0.23 | I70: 0.235 | J70: 0.235 | K70: 0.24 | L70: 0.24 | M70: 0.24
A71: 90000 | B71: 0.215 | C71: 0.22 | D71: 0.22 | E71: 0.225 | F71: 0.23 | G71: 0.23 | H71: 0.235 | I71: 0.235 | J71: 0.235 | K71: 0.24 | L71: 0.24 | M71: 0.24
A72: 91000 | B72: 0.215 | C72: 0.22 | D72: 0.22 | E72: 0.225 | F72: 0.23 | G72: 0.23 | H72: 0.235 | I72: 0.235 | J72: 0.235 | K72: 0.24 | L72: 0.24 | M72: 0.245
A73: 92000 | B73: 0.215 | C73: 0.22 | D73: 0.225 | E73: 0.225 | F73: 0.23 | G73: 0.23 | H73: 0.235 | I73: 0.235 | J73: 0.24 | K73: 0.24 | L73: 0.24 | M73: 0.245
A74: 95000 | B74: 0.22 | C74: 0.22 | D74: 0.225 | E74: 0.225 | F74: 0.23 | G74: 0.23 | H74: 0.235 | I74: 0.235 | J74: 0.24 | K74: 0.24 | L74: 0.245 | M74: 0.245
A75: 96000 | B75: 0.22 | C75: 0.22 | D75: 0.225 | E75: 0.225 | F75: 0.23 | G75: 0.235 | H75: 0.235 | I75: 0.235 | J75: 0.24 | K75: 0.24 | L75: 0.245 | M75: 0.245
A76: 110000 | B76: 0.22 | C76: 0.22 | D76: 0.225 | E76: 0.225 | F76: 0.23 | G76: 0.235 | H76: 0.235 | I76: 0.235 | J76: 0.24 | K76: 0.24 | L76: 0.245 | M76: 0.245
A77: 999999999999 | B77: 0 | C77: 0 | D77: 0 | E77: 0 | F77: 0 | G77: 0 | H77: 0 | I77: 0 | J77: 0 | K77: 0 | L77: 0 | M77: 0

Sheet 2016AOWBOX3 (hidden)
IV1: HIDE
A4: euro’s | B4: <=2,500 | C4: 2,501-3,000 | D4: 3,001-3,500 | E4: 3,501-4,000 | F4: 4,001-4,500 | G4: 4,501-5,000 | H4: 5,001-5,500 | I4: 5,501-6,000 | J4: 6,001-6,500 | K4: 6,501-7,000 | L4: 7,001-7,500 | M4: 7.5
A5: 0 | B5: 0.13 | C5: 0.13 | D5: 0.135 | E5: 0.135 | F5: 0.135 | G5: 0.14 | H5: 0.14 | I5: 0.14 | J5: 0.145 | K5: 0.145 | L5: 0.145 | M5: 0.145
A6: 20000 | B6: 0.13 | C6: 0.13 | D6: 0.135 | E6: 0.135 | F6: 0.135 | G6: 0.14 | H6: 0.14 | I6: 0.14 | J6: 0.145 | K6: 0.145 | L6: 0.145 | M6: 0.145
A7: 20500 | B7: 0.145 | C7: 0.145 | D7: 0.145 | E7: 0.15 | F7: 0.15 | G7: 0.15 | H7: 0.155 | I7: 0.155 | J7: 0.155 | K7: 0.155 | L7: 0.16 | M7: 0.16
A8: 21000 | B8: 0.155 | C8: 0.155 | D8: 0.16 | E8: 0.16 | F8: 0.16 | G8: 0.165 | H8: 0.165 | I8: 0.165 | J8: 0.17 | K8: 0.17 | L8: 0.17 | M8: 0.175
A9: 21500 | B9: 0.165 | C9: 0.165 | D9: 0.17 | E9: 0.17 | F9: 0.175 | G9: 0.175 | H9: 0.175 | I9: 0.18 | J9: 0.18 | K9: 0.18 | L9: 0.185 | M9: 0.185
A10: 22000 | B10: 0.17 | C10: 0.175 | D10: 0.175 | E10: 0.18 | F10: 0.18 | G10: 0.185 | H10: 0.185 | I10: 0.185 | J10: 0.19 | K10: 0.19 | L10: 0.19 | M10: 0.195
A11: 22500 | B11: 0.18 | C11: 0.18 | D11: 0.185 | E11: 0.185 | F11: 0.19 | G11: 0.19 | H11: 0.195 | I11: 0.195 | J11: 0.195 | K11: 0.2 | L11: 0.2 | M11: 0.2
A12: 23000 | B12: 0.185 | C12: 0.19 | D12: 0.19 | E12: 0.195 | F12: 0.195 | G12: 0.2 | H12: 0.2 | I12: 0.2 | J12: 0.205 | K12: 0.205 | L12: 0.205 | M12: 0.21
A13: 23500 | B13: 0.19 | C13: 0.195 | D13: 0.2 | E13: 0.2 | F13: 0.2 | G13: 0.205 | H13: 0.205 | I13: 0.21 | J13: 0.21 | K13: 0.21 | L13: 0.215 | M13: 0.215
A14: 24000 | B14: 0.2 | C14: 0.2 | D14: 0.205 | E14: 0.205 | F14: 0.21 | G14: 0.21 | H14: 0.215 | I14: 0.215 | J14: 0.215 | K14: 0.22 | L14: 0.22 | M14: 0.22
A15: 24500 | B15: 0.205 | C15: 0.205 | D15: 0.21 | E15: 0.215 | F15: 0.215 | G15: 0.215 | H15: 0.22 | I15: 0.22 | J15: 0.225 | K15: 0.225 | L15: 0.225 | M15: 0.23
A16: 25000 | B16: 0.21 | C16: 0.21 | D16: 0.215 | E16: 0.215 | F16: 0.22 | G16: 0.22 | H16: 0.225 | I16: 0.225 | J16: 0.23 | K16: 0.23 | L16: 0.23 | M16: 0.235
A17: 26000 | B17: 0.21 | C17: 0.215 | D17: 0.215 | E17: 0.22 | F17: 0.22 | G17: 0.225 | H17: 0.225 | I17: 0.23 | J17: 0.23 | K17: 0.23 | L17: 0.235 | M17: 0.235
A18: 27000 | B18: 0.21 | C18: 0.215 | D18: 0.22 | E18: 0.22 | F18: 0.225 | G18: 0.225 | H18: 0.225 | I18: 0.23 | J18: 0.23 | K18: 0.235 | L18: 0.235 | M18: 0.235
A19: 28000 | B19: 0.215 | C19: 0.215 | D19: 0.22 | E19: 0.22 | F19: 0.225 | G19: 0.225 | H19: 0.23 | I19: 0.23 | J19: 0.235 | K19: 0.235 | L19: 0.235 | M19: 0.24
A20: 29000 | B20: 0.215 | C20: 0.22 | D20: 0.22 | E20: 0.225 | F20: 0.225 | G20: 0.23 | H20: 0.23 | I20: 0.235 | J20: 0.235 | K20: 0.235 | L20: 0.24 | M20: 0.24
A21: 30000 | B21: 0.215 | C21: 0.22 | D21: 0.22 | E21: 0.225 | F21: 0.225 | G21: 0.23 | H21: 0.23 | I21: 0.235 | J21: 0.235 | K21: 0.24 | L21: 0.24 | M21: 0.24
A22: 31000 | B22: 0.22 | C22: 0.225 | D22: 0.23 | E22: 0.23 | F22: 0.235 | G22: 0.235 | H22: 0.24 | I22: 0.24 | J22: 0.245 | K22: 0.245 | L22: 0.245 | M22: 0.25
A23: 33000 | B23: 0.22 | C23: 0.225 | D23: 0.23 | E23: 0.23 | F23: 0.235 | G23: 0.235 | H23: 0.24 | I23: 0.24 | J23: 0.245 | K23: 0.245 | L23: 0.25 | M23: 0.25
A24: 34000 | B24: 0.225 | C24: 0.225 | D24: 0.23 | E24: 0.235 | F24: 0.235 | G24: 0.24 | H24: 0.24 | I24: 0.245 | J24: 0.245 | K24: 0.25 | L24: 0.25 | M24: 0.25
A25: 35000 | B25: 0.225 | C25: 0.23 | D25: 0.235 | E25: 0.235 | F25: 0.24 | G25: 0.24 | H25: 0.245 | I25: 0.245 | J25: 0.25 | K25: 0.25 | L25: 0.25 | M25: 0.255
A26: 36000 | B26: 0.23 | C26: 0.23 | D26: 0.235 | E26: 0.24 | F26: 0.24 | G26: 0.245 | H26: 0.245 | I26: 0.25 | J26: 0.25 | K26: 0.255 | L26: 0.255 | M26: 0.255
A27: 37000 | B27: 0.23 | C27: 0.235 | D27: 0.235 | E27: 0.24 | F27: 0.245 | G27: 0.245 | H27: 0.25 | I27: 0.25 | J27: 0.255 | K27: 0.255 | L27: 0.255 | M27: 0.26
A28: 38000 | B28: 0.23 | C28: 0.235 | D28: 0.24 | E28: 0.24 | F28: 0.245 | G28: 0.245 | H28: 0.25 | I28: 0.255 | J28: 0.255 | K28: 0.255 | L28: 0.26 | M28: 0.26
A29: 39000 | B29: 0.235 | C29: 0.235 | D29: 0.24 | E29: 0.245 | F29: 0.245 | G29: 0.25 | H29: 0.25 | I29: 0.255 | J29: 0.255 | K29: 0.26 | L29: 0.26 | M29: 0.265
A30: 40000 | B30: 0.235 | C30: 0.24 | D30: 0.24 | E30: 0.245 | F30: 0.25 | G30: 0.25 | H30: 0.255 | I30: 0.255 | J30: 0.26 | K30: 0.26 | L30: 0.265 | M30: 0.265
A31: 41000 | B31: 0.235 | C31: 0.24 | D31: 0.245 | E31: 0.245 | F31: 0.25 | G31: 0.255 | H31: 0.255 | I31: 0.255 | J31: 0.26 | K31: 0.26 | L31: 0.265 | M31: 0.265
A32: 42000 | B32: 0.24 | C32: 0.24 | D32: 0.245 | E32: 0.25 | F32: 0.25 | G32: 0.255 | H32: 0.255 | I32: 0.26 | J32: 0.26 | K32: 0.265 | L32: 0.265 | M32: 0.27
A33: 43000 | B33: 0.24 | C33: 0.245 | D33: 0.245 | E33: 0.25 | F33: 0.255 | G33: 0.255 | H33: 0.26 | I33: 0.26 | J33: 0.265 | K33: 0.265 | L33: 0.27 | M33: 0.27
A34: 44000 | B34: 0.245 | C34: 0.245 | D34: 0.25 | E34: 0.255 | F34: 0.255 | G34: 0.26 | H34: 0.26 | I34: 0.265 | J34: 0.265 | K34: 0.27 | L34: 0.27 | M34: 0.275
A35: 45000 | B35: 0.245 | C35: 0.25 | D35: 0.25 | E35: 0.255 | F35: 0.255 | G35: 0.26 | H35: 0.265 | I35: 0.265 | J35: 0.27 | K35: 0.27 | L35: 0.27 | M35: 0.275
A36: 53000 | B36: 0.245 | C36: 0.25 | D36: 0.25 | E36: 0.255 | F36: 0.26 | G36: 0.26 | H36: 0.265 | I36: 0.265 | J36: 0.27 | K36: 0.27 | L36: 0.27 | M36: 0.275
A37: 54000 | B37: 0.245 | C37: 0.25 | D37: 0.255 | E37: 0.255 | F37: 0.26 | G37: 0.26 | H37: 0.265 | I37: 0.265 | J37: 0.27 | K37: 0.27 | L37: 0.275 | M37: 0.275
A38: 55000 | B38: 0.245 | C38: 0.25 | D38: 0.255 | E38: 0.255 | F38: 0.26 | G38: 0.265 | H38: 0.265 | I38: 0.27 | J38: 0.27 | K38: 0.275 | L38: 0.275 | M38: 0.275
A39: 56000 | B39: 0.245 | C39: 0.25 | D39: 0.255 | E39: 0.26 | F39: 0.26 | G39: 0.265 | H39: 0.265 | I39: 0.27 | J39: 0.27 | K39: 0.275 | L39: 0.275 | M39: 0.28
A40: 57000 | B40: 0.25 | C40: 0.25 | D40: 0.255 | E40: 0.26 | F40: 0.265 | G40: 0.265 | H40: 0.27 | I40: 0.27 | J40: 0.275 | K40: 0.275 | L40: 0.28 | M40: 0.28
A41: 58000 | B41: 0.25 | C41: 0.255 | D41: 0.255 | E41: 0.26 | F41: 0.265 | G41: 0.265 | H41: 0.27 | I41: 0.27 | J41: 0.275 | K41: 0.275 | L41: 0.28 | M41: 0.28
A42: 59000 | B42: 0.25 | C42: 0.255 | D42: 0.26 | E42: 0.26 | F42: 0.265 | G42: 0.27 | H42: 0.27 | I42: 0.275 | J42: 0.275 | K42: 0.28 | L42: 0.28 | M42: 0.28
A43: 60000 | B43: 0.25 | C43: 0.255 | D43: 0.26 | E43: 0.26 | F43: 0.265 | G43: 0.27 | H43: 0.27 | I43: 0.275 | J43: 0.275 | K43: 0.28 | L43: 0.28 | M43: 0.285
A44: 61000 | B44: 0.255 | C44: 0.255 | D44: 0.26 | E44: 0.265 | F44: 0.265 | G44: 0.27 | H44: 0.275 | I44: 0.275 | J44: 0.28 | K44: 0.28 | L44: 0.28 | M44: 0.285
A45: 62000 | B45: 0.255 | C45: 0.26 | D45: 0.26 | E45: 0.265 | F45: 0.27 | G45: 0.27 | H45: 0.275 | I45: 0.275 | J45: 0.28 | K45: 0.28 | L45: 0.285 | M45: 0.285
A46: 63000 | B46: 0.255 | C46: 0.26 | D46: 0.265 | E46: 0.265 | F46: 0.27 | G46: 0.275 | H46: 0.275 | I46: 0.28 | J46: 0.28 | K46: 0.285 | L46: 0.285 | M46: 0.285
A47: 64000 | B47: 0.255 | C47: 0.26 | D47: 0.265 | E47: 0.27 | F47: 0.27 | G47: 0.275 | H47: 0.275 | I47: 0.28 | J47: 0.28 | K47: 0.285 | L47: 0.285 | M47: 0.29
A48: 65000 | B48: 0.26 | C48: 0.26 | D48: 0.265 | E48: 0.27 | F48: 0.27 | G48: 0.275 | H48: 0.28 | I48: 0.28 | J48: 0.285 | K48: 0.285 | L48: 0.29 | M48: 0.29
A49: 66000 | B49: 0.26 | C49: 0.265 | D49: 0.265 | E49: 0.27 | F49: 0.275 | G49: 0.275 | H49: 0.28 | I49: 0.285 | J49: 0.285 | K49: 0.285 | L49: 0.29 | M49: 0.29
A50: 67000 | B50: 0.26 | C50: 0.265 | D50: 0.27 | E50: 0.27 | F50: 0.275 | G50: 0.28 | H50: 0.28 | I50: 0.285 | J50: 0.285 | K50: 0.29 | L50: 0.29 | M50: 0.295
A51: 68000 | B51: 0.26 | C51: 0.265 | D51: 0.27 | E51: 0.275 | F51: 0.275 | G51: 0.28 | H51: 0.28 | I51: 0.285 | J51: 0.285 | K51: 0.29 | L51: 0.29 | M51: 0.295
A52: 72000 | B52: 0.26 | C52: 0.265 | D52: 0.27 | E52: 0.275 | F52: 0.275 | G52: 0.28 | H52: 0.28 | I52: 0.285 | J52: 0.29 | K52: 0.29 | L52: 0.29 | M52: 0.295
A53: 75000 | B53: 0.26 | C53: 0.265 | D53: 0.27 | E53: 0.275 | F53: 0.275 | G53: 0.28 | H53: 0.285 | I53: 0.285 | J53: 0.29 | K53: 0.29 | L53: 0.295 | M53: 0.295
A54: 76000 | B54: 0.265 | C54: 0.265 | D54: 0.27 | E54: 0.275 | F54: 0.275 | G54: 0.28 | H54: 0.285 | I54: 0.285 | J54: 0.29 | K54: 0.29 | L54: 0.295 | M54: 0.295
A55: 78000 | B55: 0.265 | C55: 0.265 | D55: 0.27 | E55: 0.275 | F55: 0.28 | G55: 0.28 | H55: 0.285 | I55: 0.285 | J55: 0.29 | K55: 0.29 | L55: 0.295 | M55: 0.295
A56: 109000 | B56: 0.265 | C56: 0.27 | D56: 0.27 | E56: 0.275 | F56: 0.28 | G56: 0.28 | H56: 0.285 | I56: 0.285 | J56: 0.29 | K56: 0.29 | L56: 0.295 | M56: 0.295
A57: 110000 | B57: 0.265 | C57: 0.27 | D57: 0.27 | E57: 0.275 | F57: 0.28 | G57: 0.28 | H57: 0.285 | I57: 0.285 | J57: 0.29 | K57: 0.29 | L57: 0.295 | M57: 0.295
A58: 999999999999 | B58: 0 | C58: 0 | D58: 0 | E58: 0 | F58: 0 | G58: 0 | H58: 0 | I58: 0 | J58: 0 | K58: 0 | L58: 0 | M58: 0

Sheet 2017AOW (hidden)
A1: Tabel 2. Financieringslastpercentages voor consumenten die de AOW-leeftijd reeds hebben bereikt | IV1: HIDE
B2: <=1,000% | C2: 1,001-1,500% | D2: 1,501-2,000% | E2: 2,001-2,500% | F2: 2,501-3,000% | G2: 3,001-3,500% | H2: 3,501-4,000% | I2: 4,001-4,500% | J2: 4,501-5,000% | K2: 5,001-5,500% | L2: 5,501-6,000% | M2: >=6,001%
A4: -1 | B4: 0 | C4: 0.010009 | D4: =+C4+0.5% -> 0.015009 | E4: 0.020009 | F4: 0.025009 | G4: 0.030009 | H4: 0.035009 | I4: 0.040009 | J4: 0.045009 | K4: 0.050009 | L4: 0.055009 | M4: 0.060009
A5: 0 | B5: 12,5% | C5: 13,0% | D5: 13,5% | E5: 13,5% | F5: 14,0% | G5: 14,0% | H5: 14,5% | I5: 14,5% | J5: 14,5% | K5: 15,0% | L5: 15,0% | M5: 15,0%
A6: 20500 | B6: 12,5% | C6: 13,0% | D6: 13,5% | E6: 13,5% | F6: 14,0% | G6: 14,0% | H6: 14,5% | I6: 14,5% | J6: 14,5% | K6: 15,0% | L6: 15,0% | M6: 15,0%
A7: 21000 | B7: 14,0% | C7: 14,0% | D7: 14,5% | E7: 15,0% | F7: 15,5% | G7: 15,5% | H7: 16,0% | I7: 16,0% | J7: 16,0% | K7: 16,5% | L7: 16,5% | M7: 16,5%
A8: 21500 | B8: 15,0% | C8: 15,5% | D8: 16,0% | E8: 16,0% | F8: 16,5% | G8: 17,0% | H8: 17,0% | I8: 17,5% | J8: 17,5% | K8: 18,0% | L8: 18,0% | M8: 18,0%
A9: 22000 | B9: 16,0% | C9: 16,5% | D9: 17,0% | E9: 17,5% | F9: 17,5% | G9: 18,0% | H9: 18,5% | I9: 18,5% | J9: 19,0% | K9: 19,0% | L9: 19,5% | M9: 19,5%
A10: 22500 | B10: 17,0% | C10: 17,5% | D10: 18,0% | E10: 18,5% | F10: 19,0% | G10: 19,0% | H10: 19,5% | I10: 20,0% | J10: 20,0% | K10: 20,5% | L10: 20,5% | M10: 21,0%
A11: 23000 | B11: 17,5% | C11: 18,5% | D11: 19,0% | E11: 19,5% | F11: 20,0% | G11: 20,5% | H11: 20,5% | I11: 21,0% | J11: 21,5% | K11: 21,5% | L11: 22,0% | M11: 22,0%
A12: 23500 | B12: 18,0% | C12: 19,0% | D12: 20,0% | E12: 20,5% | F12: 21,0% | G12: 21,5% | H12: 21,5% | I12: 22,0% | J12: 22,5% | K12: 23,0% | L12: 23,0% | M12: 23,5%
A13: 24000 | B13: 18,5% | C13: 19,5% | D13: 20,5% | E13: 21,0% | F13: 22,0% | G13: 22,0% | H13: 22,5% | I13: 23,0% | J13: 23,5% | K13: 24,0% | L13: 24,5% | M13: 24,5%
A14: 24500 | B14: 19,0% | C14: 20,0% | D14: 21,0% | E14: 22,0% | F14: 22,5% | G14: 23,5% | H14: 24,0% | I14: 24,5% | J14: 25,0% | K14: 25,0% | L14: 25,5% | M14: 26,0%
A15: 25000 | B15: 19,5% | C15: 20,5% | D15: 21,0% | E15: 22,0% | F15: 23,0% | G15: 23,5% | H15: 24,5% | I15: 25,0% | J15: 25,5% | K15: 26,0% | L15: 26,0% | M15: 26,5%
A16: 26000 | B16: 19,5% | C16: 20,5% | D16: 21,5% | E16: 22,5% | F16: 23,0% | G16: 24,0% | H16: 25,0% | I16: 25,5% | J16: 26,0% | K16: 26,5% | L16: 27,0% | M16: 27,5%
A17: 27000 | B17: 20,0% | C17: 21,0% | D17: 21,5% | E17: 22,5% | F17: 23,5% | G17: 24,5% | H17: 25,0% | I17: 26,0% | J17: 26,5% | K17: 27,0% | L17: 27,5% | M17: 28,0%
A18: 28000 | B18: 20,0% | C18: 21,0% | D18: 22,0% | E18: 23,0% | F18: 23,5% | G18: 24,5% | H18: 25,5% | I18: 26,0% | J18: 26,5% | K18: 27,5% | L18: 28,0% | M18: 28,5%
A19: 29000 | B19: 20,0% | C19: 21,0% | D19: 22,0% | E19: 23,0% | F19: 24,0% | G19: 25,0% | H19: 25,5% | I19: 26,5% | J19: 27,0% | K19: 27,5% | L19: 28,0% | M19: 29,0%
A20: 30000 | B20: 20,5% | C20: 21,5% | D20: 22,5% | E20: 23,0% | F20: 24,0% | G20: 25,0% | H20: 26,0% | I20: 26,5% | J20: 27,0% | K20: 28,0% | L20: 28,5% | M20: 29,0%
A21: 31000 | B21: 21,5% | C21: 22,5% | D21: 23,5% | E21: 24,5% | F21: 25,5% | G21: 26,5% | H21: 27,0% | I21: 28,0% | J21: 28,5% | K21: 29,5% | L21: 30,0% | M21: 30,5%
A22: 32000 | B22: 21,5% | C22: 22,5% | D22: 23,5% | E22: 25,0% | F22: 25,5% | G22: 26,5% | H22: 27,5% | I22: 28,0% | J22: 29,0% | K22: 29,5% | L22: 30,5% | M22: 31,0%
A23: 33000 | B23: 21,5% | C23: 22,5% | D23: 24,0% | E23: 25,0% | F23: 26,0% | G23: 27,0% | H23: 27,5% | I23: 28,5% | J23: 29,0% | K23: 30,0% | L23: 30,5% | M23: 31,0%
A24: 34000 | B24: 21,5% | C24: 22,5% | D24: 24,0% | E24: 25,0% | F24: 26,0% | G24: 27,0% | H24: 28,0% | I24: 28,5% | J24: 29,5% | K24: 30,0% | L24: 30,5% | M24: 31,5%
A25: 35000 | B25: 21,5% | C25: 22,5% | D25: 24,0% | E25: 25,0% | F25: 26,0% | G25: 27,0% | H25: 28,0% | I25: 29,0% | J25: 29,5% | K25: 30,0% | L25: 31,0% | M25: 31,5%
A26: 36000 | B26: 22,0% | C26: 23,0% | D26: 24,0% | E26: 25,0% | F26: 26,0% | G26: 27,0% | H26: 28,0% | I26: 29,0% | J26: 29,5% | K26: 30,5% | L26: 31,0% | M26: 31,5%
A27: 37000 | B27: 22,0% | C27: 23,0% | D27: 24,0% | E27: 25,0% | F27: 26,0% | G27: 27,0% | H27: 28,0% | I27: 29,0% | J27: 30,0% | K27: 30,5% | L27: 31,5% | M27: 32,0%
A28: 38000 | B28: 22,5% | C28: 23,5% | D28: 24,5% | E28: 25,5% | F28: 26,0% | G28: 27,0% | H28: 28,0% | I28: 29,0% | J28: 30,0% | K28: 31,0% | L28: 31,5% | M28: 32,0%
A29: 39000 | B29: 22,5% | C29: 23,5% | D29: 24,5% | E29: 25,5% | F29: 26,5% | G29: 27,5% | H29: 28,0% | I29: 29,0% | J29: 30,0% | K29: 31,0% | L29: 31,5% | M29: 32,5%
A30: 40000 | B30: 22,5% | C30: 23,5% | D30: 24,5% | E30: 25,5% | F30: 26,5% | G30: 27,5% | H30: 28,5% | I30: 29,0% | J30: 30,0% | K30: 31,0% | L30: 31,5% | M30: 32,5%
A31: 41000 | B31: 23,0% | C31: 24,0% | D31: 25,0% | E31: 26,0% | F31: 26,5% | G31: 27,5% | H31: 28,5% | I31: 29,5% | J31: 30,0% | K31: 31,0% | L31: 31,5% | M31: 32,5%
A32: 42000 | B32: 23,0% | C32: 24,0% | D32: 25,0% | E32: 26,0% | F32: 27,0% | G32: 28,0% | H32: 28,5% | I32: 29,5% | J32: 30,0% | K32: 31,0% | L32: 31,5% | M32: 32,5%
A33: 43000 | B33: 23,0% | C33: 24,0% | D33: 25,0% | E33: 26,0% | F33: 27,0% | G33: 28,0% | H33: 29,0% | I33: 29,5% | J33: 30,5% | K33: 31,0% | L33: 32,0% | M33: 32,5%
A34: 44000 | B34: 23,0% | C34: 24,5% | D34: 25,5% | E34: 26,5% | F34: 27,5% | G34: 28,5% | H34: 29,0% | I34: 30,0% | J34: 30,5% | K34: 31,5% | L34: 32,0% | M34: 33,0%
A35: 45000 | B35: 23,0% | C35: 24,5% | D35: 26,0% | E35: 27,0% | F35: 28,0% | G35: 29,0% | H35: 29,5% | I35: 30,5% | J35: 31,0% | K35: 32,0% | L35: 32,5% | M35: 33,5%
A36: 46000 | B36: 23,0% | C36: 24,5% | D36: 26,0% | E36: 27,5% | F36: 28,5% | G36: 29,5% | H36: 30,5% | I36: 31,5% | J36: 32,0% | K36: 33,0% | L36: 33,5% | M36: 34,5%
A37: 47000 | B37: 23,0% | C37: 24,5% | D37: 26,5% | E37: 28,0% | F37: 29,0% | G37: 30,0% | H37: 31,0% | I37: 32,0% | J37: 32,5% | K37: 33,5% | L37: 34,0% | M37: 34,5%
A38: 48000 | B38: 23,0% | C38: 24,5% | D38: 26,5% | E38: 28,0% | F38: 29,5% | G38: 30,5% | H38: 31,5% | I38: 32,0% | J38: 33,0% | K38: 34,0% | L38: 34,5% | M38: 35,0%
A39: 49000 | B39: 23,0% | C39: 24,5% | D39: 26,5% | E39: 28,0% | F39: 29,5% | G39: 31,0% | H39: 32,0% | I39: 32,5% | J39: 33,5% | K39: 34,0% | L39: 35,0% | M39: 35,5%
A40: 50000 | B40: 23,0% | C40: 24,5% | D40: 26,5% | E40: 28,0% | F40: 29,5% | G40: 31,0% | H40: 32,0% | I40: 33,0% | J40: 34,0% | K40: 34,5% | L40: 35,5% | M40: 36,0%
A41: 51000 | B41: 23,5% | C41: 25,0% | D41: 26,5% | E41: 28,0% | F41: 29,5% | G41: 31,0% | H41: 32,5% | I41: 33,5% | J41: 34,5% | K41: 35,0% | L41: 36,0% | M41: 36,5%
A42: 52000 | B42: 23,5% | C42: 25,0% | D42: 26,5% | E42: 28,0% | F42: 29,5% | G42: 31,0% | H42: 32,5% | I42: 34,0% | J42: 34,5% | K42: 35,5% | L42: 36,0% | M42: 37,0%
A43: 53000 | B43: 23,5% | C43: 25,0% | D43: 26,5% | E43: 28,0% | F43: 29,5% | G43: 31,0% | H43: 32,5% | I43: 34,0% | J43: 35,0% | K43: 36,0% | L43: 36,5% | M43: 37,5%
A44: 54000 | B44: 23,5% | C44: 25,5% | D44: 26,5% | E44: 28,0% | F44: 29,5% | G44: 31,0% | H44: 32,5% | I44: 34,5% | J44: 35,5% | K44: 36,0% | L44: 37,0% | M44: 37,5%
A45: 55000 | B45: 23,5% | C45: 25,5% | D45: 26,5% | E45: 28,0% | F45: 29,5% | G45: 31,0% | H45: 32,5% | I45: 34,5% | J45: 36,0% | K45: 36,5% | L45: 37,5% | M45: 38,0%
A46: 56000 | B46: 24,0% | C46: 25,5% | D46: 27,0% | E46: 28,5% | F46: 29,5% | G46: 31,0% | H46: 32,5% | I46: 34,5% | J46: 36,0% | K46: 37,0% | L46: 37,5% | M46: 38,5%
A47: 57000 | B47: 24,0% | C47: 25,5% | D47: 27,0% | E47: 28,5% | F47: 29,5% | G47: 31,0% | H47: 32,5% | I47: 34,5% | J47: 36,0% | K47: 37,5% | L47: 38,0% | M47: 38,5%
A48: 58000 | B48: 24,0% | C48: 25,5% | D48: 27,0% | E48: 28,5% | F48: 29,5% | G48: 31,0% | H48: 32,5% | I48: 34,5% | J48: 36,0% | K48: 37,5% | L48: 38,5% | M48: 39,0%
A49: 59000 | B49: 24,0% | C49: 25,5% | D49: 27,0% | E49: 28,5% | F49: 29,5% | G49: 31,0% | H49: 32,5% | I49: 34,5% | J49: 36,0% | K49: 37,5% | L49: 38,5% | M49: 39,5%
A50: 60000 | B50: 24,5% | C50: 25,5% | D50: 27,0% | E50: 28,5% | F50: 30,0% | G50: 31,5% | H50: 33,0% | I50: 34,5% | J50: 36,0% | K50: 37,5% | L50: 39,0% | M50: 39,5%
A51: 61000 | B51: 24,5% | C51: 26,0% | D51: 27,5% | E51: 29,0% | F51: 30,5% | G51: 32,0% | H51: 33,0% | I51: 34,5% | J51: 36,0% | K51: 37,5% | L51: 39,0% | M51: 40,0%
A52: 62000 | B52: 24,5% | C52: 26,0% | D52: 27,5% | E52: 29,0% | F52: 30,5% | G52: 32,0% | H52: 33,5% | I52: 34,5% | J52: 36,0% | K52: 37,5% | L52: 39,0% | M52: 40,5%
A53: 63000 | B53: 24,5% | C53: 26,0% | D53: 27,5% | E53: 29,0% | F53: 30,5% | G53: 32,0% | H53: 33,5% | I53: 34,5% | J53: 36,0% | K53: 37,5% | L53: 39,0% | M53: 40,5%
A54: 64000 | B54: 25,0% | C54: 26,5% | D54: 28,0% | E54: 29,0% | F54: 30,5% | G54: 32,0% | H54: 33,5% | I54: 35,0% | J54: 36,0% | K54: 37,5% | L54: 39,0% | M54: 40,5%
A55: 65000 | B55: 25,0% | C55: 26,5% | D55: 28,0% | E55: 29,5% | F55: 31,0% | G55: 32,0% | H55: 33,5% | I55: 35,0% | J55: 36,5% | K55: 37,5% | L55: 39,0% | M55: 40,5%
A56: 66000 | B56: 25,0% | C56: 26,5% | D56: 28,0% | E56: 29,5% | F56: 31,0% | G56: 32,5% | H56: 33,5% | I56: 35,0% | J56: 36,5% | K56: 37,5% | L56: 39,0% | M56: 40,5%
A57: 67000 | B57: 25,0% | C57: 27,0% | D57: 28,5% | E57: 30,0% | F57: 31,0% | G57: 32,5% | H57: 34,0% | I57: 35,0% | J57: 36,5% | K57: 38,0% | L57: 39,0% | M57: 40,5%
A58: 68000 | B58: 25,5% | C58: 27,0% | D58: 28,5% | E58: 30,0% | F58: 31,5% | G58: 33,0% | H58: 34,0% | I58: 35,5% | J58: 36,5% | K58: 38,0% | L58: 39,0% | M58: 40,5%
A59: 69000 | B59: 25,5% | C59: 27,0% | D59: 28,5% | E59: 30,0% | F59: 31,5% | G59: 33,0% | H59: 34,5% | I59: 35,5% | J59: 37,0% | K59: 38,0% | L59: 39,0% | M59: 40,5%
A60: 70000 | B60: 25,5% | C60: 27,0% | D60: 28,5% | E60: 30,0% | F60: 31,5% | G60: 33,0% | H60: 34,5% | I60: 36,0% | J60: 37,0% | K60: 38,0% | L60: 39,5% | M60: 40,5%
A61: 71000 | B61: 25,5% | C61: 27,0% | D61: 29,0% | E61: 30,5% | F61: 32,0% | G61: 33,5% | H61: 34,5% | I61: 36,0% | J61: 37,0% | K61: 38,5% | L61: 39,5% | M61: 40,5%
A62: 72000 | B62: 25,5% | C62: 27,0% | D62: 29,0% | E62: 30,5% | F62: 32,0% | G62: 33,5% | H62: 35,0% | I62: 36,0% | J62: 37,5% | K62: 38,5% | L62: 39,5% | M62: 40,5%
A63: 73000 | B63: 25,5% | C63: 27,5% | D63: 29,0% | E63: 30,5% | F63: 32,0% | G63: 33,5% | H63: 35,0% | I63: 36,5% | J63: 37,5% | K63: 39,0% | L63: 40,0% | M63: 41,0%
A64: 74000 | B64: 25,5% | C64: 27,5% | D64: 29,0% | E64: 31,0% | F64: 32,5% | G64: 34,0% | H64: 35,0% | I64: 36,5% | J64: 37,5% | K64: 39,0% | L64: 40,0% | M64: 41,0%
A65: 75000 | B65: 25,5% | C65: 27,5% | D65: 29,0% | E65: 31,0% | F65: 32,5% | G65: 34,0% | H65: 35,5% | I65: 36,5% | J65: 38,0% | K65: 39,0% | L65: 40,0% | M65: 41,5%
A66: 76000 | B66: 25,5% | C66: 27,5% | D66: 29,0% | E66: 31,0% | F66: 32,5% | G66: 34,0% | H66: 35,5% | I66: 37,0% | J66: 38,0% | K66: 39,5% | L66: 40,5% | M66: 41,5%
A67: 77000 | B67: 25,5% | C67: 27,5% | D67: 29,0% | E67: 31,0% | F67: 32,5% | G67: 34,0% | H67: 35,5% | I67: 37,0% | J67: 38,0% | K67: 39,5% | L67: 40,5% | M67: 41,5%
A68: 78000 | B68: 25,5% | C68: 27,5% | D68: 29,0% | E68: 31,0% | F68: 32,5% | G68: 34,5% | H68: 35,5% | I68: 37,0% | J68: 38,5% | K68: 39,5% | L68: 40,5% | M68: 42,0%
A69: 79000 | B69: 25,5% | C69: 27,5% | D69: 29,0% | E69: 31,0% | F69: 32,5% | G69: 34,5% | H69: 36,0% | I69: 37,0% | J69: 38,5% | K69: 39,5% | L69: 41,0% | M69: 42,0%
A70: 80000 | B70: 26,0% | C70: 27,5% | D70: 29,0% | E70: 31,0% | F70: 32,5% | G70: 34,5% | H70: 36,0% | I70: 37,5% | J70: 38,5% | K70: 40,0% | L70: 41,0% | M70: 42,0%
A71: 81000 | B71: 26,0% | C71: 27,5% | D71: 29,0% | E71: 31,0% | F71: 32,5% | G71: 34,5% | H71: 36,0% | I71: 37,5% | J71: 38,5% | K71: 40,0% | L71: 41,0% | M71: 42,0%
A72: 82000 | B72: 26,0% | C72: 27,5% | D72: 29,0% | E72: 31,0% | F72: 32,5% | G72: 34,5% | H72: 36,0% | I72: 37,5% | J72: 39,0% | K72: 40,0% | L72: 41,0% | M72: 42,5%
A73: 83000 | B73: 26,0% | C73: 27,5% | D73: 29,0% | E73: 31,0% | F73: 32,5% | G73: 34,5% | H73: 36,0% | I73: 37,5% | J73: 39,0% | K73: 40,0% | L73: 41,0% | M73: 42,5%
A74: 84000 | B74: 26,0% | C74: 27,5% | D74: 29,0% | E74: 31,0% | F74: 32,5% | G74: 34,5% | H74: 36,0% | I74: 37,5% | J74: 39,0% | K74: 40,0% | L74: 41,5% | M74: 42,5%
A75: 85000 | B75: 26,0% | C75: 27,5% | D75: 29,0% | E75: 31,0% | F75: 32,5% | G75: 34,5% | H75: 36,0% | I75: 37,5% | J75: 39,0% | K75: 40,0% | L75: 41,5% | M75: 42,5%
A76: 86000 | B76: 26,0% | C76: 27,5% | D76: 29,0% | E76: 31,0% | F76: 32,5% | G76: 34,5% | H76: 36,0% | I76: 37,5% | J76: 39,0% | K76: 40,0% | L76: 41,5% | M76: 42,5%
A77: 87000 | B77: 26,0% | C77: 27,5% | D77: 29,0% | E77: 31,0% | F77: 32,5% | G77: 34,5% | H77: 36,0% | I77: 37,5% | J77: 39,0% | K77: 40,0% | L77: 41,5% | M77: 42,5%
A78: 88000 | B78: 26,0% | C78: 27,5% | D78: 29,0% | E78: 31,0% | F78: 32,5% | G78: 34,5% | H78: 36,0% | I78: 37,5% | J78: 39,0% | K78: 40,0% | L78: 41,5% | M78: 42,5%
A79: 89000 | B79: 26,0% | C79: 27,5% | D79: 29,0% | E79: 31,0% | F79: 32,5% | G79: 34,5% | H79: 36,0% | I79: 37,5% | J79: 39,0% | K79: 40,5% | L79: 41,5% | M79: 42,5%
A80: 90000 | B80: 26,0% | C80: 27,5% | D80: 29,0% | E80: 31,0% | F80: 32,5% | G80: 34,5% | H80: 36,0% | I80: 37,5% | J80: 39,0% | K80: 40,5% | L80: 41,5% | M80: 42,5%
A81: 91000 | B81: 26,0% | C81: 27,5% | D81: 29,0% | E81: 31,0% | F81: 32,5% | G81: 34,5% | H81: 36,0% | I81: 37,5% | J81: 39,0% | K81: 40,5% | L81: 41,5% | M81: 42,5%
A82: 92000 | B82: 26,0% | C82: 27,5% | D82: 29,0% | E82: 31,0% | F82: 32,5% | G82: 34,5% | H82: 36,0% | I82: 37,5% | J82: 39,0% | K82: 40,5% | L82: 41,5% | M82: 42,5%
A83: 93000 | B83: 26,0% | C83: 27,5% | D83: 29,0% | E83: 31,0% | F83: 32,5% | G83: 34,5% | H83: 36,0% | I83: 37,5% | J83: 39,0% | K83: 40,5% | L83: 41,5% | M83: 42,5%
A84: 94000 | B84: 26,0% | C84: 27,5% | D84: 29,0% | E84: 31,0% | F84: 32,5% | G84: 34,5% | H84: 36,0% | I84: 37,5% | J84: 39,0% | K84: 40,5% | L84: 41,5% | M84: 42,5%
A85: 95000 | B85: 26,0% | C85: 27,5% | D85: 29,0% | E85: 31,0% | F85: 32,5% | G85: 34,5% | H85: 36,0% | I85: 37,5% | J85: 39,0% | K85: 40,5% | L85: 41,5% | M85: 42,5%
A86: 96000 | B86: 26,0% | C86: 27,5% | D86: 29,0% | E86: 31,0% | F86: 32,5% | G86: 34,5% | H86: 36,0% | I86: 37,5% | J86: 39,0% | K86: 40,5% | L86: 41,5% | M86: 43,0%
A87: 97000 | B87: 26,0% | C87: 27,5% | D87: 29,0% | E87: 31,0% | F87: 32,5% | G87: 34,5% | H87: 36,0% | I87: 37,5% | J87: 39,0% | K87: 40,5% | L87: 41,5% | M87: 43,0%
A88: 98000 | B88: 26,0% | C88: 27,5% | D88: 29,0% | E88: 31,0% | F88: 32,5% | G88: 34,5% | H88: 36,0% | I88: 37,5% | J88: 39,0% | K88: 40,5% | L88: 41,5% | M88: 43,0%
A89: 99000 | B89: 26,0% | C89: 27,5% | D89: 29,0% | E89: 31,0% | F89: 32,5% | G89: 34,5% | H89: 36,0% | I89: 37,5% | J89: 39,0% | K89: 40,5% | L89: 41,5% | M89: 43,0%
A90: 100000 | B90: 26,0% | C90: 27,5% | D90: 29,0% | E90: 31,0% | F90: 32,5% | G90: 34,5% | H90: 36,0% | I90: 37,5% | J90: 39,0% | K90: 40,5% | L90: 41,5% | M90: 43,0%
A91: 101000 | B91: 26,0% | C91: 27,5% | D91: 29,0% | E91: 31,0% | F91: 32,5% | G91: 34,5% | H91: 36,0% | I91: 37,5% | J91: 39,0% | K91: 40,5% | L91: 42,0% | M91: 43,0%
A92: 102000 | B92: 26,0% | C92: 27,5% | D92: 29,0% | E92: 31,0% | F92: 32,5% | G92: 34,5% | H92: 36,0% | I92: 37,5% | J92: 39,0% | K92: 40,5% | L92: 42,0% | M92: 43,0%
A93: 103000 | B93: 26,0% | C93: 27,5% | D93: 29,0% | E93: 31,0% | F93: 33,0% | G93: 34,5% | H93: 36,0% | I93: 37,5% | J93: 39,0% | K93: 40,5% | L93: 42,0% | M93: 43,0%
A94: 104000 | B94: 26,0% | C94: 27,5% | D94: 29,0% | E94: 31,0% | F94: 33,0% | G94: 34,5% | H94: 36,0% | I94: 37,5% | J94: 39,0% | K94: 40,5% | L94: 42,0% | M94: 43,0%
A95: 105000 | B95: 26,0% | C95: 27,5% | D95: 29,0% | E95: 31,0% | F95: 33,0% | G95: 34,5% | H95: 36,0% | I95: 37,5% | J95: 39,0% | K95: 40,5% | L95: 42,0% | M95: 43,0%
A96: 106000 | B96: 26,0% | C96: 27,5% | D96: 29,0% | E96: 31,0% | F96: 33,0% | G96: 34,5% | H96: 36,0% | I96: 37,5% | J96: 39,0% | K96: 40,5% | L96: 42,0% | M96: 43,5%
A97: 107000 | B97: 26,0% | C97: 27,5% | D97: 29,0% | E97: 31,0% | F97: 33,0% | G97: 34,5% | H97: 36,0% | I97: 37,5% | J97: 39,0% | K97: 40,5% | L97: 42,0% | M97: 43,5%
A98: 108000 | B98: 26,0% | C98: 27,5% | D98: 29,0% | E98: 31,0% | F98: 33,0% | G98: 34,5% | H98: 36,0% | I98: 37,5% | J98: 39,0% | K98: 40,5% | L98: 42,0% | M98: 43,5%
A99: 109000 | B99: 26,0% | C99: 27,5% | D99: 29,0% | E99: 31,0% | F99: 33,0% | G99: 34,5% | H99: 36,0% | I99: 37,5% | J99: 39,0% | K99: 40,5% | L99: 42,0% | M99: 43,5%
A100: 110000 | B100: 26,0% | C100: 27,5% | D100: 29,0% | E100: 31,0% | F100: 33,0% | G100: 34,5% | H100: 36,0% | I100: 37,5% | J100: 39,0% | K100: 40,5% | L100: 42,0% | M100: 43,5%
A101: 9999999999 | B101: 26,0% | C101: 27,5% | D101: 29,0% | E101: 31,0% | F101: 33,0% | G101: 34,5% | H101: 36,0% | I101: 37,5% | J101: 39,0% | K101: 40,5% | L101: 42,0% | M101: 43,5%

Sheet 2017BOX3 (hidden)
A1: Tabel 3. Financieringslastpercentages voor gedeelten van het hypothecair krediet waarvan de debetrente niet fiscaal aftrekbaar is voor consumenten die de AOW-leeftijd nog niet hebben bereikt | IV1: HIDE
B2: <=1,000% | C2: 1,001-1,500% | D2: 1,501-2,000% | E2: 2,001-2,500% | F2: 2,501-3,000% | G2: 3,001-3,500% | H2: 3,501-4,000% | I2: 4,001-4,500% | J2: 4,501-5,000% | K2: 5,001-5,500% | L2: 5,501-6,000% | M2: >=6,001%
A4: -1 | B4: 0 | C4: 0.010009 | D4: =+C4+0.5% -> 0.015009 | E4: 0.020009 | F4: 0.025009 | G4: 0.030009 | H4: 0.035009 | I4: 0.040009 | J4: 0.045009 | K4: 0.050009 | L4: 0.055009 | M4: 0.060009
A5: 0 | B5: 9,5% | C5: 9,5% | D5: 10,0% | E5: 10,0% | F5: 10,0% | G5: 10,5% | H5: 10,5% | I5: 10,5% | J5: 10,5% | K5: 10,5% | L5: 11,0% | M5: 11,0%
A6: 20000 | B6: 9,5% | C6: 9,5% | D6: 10,0% | E6: 10,0% | F6: 10,0% | G6: 10,5% | H6: 10,5% | I6: 10,5% | J6: 10,5% | K6: 10,5% | L6: 11,0% | M6: 11,0%
A7: 20500 | B7: 10,0% | C7: 10,5% | D7: 10,5% | E7: 10,5% | F7: 11,0% | G7: 11,0% | H7: 11,0% | I7: 11,0% | J7: 11,5% | K7: 11,5% | L7: 11,5% | M7: 11,5%
A8: 21000 | B8: 10,5% | C8: 11,0% | D8: 11,0% | E8: 11,0% | F8: 11,5% | G8: 11,5% | H8: 11,5% | I8: 12,0% | J8: 12,0% | K8: 12,0% | L8: 12,0% | M8: 12,0%
A9: 21500 | B9: 11,0% | C9: 11,5% | D9: 11,5% | E9: 11,5% | F9: 12,0% | G9: 12,0% | H9: 12,0% | I9: 12,5% | J9: 12,5% | K9: 12,5% | L9: 12,5% | M9: 13,0%
A10: 22000 | B10: 11,5% | C10: 12,0% | D10: 12,0% | E10: 12,0% | F10: 12,5% | G10: 12,5% | H10: 12,5% | I10: 13,0% | J10: 13,0% | K10: 13,0% | L10: 13,0% | M10: 13,5%
A11: 22500 | B11: 12,0% | C11: 12,5% | D11: 12,5% | E11: 12,5% | F11: 13,0% | G11: 13,0% | H11: 13,0% | I11: 13,5% | J11: 13,5% | K11: 13,5% | L11: 13,5% | M11: 14,0%
A12: 23000 | B12: 12,5% | C12: 12,5% | D12: 13,0% | E12: 13,0% | F12: 13,5% | G12: 13,5% | H12: 13,5% | I12: 13,5% | J12: 14,0% | K12: 14,0% | L12: 14,0% | M12: 14,5%
A13: 23500 | B13: 13,0% | C13: 13,0% | D13: 13,5% | E13: 13,5% | F13: 13,5% | G13: 14,0% | H13: 14,0% | I13: 14,0% | J13: 14,5% | K13: 14,5% | L13: 14,5% | M13: 14,5%
A14: 24000 | B14: 13,5% | C14: 13,5% | D14: 13,5% | E14: 14,0% | F14: 14,0% | G14: 14,5% | H14: 14,5% | I14: 14,5% | J14: 14,5% | K14: 15,0% | L14: 15,0% | M14: 15,0%
A15: 24500 | B15: 13,5% | C15: 14,0% | D15: 14,0% | E15: 14,5% | F15: 14,5% | G15: 14,5% | H15: 15,0% | I15: 15,0% | J15: 15,0% | K15: 15,5% | L15: 15,5% | M15: 15,5%
A16: 25000 | B16: 14,0% | C16: 14,5% | D16: 14,5% | E16: 15,0% | F16: 15,0% | G16: 15,0% | H16: 15,5% | I16: 15,5% | J16: 15,5% | K16: 16,0% | L16: 16,0% | M16: 16,0%
A17: 26000 | B17: 14,5% | C17: 14,5% | D17: 15,0% | E17: 15,0% | F17: 15,5% | G17: 15,5% | H17: 15,5% | I17: 16,0% | J17: 16,0% | K17: 16,5% | L17: 16,5% | M17: 16,5%
A18: 27000 | B18: 15,0% | C18: 15,0% | D18: 15,5% | E18: 15,5% | F18: 16,0% | G18: 16,0% | H18: 16,5% | I18: 16,5% | J18: 16,5% | K18: 16,5% | L18: 17,0% | M18: 17,0%
A19: 28000 | B19: 15,0% | C19: 15,5% | D19: 16,0% | E19: 16,0% | F19: 16,5% | G19: 16,5% | H19: 16,5% | I19: 17,0% | J19: 17,0% | K19: 17,0% | L19: 17,5% | M19: 17,5%
A20: 29000 | B20: 15,5% | C20: 16,0% | D20: 16,0% | E20: 16,5% | F20: 16,5% | G20: 17,0% | H20: 17,0% | I20: 17,0% | J20: 17,5% | K20: 17,5% | L20: 18,0% | M20: 18,0%
A21: 30000 | B21: 16,0% | C21: 16,0% | D21: 16,5% | E21: 16,5% | F21: 17,0% | G21: 17,0% | H21: 17,5% | I21: 17,5% | J21: 17,5% | K21: 18,0% | L21: 18,0% | M21: 18,0%
A22: 31000 | B22: 16,5% | C22: 17,0% | D22: 17,0% | E22: 17,5% | F22: 17,5% | G22: 18,0% | H22: 18,0% | I22: 18,5% | J22: 18,5% | K22: 19,0% | L22: 19,0% | M22: 19,0%
A23: 32000 | B23: 16,5% | C23: 17,0% | D23: 17,5% | E23: 17,5% | F23: 18,0% | G23: 18,0% | H23: 18,5% | I23: 18,5% | J23: 19,0% | K23: 19,0% | L23: 19,0% | M23: 19,5%
A24: 33000 | B24: 17,0% | C24: 17,0% | D24: 17,5% | E24: 17,5% | F24: 18,0% | G24: 18,0% | H24: 18,5% | I24: 18,5% | J24: 19,0% | K24: 19,0% | L24: 19,5% | M24: 19,5%
A25: 34000 | B25: 17,0% | C25: 17,0% | D25: 17,5% | E25: 17,5% | F25: 18,0% | G25: 18,0% | H25: 18,5% | I25: 18,5% | J25: 19,0% | K25: 19,0% | L25: 19,5% | M25: 19,5%
A26: 35000 | B26: 17,0% | C26: 17,0% | D26: 17,5% | E26: 18,0% | F26: 18,0% | G26: 18,5% | H26: 18,5% | I26: 18,5% | J26: 19,0% | K26: 19,0% | L26: 19,5% | M26: 19,5%
A27: 36000 | B27: 17,0% | C27: 17,0% | D27: 17,5% | E27: 18,0% | F27: 18,0% | G27: 18,5% | H27: 18,5% | I27: 19,0% | J27: 19,0% | K27: 19,0% | L27: 19,5% | M27: 19,5%
A28: 37000 | B28: 17,0% | C28: 17,0% | D28: 17,5% | E28: 18,0% | F28: 18,0% | G28: 18,5% | H28: 18,5% | I28: 19,0% | J28: 19,0% | K28: 19,0% | L28: 19,5% | M28: 19,5%
A29: 38000 | B29: 17,0% | C29: 17,5% | D29: 17,5% | E29: 18,0% | F29: 18,0% | G29: 18,5% | H29: 18,5% | I29: 19,0% | J29: 19,0% | K29: 19,5% | L29: 19,5% | M29: 19,5%
A30: 39000 | B30: 17,0% | C30: 17,5% | D30: 17,5% | E30: 18,0% | F30: 18,0% | G30: 18,5% | H30: 18,5% | I30: 19,0% | J30: 19,0% | K30: 19,5% | L30: 19,5% | M30: 19,5%
A31: 40000 | B31: 17,0% | C31: 17,5% | D31: 17,5% | E31: 18,0% | F31: 18,5% | G31: 18,5% | H31: 19,0% | I31: 19,0% | J31: 19,0% | K31: 19,5% | L31: 19,5% | M31: 20,0%
A32: 41000 | B32: 17,0% | C32: 17,5% | D32: 18,0% | E32: 18,0% | F32: 18,5% | G32: 18,5% | H32: 19,0% | I32: 19,0% | J32: 19,5% | K32: 19,5% | L32: 19,5% | M32: 20,0%
A33: 42000 | B33: 17,0% | C33: 17,5% | D33: 18,0% | E33: 18,0% | F33: 18,5% | G33: 18,5% | H33: 19,0% | I33: 19,0% | J33: 19,5% | K33: 19,5% | L33: 19,5% | M33: 20,0%
A34: 43000 | B34: 17,0% | C34: 17,5% | D34: 18,0% | E34: 18,0% | F34: 18,5% | G34: 18,5% | H34: 19,0% | I34: 19,0% | J34: 19,5% | K34: 19,5% | L34: 20,0% | M34: 20,0%
A35: 44000 | B35: 17,5% | C35: 17,5% | D35: 18,0% | E35: 18,5% | F35: 18,5% | G35: 19,0% | H35: 19,0% | I35: 19,0% | J35: 19,5% | K35: 19,5% | L35: 20,0% | M35: 20,0%
A36: 45000 | B36: 17,5% | C36: 17,5% | D36: 18,0% | E36: 18,5% | F36: 18,5% | G36: 19,0% | H36: 19,0% | I36: 19,5% | J36: 19,5% | K36: 20,0% | L36: 20,0% | M36: 20,0%
A37: 46000 | B37: 17,5% | C37: 18,0% | D37: 18,0% | E37: 18,5% | F37: 18,5% | G37: 19,0% | H37: 19,0% | I37: 19,5% | J37: 19,5% | K37: 20,0% | L37: 20,0% | M37: 20,5%
A38: 47000 | B38: 17,5% | C38: 18,0% | D38: 18,0% | E38: 18,5% | F38: 19,0% | G38: 19,0% | H38: 19,5% | I38: 19,5% | J38: 20,0% | K38: 20,0% | L38: 20,0% | M38: 20,5%
A39: 48000 | B39: 17,5% | C39: 18,0% | D39: 18,5% | E39: 18,5% | F39: 19,0% | G39: 19,0% | H39: 19,5% | I39: 19,5% | J39: 20,0% | K39: 20,0% | L39: 20,5% | M39: 20,5%
A40: 49000 | B40: 17,5% | C40: 18,0% | D40: 18,5% | E40: 18,5% | F40: 19,0% | G40: 19,5% | H40: 19,5% | I40: 20,0% | J40: 20,0% | K40: 20,0% | L40: 20,5% | M40: 20,5%
A41: 50000 | B41: 18,0% | C41: 18,0% | D41: 18,5% | E41: 19,0% | F41: 19,0% | G41: 19,5% | H41: 19,5% | I41: 20,0% | J41: 20,0% | K41: 20,0% | L41: 20,5% | M41: 20,5%
A42: 51000 | B42: 18,0% | C42: 18,0% | D42: 18,5% | E42: 19,0% | F42: 19,0% | G42: 19,5% | H42: 19,5% | I42: 20,0% | J42: 20,0% | K42: 20,5% | L42: 20,5% | M42: 20,5%
A43: 52000 | B43: 18,0% | C43: 18,5% | D43: 18,5% | E43: 19,0% | F43: 19,0% | G43: 19,5% | H43: 20,0% | I43: 20,0% | J43: 20,0% | K43: 20,5% | L43: 20,5% | M43: 21,0%
A44: 53000 | B44: 18,0% | C44: 18,5% | D44: 18,5% | E44: 19,0% | F44: 19,5% | G44: 19,5% | H44: 20,0% | I44: 20,0% | J44: 20,5% | K44: 20,5% | L44: 20,5% | M44: 21,0%
A45: 54000 | B45: 18,0% | C45: 18,5% | D45: 19,0% | E45: 19,0% | F45: 19,5% | G45: 19,5% | H45: 20,0% | I45: 20,0% | J45: 20,5% | K45: 20,5% | L45: 21,0% | M45: 21,0%
A46: 55000 | B46: 18,0% | C46: 18,5% | D46: 19,0% | E46: 19,0% | F46: 19,5% | G46: 19,5% | H46: 20,0% | I46: 20,0% | J46: 20,5% | K46: 20,5% | L46: 21,0% | M46: 21,0%
A47: 56000 | B47: 18,5% | C47: 18,5% | D47: 19,0% | E47: 19,5% | F47: 19,5% | G47: 20,0% | H47: 20,0% | I47: 20,5% | J47: 20,5% | K47: 21,0% | L47: 21,0% | M47: 21,5%
A48: 57000 | B48: 18,5% | C48: 19,0% | D48: 19,0% | E48: 19,5% | F48: 20,0% | G48: 20,0% | H48: 20,5% | I48: 20,5% | J48: 21,0% | K48: 21,0% | L48: 21,5% | M48: 21,5%
A49: 58000 | B49: 18,5% | C49: 19,0% | D49: 19,5% | E49: 19,5% | F49: 20,0% | G49: 20,5% | H49: 20,5% | I49: 21,0% | J49: 21,0% | K49: 21,5% | L49: 21,5% | M49: 21,5%
A50: 59000 | B50: 19,0% | C50: 19,0% | D50: 19,5% | E50: 20,0% | F50: 20,0% | G50: 20,5% | H50: 20,5% | I50: 21,0% | J50: 21,0% | K50: 21,5% | L50: 21,5% | M50: 22,0%
A51: 60000 | B51: 19,0% | C51: 19,5% | D51: 19,5% | E51: 20,0% | F51: 20,5% | G51: 20,5% | H51: 21,0% | I51: 21,0% | J51: 21,5% | K51: 21,5% | L51: 22,0% | M51: 22,0%
A52: 61000 | B52: 19,0% | C52: 19,5% | D52: 20,0% | E52: 20,0% | F52: 20,5% | G52: 20,5% | H52: 21,0% | I52: 21,0% | J52: 21,5% | K52: 21,5% | L52: 22,0% | M52: 22,0%
A53: 62000 | B53: 19,0% | C53: 19,5% | D53: 20,0% | E53: 20,5% | F53: 20,5% | G53: 21,0% | H53: 21,0% | I53: 21,5% | J53: 21,5% | K53: 22,0% | L53: 22,0% | M53: 22,0%
A54: 63000 | B54: 19,5% | C54: 19,5% | D54: 20,0% | E54: 20,5% | F54: 20,5% | G54: 21,0% | H54: 21,0% | I54: 21,5% | J54: 21,5% | K54: 22,0% | L54: 22,0% | M54: 22,5%
A55: 64000 | B55: 19,5% | C55: 19,5% | D55: 20,0% | E55: 20,5% | F55: 21,0% | G55: 21,0% | H55: 21,5% | I55: 21,5% | J55: 22,0% | K55: 22,0% | L55: 22,0% | M55: 22,5%
A56: 65000 | B56: 19,5% | C56: 20,0% | D56: 20,0% | E56: 20,5% | F56: 21,0% | G56: 21,0% | H56: 21,5% | I56: 21,5% | J56: 22,0% | K56: 22,0% | L56: 22,5% | M56: 22,5%
A57: 66000 | B57: 19,5% | C57: 20,0% | D57: 20,5% | E57: 20,5% | F57: 21,0% | G57: 21,0% | H57: 21,5% | I57: 22,0% | J57: 22,0% | K57: 22,0% | L57: 22,5% | M57: 22,5%
A58: 67000 | B58: 19,5% | C58: 20,0% | D58: 20,5% | E58: 20,5% | F58: 21,0% | G58: 21,5% | H58: 21,5% | I58: 22,0% | J58: 22,0% | K58: 22,5% | L58: 22,5% | M58: 22,5%
A59: 68000 | B59: 19,5% | C59: 20,0% | D59: 20,5% | E59: 21,0% | F59: 21,0% | G59: 21,5% | H59: 21,5% | I59: 22,0% | J59: 22,0% | K59: 22,5% | L59: 22,5% | M59: 23,0%
A60: 69000 | B60: 20,0% | C60: 20,0% | D60: 20,5% | E60: 21,0% | F60: 21,0% | G60: 21,5% | H60: 22,0% | I60: 22,0% | J60: 22,5% | K60: 22,5% | L60: 22,5% | M60: 23,0%
A61: 70000 | B61: 20,0% | C61: 20,0% | D61: 20,5% | E61: 21,0% | F61: 21,5% | G61: 21,5% | H61: 22,0% | I61: 22,0% | J61: 22,5% | K61: 22,5% | L61: 23,0% | M61: 23,0%
A62: 71000 | B62: 20,0% | C62: 20,5% | D62: 20,5% | E62: 21,0% | F62: 21,5% | G62: 21,5% | H62: 22,0% | I62: 22,0% | J62: 22,5% | K62: 22,5% | L62: 23,0% | M62: 23,0%
A63: 72000 | B63: 20,0% | C63: 20,5% | D63: 20,5% | E63: 21,0% | F63: 21,5% | G63: 21,5% | H63: 22,0% | I63: 22,5% | J63: 22,5% | K63: 22,5% | L63: 23,0% | M63: 23,0%
A64: 73000 | B64: 20,0% | C64: 20,5% | D64: 21,0% | E64: 21,0% | F64: 21,5% | G64: 22,0% | H64: 22,0% | I64: 22,5% | J64: 22,5% | K64: 23,0% | L64: 23,0% | M64: 23,0%
A65: 74000 | B65: 20,0% | C65: 20,5% | D65: 21,0% | E65: 21,0% | F65: 21,5% | G65: 22,0% | H65: 22,0% | I65: 22,5% | J65: 22,5% | K65: 23,0% | L65: 23,0% | M65: 23,5%
A66: 75000 | B66: 20,0% | C66: 20,5% | D66: 21,0% | E66: 21,5% | F66: 21,5% | G66: 22,0% | H66: 22,0% | I66: 22,5% | J66: 22,5% | K66: 23,0% | L66: 23,0% | M66: 23,5%
A67: 76000 | B67: 20,0% | C67: 20,5% | D67: 21,0% | E67: 21,5% | F67: 21,5% | G67: 22,0% | H67: 22,0% | I67: 22,5% | J67: 23,0% | K67: 23,0% | L67: 23,0% | M67: 23,5%
A68: 77000 | B68: 20,5% | C68: 20,5% | D68: 21,0% | E68: 21,5% | F68: 21,5% | G68: 22,0% | H68: 22,5% | I68: 22,5% | J68: 23,0% | K68: 23,0% | L68: 23,5% | M68: 23,5%
A69: 78000 | B69: 20,5% | C69: 20,5% | D69: 21,0% | E69: 21,5% | F69: 22,0% | G69: 22,0% | H69: 22,5% | I69: 22,5% | J69: 23,0% | K69: 23,0% | L69: 23,5% | M69: 23,5%
A70: 79000 | B70: 20,5% | C70: 21,0% | D70: 21,0% | E70: 21,5% | F70: 22,0% | G70: 22,0% | H70: 22,5% | I70: 22,5% | J70: 23,0% | K70: 23,0% | L70: 23,5% | M70: 23,5%
A71: 80000 | B71: 20,5% | C71: 21,0% | D71: 21,0% | E71: 21,5% | F71: 22,0% | G71: 22,0% | H71: 22,5% | I71: 23,0% | J71: 23,0% | K71: 23,5% | L71: 23,5% | M71: 23,5%
A72: 81000 | B72: 20,5% | C72: 21,0% | D72: 21,5% | E72: 21,5% | F72: 22,0% | G72: 22,5% | H72: 22,5% | I72: 23,0% | J72: 23,0% | K72: 23,5% | L72: 23,5% | M72: 24,0%
A73: 82000 | B73: 20,5% | C73: 21,0% | D73: 21,5% | E73: 21,5% | F73: 22,0% | G73: 22,5% | H73: 22,5% | I73: 23,0% | J73: 23,0% | K73: 23,5% | L73: 23,5% | M73: 24,0%
A74: 83000 | B74: 20,5% | C74: 21,0% | D74: 21,5% | E74: 21,5% | F74: 22,0% | G74: 22,5% | H74: 22,5% | I74: 23,0% | J74: 23,0% | K74: 23,5% | L74: 23,5% | M74: 24,0%
A75: 84000 | B75: 20,5% | C75: 21,0% | D75: 21,5% | E75: 22,0% | F75: 22,0% | G75: 22,5% | H75: 22,5% | I75: 23,0% | J75: 23,0% | K75: 23,5% | L75: 23,5% | M75: 24,0%
A76: 85000 | B76: 20,5% | C76: 21,0% | D76: 21,5% | E76: 22,0% | F76: 22,0% | G76: 22,5% | H76: 23,0% | I76: 23,0% | J76: 23,5% | K76: 23,5% | L76: 24,0% | M76: 24,0%
A77: 86000 | B77: 21,0% | C77: 21,0% | D77: 21,5% | E77: 22,0% | F77: 22,0% | G77: 22,5% | H77: 23,0% | I77: 23,0% | J77: 23,5% | K77: 23,5% | L77: 24,0% | M77: 24,0%
A78: 87000 | B78: 21,0% | C78: 21,0% | D78: 21,5% | E78: 22,0% | F78: 22,5% | G78: 22,5% | H78: 23,0% | I78: 23,0% | J78: 23,5% | K78: 23,5% | L78: 24,0% | M78: 24,0%
A79: 88000 | B79: 21,0% | C79: 21,5% | D79: 21,5% | E79: 22,0% | F79: 22,5% | G79: 22,5% | H79: 23,0% | I79: 23,0% | J79: 23,5% | K79: 23,5% | L79: 24,0% | M79: 24,0%
A80: 89000 | B80: 21,0% | C80: 21,5% | D80: 21,5% | E80: 22,0% | F80: 22,5% | G80: 22,5% | H80: 23,0% | I80: 23,0% | J80: 23,5% | K80: 24,0% | L80: 24,0% | M80: 24,0%
A81: 90000 | B81: 21,0% | C81: 21,5% | D81: 22,0% | E81: 22,0% | F81: 22,5% | G81: 22,5% | H81: 23,0% | I81: 23,5% | J81: 23,5% | K81: 24,0% | L81: 24,0% | M81: 24,0%
A82: 91000 | B82: 21,0% | C82: 21,5% | D82: 22,0% | E82: 22,0% | F82: 22,5% | G82: 23,0% | H82: 23,0% | I82: 23,5% | J82: 23,5% | K82: 24,0% | L82: 24,0% | M82: 24,5%
A83: 92000 | B83: 0.21 | C83: 0.215 | D83: 0.22 | E83: 0.22 | F83: 0.225 | G83: 0.23 | H83: 0.23 | I83: 0.235 | J83: 0.235 | K83: 0.24 | L83: 0.24 | M83: 0.245
A84: 93000 | B84: 0.21 | C84: 0.215 | D84: 0.22 | E84: 0.225 | F84: 0.225 | G84: 0.23 | H84: 0.23 | I84: 0.235 | J84: 0.235 | K84: 0.24 | L84: 0.24 | M84: 0.245
A85: 94000 | B85: 0.21 | C85: 0.215 | D85: 0.22 | E85: 0.225 | F85: 0.225 | G85: 0.23 | H85: 0.23 | I85: 0.235 | J85: 0.24 | K85: 0.24 | L85: 0.24 | M85: 0.245
A86: 95000 | B86: 0.21 | C86: 0.215 | D86: 0.22 | E86: 0.225 | F86: 0.225 | G86: 0.23 | H86: 0.235 | I86: 0.235 | J86: 0.24 | K86: 0.24 | L86: 0.245 | M86: 0.245
A87: 96000 | B87: 0.21 | C87: 0.215 | D87: 0.22 | E87: 0.225 | F87: 0.225 | G87: 0.23 | H87: 0.235 | I87: 0.235 | J87: 0.24 | K87: 0.24 | L87: 0.245 | M87: 0.245
A88: 97000 | B88: 0.21 | C88: 0.215 | D88: 0.22 | E88: 0.225 | F88: 0.225 | G88: 0.23 | H88: 0.235 | I88: 0.235 | J88: 0.24 | K88: 0.24 | L88: 0.245 | M88: 0.245
A89: 98000 | B89: 0.21 | C89: 0.215 | D89: 0.22 | E89: 0.225 | F89: 0.225 | G89: 0.23 | H89: 0.235 | I89: 0.235 | J89: 0.24 | K89: 0.24 | L89: 0.245 | M89: 0.245
A90: 99000 | B90: 0.21 | C90: 0.215 | D90: 0.22 | E90: 0.225 | F90: 0.225 | G90: 0.23 | H90: 0.235 | I90: 0.235 | J90: 0.24 | K90: 0.24 | L90: 0.245 | M90: 0.245
A91: 100000 | B91: 0.21 | C91: 0.215 | D91: 0.22 | E91: 0.225 | F91: 0.225 | G91: 0.23 | H91: 0.235 | I91: 0.235 | J91: 0.24 | K91: 0.24 | L91: 0.245 | M91: 0.245
A92: 101000 | B92: 0.21 | C92: 0.215 | D92: 0.22 | E92: 0.225 | F92: 0.225 | G92: 0.23 | H92: 0.235 | I92: 0.235 | J92: 0.24 | K92: 0.24 | L92: 0.245 | M92: 0.245
A93: 102000 | B93: 0.21 | C93: 0.215 | D93: 0.22 | E93: 0.225 | F93: 0.225 | G93: 0.23 | H93: 0.235 | I93: 0.235 | J93: 0.24 | K93: 0.24 | L93: 0.245 | M93: 0.245
A94: 103000 | B94: 0.21 | C94: 0.215 | D94: 0.22 | E94: 0.225 | F94: 0.225 | G94: 0.23 | H94: 0.235 | I94: 0.235 | J94: 0.24 | K94: 0.24 | L94: 0.245 | M94: 0.245
A95: 104000 | B95: 0.21 | C95: 0.215 | D95: 0.22 | E95: 0.225 | F95: 0.225 | G95: 0.23 | H95: 0.235 | I95: 0.235 | J95: 0.24 | K95: 0.24 | L95: 0.245 | M95: 0.245
A96: 105000 | B96: 0.21 | C96: 0.215 | D96: 0.22 | E96: 0.225 | F96: 0.225 | G96: 0.23 | H96: 0.235 | I96: 0.235 | J96: 0.24 | K96: 0.24 | L96: 0.245 | M96: 0.245
A97: 106000 | B97: 0.21 | C97: 0.215 | D97: 0.22 | E97: 0.225 | F97: 0.225 | G97: 0.23 | H97: 0.235 | I97: 0.235 | J97: 0.24 | K97: 0.24 | L97: 0.245 | M97: 0.245
A98: 107000 | B98: 0.21 | C98: 0.215 | D98: 0.22 | E98: 0.225 | F98: 0.225 | G98: 0.23 | H98: 0.235 | I98: 0.235 | J98: 0.24 | K98: 0.24 | L98: 0.245 | M98: 0.245
A99: 108000 | B99: 0.21 | C99: 0.215 | D99: 0.22 | E99: 0.225 | F99: 0.225 | G99: 0.23 | H99: 0.235 | I99: 0.235 | J99: 0.24 | K99: 0.24 | L99: 0.245 | M99: 0.245
A100: 109000 | B100: 0.21 | C100: 0.215 | D100: 0.22 | E100: 0.225 | F100: 0.225 | G100: 0.23 | H100: 0.235 | I100: 0.235 | J100: 0.24 | K100: 0.24 | L100: 0.245 | M100: 0.245
A101: 110000 | B101: 0.21 | C101: 0.215 | D101: 0.22 | E101: 0.225 | F101: 0.225 | G101: 0.23 | H101: 0.235 | I101: 0.235 | J101: 0.24 | K101: 0.24 | L101: 0.245 | M101: 0.245
A102: 9999999999

Sheet 2017AOWBOX3 (hidden)
A1: Tabel 4. Financieringslastpercentages voor gedeelten van het hypothecair krediet waarvan de debetrente niet fiscaal aftrekbaar is voor consumenten die de AOW-leeftijd reeds hebben bereikt | IV1: HIDE
B2: <=1,000% | C2: 1,001-1,500% | D2: 1,501-2,000% | E2: 2,001-2,500% | F2: 2,501-3,000% | G2: 3,001-3,500% | H2: 3,501-4,000% | I2: 4,001-4,500% | J2: 4,501-5,000% | K2: 5,001-5,500% | L2: 5,501-6,000% | M2: >=6,001%
A4: -1 | B4: 0 | C4: 0.010009 | D4: =+C4+0.5% -> 0.015009 | E4: 0.020009 | F4: 0.025009 | G4: 0.030009 | H4: 0.035009 | I4: 0.040009 | J4: 0.045009 | K4: 0.050009 | L4: 0.055009 | M4: 0.060009
A5: 0 | B5: 12,5% | C5: 13,0% | D5: 13,0% | E5: 13,5% | F5: 13,5% | G5: 14,0% | H5: 14,0% | I5: 14,0% | J5: 14,5% | K5: 14,5% | L5: 14,5% | M5: 14,5%
A6: 20500 | B6: 12,5% | C6: 13,0% | D6: 13,0% | E6: 13,5% | F6: 13,5% | G6: 14,0% | H6: 14,0% | I6: 14,0% | J6: 14,5% | K6: 14,5% | L6: 14,5% | M6: 14,5%
A7: 21000 | B7: 14,0% | C7: 14,0% | D7: 14,5% | E7: 14,5% | F7: 15,0% | G7: 15,0% | H7: 15,0% | I7: 15,5% | J7: 15,5% | K7: 15,5% | L7: 16,0% | M7: 16,0%
A8: 21500 | B8: 15,0% | C8: 15,0% | D8: 15,5% | E8: 15,5% | F8: 16,0% | G8: 16,0% | H8: 16,5% | I8: 16,5% | J8: 16,5% | K8: 17,0% | L8: 17,0% | M8: 17,0%
A9: 22000 | B9: 16,0% | C9: 16,0% | D9: 16,5% | E9: 16,5% | F9: 17,0% | G9: 17,0% | H9: 17,5% | I9: 17,5% | J9: 18,0% | K9: 18,0% | L9: 18,0% | M9: 18,5%
A10: 22500 | B10: 17,0% | C10: 17,0% | D10: 17,5% | E10: 17,5% | F10: 18,0% | G10: 18,0% | H10: 18,5% | I10: 18,5% | J10: 19,0% | K10: 19,0% | L10: 19,5% | M10: 19,5%
A11: 23000 | B11: 17,5% | C11: 18,0% | D11: 18,0% | E11: 18,5% | F11: 18,5% | G11: 19,0% | H11: 19,0% | I11: 19,5% | J11: 19,5% | K11: 20,0% | L11: 20,0% | M11: 20,0%
A12: 23500 | B12: 18,0% | C12: 18,5% | D12: 18,5% | E12: 19,0% | F12: 19,5% | G12: 19,5% | H12: 20,0% | I12: 20,0% | J12: 20,5% | K12: 20,5% | L12: 20,5% | M12: 21,0%
A13: 24000 | B13: 18,5% | C13: 19,0% | D13: 19,5% | E13: 19,5% | F13: 20,0% | G13: 20,0% | H13: 20,5% | I13: 20,5% | J13: 21,0% | K13: 21,0% | L13: 21,5% | M13: 21,5%
A14: 24500 | B14: 19,0% | C14: 19,5% | D14: 20,0% | E14: 20,0% | F14: 20,5% | G14: 20,5% | H14: 21,0% | I14: 21,0% | J14: 21,5% | K14: 21,5% | L14: 22,0% | M14: 22,0%
A15: 25000 | B15: 19,5% | C15: 19,5% | D15: 20,0% | E15: 20,5% | F15: 20,5% | G15: 21,0% | H15: 21,0% | I15: 21,5% | J15: 21,5% | K15: 22,0% | L15: 22,0% | M15: 22,5%
A16: 26000 | B16: 19,5% | C16: 20,0% | D16: 20,5% | E16: 20,5% | F16: 21,0% | G16: 21,0% | H16: 21,5% | I16: 21,5% | J16: 22,0% | K16: 22,0% | L16: 22,5% | M16: 22,5%
A17: 27000 | B17: 19,5% | C17: 20,0% | D17: 20,5% | E17: 21,0% | F17: 21,0% | G17: 21,5% | H17: 21,5% | I17: 22,0% | J17: 22,0% | K17: 22,5% | L17: 22,5% | M17: 23,0%
A18: 28000 | B18: 20,0% | C18: 20,5% | D18: 20,5% | E18: 21,0% | F18: 21,5% | G18: 21,5% | H18: 22,0% | I18: 22,0% | J18: 22,5% | K18: 22,5% | L18: 23,0% | M18: 23,0%
A19: 29000 | B19: 20,0% | C19: 20,5% | D19: 21,0% | E19: 21,0% | F19: 21,5% | G19: 22,0% | H19: 22,0% | I19: 22,5% | J19: 22,5% | K19: 23,0% | L19: 23,0% | M19: 23,5%
A20: 30000 | B20: 20,0% | C20: 20,5% | D20: 21,0% | E20: 21,5% | F20: 21,5% | G20: 22,0% | H20: 22,5% | I20: 22,5% | J20: 23,0% | K20: 23,0% | L20: 23,0% | M20: 23,5%
A21: 31000 | B21: 21,5% | C21: 21,5% | D21: 22,0% | E21: 22,5% | F21: 22,5% | G21: 23,0% | H21: 23,5% | I21: 23,5% | J21: 24,0% | K21: 24,0% | L21: 24,5% | M21: 24,5%
A22: 32000 | B22: 21,5% | C22: 21,5% | D22: 22,0% | E22: 22,5% | F22: 23,0% | G22: 23,0% | H22: 23,5% | I22: 23,5% | J22: 24,0% | K22: 24,0% | L22: 24,5% | M22: 24,5%
A23: 33000 | B23: 21,5% | C23: 22,0% | D23: 22,0% | E23: 22,5% | F23: 23,0% | G23: 23,0% | H23: 23,5% | I23: 24,0% | J23: 24,0% | K23: 24,5% | L23: 24,5% | M23: 24,5%
A24: 34000 | B24: 21,5% | C24: 22,0% | D24: 22,5% | E24: 22,5% | F24: 23,0% | G24: 23,5% | H24: 23,5% | I24: 24,0% | J24: 24,0% | K24: 24,5% | L24: 24,5% | M24: 25,0%
A25: 35000 | B25: 21,5% | C25: 22,0% | D25: 22,5% | E25: 23,0% | F25: 23,0% | G25: 23,5% | H25: 23,5% | I25: 24,0% | J25: 24,5% | K25: 24,5% | L25: 25,0% | M25: 25,0%
A26: 36000 | B26: 22,0% | C26: 22,0% | D26: 22,5% | E26: 23,0% | F26: 23,5% | G26: 23,5% | H26: 24,0% | I26: 24,0% | J26: 24,5% | K26: 25,0% | L26: 25,0% | M26: 25,0%
A27: 37000 | B27: 22,0% | C27: 22,5% | D27: 23,0% | E27: 23,0% | F27: 23,5% | G27: 24,0% | H27: 24,0% | I27: 24,5% | J27: 24,5% | K27: 25,0% | L27: 25,0% | M27: 25,5%
A28: 38000 | B28: 22,0% | C28: 22,5% | D28: 23,0% | E28: 23,5% | F28: 23,5% | G28: 24,0% | H28: 24,5% | I28: 24,5% | J28: 25,0% | K28: 25,0% | L28: 25,5% | M28: 25,5%
A29: 39000 | B29: 22,5% | C29: 23,0% | D29: 23,0% | E29: 23,5% | F29: 24,0% | G29: 24,5% | H29: 24,5% | I29: 25,0% | J29: 25,0% | K29: 25,5% | L29: 25,5% | M29: 26,0%
A30: 40000 | B30: 22,5% | C30: 23,0% | D30: 23,5% | E30: 23,5% | F30: 24,0% | G30: 24,5% | H30: 25,0% | I30: 25,0% | J30: 25,5% | K30: 25,5% | L30: 26,0% | M30: 26,0%
A31: 41000 | B31: 22,5% | C31: 23,0% | D31: 23,5% | E31: 24,0% | F31: 24,5% | G31: 24,5% | H31: 25,0% | I31: 25,5% | J31: 25,5% | K31: 26,0% | L31: 26,0% | M31: 26,0%
A32: 42000 | B32: 23,0% | C32: 23,5% | D32: 23,5% | E32: 24,0% | F32: 24,5% | G32: 25,0% | H32: 25,0% | I32: 25,5% | J32: 25,5% | K32: 26,0% | L32: 26,0% | M32: 26,5%
A33: 43000 | B33: 23,0% | C33: 23,5% | D33: 23,5% | E33: 24,0% | F33: 24,5% | G33: 25,0% | H33: 25,0% | I33: 25,5% | J33: 25,5% | K33: 26,0% | L33: 26,0% | M33: 26,5%
A34: 44000 | B34: 23,0% | C34: 23,5% | D34: 23,5% | E34: 24,0% | F34: 24,5% | G34: 25,0% | H34: 25,0% | I34: 25,5% | J34: 25,5% | K34: 26,0% | L34: 26,0% | M34: 26,5%
A35: 45000 | B35: 23,0% | C35: 23,5% | D35: 23,5% | E35: 24,0% | F35: 24,5% | G35: 25,0% | H35: 25,0% | I35: 25,5% | J35: 25,5% | K35: 26,0% | L35: 26,0% | M35: 26,5%
A36: 46000 | B36: 23,0% | C36: 23,5% | D36: 23,5% | E36: 24,0% | F36: 24,5% | G36: 25,0% | H36: 25,0% | I36: 25,5% | J36: 25,5% | K36: 26,0% | L36: 26,0% | M36: 26,5%
A37: 47000 | B37: 23,0% | C37: 23,5% | D37: 23,5% | E37: 24,0% | F37: 24,5% | G37: 25,0% | H37: 25,0% | I37: 25,5% | J37: 25,5% | K37: 26,0% | L37: 26,0% | M37: 26,5%
A38: 48000 | B38: 23,0% | C38: 23,5% | D38: 23,5% | E38: 24,0% | F38: 24,5% | G38: 25,0% | H38: 25,0% | I38: 25,5% | J38: 25,5% | K38: 26,0% | L38: 26,0% | M38: 26,5%
A39: 49000 | B39: 23,0% | C39: 23,5% | D39: 24,0% | E39: 24,5% | F39: 24,5% | G39: 25,0% | H39: 25,5% | I39: 25,5% | J39: 26,0% | K39: 26,0% | L39: 26,5% | M39: 26,5%
A40: 50000 | B40: 23,0% | C40: 23,5% | D40: 24,0% | E40: 24,5% | F40: 25,0% | G40: 25,0% | H40: 25,5% | I40: 26,0% | J40: 26,0% | K40: 26,5% | L40: 26,5% | M40: 27,0%
A41: 51000 | B41: 23,5% | C41: 23,5% | D41: 24,0% | E41: 24,5% | F41: 25,0% | G41: 25,5% | H41: 25,5% | I41: 26,0% | J41: 26,0% | K41: 26,5% | L41: 26,5% | M41: 27,0%
A42: 52000 | B42: 23,5% | C42: 24,0% | D42: 24,0% | E42: 24,5% | F42: 25,0% | G42: 25,5% | H42: 25,5% | I42: 26,0% | J42: 26,0% | K42: 26,5% | L42: 27,0% | M42: 27,0%
A43: 53000 | B43: 23,5% | C43: 24,0% | D43: 24,0% | E43: 24,5% | F43: 25,0% | G43: 25,5% | H43: 25,5% | I43: 26,0% | J43: 26,5% | K43: 26,5% | L43: 27,0% | M43: 27,0%
A44: 54000 | B44: 23,5% | C44: 24,0% | D44: 24,5% | E44: 24,5% | F44: 25,0% | G44: 25,5% | H44: 26,0% | I44: 26,0% | J44: 26,5% | K44: 26,5% | L44: 27,0% | M44: 27,0%
A45: 55000 | B45: 23,5% | C45: 24,0% | D45: 24,5% | E45: 25,0% | F45: 25,0% | G45: 25,5% | H45: 26,0% | I45: 26,5% | J45: 26,5% | K45: 27,0% | L45: 27,0% | M45: 27,5%
A46: 56000 | B46: 23,5% | C46: 24,0% | D46: 24,5% | E46: 25,0% | F46: 25,5% | G46: 25,5% | H46: 26,0% | I46: 26,5% | J46: 26,5% | K46: 27,0% | L46: 27,0% | M46: 27,5%
A47: 57000 | B47: 24,0% | C47: 24,5% | D47: 24,5% | E47: 25,0% | F47: 25,5% | G47: 26,0% | H47: 26,0% | I47: 26,5% | J47: 27,0% | K47: 27,0% | L47: 27,5% | M47: 27,5%
A48: 58000 | B48: 24,0% | C48: 24,5% | D48: 25,0% | E48: 25,0% | F48: 25,5% | G48: 26,0% | H48: 26,5% | I48: 26,5% | J48: 27,0% | K48: 27,0% | L48: 27,5% | M48: 27,5%
A49: 59000 | B49: 24,0% | C49: 24,5% | D49: 25,0% | E49: 25,5% | F49: 25,5% | G49: 26,0% | H49: 26,5% | I49: 27,0% | J49: 27,0% | K49: 27,5% | L49: 27,5% | M49: 28,0%
A50: 60000 | B50: 24,0% | C50: 24,5% | D50: 25,0% | E50: 25,5% | F50: 26,0% | G50: 26,0% | H50: 26,5% | I50: 27,0% | J50: 27,0% | K50: 27,5% | L50: 27,5% | M50: 28,0%
A51: 61000 | B51: 24,0% | C51: 24,5% | D51: 25,0% | E51: 25,5% | F51: 26,0% | G51: 26,5% | H51: 26,5% | I51: 27,0% | J51: 27,5% | K51: 27,5% | L51: 28,0% | M51: 28,0%
A52: 62000 | B52: 24,5% | C52: 25,0% | D52: 25,5% | E52: 25,5% | F52: 26,0% | G52: 26,5% | H52: 27,0% | I52: 27,0% | J52: 27,5% | K52: 27,5% | L52: 28,0% | M52: 28,0%
A53: 63000 | B53: 24,5% | C53: 25,0% | D53: 25,5% | E53: 26,0% | F53: 26,0% | G53: 26,5% | H53: 27,0% | I53: 27,5% | J53: 27,5% | K53: 28,0% | L53: 28,0% | M53: 28,5%
A54: 64000 | B54: 24,5% | C54: 25,0% | D54: 25,5% | E54: 26,0% | F54: 26,5% | G54: 27,0% | H54: 27,0% | I54: 27,5% | J54: 27,5% | K54: 28,0% | L54: 28,5% | M54: 28,5%
A55: 65000 | B55: 25,0% | C55: 25,5% | D55: 25,5% | E55: 26,0% | F55: 26,5% | G55: 27,0% | H55: 27,0% | I55: 27,5% | J55: 28,0% | K55: 28,0% | L55: 28,5% | M55: 28,5%
A56: 66000 | B56: 25,0% | C56: 25,5% | D56: 26,0% | E56: 26,0% | F56: 26,5% | G56: 27,0% | H56: 27,5% | I56: 27,5% | J56: 28,0% | K56: 28,5% | L56: 28,5% | M56: 29,0%
A57: 67000 | B57: 25,0% | C57: 25,5% | D57: 26,0% | E57: 26,5% | F57: 27,0% | G57: 27,0% | H57: 27,5% | I57: 28,0% | J57: 28,0% | K57: 28,5% | L57: 28,5% | M57: 29,0%
A58: 68000 | B58: 25,0% | C58: 25,5% | D58: 26,0% | E58: 26,5% | F58: 27,0% | G58: 27,0% | H58: 27,5% | I58: 28,0% | J58: 28,0% | K58: 28,5% | L58: 28,5% | M58: 29,0%
A59: 69000 | B59: 25,0% | C59: 25,5% | D59: 26,0% | E59: 26,5% | F59: 27,0% | G59: 27,5% | H59: 27,5% | I59: 28,0% | J59: 28,5% | K59: 28,5% | L59: 29,0% | M59: 29,0%
A60: 70000 | B60: 25,0% | C60: 25,5% | D60: 26,0% | E60: 26,5% | F60: 27,0% | G60: 27,5% | H60: 27,5% | I60: 28,0% | J60: 28,5% | K60: 28,5% | L60: 29,0% | M60: 29,0%
A61: 71000 | B61: 25,5% | C61: 26,0% | D61: 26,0% | E61: 26,5% | F61: 27,0% | G61: 27,5% | H61: 27,5% | I61: 28,0% | J61: 28,5% | K61: 28,5% | L61: 29,0% | M61: 29,0%
A62: 72000 | B62: 25,5% | C62: 26,0% | D62: 26,5% | E62: 26,5% | F62: 27,0% | G62: 27,5% | H62: 28,0% | I62: 28,0% | J62: 28,5% | K62: 28,5% | L62: 29,0% | M62: 29,5%
A63: 73000 | B63: 25,5% | C63: 26,0% | D63: 26,5% | E63: 26,5% | F63: 27,0% | G63: 27,5% | H63: 28,0% | I63: 28,0% | J63: 28,5% | K63: 29,0% | L63: 29,0% | M63: 29,5%
A64: 74000 | B64: 25,5% | C64: 26,0% | D64: 26,5% | E64: 27,0% | F64: 27,0% | G64: 27,5% | H64: 28,0% | I64: 28,0% | J64: 28,5% | K64: 29,0% | L64: 29,0% | M64: 29,5%
A65: 75000 | B65: 25,5% | C65: 26,0% | D65: 26,5% | E65: 27,0% | F65: 27,0% | G65: 27,5% | H65: 28,0% | I65: 28,0% | J65: 28,5% | K65: 29,0% | L65: 29,0% | M65: 29,5%
A66: 76000 | B66: 25,5% | C66: 26,0% | D66: 26,5% | E66: 27,0% | F66: 27,0% | G66: 27,5% | H66: 28,0% | I66: 28,0% | J66: 28,5% | K66: 29,0% | L66: 29,0% | M66: 29,5%
A67: 77000 | B67: 25,5% | C67: 26,0% | D67: 26,5% | E67: 27,0% | F67: 27,0% | G67: 27,5% | H67: 28,0% | I67: 28,0% | J67: 28,5% | K67: 29,0% | L67: 29,0% | M67: 29,5%
A68: 78000 | B68: 25,5% | C68: 26,0% | D68: 26,5% | E68: 27,0% | F68: 27,0% | G68: 27,5% | H68: 28,0% | I68: 28,0% | J68: 28,5% | K68: 29,0% | L68: 29,0% | M68: 29,5%
A69: 79000 | B69: 25,5% | C69: 26,0% | D69: 26,5% | E69: 27,0% | F69: 27,0% | G69: 27,5% | H69: 28,0% | I69: 28,0% | J69: 28,5% | K69: 29,0% | L69: 29,0% | M69: 29,5%
A70: 80000 | B70: 25,5% | C70: 26,0% | D70: 26,5% | E70: 27,0% | F70: 27,0% | G70: 27,5% | H70: 28,0% | I70: 28,0% | J70: 28,5% | K70: 29,0% | L70: 29,0% | M70: 29,5%
A71: 81000 | B71: 25,5% | C71: 26,0% | D71: 26,5% | E71: 27,0% | F71: 27,0% | G71: 27,5% | H71: 28,0% | I71: 28,0% | J71: 28,5% | K71: 29,0% | L71: 29,0% | M71: 29,5%
A72: 82000 | B72: 25,5% | C72: 26,0% | D72: 26,5% | E72: 27,0% | F72: 27,0% | G72: 27,5% | H72: 28,0% | I72: 28,0% | J72: 28,5% | K72: 29,0% | L72: 29,0% | M72: 29,5%
A73: 83000 | B73: 25,5% | C73: 26,0% | D73: 26,5% | E73: 27,0% | F73: 27,0% | G73: 27,5% | H73: 28,0% | I73: 28,0% | J73: 28,5% | K73: 29,0% | L73: 29,0% | M73: 29,5%
A74: 84000 | B74: 25,5% | C74: 26,0% | D74: 26,5% | E74: 27,0% | F74: 27,0% | G74: 27,5% | H74: 28,0% | I74: 28,0% | J74: 28,5% | K74: 29,0% | L74: 29,0% | M74: 29,5%
A75: 85000 | B75: 25,5% | C75: 26,0% | D75: 26,5% | E75: 27,0% | F75: 27,0% | G75: 27,5% | H75: 28,0% | I75: 28,0% | J75: 28,5% | K75: 29,0% | L75: 29,0% | M75: 29,5%
A76: 86000 | B76: 25,5% | C76: 26,0% | D76: 26,5% | E76: 27,0% | F76: 27,0% | G76: 27,5% | H76: 28,0% | I76: 28,0% | J76: 28,5% | K76: 29,0% | L76: 29,0% | M76: 29,5%
A77: 87000 | B77: 25,5% | C77: 26,0% | D77: 26,5% | E77: 27,0% | F77: 27,0% | G77: 27,5% | H77: 28,0% | I77: 28,0% | J77: 28,5% | K77: 29,0% | L77: 29,0% | M77: 29,5%
A78: 88000 | B78: 25,5% | C78: 26,0% | D78: 26,5% | E78: 27,0% | F78: 27,0% | G78: 27,5% | H78: 28,0% | I78: 28,0% | J78: 28,5% | K78: 29,0% | L78: 29,0% | M78: 29,5%
A79: 89000 | B79: 25,5% | C79: 26,0% | D79: 26,5% | E79: 27,0% | F79: 27,0% | G79: 27,5% | H79: 28,0% | I79: 28,0% | J79: 28,5% | K79: 29,0% | L79: 29,0% | M79: 29,5%
A80: 90000 | B80: 25,5% | C80: 26,0% | D80: 26,5% | E80: 27,0% | F80: 27,0% | G80: 27,5% | H80: 28,0% | I80: 28,0% | J80: 28,5% | K80: 29,0% | L80: 29,0% | M80: 29,5%
A81: 91000 | B81: 25,5% | C81: 26,0% | D81: 26,5% | E81: 27,0% | F81: 27,0% | G81: 27,5% | H81: 28,0% | I81: 28,0% | J81: 28,5% | K81: 29,0% | L81: 29,0% | M81: 29,5%
A82: 92000 | B82: 25,5% | C82: 26,0% | D82: 26,5% | E82: 27,0% | F82: 27,0% | G82: 27,5% | H82: 28,0% | I82: 28,0% | J82: 28,5% | K82: 29,0% | L82: 29,0% | M82: 29,5%
A83: 93000 | B83: 25,5% | C83: 26,0% | D83: 26,5% | E83: 27,0% | F83: 27,0% | G83: 27,5% | H83: 28,0% | I83: 28,0% | J83: 28,5% | K83: 29,0% | L83: 29,0% | M83: 29,5%
A84: 94000 | B84: 25,5% | C84: 26,0% | D84: 26,5% | E84: 27,0% | F84: 27,0% | G84: 27,5% | H84: 28,0% | I84: 28,0% | J84: 28,5% | K84: 29,0% | L84: 29,0% | M84: 29,5%
A85: 95000 | B85: 25,5% | C85: 26,0% | D85: 26,5% | E85: 27,0% | F85: 27,0% | G85: 27,5% | H85: 28,0% | I85: 28,5% | J85: 28,5% | K85: 29,0% | L85: 29,0% | M85: 29,5%
A86: 96000 | B86: 25,5% | C86: 26,0% | D86: 26,5% | E86: 27,0% | F86: 27,0% | G86: 27,5% | H86: 28,0% | I86: 28,5% | J86: 28,5% | K86: 29,0% | L86: 29,0% | M86: 29,5%
A87: 97000 | B87: 25,5% | C87: 26,0% | D87: 26,5% | E87: 27,0% | F87: 27,5% | G87: 27,5% | H87: 28,0% | I87: 28,5% | J87: 28,5% | K87: 29,0% | L87: 29,0% | M87: 29,5%
A88: 98000 | B88: 25,5% | C88: 26,0% | D88: 26,5% | E88: 27,0% | F88: 27,5% | G88: 27,5% | H88: 28,0% | I88: 28,5% | J88: 28,5% | K88: 29,0% | L88: 29,0% | M88: 29,5%
A89: 99000 | B89: 25,5% | C89: 26,0% | D89: 26,5% | E89: 27,0% | F89: 27,5% | G89: 27,5% | H89: 28,0% | I89: 28,5% | J89: 28,5% | K89: 29,0% | L89: 29,0% | M89: 29,5%
A90: 100000 | B90: 25,5% | C90: 26,0% | D90: 26,5% | E90: 27,0% | F90: 27,5% | G90: 27,5% | H90: 28,0% | I90: 28,5% | J90: 28,5% | K90: 29,0% | L90: 29,0% | M90: 29,5%
A91: 101000 | B91: 25,5% | C91: 26,0% | D91: 26,5% | E91: 27,0% | F91: 27,5% | G91: 27,5% | H91: 28,0% | I91: 28,5% | J91: 28,5% | K91: 29,0% | L91: 29,0% | M91: 29,5%
A92: 102000 | B92: 25,5% | C92: 26,0% | D92: 26,5% | E92: 27,0% | F92: 27,5% | G92: 27,5% | H92: 28,0% | I92: 28,5% | J92: 28,5% | K92: 29,0% | L92: 29,5% | M92: 29,5%
A93: 104000 | B93: 25,5% | C93: 26,0% | D93: 26,5% | E93: 27,0% | F93: 27,5% | G93: 28,0% | H93: 28,0% | I93: 28,5% | J93: 29,0% | K93: 29,0% | L93: 29,5% | M93: 29,5%
A94: 105000 | B94: 25,5% | C94: 26,0% | D94: 26,5% | E94: 27,0% | F94: 27,5% | G94: 28,0% | H94: 28,0% | I94: 28,5% | J94: 29,0% | K94: 29,0% | L94: 29,5% | M94: 29,5%
A95: 106000 | B95: 25,5% | C95: 26,0% | D95: 26,5% | E95: 27,0% | F95: 27,5% | G95: 28,0% | H95: 28,0% | I95: 28,5% | J95: 29,0% | K95: 29,0% | L95: 29,5% | M95: 29,5%
A96: 107000 | B96: 25,5% | C96: 26,0% | D96: 26,5% | E96: 27,0% | F96: 27,5% | G96: 28,0% | H96: 28,0% | I96: 28,5% | J96: 29,0% | K96: 29,0% | L96: 29,5% | M96: 29,5%
A97: 108000 | B97: 25,5% | C97: 26,0% | D97: 26,5% | E97: 27,0% | F97: 27,5% | G97: 28,0% | H97: 28,0% | I97: 28,5% | J97: 29,0% | K97: 29,0% | L97: 29,5% | M97: 29,5%
A98: 109000 | B98: 25,5% | C98: 26,0% | D98: 26,5% | E98: 27,0% | F98: 27,5% | G98: 28,0% | H98: 28,0% | I98: 28,5% | J98: 29,0% | K98: 29,0% | L98: 29,5% | M98: 29,5%
A99: 110000 | B99: 25,5% | C99: 26,0% | D99: 26,5% | E99: 27,0% | F99: 27,5% | G99: 28,0% | H99: 28,0% | I99: 28,5% | J99: 29,0% | K99: 29,0% | L99: 29,5% | M99: 29,5%
A100: 9999999999 | B100: 25,5% | C100: 26,0% | D100: 26,5% | E100: 27,0% | F100: 27,5% | G100: 28,0% | H100: 28,0% | I100: 28,5% | J100: 29,0% | K100: 29,0% | L100: 29,5% | M100: 29,5%

Sheet Cockpit (hidden)
N15: Niet automatisch beveiligen:
N16: Voorstel HOR
N17: Uitvoer adviesbox
N18: WW uitvoer
N19: AO uitvoer
N20: ORV advies
N21: Pensioen uitvoer
N22: Cockpit
N23: Controle berekening
Q29: ='Financiële Gegevens'!P35 -> 0.05
Q30: =IF(E25<>'Financiële Gegevens'!P35,10,5) -> 10

Sheet Toegang
R1: 1
G32: =Gegevens!I6 -> 
D33: Uw gebruikersaccount
D34: Uw wachtwoord

Sheet Financiële Gegevens (hidden)
A1: Max. dagloon | B1: 53706 | C1: https://www.hr-kiosk.nl/hoofdstuk/tabellen/maximumdagloon-tabellen-1 | IV1: HIDE
A2: Max. dagen | B2: 261
A3: ANW | B3: =1156.42*12.96 -> 14987.2032 | C3: http://www.svb.nl/int/nl/anw/inkomsten/werkgever_zelfstandige/index.jsp | J3: http://www.rijksoverheid.nl/documenten-en-publicaties/vragen-en-antwoorden/hoe-hoog-is-de-anw-uitkering.html | Q3: NHG
A4: Bruto minimum loon | B4: 1552 | C4: https://www.rijksoverheid.nl/onderwerpen/minimumloon/inhoud/bedragen-minimumloon-2017 | Q4: 2016 | R4: 1.02
A5: Minimum per jaar | B5: =B4*12.96 -> 20113.92 | Q5: 2017 | R5: 1.01
A6: Netto minimum loon | B6: 1310 | C6: ??????????
A7: Netto vakantietoeslag | B7: 68.48 | C7: (netto loon staat vermeld bij ANW !!) | Q7: =AlgemeenOUD!D35 -> 2017 | R7: =VLOOKUP(Q7,Q4:R5,2) -> 1.01
A9: IB Tarieven | C9: http://www.belastingdienst.nl/particulier/alsu65jaarofouderbent/alsu65jaarofouderbent-01.html
A10: AOW uitkeringen | C10: http://www.svb.nl/int/nl/aow/hoogte_aow/bedragen/
A12: AOW alleenstaand | B12: =(1161.69+70.26)*12 -> 14783.4 | C12: http://www.svb.nl/int/nl/aow/hoogte_aow/bedragen/
A13: AOW gehuwd/samenwonend, p.p. | B13: =(801.05+50.18)*12 -> 10214.76
J14: Jaar | K14: =L39 -> 2017
A17: Vrijstelling ANW | B17: 769
A20: Tarieven -65 | B20: http://www.belastingdienst.nl/wps/wcm/connect/bldcontentnl/belastingdienst/prive/inkomstenbelasting/heffingskortingen_boxen_tarieven/boxen_en_tarieven/overzicht_tarieven_en_schijven/u_hebt_in_2015_de_aow_leeftijd_nog_niet_bereikt
A22: 0 | B22: 19982 | C22: 0.3655 | D22: 2017-01-01 | F22: Tarieven | G22: > Klik hier < | H22: =D69 -> 0.3655 | J22: Heffingskortingen: | L22: Zie AO uitkering netto inkomen!
A23: =B22+1 -> 19983 | B23: 33791 | C23: 0.408 | F23: 1 | G23: =C29 -> 0.1865
A24: =B23+1 -> 33792 | B24: 67072 | C24: 0.408 | F24: 2 | G24: =C30 -> 0.229
A25: =B24+1 -> 67073 | B25: Onbeperkt | C25: 0.52 | F25: 3 | G25: =C22 -> 0.3655
F26: 4 | G26: =C23 -> 0.408
A27: Tarieven 65+ | F27: 5 | G27: =C25 -> 0.52 | J27: LET OP: in berekening Vrije Keuze is uitgegaan van gelijke grote van trede voor -65 en +65, zie BH4
A29: 0 | B29: 19982 | C29: 0.1865 | D29: =D22 -> 2017-01-01 | E29: 1 | F29: =IF(#REF!<='Financiële Gegevens'!B29,'Financiële Gegevens'!C29,0) ->  | G29: =IF(F29>0,F29,0) -> 
A30: =B29+1 -> 19983 | B30: 34130 | C30: 0.229 | E30: 2 | F30: =AND(#REF!>='Financiële Gegevens'!A30,#REF!<='Financiële Gegevens'!B30,'Financiële Gegevens'!C30) ->  | G30: =IF(F30=TRUE,C30,0) -> 
A31: =B30+1 -> 34131 | B31: 67072 | C31: 0.408 | E31: 3 | F31: =AND(#REF!>='Financiële Gegevens'!A31,#REF!<='Financiële Gegevens'!B31,C31) ->  | G31: =IF(F31=TRUE,#REF!,0) -> 
A32: =B31+1 -> 67073 | B32: Onbeperkt | C32: 0.52 | E32: 4 | F32: =IF(#REF!>='Financiële Gegevens'!A32,#REF!,0) ->  | G32: =IF(F32>0,#REF!,0) ->  | P32: NHG
O33: Koopgrens | P33: 245000
A34: Vrijstelling sparen pp | B34: 25000 | C34: =B34*2 -> 50000 | O34: Max.hyp | P34: =245000*101% -> 247450
A35: Vrijstelling per kind | C35: vervallen per 1-1-2012 | O35: Toetsrente | P35: 0.05
A37: WOZ | C37: =F61*AlgemeenOUD!C16 -> 0 | D37: = Bijtelling
A39: Let op: bij de NETTO gelijke berekening (AE19) en ANN/LIN moet het 52% berekening ELK JAAR in de formule worden aangepast. | L39: =M53 -> 2017 | M39: =N53 -> 0.5
A42: AOW:
A43: https://www.svb.nl/int/nl/aow/hoogte_aow/wat_gaat_er_af/
A45: Algemene korting | C45: 1151 | D45: http://www.belastingdienst.nl/wps/wcm/connect/bldcontentnl/belastingdienst/prive/inkomstenbelasting/heffingskortingen_boxen_tarieven/heffingskortingen/heffingskortingen_voor_aow_erechtigden
A46: Korting indien inkomen < 35.770 | B46: 36057 | C46: 1292
A47: Alleenstaande korting | C47: 438
L48: Tabblad huidige hypotheek | O48: Hoogste tarief
A49: Toetsrente | C49: 0.05 | L49: Verschil in jaren | N49: =M53 -> 2017 | O49: =G27 -> 0.52
N50: =#REF! ->  | O50: =N53 -> 0.5
N51: =N49-N50 ->  | O51: =N51*0.5% -> 
A52: WOZ % berekenen. WOZ: | B52: =AlgemeenOUD!F50 -> 0 | L52: Vandaag | M52: Jaar | N52: Selectie | O52: =MAX(O49-O50) -> 0.02
L53: =TODAY() -> 2017-09-07 | M53: =YEAR(L53) -> 2017 | N53: =VLOOKUP(M53,L56:M84,2,FALSE) -> 0.5 | O53: =IF(O51>O52,O52,IF(O51<O52,O51,0)) -> 
A54: 0 | B54: 12500 | C54: 0 | E54: =IF(AND(B$52>A54,B$52<B54),1,0) -> 0 | F54: =IF(E54=1,B$52*C54,0) -> 0 | O54: Hierboven het maximale bijtellings% voor de huidige hypotheek
A55: 12500 | B55: 25000 | C55: 0.003 | E55: =IF(AND(B$52>A55,B$52<B55),1,0) -> 0 | F55: =IF(E55=1,B$52*C55,0) -> 0
A56: 25000 | B56: 50000 | C56: 0.0045 | E56: =IF(AND(B$52>A56,B$52<B56),1,0) -> 0 | F56: =IF(E56=1,B$52*C56,0) -> 0 | L56: 2017 | M56: 0.5
A57: 50000 | B57: 75000 | C57: 0.006 | E57: =IF(AND(B$52>A57,B$52<B57),1,0) -> 0 | F57: =IF(E57=1,B$52*C57,0) -> 0 | L57: =L56+1 -> 2018 | M57: =M56-0.5% -> 0.495
A58: 75000 | B58: 1060000 | C58: 0.0075 | E58: =IF(AND(B$52>A58,B$52<B58),1,0) -> 0 | F58: =IF(E58=1,B$52*C58,0) -> 0 | L58: =L57+1 -> 2019 | M58: =M57-0.5% -> 0.49
A59: 1050000 | B59: 100000000 | C59: 7950 | D59: 0.0235 | E59: =IF(AND(B$52>=A59,B$52<B59),1,0) -> 0 | F59: =IF(B52>=A59,7875+((B52-A59)*D59),0) -> 0 | L59: 2020 | M59: 0.485
L60: 2021 | M60: 0.48
F61: =SUM(F54:F60) -> 0 | L61: 2022 | M61: 0.475
L62: 2023 | M62: 0.47
L63: 2024 | M63: 0.465
F64: Inkomen | G64: =IF(AlgemeenOUD!F13>AlgemeenOUD!C13,AlgemeenOUD!F13,AlgemeenOUD!C13)+(AlgemeenOUD!C52*AlgemeenOUD!C53) -> 14783.4 | L64: 2025 | M64: 0.46
A65: =A22 -> 0 | B65: =B22 -> 19982 | C65: =C22 -> 0.3655 | D65: =IF(G64<B65,C65,0) -> 0.3655 | F65: Leeftijd | G65: =leeftijd1 -> 0 | L65: 2026 | M65: 0.455
A66: =A23 -> 19983 | B66: 33791 | C66: 0.408 | D66: =IF(AND(G$64>A66,G$64<B66),C66,0) -> 0 | F66: Inkomen | G66: =IF(PensioenOUD!F19>PensioenOUD!C19,PensioenOUD!F19,PensioenOUD!C19) -> 14783.4 | L66: 2027 | M66: 0.45
A67: 33792 | B67: 67072 | C67: 0.408 | D67: =IF(AND(G$64>A67,G$64<B67),C67,0) -> 0 | F67: Inkomen | G67: =IF(G65>67,G66,G64) -> 14783.4 | H67: Vastgesteld op leeftijd | L67: 2028 | M67: 0.445
A68: 67073 | B68: Onbeperkt | C68: 0.52 | D68: =IF(G64>A68,C68,0) -> 0 | L68: 2029 | M68: 0.44
D69: =SUM(D65:D68) -> 0.3655 | L69: 2030 | M69: 0.435
A70: Tarieven 65+ | L70: 2031 | M70: 0.43
L71: 2032 | M71: 0.425
A72: 0 | B72: 19982 | C72: 0.1865 | D72: =IF(G66<B72,C72,0) -> 0.1865 | L72: 2033 | M72: =M71-0.5% -> 0.42
A73: 19983 | B73: 34130 | C73: 0.229 | D73: =IF(AND(G66>A73,G66<B73),C73,0) -> 0 | L73: 2034 | M73: 0.415
A74: 34131 | B74: 67072 | C74: 0.408 | D74: =IF(AND(G66>A74,G66<B74),C74,0) -> 0 | L74: 2035 | M74: 0.41
A75: 67073 | B75: Onbeperkt | C75: 0.52 | D75: =IF(G67>A75,C75,0) -> 0 | L75: 2036 | M75: 0.405
D76: =SUM(D72:D75) -> 0.1865 | L76: 2037 | M76: 0.4
L77: 2038 | M77: 0.395
L78: 2039 | M78: 0.39
L79: 2040 | M79: 0.385
L80: 2041 | M80: 0.38
L81: 2042 | M81: 0.375
L82: 2043 | M82: =M81-0.5% -> 0.37
L83: 2044 | M83: 0.365
L84: 2045 | M84: =M83-0.5% -> 0.36

Sheet Gegevens (hidden)
A1: Totale nieuwe hypotheeksom | D1: WOZ Waarde | I1: Deze kolom leeglaten voor gebruikersdata! | IV1: HIDE
A2: Afgelost op 65e | D2: Vrije verkoopwaarde | H2: aantal | I2: =COUNTA(I11:I6000)+1 -> 1
A3: Maximaal CHF 65e | D3: Niet aftrekbaar hypotheekdeel | H3: komma | I3: =SEARCH(",",I6) -> 
H4: naam | I4: =IF(ISERROR(I3),I6,LEFT(I6,I3-1)) -> 
H5: stad | I5: =IF(ISERROR(I3),"",MID(I6,I3+1,255)) -> 
A6: Naam 1e | B6: dav | D6: Naam 2e | H6: gebruiker | I6: =IF(I8=0,"",OFFSET($I$11,I8-1,0))&"" -> 
A7: Geboortedatum (01-01-1970) | D7: Geboortedatum (01-01-1970) | H7: supercode | I7: 4105
A8: Leeftijd (wordt automatisch berekend) | B8: =Algemeen!E8 -> 0 | D8: Leeftijd (wordt automatisch berekend) | E8: =INT(IF(E7,(TODAY()-E7)/365.25,0)) -> 0 | H8: keuze
H9: pwcode
A10: Inkomen gegevens: | D10: Inkomen gegevens: | H10: einddatum
A11: Bruto jaarinkomen (vast) | B11: 50000 | C11: 1 | D11: Bruto jaarinkomen (vast) | F11: 1
A14: Overlijden: | D14: Overlijden:
A15: Inkomen uit pensioenregeling van de partner | D15: Inkomen uit pensioenregeling van de partner
A16: 1 | D16: 2
A17: Maximale hypotheek bij overlijden partner | D17: Maximale hypotheek bij overlijden partner
A18: Inkomen bij overlijden partner | B18: ='ORV advies'!B13 -> 0 | D18: Inkomen bij overlijden partner | E18: =#REF! -> 
A19: Wat moet minimaal verzekerd zijn | B19: =IF(B17>B1,0,B1-B17) -> 0 | D19: Wat moet minimaal verzekerd zijn | E19: =IF(E17>B1,0,B1-E17) -> 0
A20: PARTNER verzekerd in het voorstel | D20: PARTNER verzekerd in het voorstel
A22: AO Aanvulling: | D22: AO Aanvulling:
A23: Aanvulling per maand via WG bij AO 35%-80% | D23: Aanvulling per maand via WG bij AO 35%-80%
A24: Aanvulling per maand via WG bij AO>80% | D24: Aanvulling per maand via WG bij AO>80%
A26: Pensioen: | D26: Pensioen:
A27: Huidig netto maand inkomen | D27: Huidig netto maand inkomen
A28: Bruto totaal pensioeninkomen | B28: ='Pensioen 1e'!C37 -> 14783.4 | D28: Bruto totaal pensioeninkomen | E28: ='Pensioen 2e'!C37 -> 10214.76
A29: Netto pensioeninkomen wordt | B29: ='Pensioen 1e'!C10 -> 1046.966867 | D29: Netto pensioeninkomen wordt | E29: ='Pensioen 2e'!C10 -> 730.4438967
A30: "Tekort" op basis van netto verschil | B30: =IF(B29>B27,"Geen tekort",B27-B29) -> Geen tekort | D30: "Tekort" op basis van netto verschil | E30: =IF(E29>E27,"Geen tekort",E27-E29) -> Geen tekort
A31: Bij toets voor pensioen volgend jaartal gebruiken: | B31: =B167 -> 0 | D31: Bij toets voor pensioen volgend jaartal gebruiken: | E31: =E167 -> 0
A33: Maximale hypotheek bij totaal (gezamenlijk) inkomen | D33: Maximale hypotheek bij totaal (gezamenlijk) inkomen | E33: =B33 -> 0
A34: Normlast bij totaal (gezamenlijk) inkomen | D34: Normlast bij totaal (gezamenlijk) inkomen | E34: =B34 -> 0
A35: Maximale hypotheek bij 70 % inkomen 1e aanvrager | D35: Maximale hypotheek bij 70 % inkomen 2e aanvrager
A36: Normlast bij 70 % van het inkomen 1e aanvrager | D36: Normlast bij 70 % van het inkomen 2e aanvrager
A37: Inkomen bij 2e ziektejaar EN bij WW 70 % | B37: =B11*70% -> 35000 | D37: Inkomen bij 2e ziektejaar EN bij WW 70 % | E37: =E11*70% -> 0
A38: Te verzekeren per maand bij WW 70 % | B38: =(B34-B36)/12 -> 0 | D38: Te verzekeren per maand bij WW 70 % | E38: =(E34-E36)/12 -> 0
A40: Pensioen bruto per jaar: | D40: Pensioen bruto per jaar:
B44: 1 | E44: 1
A45: Hoeveel jaar in het buitenland geweest tussen 15e en 65e ? | D45: Hoeveel jaar in het buitenland geweest tussen 15e en 65e ?
A46: =VLOOKUP(B46,A74:B124,2) -> 100 | B46: 1 | D46: =VLOOKUP(E46,A74:B125,2) -> 100 | E46: 1
A64: Pulldown AOW | D64: Pulldown AOW
A66: AOW alleenstaanden | B66: ='Financiële Gegevens'!B12*PensioenOUD!$B$16% -> 14783.4 | D66: AOW alleenstaanden | E66: ='Financiële Gegevens'!B12*PensioenOUD!$E$16% -> 14783.4
A67: AOW gehuwden/samenwonend, p.p. | B67: ='Financiële Gegevens'!B13*PensioenOUD!$B$16% -> 10214.76 | D67: AOW gehuwden/samenwonend, p.p. | E67: ='Financiële Gegevens'!B13*PensioenOUD!$E$16% -> 10214.76
A71: Hoeveel jaar in het buitenland gewoond; AO. | D71: Aantal jaren gewerkt; AO | E71: Looptijd uitkering
A74: 0 | D74: 1 | E74: 3
A75: =A74+1 -> 1 | B75: 100 | D75: =D74+1 -> 2 | E75: =E74+1 -> 4
A76: =A75+1 -> 2 | B76: =B75-2 -> 98 | D76: =D75+1 -> 3 | E76: =E75+1 -> 5
A77: 3 | B77: 96 | D77: 4 | E77: 6
A78: 4 | B78: 94 | D78: 5 | E78: 7
A79: 5 | B79: 92 | D79: 6 | E79: 8
A80: 6 | B80: 90 | D80: 7 | E80: 9
A81: 7 | B81: 88 | D81: 8 | E81: 10
A82: 8 | B82: 86 | D82: 9 | E82: 11
A83: 9 | B83: 84 | D83: 10 | E83: 12
A84: 10 | B84: 82 | D84: 11 | E84: 13
A85: 11 | B85: 80 | D85: 12 | E85: 14
A86: 12 | B86: 78 | D86: 13 | E86: 15
A87: 13 | B87: 76 | D87: 14 | E87: 16
A88: 14 | B88: 74 | D88: 15 | E88: 17
A89: 15 | B89: 72 | D89: 16 | E89: 18
A90: 16 | B90: 70 | D90: 17 | E90: 19
A91: 17 | B91: 68 | D91: 18 | E91: 20
A92: 18 | B92: 66 | D92: 19 | E92: 21
A93: 19 | B93: 64 | D93: 20 | E93: 22
A94: 20 | B94: 62 | D94: 21 | E94: 23
A95: 21 | B95: 60 | D95: 22 | E95: 24
A96: 22 | B96: 58 | D96: 23 | E96: 25
A97: 23 | B97: 56 | D97: 24 | E97: 26
A98: 24 | B98: 54 | D98: 25 | E98: 27
A99: 25 | B99: 52 | D99: 26 | E99: 28
A100: 26 | B100: 50 | D100: 27 | E100: 29
A101: 27 | B101: 48 | D101: 28 | E101: 30
A102: 28 | B102: 46 | D102: 29 | E102: 31
A103: 29 | B103: 44 | D103: 30 | E103: 32
A104: 30 | B104: 42 | D104: 31 | E104: 33
A105: 31 | B105: 40 | D105: 32 | E105: =E104+1 -> 34
A106: 32 | B106: 38 | D106: 33 | E106: 35
A107: 33 | B107: 36 | D107: 34 | E107: 36
A108: 34 | B108: 34 | D108: 35 | E108: 37
A109: 35 | B109: 32 | D109: 36 | E109: 38
A110: 36 | B110: 30 | D110: 37 | E110: =38 -> 38
A111: 37 | B111: 28 | D111: 38 | E111: =38 -> 38
A112: 38 | B112: 26 | D112: 39 | E112: =38 -> 38
A113: 39 | B113: 24 | D113: 40 | E113: =38 -> 38
A114: 40 | B114: 22 | D114: 41 | E114: =38 -> 38
A115: 41 | B115: 20 | D115: 42 | E115: =38 -> 38
A116: 42 | B116: 18 | D116: 43 | E116: =38 -> 38
A117: 43 | B117: 16 | D117: 44 | E117: =38 -> 38
A118: 44 | B118: 14 | D118: 45 | E118: =38 -> 38
A119: 45 | B119: 12 | D119: 46 | E119: =38 -> 38
A120: 46 | B120: 10 | D120: 47 | E120: =38 -> 38
A121: 47 | B121: 8 | D121: 48 | E121: =38 -> 38
A122: 48 | B122: 6 | D122: 49 | E122: =38 -> 38
A123: 49 | B123: 4 | D123: 50 | E123: =38 -> 38
A124: =A123+1 -> 50 | B124: =B123-2 -> 2 | D124: 51 | E124: =38 -> 38
A125: =A124+1 -> 51 | B125: =B124-2 -> 0 | D125: 52 | E125: =38 -> 38
D126: 53 | E126: =38 -> 38
D127: 54 | E127: =38 -> 38
B128: Aanvrager ANW | D128: 55 | E128: =38 -> 38
D129: 56 | E129: =38 -> 38
A130: 1 | B130: Nee, geen recht | D130: 57 | E130: =38 -> 38
A131: 2 | B131: Ja, geboren voor 1950 | D131: 58 | E131: =38 -> 38
A132: 3 | B132: Ja, min. 1 kind jonger dan 18 | D132: 59 | E132: =38 -> 38
A133: 4 | B133: Ja, voor meer dan 45% AO | D133: 60 | E133: =38 -> 38
A136: 1
A137: 2 | B137: U hebt recht op ANW: u bent geboren voor 1950.
A138: 3 | B138: U hebt recht op ANW: u hebt min 1 kind < 18 jr.
A139: 4 | B139: U hebt recht op ANW: u bent voor > 45% AO.
A141: ANW 1e aanvrager | B141: Geen uitkering | D141: ANW 2e aanvrager | E141: Geen uitkering
B142: Uitkering | E142: Uitkering
B143: Zelfstandig | E143: Zelfstandig
B144: Pensioen | E144: Pensioen
A145: =C145*12.96 -> 9966.24 | B145: Vrijstelling | C145: ='Financiële Gegevens'!B17 -> 769 | D145: =C145*12.96 -> 9966.24 | E145: Vrijstelling
A146: =(AlgemeenOUD!C10)-A145 -> -9966.24 | B146: Inkomen > vrijstelling | D146: =(AlgemeenOUD!F10+AlgemeenOUD!F11+AlgemeenOUD!F12)-D145 -> -9966.24 | E146: Inkomen > vrijstelling
A147: =A146*66.66% -> -6643.495584 | B147: 0.6666 | D147: =D146*66.66% -> -6643.495584 | E147: 0.6666
A148: =MAX(0,'Financiële Gegevens'!B3-Gegevens!A147-AlgemeenOUD!C11) -> 21630.69878 | B148: Uitkering | D148: =MAX(0,'Financiële Gegevens'!B3-Gegevens!D147-AlgemeenOUD!F11) -> 21630.69878 | E148: Uitkering
A150: =AlgemeenOUD!C11 -> 0 | B150: Uitkering | D150: =AlgemeenOUD!F11 -> 0 | E150: Uitkering
A151: ='Financiële Gegevens'!B3 -> 14987.2032 | B151: Max.ANW | D151: ='Financiële Gegevens'!B3 -> 14987.2032 | E151: Max.ANW
A152: =(A151-A150) -> 14987.2032 | B152: Uitkering | D152: =(D151-D150) -> 14987.2032 | E152: Uitkering
A153: =IF(A152<0,0,A152) -> 14987.2032 | B153: ECHT | D153: =IF(D152<0,0,D152) -> 14987.2032 | E153: ECHT
A155: Pensoenjaar | D155: Pensoenjaar
A156: Huidige leeftijd | B156: =AlgemeenOUD!C9 -> 0 | C156: 1 = nee | D156: Huidige leeftijd | E156: =AlgemeenOUD!F9 -> -1
A157: Geboortejaar | B157: =B158-B156 -> 0 | C157: 2 = ja | D157: Geboortejaar | E157: =E158-E156 -> 1
A158: Huidig jaar | B158: ='Financiële Gegevens'!B18 -> 0 | D158: Huidig jaar | E158: =B158 -> 0
A159: Leeftijd 2019 (66) | B159: =(2019-B158)+B156 -> 2019 | D159: Leeftijd 2019 (66) | E159: =(2019-E158)+E156 -> 2018
A160: Leeftijd 2023 (67) | B160: =(2023-B158)+B156 -> 2023 | D160: Leeftijd 2023 (67) | E160: =(2023-E158)+E156 -> 2022
A162: Leeftijd in 2019 < 66 | B162: =IF(B159<66,2,1) -> 1 | D162: Leeftijd in 2019 < 66 | E162: =IF(E159<66,2,1) -> 1
A163: Leeftijd in 2023 < 67 | B163: =IF(B160<67,2,1) -> 1 | D163: Leeftijd in 2023 < 67 | E163: =IF(E160<67,2,1) -> 1
A165: =IF(AND(B163=2,B162=2),67,IF(AND(B162=2,B163=1),66,IF(AND(B163=2,B162=1),67))) -> FALSE | D165: =IF(AND(E163=2,E162=2),67,IF(AND(E162=2,E163=1),66,IF(AND(E163=2,E162=1),67))) -> FALSE
A169: Netto ORV inkomen 1e | B169: ='ORV advies'!B13-'ORV advies'!B6+D169 -> 0 | C169: Zonder 8% | D169: ='ORV advies'!B6/108*100 -> 0
A170: Van | B170: Tot | C170: Belastingtarief | E170: Te betalen belasting
A172: ='Financiële Gegevens'!A22 -> 0 | B172: ='Financiële Gegevens'!B22 -> 19982 | C172: ='Financiële Gegevens'!C22 -> 0.3655 | D172: =IF(B169<B172,B169*C172,B172*C172) -> 0 | E172: =D172 -> 0
A173: ='Financiële Gegevens'!A23 -> 19983 | B173: ='Financiële Gegevens'!B23 -> 33791 | C173: ='Financiële Gegevens'!C23 -> 0.408 | D173: =IF(B169<A173,0,IF(B169>B173,(B173-A173)*C173,(B169-A173)*C173)) -> 0 | E173: =D173 -> 0
A174: ='Financiële Gegevens'!A24 -> 33792 | B174: ='Financiële Gegevens'!B24 -> 67072 | C174: ='Financiële Gegevens'!C24 -> 0.408 | D174: =IF(B169>B174,(B174-A174)*C174,IF(B169>A174,(B169-A174)*C174,0)) -> 0 | E174: =D174 -> 0
A175: ='Financiële Gegevens'!A25 -> 67073 | B175: ='Financiële Gegevens'!B25 -> Onbeperkt | C175: ='Financiële Gegevens'!C25 -> 0.52 | D175: =IF(B169<A175,0,(B169-A175)*C175) -> 0 | E175: =D175 -> 0
D176: Totaal | E176: =SUM(E172:E175) -> 0
D177: Netto | E177: =B169-E176 -> 0
D178: Per maand | E178: =E177/12 -> 0
A180: Netto ORV inkomen 2e | B180: =#REF!-#REF!+Gegevens!D180 ->  | C180: Zonder 8% | D180: =#REF!/108*100 -> 
A181: Van | B181: Tot | C181: Belastingtarief | E181: Te betalen belasting
A183: =A172 -> 0 | B183: 19982 | C183: 0.3655 | D183: =IF(B180<B183,B180*C183,B183*C183) ->  | E183: =D183 -> 
A184: 19983 | B184: 33791 | C184: 0.408 | D184: =IF(B180<A184,0,IF(B180>B184,(B184-A184)*C184,(B180-A184)*C184)) ->  | E184: =D184 -> 
A185: =A174 -> 33792 | B185: 67072 | C185: 0.408 | D185: =IF(B180>B185,(B185-A185)*C185,IF(B180>A185,(B180-A185)*C185,0)) ->  | E185: =D185 -> 
A186: 67073 | B186: Onbeperkt | C186: 0.52 | D186: =IF(B180<A186,0,(B180-A186)*C186) ->  | E186: =D186 -> 
D187: Totaal | E187: =SUM(E183:E186) -> 
D188: Netto | E188: =B180-E187 -> 
D189: Per maand | E189: =E188/12 -> 
A191: Aanhef 1 | D191: Aanhef 2
A192: 1 | D192: 1
A193: 2 | B193: De heer | D193: 2 | E193: De heer
A194: 3 | B194: Mevrouw | D194: 3 | E194: Mevrouw
A198: 1 | D198: 1
A199: 2 | B199: Voldoet alleen aan de wekeneis | D199: 2 | E199: Relatie voldoet alleen aan de wekeneis
A200: 3 | B200: Voldoet aan de wekeneis en jareneis | D200: 3 | E200: Relatie voldoet alleen aan de jareneis
A201: 4 | B201: Voldoet NIET aan de weken of jareneis | D201: 4 | E201: Relatie voldoet aan de jareneis en wekeneis
D202: 5 | E202: Voldoet NIET aan de weken of jareneis
A204: Fictief arbeidsverleden | D204: Fictief arbeidsverleden
A207: Jaren vanaf | B207: 1998-01-01 | D207: Jaren vanaf | E207: 1998-01-01
A208: Automatisch | B208: =INT(IF(B207,(TODAY()-B207)/365.25,0)) -> 19 | D208: Automatisch | E208: =INT(IF(E207,(TODAY()-E207)/365.25,0)) -> 19
A209: Huidige leeftijd | B209: =AlgemeenOUD!C9 -> 0 | D209: Huidige leeftijd | E209: =AlgemeenOUD!F9 -> -1
A210: Jaren er vanaf | B210: =B208 -> 19 | D210: Jaren er vanaf | E210: =E208 -> 19
A211: Leeftijd in 1997 | B211: =B209-B210 -> -19 | D211: Leeftijd in 1997 | E211: =E209-E210 -> -20
A212: Fictief arbeidsverleden | B212: =B211-18 -> -37 | D212: Fictief arbeidsverleden | E212: =E211-18 -> -38
A213: Fictief arbeidsverleden correctie | B213: =IF(B212>0,B212,0) -> 0 | D213: Fictief arbeidsverleden correctie | E213: =IF(E212>0,E212,0) -> 0
A215: Jaren vanaf | B215: 1998-01-01 | D215: Jaren vanaf | E215: 1998-01-01
A216: Automatisch | B216: =B213 -> 0 | D216: Automatisch | E216: =E213 -> 0
A217: Feitelijk verleden | B217: =B212 -> -37 | D217: Feitelijk verleden | E217: ='AO en WW'!F20 -> 0
A218: Echte jaren | B218: ='AO en WW'!C20 -> 15 | D218: Echte jaren | E218: ='AO en WW'!F20 -> 0
A220: Totale jaren | B220: =IF((B218+B213)>38,38,B218+B213) -> 15 | D220: Totale jaren | E220: =IF((E218+E213)>38,38,E218+E213) -> 0
A222: Echte uitkering | B222: =MIN(38,IF('AO en WW'!C18=2,Gegevens!B220,IF('AO en WW'!C18=1,3,0))) -> 15 | D222: Echte uitkering | E222: =MIN(38,IF('AO en WW'!F18=2,Gegevens!E220,IF('AO en WW'!F18=1,3,0))) -> 0
A225: Kinderen WZP | D225: =E222 -> 0
A226: Geen regeling
A227: Regeling aanwezig
A228: Geen kinderen
A229: 1
A230: 2
A231: 3
A232: 4
A233: 5
A234: 6
A235: 7
A236: 8
A237: 9
A238: 10
A240: Nog 30 jaar aftrekbaar | B240: 1 | D240: 30
A241: Nog 29 jaar aftrekbaar | B241: =B240+1 -> 2 | D241: =D240-1 -> 29
A242: Nog 28 jaar aftrekbaar | B242: =B241+1 -> 3 | D242: =D241-1 -> 28
A243: Nog 27 jaar aftrekbaar | B243: 4 | D243: 27
A244: Nog 26 jaar aftrekbaar | B244: 5 | D244: 26
A245: Nog 25 jaar aftrekbaar | B245: 6 | D245: 25
A246: Nog 24 jaar aftrekbaar | B246: 7 | D246: 24
A247: Nog 23 jaar aftrekbaar | B247: 8 | D247: 23
A248: Nog 22 jaar aftrekbaar | B248: 9 | D248: 22
A249: Nog 21 jaar aftrekbaar | B249: 10 | D249: 21
A250: Nog 20 jaar aftrekbaar | B250: 11 | D250: 20
A251: Nog 19 jaar aftrekbaar | B251: 12 | D251: 19
A252: Nog 18 jaar aftrekbaar | B252: 13 | D252: 18
A253: Nog 17 jaar aftrekbaar | B253: 14 | D253: 17
A254: Nog 16 jaar aftrekbaar | B254: 15 | D254: 16
A255: Nog 15 jaar aftrekbaar | B255: 16 | D255: 15
A256: Nog 14 jaar aftrekbaar | B256: 17 | D256: 14
A257: Nog 13 jaar aftrekbaar | B257: 18 | D257: 13
A258: Nog 12 jaar aftrekbaar | B258: 19 | D258: 12
... 229 more rows

Sheet 2016 (hidden)
IV1: HIDE
A2: euro’s | B2: <=2,500 | C2: 2,501-3,000 | D2: 3,001-3,500 | E2: 3,501-4,000 | F2: 4,001-4,500 | G2: 4,501-5,000 | H2: 5,001-5,500 | I2: 5,501-6,000 | J2: 6,001-6,500 | K2: 6,501-7,000 | L2: 7,001-7,500 | M2: 7.5
A4: -1 | B4: 0 | C4: 0.025009 | D4: =+C4+0.5% -> 0.030009 | E4: 0.035009 | F4: 0.040009 | G4: 0.045009 | H4: 0.050009 | I4: 0.055009 | J4: 0.060009 | K4: 0.065009 | L4: 0.070009 | M4: 0.075009
A5: 0 | B5: 0.09 | C5: 0.095 | D5: 0.095 | E5: 0.1 | F5: 0.105 | G5: 0.105 | H5: 0.11 | I5: 0.115 | J5: 0.115 | K5: 0.12 | L5: 0.12 | M5: 0.125
A6: 19500 | B6: 0.09 | C6: 0.095 | D6: 0.095 | E6: 0.1 | F6: 0.105 | G6: 0.105 | H6: 0.11 | I6: 0.115 | J6: 0.115 | K6: 0.12 | L6: 0.12 | M6: 0.125
A7: 20000 | B7: 0.105 | C7: 0.105 | D7: 0.11 | E7: 0.115 | F7: 0.12 | G7: 0.125 | H7: 0.125 | I7: 0.13 | J7: 0.135 | K7: 0.135 | L7: 0.14 | M7: 0.14
A8: 20500 | B8: 0.115 | C8: 0.12 | D8: 0.12 | E8: 0.125 | F8: 0.13 | G8: 0.135 | H8: 0.14 | I8: 0.14 | J8: 0.145 | K8: 0.15 | L8: 0.15 | M8: 0.155
A9: 21000 | B9: 0.12 | C9: 0.125 | D9: 0.13 | E9: 0.135 | F9: 0.14 | G9: 0.145 | H9: 0.15 | I9: 0.155 | J9: 0.16 | K9: 0.16 | L9: 0.165 | M9: 0.165
A10: 21500 | B10: 0.13 | C10: 0.135 | D10: 0.14 | E10: 0.145 | F10: 0.15 | G10: 0.155 | H10: 0.16 | I10: 0.165 | J10: 0.17 | K10: 0.175 | L10: 0.175 | M10: 0.18
A11: 22000 | B11: 0.135 | C11: 0.14 | D11: 0.145 | E11: 0.15 | F11: 0.155 | G11: 0.16 | H11: 0.165 | I11: 0.17 | J11: 0.175 | K11: 0.18 | L11: 0.185 | M11: 0.19
A12: 22500 | B12: 0.14 | C12: 0.15 | D12: 0.155 | E12: 0.16 | F12: 0.165 | G12: 0.17 | H12: 0.175 | I12: 0.18 | J12: 0.185 | K12: 0.19 | L12: 0.195 | M12: 0.2
A13: 23000 | B13: 0.145 | C13: 0.155 | D13: 0.165 | E13: 0.17 | F13: 0.18 | G13: 0.185 | H13: 0.19 | I13: 0.195 | J13: 0.2 | K13: 0.205 | L13: 0.21 | M13: 0.215
A14: 23500 | B14: 0.15 | C14: 0.155 | D14: 0.165 | E14: 0.175 | F14: 0.185 | G14: 0.19 | H14: 0.2 | I14: 0.205 | J14: 0.21 | K14: 0.215 | L14: 0.22 | M14: 0.225
A15: 24000 | B15: 0.15 | C15: 0.16 | D15: 0.17 | E15: 0.175 | F15: 0.185 | G15: 0.195 | H15: 0.205 | I15: 0.215 | J15: 0.22 | K15: 0.225 | L15: 0.23 | M15: 0.235
A16: 24500 | B16: 0.155 | C16: 0.165 | D16: 0.175 | E16: 0.18 | F16: 0.19 | G16: 0.2 | H16: 0.21 | I16: 0.22 | J16: 0.23 | K16: 0.235 | L16: 0.24 | M16: 0.245
A17: 25000 | B17: 0.155 | C17: 0.165 | D17: 0.175 | E17: 0.185 | F17: 0.195 | G17: 0.205 | H17: 0.215 | I17: 0.225 | J17: 0.23 | K17: 0.24 | L17: 0.25 | M17: 0.25
A18: 26000 | B18: 0.165 | C18: 0.175 | D18: 0.185 | E18: 0.195 | F18: 0.205 | G18: 0.215 | H18: 0.225 | I18: 0.235 | J18: 0.245 | K18: 0.25 | L18: 0.26 | M18: 0.265
A19: 27000 | B19: 0.175 | C19: 0.185 | D19: 0.195 | E19: 0.205 | F19: 0.215 | G19: 0.225 | H19: 0.235 | I19: 0.245 | J19: 0.255 | K19: 0.265 | L19: 0.27 | M19: 0.28
A20: 28000 | B20: 0.185 | C20: 0.195 | D20: 0.205 | E20: 0.215 | F20: 0.225 | G20: 0.235 | H20: 0.245 | I20: 0.255 | J20: 0.265 | K20: 0.275 | L20: 0.28 | M20: 0.29
A21: 29000 | B21: 0.19 | C21: 0.2 | D21: 0.21 | E21: 0.22 | F21: 0.23 | G21: 0.24 | H21: 0.25 | I21: 0.26 | J21: 0.27 | K21: 0.28 | L21: 0.29 | M21: 0.3
A22: 30000 | B22: 0.195 | C22: 0.205 | D22: 0.215 | E22: 0.225 | F22: 0.24 | G22: 0.25 | H22: 0.26 | I22: 0.27 | J22: 0.28 | K22: 0.29 | L22: 0.3 | M22: 0.31
A23: 31000 | B23: 0.2 | C23: 0.21 | D23: 0.22 | E23: 0.235 | F23: 0.25 | G23: 0.26 | H23: 0.27 | I23: 0.28 | J23: 0.29 | K23: 0.3 | L23: 0.31 | M23: 0.32
A24: 32000 | B24: 0.205 | C24: 0.215 | D24: 0.225 | E24: 0.24 | F24: 0.25 | G24: 0.26 | H24: 0.27 | I24: 0.28 | J24: 0.29 | K24: 0.3 | L24: 0.31 | M24: 0.32
A25: 42000 | B25: 0.205 | C25: 0.215 | D25: 0.225 | E25: 0.24 | F25: 0.25 | G25: 0.26 | H25: 0.27 | I25: 0.28 | J25: 0.295 | K25: 0.305 | L25: 0.315 | M25: 0.325
A26: 47000 | B26: 0.21 | C26: 0.22 | D26: 0.23 | E26: 0.24 | F26: 0.25 | G26: 0.265 | H26: 0.275 | I26: 0.285 | J26: 0.295 | K26: 0.305 | L26: 0.315 | M26: 0.325
A27: 52000 | B27: 0.215 | C27: 0.225 | D27: 0.235 | E27: 0.245 | F27: 0.255 | G27: 0.265 | H27: 0.275 | I27: 0.285 | J27: 0.295 | K27: 0.305 | L27: 0.315 | M27: 0.325
A28: 57000 | B28: 0.22 | C28: 0.23 | D28: 0.24 | E28: 0.25 | F28: 0.26 | G28: 0.27 | H28: 0.28 | I28: 0.285 | J28: 0.295 | K28: 0.305 | L28: 0.315 | M28: 0.325
A29: 58000 | B29: 0.22 | C29: 0.23 | D29: 0.24 | E29: 0.25 | F29: 0.26 | G29: 0.27 | H29: 0.28 | I29: 0.29 | J29: 0.3 | K29: 0.305 | L29: 0.315 | M29: 0.325
A30: 59000 | B30: 0.225 | C30: 0.235 | D30: 0.245 | E30: 0.255 | F30: 0.265 | G30: 0.275 | H30: 0.285 | I30: 0.29 | J30: 0.3 | K30: 0.31 | L30: 0.315 | M30: 0.325
A31: 60000 | B31: 0.225 | C31: 0.235 | D31: 0.245 | E31: 0.255 | F31: 0.265 | G31: 0.275 | H31: 0.285 | I31: 0.295 | J31: 0.3 | K31: 0.31 | L31: 0.315 | M31: 0.325
A32: 61000 | B32: 0.225 | C32: 0.235 | D32: 0.245 | E32: 0.26 | F32: 0.27 | G32: 0.28 | H32: 0.29 | I32: 0.295 | J32: 0.305 | K32: 0.31 | L32: 0.32 | M32: 0.325
A33: 62000 | B33: 0.225 | C33: 0.24 | D33: 0.25 | E33: 0.26 | F33: 0.27 | G33: 0.28 | H33: 0.29 | I33: 0.3 | J33: 0.305 | K33: 0.315 | L33: 0.32 | M33: 0.33
A34: 63000 | B34: 0.23 | C34: 0.24 | D34: 0.25 | E34: 0.26 | F34: 0.275 | G34: 0.28 | H34: 0.295 | I34: 0.3 | J34: 0.31 | K34: 0.32 | L34: 0.325 | M34: 0.33
A35: 64000 | B35: 0.23 | C35: 0.245 | D35: 0.255 | E35: 0.265 | F35: 0.275 | G35: 0.285 | H35: 0.295 | I35: 0.305 | J35: 0.31 | K35: 0.32 | L35: 0.33 | M35: 0.335
A36: 65000 | B36: 0.235 | C36: 0.245 | D36: 0.255 | E36: 0.265 | F36: 0.275 | G36: 0.285 | H36: 0.295 | I36: 0.305 | J36: 0.315 | K36: 0.325 | L36: 0.33 | M36: 0.335
A37: 66000 | B37: 0.235 | C37: 0.245 | D37: 0.26 | E37: 0.27 | F37: 0.28 | G37: 0.29 | H37: 0.3 | I37: 0.31 | J37: 0.315 | K37: 0.325 | L37: 0.335 | M37: 0.34
A38: 67000 | B38: 0.235 | C38: 0.25 | D38: 0.26 | E38: 0.27 | F38: 0.28 | G38: 0.29 | H38: 0.3 | I38: 0.31 | J38: 0.32 | K38: 0.325 | L38: 0.335 | M38: 0.34
A39: 68000 | B39: 0.235 | C39: 0.25 | D39: 0.26 | E39: 0.27 | F39: 0.285 | G39: 0.295 | H39: 0.305 | I39: 0.31 | J39: 0.32 | K39: 0.33 | L39: 0.335 | M39: 0.345
A40: 69000 | B40: 0.235 | C40: 0.25 | D40: 0.265 | E40: 0.275 | F40: 0.285 | G40: 0.295 | H40: 0.305 | I40: 0.315 | J40: 0.325 | K40: 0.33 | L40: 0.34 | M40: 0.345
A41: 70000 | B41: 0.235 | C41: 0.25 | D41: 0.265 | E41: 0.275 | F41: 0.285 | G41: 0.295 | H41: 0.305 | I41: 0.315 | J41: 0.325 | K41: 0.335 | L41: 0.34 | M41: 0.35
A42: 71000 | B42: 0.235 | C42: 0.25 | D42: 0.265 | E42: 0.28 | F42: 0.29 | G42: 0.3 | H42: 0.31 | I42: 0.32 | J42: 0.325 | K42: 0.335 | L42: 0.345 | M42: 0.35
A43: 72000 | B43: 0.235 | C43: 0.25 | D43: 0.265 | E43: 0.28 | F43: 0.29 | G43: 0.3 | H43: 0.31 | I43: 0.32 | J43: 0.33 | K43: 0.335 | L43: 0.345 | M43: 0.35
A44: 73000 | B44: 0.235 | C44: 0.25 | D44: 0.265 | E44: 0.28 | F44: 0.29 | G44: 0.305 | H44: 0.315 | I44: 0.32 | J44: 0.33 | K44: 0.34 | L44: 0.345 | M44: 0.355
A45: 74000 | B45: 0.235 | C45: 0.25 | D45: 0.265 | E45: 0.28 | F45: 0.29 | G45: 0.305 | H45: 0.315 | I45: 0.325 | J45: 0.335 | K45: 0.34 | L45: 0.35 | M45: 0.355
A46: 75000 | B46: 0.24 | C46: 0.25 | D46: 0.265 | E46: 0.28 | F46: 0.29 | G46: 0.305 | H46: 0.315 | I46: 0.325 | J46: 0.335 | K46: 0.345 | L46: 0.35 | M46: 0.36
A47: 76000 | B47: 0.24 | C47: 0.25 | D47: 0.265 | E47: 0.28 | F47: 0.29 | G47: 0.305 | H47: 0.32 | I47: 0.325 | J47: 0.335 | K47: 0.345 | L47: 0.355 | M47: 0.36
A48: 77000 | B48: 0.24 | C48: 0.255 | D48: 0.265 | E48: 0.28 | F48: 0.29 | G48: 0.305 | H48: 0.32 | I48: 0.33 | J48: 0.34 | K48: 0.345 | L48: 0.355 | M48: 0.36
A49: 78000 | B49: 0.24 | C49: 0.255 | D49: 0.265 | E49: 0.28 | F49: 0.295 | G49: 0.305 | H49: 0.32 | I49: 0.33 | J49: 0.34 | K49: 0.35 | L49: 0.355 | M49: 0.365
A50: 79000 | B50: 0.24 | C50: 0.255 | D50: 0.265 | E50: 0.28 | F50: 0.295 | G50: 0.305 | H50: 0.32 | I50: 0.33 | J50: 0.34 | K50: 0.35 | L50: 0.36 | M50: 0.365
A51: 80000 | B51: 0.24 | C51: 0.255 | D51: 0.27 | E51: 0.28 | F51: 0.295 | G51: 0.305 | H51: 0.32 | I51: 0.33 | J51: 0.345 | K51: 0.35 | L51: 0.36 | M51: 0.365
A52: 81000 | B52: 0.24 | C52: 0.255 | D52: 0.27 | E52: 0.28 | F52: 0.295 | G52: 0.305 | H52: 0.32 | I52: 0.33 | J52: 0.345 | K52: 0.355 | L52: 0.36 | M52: 0.37
A53: 82000 | B53: 0.24 | C53: 0.255 | D53: 0.27 | E53: 0.28 | F53: 0.295 | G53: 0.305 | H53: 0.32 | I53: 0.33 | J53: 0.345 | K53: 0.355 | L53: 0.365 | M53: 0.37
A54: 83000 | B54: 0.24 | C54: 0.255 | D54: 0.27 | E54: 0.285 | F54: 0.295 | G54: 0.31 | H54: 0.32 | I54: 0.33 | J54: 0.345 | K54: 0.355 | L54: 0.365 | M54: 0.37
A55: 84000 | B55: 0.24 | C55: 0.255 | D55: 0.27 | E55: 0.285 | F55: 0.295 | G55: 0.31 | H55: 0.32 | I55: 0.33 | J55: 0.345 | K55: 0.355 | L55: 0.365 | M55: 0.375
A56: 85000 | B56: 0.245 | C56: 0.255 | D56: 0.27 | E56: 0.285 | F56: 0.295 | G56: 0.31 | H56: 0.32 | I56: 0.33 | J56: 0.345 | K56: 0.355 | L56: 0.365 | M56: 0.375
A57: 86000 | B57: 0.245 | C57: 0.255 | D57: 0.27 | E57: 0.285 | F57: 0.295 | G57: 0.31 | H57: 0.32 | I57: 0.335 | J57: 0.345 | K57: 0.355 | L57: 0.365 | M57: 0.375
A58: 87000 | B58: 0.245 | C58: 0.26 | D58: 0.27 | E58: 0.285 | F58: 0.3 | G58: 0.31 | H58: 0.32 | I58: 0.335 | J58: 0.345 | K58: 0.355 | L58: 0.365 | M58: 0.375
A59: 88000 | B59: 0.245 | C59: 0.26 | D59: 0.27 | E59: 0.285 | F59: 0.3 | G59: 0.31 | H59: 0.32 | I59: 0.335 | J59: 0.345 | K59: 0.355 | L59: 0.365 | M59: 0.38
A60: 89000 | B60: 0.245 | C60: 0.26 | D60: 0.27 | E60: 0.285 | F60: 0.3 | G60: 0.31 | H60: 0.325 | I60: 0.335 | J60: 0.345 | K60: 0.355 | L60: 0.365 | M60: 0.38
A61: 90000 | B61: 0.245 | C61: 0.26 | D61: 0.275 | E61: 0.285 | F61: 0.3 | G61: 0.31 | H61: 0.325 | I61: 0.335 | J61: 0.345 | K61: 0.355 | L61: 0.365 | M61: 0.38
A62: 93000 | B62: 0.245 | C62: 0.26 | D62: 0.275 | E62: 0.285 | F62: 0.3 | G62: 0.315 | H62: 0.325 | I62: 0.335 | J62: 0.345 | K62: 0.36 | L62: 0.365 | M62: 0.38
A63: 94000 | B63: 0.245 | C63: 0.26 | D63: 0.275 | E63: 0.285 | F63: 0.3 | G63: 0.315 | H63: 0.325 | I63: 0.335 | J63: 0.35 | K63: 0.36 | L63: 0.37 | M63: 0.38
A64: 95000 | B64: 0.245 | C64: 0.26 | D64: 0.275 | E64: 0.29 | F64: 0.3 | G64: 0.315 | H64: 0.325 | I64: 0.335 | J64: 0.35 | K64: 0.36 | L64: 0.37 | M64: 0.38
A65: 96000 | B65: 0.245 | C65: 0.26 | D65: 0.275 | E65: 0.29 | F65: 0.3 | G65: 0.315 | H65: 0.325 | I65: 0.34 | J65: 0.35 | K65: 0.36 | L65: 0.37 | M65: 0.38
A66: 110000 | B66: 0.245 | C66: 0.26 | D66: 0.275 | E66: 0.29 | F66: 0.3 | G66: 0.315 | H66: 0.325 | I66: 0.34 | J66: 0.35 | K66: 0.36 | L66: 0.37 | M66: 0.38
A67: 999999999999 | B67: 0 | C67: 0 | D67: 0 | E67: 0 | F67: 0 | G67: 0 | H67: 0 | I67: 0 | J67: 0 | K67: 0 | L67: 0 | M67: 0

Sheet 2017 (hidden)
A1: Tabel 1. Financieringslastpercentages voor consumenten die de AOW-leeftijd nog niet hebben bereikt | IV1: HIDE
B2: <=1,000% | C2: 1,001-1,500% | D2: 1,501-2,000% | E2: 2,001-2,500% | F2: 2,501-3,000% | G2: 3,001-3,500% | H2: 3,501-4,000% | I2: 4,001-4,500% | J2: 4,501-5,000% | K2: 5,001-5,500% | L2: 5,501-6,000% | M2: >=6,001%
A4: -1 | B4: 0 | C4: 0.010009 | D4: =+C4+0.5% -> 0.015009 | E4: 0.020009 | F4: 0.025009 | G4: 0.030009 | H4: 0.035009 | I4: 0.040009 | J4: 0.045009 | K4: 0.050009 | L4: 0.055009 | M4: 0.060009
A5: 0 | B5: 10,0% | C5: 10,5% | D5: 11,0% | E5: 11,5% | F5: 12,0% | G5: 12,5% | H5: 13,0% | I5: 13,0% | J5: 13,5% | K5: 14,0% | L5: 14,5% | M5: 14,5%
A6: 20000 | B6: 10,0% | C6: 10,5% | D6: 11,0% | E6: 11,5% | F6: 12,0% | G6: 12,5% | H6: 13,0% | I6: 13,0% | J6: 13,5% | K6: 14,0% | L6: 14,5% | M6: 14,5%
A7: 20500 | B7: 11,0% | C7: 11,5% | D7: 12,0% | E7: 12,5% | F7: 13,0% | G7: 13,5% | H7: 14,0% | I7: 14,5% | J7: 15,0% | K7: 15,5% | L7: 15,5% | M7: 16,0%
A8: 21000 | B8: 11,5% | C8: 12,0% | D8: 12,5% | E8: 13,5% | F8: 14,0% | G8: 14,5% | H8: 15,0% | I8: 15,5% | J8: 16,0% | K8: 16,5% | L8: 17,0% | M8: 17,0%
A9: 21500 | B9: 11,5% | C9: 12,0% | D9: 13,0% | E9: 14,0% | F9: 14,5% | G9: 15,5% | H9: 16,0% | I9: 16,5% | J9: 17,0% | K9: 17,5% | L9: 18,0% | M9: 18,5%
A10: 22000 | B10: 12,0% | C10: 12,5% | D10: 13,5% | E10: 14,5% | F10: 15,5% | G10: 16,0% | H10: 17,0% | I10: 17,5% | J10: 18,0% | K10: 18,5% | L10: 19,0% | M10: 19,5%
A11: 22500 | B11: 12,5% | C11: 13,5% | D11: 14,0% | E11: 15,0% | F11: 16,0% | G11: 17,0% | H11: 17,5% | I11: 18,5% | J11: 19,0% | K11: 19,5% | L11: 20,0% | M11: 20,5%
A12: 23000 | B12: 13,0% | C12: 13,5% | D12: 14,5% | E12: 15,5% | F12: 16,5% | G12: 17,5% | H12: 18,5% | I12: 19,0% | J12: 20,0% | K12: 20,5% | L12: 21,0% | M12: 21,5%
A13: 23500 | B13: 13,5% | C13: 14,0% | D13: 15,0% | E13: 16,0% | F13: 17,0% | G13: 18,0% | H13: 19,0% | I13: 20,0% | J13: 20,5% | K13: 21,5% | L13: 22,0% | M13: 22,5%
A14: 24000 | B14: 14,0% | C14: 14,5% | D14: 15,5% | E14: 16,5% | F14: 17,5% | G14: 18,5% | H14: 19,5% | I14: 20,5% | J14: 21,5% | K14: 22,0% | L14: 23,0% | M14: 23,5%
A15: 24500 | B15: 14,0% | C15: 15,0% | D15: 16,0% | E15: 17,0% | F15: 18,0% | G15: 19,0% | H15: 20,0% | I15: 21,0% | J15: 22,0% | K15: 23,0% | L15: 23,5% | M15: 24,0%
A16: 25000 | B16: 14,5% | C16: 15,5% | D16: 16,5% | E16: 17,5% | F16: 18,5% | G16: 19,5% | H16: 20,5% | I16: 21,5% | J16: 22,5% | K16: 23,5% | L16: 24,0% | M16: 25,0%
A17: 26000 | B17: 15,0% | C17: 16,0% | D17: 17,0% | E17: 18,0% | F17: 19,0% | G17: 20,0% | H17: 21,0% | I17: 22,0% | J17: 23,0% | K17: 24,0% | L17: 25,0% | M17: 25,5%
A18: 27000 | B18: 15,5% | C18: 16,5% | D18: 17,5% | E18: 18,5% | F18: 19,5% | G18: 20,5% | H18: 21,5% | I18: 22,5% | J18: 23,5% | K18: 24,5% | L18: 25,5% | M18: 26,5%
A19: 28000 | B19: 16,0% | C19: 17,0% | D19: 18,0% | E19: 19,0% | F19: 20,0% | G19: 21,0% | H19: 22,0% | I19: 23,0% | J19: 24,0% | K19: 25,0% | L19: 26,0% | M19: 27,0%
A20: 29000 | B20: 16,0% | C20: 17,5% | D20: 18,5% | E20: 19,5% | F20: 20,5% | G20: 21,5% | H20: 22,5% | I20: 23,5% | J20: 24,5% | K20: 25,5% | L20: 26,5% | M20: 27,5%
A21: 30000 | B21: 16,5% | C21: 17,5% | D21: 18,5% | E21: 19,5% | F21: 21,0% | G21: 22,0% | H21: 23,5% | I21: 24,5% | J21: 25,5% | K21: 26,5% | L21: 27,5% | M21: 28,5%
A22: 31000 | B22: 17,0% | C22: 18,0% | D22: 19,5% | E22: 20,5% | F22: 22,0% | G22: 23,0% | H22: 24,5% | I22: 25,5% | J22: 26,5% | K22: 27,5% | L22: 28,5% | M22: 29,5%
A23: 32000 | B23: 17,5% | C23: 18,5% | D23: 19,5% | E23: 21,0% | F23: 22,0% | G23: 23,0% | H23: 24,5% | I23: 25,5% | J23: 26,5% | K23: 27,5% | L23: 28,5% | M23: 29,5%
A24: 33000 | B24: 17,5% | C24: 18,5% | D24: 19,5% | E24: 21,0% | F24: 22,0% | G24: 23,0% | H24: 24,5% | I24: 25,5% | J24: 26,5% | K24: 27,5% | L24: 28,5% | M24: 29,5%
A25: 34000 | B25: 17,5% | C25: 18,5% | D25: 19,5% | E25: 21,0% | F25: 22,0% | G25: 23,0% | H25: 24,5% | I25: 25,5% | J25: 26,5% | K25: 27,5% | L25: 28,5% | M25: 29,5%
A26: 35000 | B26: 17,5% | C26: 18,5% | D26: 19,5% | E26: 21,0% | F26: 22,0% | G26: 23,0% | H26: 24,5% | I26: 25,5% | J26: 26,5% | K26: 27,5% | L26: 28,5% | M26: 29,5%
A27: 36000 | B27: 17,5% | C27: 18,5% | D27: 19,5% | E27: 21,0% | F27: 22,0% | G27: 23,0% | H27: 24,5% | I27: 25,5% | J27: 26,5% | K27: 27,5% | L27: 28,5% | M27: 29,5%
A28: 37000 | B28: 17,5% | C28: 18,5% | D28: 19,5% | E28: 21,0% | F28: 22,0% | G28: 23,0% | H28: 24,5% | I28: 25,5% | J28: 26,5% | K28: 27,5% | L28: 28,5% | M28: 29,5%
A29: 38000 | B29: 17,5% | C29: 18,5% | D29: 19,5% | E29: 21,0% | F29: 22,0% | G29: 23,0% | H29: 24,5% | I29: 25,5% | J29: 26,5% | K29: 27,5% | L29: 28,5% | M29: 29,5%
A30: 39000 | B30: 17,5% | C30: 18,5% | D30: 19,5% | E30: 21,0% | F30: 22,0% | G30: 23,0% | H30: 24,5% | I30: 25,5% | J30: 26,5% | K30: 27,5% | L30: 28,5% | M30: 29,5%
A31: 40000 | B31: 17,5% | C31: 18,5% | D31: 19,5% | E31: 21,0% | F31: 22,0% | G31: 23,0% | H31: 24,5% | I31: 25,5% | J31: 26,5% | K31: 27,5% | L31: 28,5% | M31: 29,5%
A32: 41000 | B32: 17,5% | C32: 18,5% | D32: 19,5% | E32: 21,0% | F32: 22,0% | G32: 23,0% | H32: 24,5% | I32: 25,5% | J32: 26,5% | K32: 27,5% | L32: 28,5% | M32: 29,5%
A33: 42000 | B33: 17,5% | C33: 18,5% | D33: 19,5% | E33: 21,0% | F33: 22,0% | G33: 23,0% | H33: 24,5% | I33: 25,5% | J33: 26,5% | K33: 27,5% | L33: 28,5% | M33: 29,5%
A34: 43000 | B34: 17,5% | C34: 18,5% | D34: 19,5% | E34: 21,0% | F34: 22,0% | G34: 23,0% | H34: 24,5% | I34: 25,5% | J34: 26,5% | K34: 27,5% | L34: 28,5% | M34: 29,5%
A35: 44000 | B35: 18,0% | C35: 19,0% | D35: 20,0% | E35: 21,0% | F35: 22,0% | G35: 23,0% | H35: 24,5% | I35: 25,5% | J35: 26,5% | K35: 27,5% | L35: 28,5% | M35: 29,5%
A36: 45000 | B36: 18,0% | C36: 19,0% | D36: 20,0% | E36: 21,0% | F36: 22,0% | G36: 23,0% | H36: 24,5% | I36: 25,5% | J36: 26,5% | K36: 27,5% | L36: 28,5% | M36: 29,5%
A37: 46000 | B37: 18,0% | C37: 19,0% | D37: 20,0% | E37: 21,0% | F37: 22,0% | G37: 23,0% | H37: 24,5% | I37: 25,5% | J37: 26,5% | K37: 27,5% | L37: 28,5% | M37: 29,5%
A38: 47000 | B38: 18,0% | C38: 19,0% | D38: 20,0% | E38: 21,0% | F38: 22,0% | G38: 23,0% | H38: 24,5% | I38: 25,5% | J38: 26,5% | K38: 27,5% | L38: 28,5% | M38: 29,5%
A39: 48000 | B39: 18,0% | C39: 19,0% | D39: 20,0% | E39: 21,0% | F39: 22,5% | G39: 23,5% | H39: 24,5% | I39: 25,5% | J39: 26,5% | K39: 27,5% | L39: 28,5% | M39: 29,5%
A40: 49000 | B40: 18,0% | C40: 19,0% | D40: 20,0% | E40: 21,5% | F40: 22,5% | G40: 23,5% | H40: 24,5% | I40: 25,5% | J40: 26,5% | K40: 27,5% | L40: 28,5% | M40: 29,5%
A41: 50000 | B41: 18,5% | C41: 19,5% | D41: 20,5% | E41: 21,5% | F41: 22,5% | G41: 23,5% | H41: 24,5% | I41: 26,0% | J41: 26,5% | K41: 27,5% | L41: 28,5% | M41: 29,5%
A42: 51000 | B42: 18,5% | C42: 19,5% | D42: 20,5% | E42: 21,5% | F42: 22,5% | G42: 23,5% | H42: 24,5% | I42: 26,0% | J42: 27,0% | K42: 27,5% | L42: 28,5% | M42: 29,5%
A43: 52000 | B43: 18,5% | C43: 19,5% | D43: 20,5% | E43: 21,5% | F43: 22,5% | G43: 23,5% | H43: 24,5% | I43: 26,0% | J43: 27,0% | K43: 28,0% | L43: 28,5% | M43: 29,5%
A44: 53000 | B44: 18,5% | C44: 19,5% | D44: 20,5% | E44: 21,5% | F44: 22,5% | G44: 23,5% | H44: 24,5% | I44: 26,0% | J44: 27,0% | K44: 28,0% | L44: 28,5% | M44: 29,5%
A45: 54000 | B45: 18,5% | C45: 19,5% | D45: 20,5% | E45: 21,5% | F45: 23,0% | G45: 24,0% | H45: 25,0% | I45: 26,0% | J45: 27,0% | K45: 28,0% | L45: 28,5% | M45: 29,5%
A46: 55000 | B46: 18,5% | C46: 19,5% | D46: 20,5% | E46: 22,0% | F46: 23,0% | G46: 24,0% | H46: 25,0% | I46: 26,0% | J46: 27,0% | K46: 28,0% | L46: 29,0% | M46: 29,5%
A47: 56000 | B47: 19,0% | C47: 20,0% | D47: 21,0% | E47: 22,0% | F47: 23,0% | G47: 24,0% | H47: 25,0% | I47: 26,0% | J47: 27,0% | K47: 28,0% | L47: 29,0% | M47: 30,0%
A48: 57000 | B48: 19,0% | C48: 20,0% | D48: 21,0% | E48: 22,0% | F48: 23,0% | G48: 24,0% | H48: 25,0% | I48: 26,0% | J48: 27,0% | K48: 28,0% | L48: 29,0% | M48: 30,0%
A49: 58000 | B49: 19,0% | C49: 20,0% | D49: 21,0% | E49: 22,0% | F49: 23,0% | G49: 24,0% | H49: 25,0% | I49: 26,0% | J49: 27,0% | K49: 28,0% | L49: 29,0% | M49: 30,0%
A50: 59000 | B50: 19,5% | C50: 20,5% | D50: 21,5% | E50: 22,5% | F50: 23,5% | G50: 24,5% | H50: 25,5% | I50: 26,5% | J50: 27,5% | K50: 28,5% | L50: 29,5% | M50: 30,5%
A51: 60000 | B51: 19,5% | C51: 20,5% | D51: 21,5% | E51: 22,5% | F51: 23,5% | G51: 24,5% | H51: 25,5% | I51: 26,5% | J51: 27,5% | K51: 28,5% | L51: 30,0% | M51: 30,5%
A52: 61000 | B52: 20,0% | C52: 21,0% | D52: 22,0% | E52: 23,0% | F52: 24,0% | G52: 25,0% | H52: 26,0% | I52: 27,0% | J52: 28,0% | K52: 29,0% | L52: 30,0% | M52: 31,0%
A53: 62000 | B53: 20,0% | C53: 21,0% | D53: 22,0% | E53: 23,0% | F53: 24,5% | G53: 25,5% | H53: 26,5% | I53: 27,5% | J53: 28,5% | K53: 29,5% | L53: 30,5% | M53: 31,5%
A54: 63000 | B54: 20,0% | C54: 21,0% | D54: 22,0% | E54: 23,5% | F54: 24,5% | G54: 25,5% | H54: 26,5% | I54: 27,5% | J54: 28,5% | K54: 29,5% | L54: 30,5% | M54: 31,5%
A55: 64000 | B55: 20,0% | C55: 21,0% | D55: 22,5% | E55: 23,5% | F55: 25,0% | G55: 26,0% | H55: 27,0% | I55: 28,0% | J55: 29,0% | K55: 30,0% | L55: 31,0% | M55: 32,0%
A56: 65000 | B56: 20,0% | C56: 21,0% | D56: 22,5% | E56: 23,5% | F56: 25,0% | G56: 26,0% | H56: 27,0% | I56: 28,0% | J56: 29,0% | K56: 30,0% | L56: 31,0% | M56: 32,0%
A57: 66000 | B57: 20,0% | C57: 21,0% | D57: 22,5% | E57: 24,0% | F57: 25,0% | G57: 26,5% | H57: 27,5% | I57: 28,5% | J57: 29,5% | K57: 30,5% | L57: 31,5% | M57: 32,0%
A58: 67000 | B58: 20,0% | C58: 21,0% | D58: 22,5% | E58: 24,0% | F58: 25,0% | G58: 26,5% | H58: 27,5% | I58: 28,5% | J58: 29,5% | K58: 30,5% | L58: 31,5% | M58: 32,5%
A59: 68000 | B59: 20,0% | C59: 21,0% | D59: 22,5% | E59: 24,0% | F59: 25,5% | G59: 26,5% | H59: 28,0% | I59: 29,0% | J59: 30,0% | K59: 31,0% | L59: 32,0% | M59: 32,5%
A60: 69000 | B60: 20,5% | C60: 21,5% | D60: 22,5% | E60: 24,0% | F60: 25,5% | G60: 26,5% | H60: 28,0% | I60: 29,0% | J60: 30,0% | K60: 31,0% | L60: 32,0% | M60: 33,0%
A61: 70000 | B61: 20,5% | C61: 21,5% | D61: 23,0% | E61: 24,0% | F61: 25,5% | G61: 27,0% | H61: 28,0% | I61: 29,0% | J61: 30,0% | K61: 31,5% | L61: 32,0% | M61: 33,0%
A62: 71000 | B62: 20,5% | C62: 21,5% | D62: 23,0% | E62: 24,0% | F62: 25,5% | G62: 27,0% | H62: 28,0% | I62: 29,5% | J62: 30,5% | K62: 31,5% | L62: 32,5% | M62: 33,5%
A63: 72000 | B63: 20,5% | C63: 21,5% | D63: 23,0% | E63: 24,5% | F63: 25,5% | G63: 27,0% | H63: 28,5% | I63: 29,5% | J63: 30,5% | K63: 31,5% | L63: 32,5% | M63: 33,5%
A64: 73000 | B64: 20,5% | C64: 21,5% | D64: 23,0% | E64: 24,5% | F64: 25,5% | G64: 27,0% | H64: 28,5% | I64: 29,5% | J64: 31,0% | K64: 32,0% | L64: 32,5% | M64: 33,5%
A65: 74000 | B65: 20,5% | C65: 21,5% | D65: 23,0% | E65: 24,5% | F65: 26,0% | G65: 27,0% | H65: 28,5% | I65: 30,0% | J65: 31,0% | K65: 32,0% | L65: 33,0% | M65: 34,0%
A66: 75000 | B66: 20,5% | C66: 21,5% | D66: 23,0% | E66: 24,5% | F66: 26,0% | G66: 27,0% | H66: 28,5% | I66: 30,0% | J66: 31,0% | K66: 32,0% | L66: 33,0% | M66: 34,0%
A67: 76000 | B67: 20,5% | C67: 22,0% | D67: 23,0% | E67: 24,5% | F67: 26,0% | G67: 27,5% | H67: 28,5% | I67: 30,0% | J67: 31,0% | K67: 32,5% | L67: 33,5% | M67: 34,0%
A68: 77000 | B68: 20,5% | C68: 22,0% | D68: 23,5% | E68: 24,5% | F68: 26,0% | G68: 27,5% | H68: 28,5% | I68: 30,0% | J68: 31,0% | K68: 32,5% | L68: 33,5% | M68: 34,5%
A69: 78000 | B69: 20,5% | C69: 22,0% | D69: 23,5% | E69: 25,0% | F69: 26,0% | G69: 27,5% | H69: 29,0% | I69: 30,0% | J69: 31,5% | K69: 32,5% | L69: 33,5% | M69: 34,5%
A70: 79000 | B70: 20,5% | C70: 22,0% | D70: 23,5% | E70: 25,0% | F70: 26,0% | G70: 27,5% | H70: 29,0% | I70: 30,0% | J70: 31,5% | K70: 32,5% | L70: 33,5% | M70: 34,5%
A71: 80000 | B71: 20,5% | C71: 22,0% | D71: 23,5% | E71: 25,0% | F71: 26,5% | G71: 27,5% | H71: 29,0% | I71: 30,0% | J71: 31,5% | K71: 32,5% | L71: 34,0% | M71: 35,0%
A72: 81000 | B72: 20,5% | C72: 22,0% | D72: 23,5% | E72: 25,0% | F72: 26,5% | G72: 27,5% | H72: 29,0% | I72: 30,5% | J72: 31,5% | K72: 32,5% | L72: 34,0% | M72: 35,0%
A73: 82000 | B73: 20,5% | C73: 22,0% | D73: 23,5% | E73: 25,0% | F73: 26,5% | G73: 28,0% | H73: 29,0% | I73: 30,5% | J73: 31,5% | K73: 33,0% | L73: 34,0% | M73: 35,0%
A74: 83000 | B74: 20,5% | C74: 22,0% | D74: 23,5% | E74: 25,0% | F74: 26,5% | G74: 28,0% | H74: 29,0% | I74: 30,5% | J74: 31,5% | K74: 33,0% | L74: 34,0% | M74: 35,0%
A75: 84000 | B75: 21,0% | C75: 22,0% | D75: 23,5% | E75: 25,0% | F75: 26,5% | G75: 28,0% | H75: 29,5% | I75: 30,5% | J75: 32,0% | K75: 33,0% | L75: 34,0% | M75: 35,0%
A76: 85000 | B76: 21,0% | C76: 22,5% | D76: 23,5% | E76: 25,0% | F76: 26,5% | G76: 28,0% | H76: 29,5% | I76: 30,5% | J76: 32,0% | K76: 33,0% | L76: 34,0% | M76: 35,5%
A77: 86000 | B77: 21,0% | C77: 22,5% | D77: 24,0% | E77: 25,0% | F77: 26,5% | G77: 28,0% | H77: 29,5% | I77: 30,5% | J77: 32,0% | K77: 33,0% | L77: 34,5% | M77: 35,5%
A78: 87000 | B78: 21,0% | C78: 22,5% | D78: 24,0% | E78: 25,5% | F78: 26,5% | G78: 28,0% | H78: 29,5% | I78: 31,0% | J78: 32,0% | K78: 33,0% | L78: 34,5% | M78: 35,5%
A79: 88000 | B79: 21,0% | C79: 22,5% | D79: 24,0% | E79: 25,5% | F79: 27,0% | G79: 28,0% | H79: 29,5% | I79: 31,0% | J79: 32,0% | K79: 33,5% | L79: 34,5% | M79: 35,5%
A80: 89000 | B80: 21,0% | C80: 22,5% | D80: 24,0% | E80: 25,5% | F80: 27,0% | G80: 28,0% | H80: 29,5% | I80: 31,0% | J80: 32,0% | K80: 33,5% | L80: 34,5% | M80: 35,5%
A81: 90000 | B81: 21,0% | C81: 22,5% | D81: 24,0% | E81: 25,5% | F81: 27,0% | G81: 28,5% | H81: 29,5% | I81: 31,0% | J81: 32,5% | K81: 33,5% | L81: 34,5% | M81: 35,5%
A82: 91000 | B82: 21,0% | C82: 22,5% | D82: 24,0% | E82: 25,5% | F82: 27,0% | G82: 28,5% | H82: 30,0% | I82: 31,0% | J82: 32,5% | K82: 33,5% | L82: 34,5% | M82: 36,0%
A83: 92000 | B83: 21,0% | C83: 22,5% | D83: 24,0% | E83: 25,5% | F83: 27,0% | G83: 28,5% | H83: 30,0% | I83: 31,0% | J83: 32,5% | K83: 33,5% | L83: 35,0% | M83: 36,0%
A84: 93000 | B84: 21,0% | C84: 22,5% | D84: 24,0% | E84: 25,5% | F84: 27,0% | G84: 28,5% | H84: 30,0% | I84: 31,0% | J84: 32,5% | K84: 33,5% | L84: 35,0% | M84: 36,0%
A85: 94000 | B85: 21,0% | C85: 22,5% | D85: 24,0% | E85: 25,5% | F85: 27,0% | G85: 28,5% | H85: 30,0% | I85: 31,5% | J85: 32,5% | K85: 34,0% | L85: 35,0% | M85: 36,0%
A86: 95000 | B86: 21,5% | C86: 22,5% | D86: 24,0% | E86: 25,5% | F86: 27,0% | G86: 28,5% | H86: 30,0% | I86: 31,5% | J86: 32,5% | K86: 34,0% | L86: 35,0% | M86: 36,0%
A87: 96000 | B87: 21,5% | C87: 23,0% | D87: 24,5% | E87: 25,5% | F87: 27,0% | G87: 28,5% | H87: 30,0% | I87: 31,5% | J87: 32,5% | K87: 34,0% | L87: 35,0% | M87: 36,0%
A88: 97000 | B88: 21,5% | C88: 23,0% | D88: 24,5% | E88: 25,5% | F88: 27,0% | G88: 28,5% | H88: 30,0% | I88: 31,5% | J88: 32,5% | K88: 34,0% | L88: 35,0% | M88: 36,0%
A89: 98000 | B89: 21,5% | C89: 23,0% | D89: 24,5% | E89: 25,5% | F89: 27,0% | G89: 28,5% | H89: 30,0% | I89: 31,5% | J89: 32,5% | K89: 34,0% | L89: 35,0% | M89: 36,0%
A90: 99000 | B90: 21,5% | C90: 23,0% | D90: 24,5% | E90: 25,5% | F90: 27,0% | G90: 28,5% | H90: 30,0% | I90: 31,5% | J90: 32,5% | K90: 34,0% | L90: 35,0% | M90: 36,0%
A91: 100000 | B91: 21,5% | C91: 23,0% | D91: 24,5% | E91: 25,5% | F91: 27,0% | G91: 28,5% | H91: 30,0% | I91: 31,5% | J91: 32,5% | K91: 34,0% | L91: 35,0% | M91: 36,0%
A92: 101000 | B92: 21,5% | C92: 23,0% | D92: 24,5% | E92: 25,5% | F92: 27,0% | G92: 28,5% | H92: 30,0% | I92: 31,5% | J92: 32,5% | K92: 34,0% | L92: 35,0% | M92: 36,0%
A93: 102000 | B93: 21,5% | C93: 23,0% | D93: 24,5% | E93: 25,5% | F93: 27,0% | G93: 28,5% | H93: 30,0% | I93: 31,5% | J93: 32,5% | K93: 34,0% | L93: 35,0% | M93: 36,0%
A94: 103000 | B94: 21,5% | C94: 23,0% | D94: 24,5% | E94: 25,5% | F94: 27,0% | G94: 28,5% | H94: 30,0% | I94: 31,5% | J94: 32,5% | K94: 34,0% | L94: 35,0% | M94: 36,0%
A95: 104000 | B95: 21,5% | C95: 23,0% | D95: 24,5% | E95: 25,5% | F95: 27,0% | G95: 28,5% | H95: 30,0% | I95: 31,5% | J95: 32,5% | K95: 34,0% | L95: 35,0% | M95: 36,0%
A96: 105000 | B96: 21,5% | C96: 23,0% | D96: 24,5% | E96: 25,5% | F96: 27,0% | G96: 28,5% | H96: 30,0% | I96: 31,5% | J96: 32,5% | K96: 34,0% | L96: 35,0% | M96: 36,0%
A97: 106000 | B97: 21,5% | C97: 23,0% | D97: 24,5% | E97: 25,5% | F97: 27,0% | G97: 28,5% | H97: 30,0% | I97: 31,5% | J97: 32,5% | K97: 34,0% | L97: 35,0% | M97: 36,0%
A98: 107000 | B98: 21,5% | C98: 23,0% | D98: 24,5% | E98: 25,5% | F98: 27,0% | G98: 28,5% | H98: 30,0% | I98: 31,5% | J98: 32,5% | K98: 34,0% | L98: 35,0% | M98: 36,0%
A99: 108000 | B99: 21,5% | C99: 23,0% | D99: 24,5% | E99: 25,5% | F99: 27,0% | G99: 28,5% | H99: 30,0% | I99: 31,5% | J99: 32,5% | K99: 34,0% | L99: 35,0% | M99: 36,0%
A100: 109000 | B100: 21,5% | C100: 23,0% | D100: 24,5% | E100: 25,5% | F100: 27,0% | G100: 28,5% | H100: 30,0% | I100: 31,5% | J100: 32,5% | K100: 34,0% | L100: 35,0% | M100: 36,0%
A101: 110000 | B101: 21,5% | C101: 23,0% | D101: 24,5% | E101: 25,5% | F101: 27,0% | G101: 28,5% | H101: 30,0% | I101: 31,5% | J101: 32,5% | K101: 34,0% | L101: 35,0% | M101: 36,0%
A102: 9999999999 | B102: 21,5% | C102: 23,0% | D102: 24,5% | E102: 25,5% | F102: 27,0% | G102: 28,5% | H102: 30,0% | I102: 31,5% | J102: 32,5% | K102: 34,0% | L102: 35,0% | M102: 36,0%

Sheet optimaal (hidden)
A1: T1 | B1: 120 | D1: a | E1: T1*R1 | F1: =+B1*B6 -> 6 | H1: dH | I1: =+F7*B11 -> 27000000 | L1: D1 | M1: =+L12 -> 450000 | O1: =+M1*B1*B6+M2*B2*B7+M3*B3*B8+M4*B4*B9+M5*B5*B10 -> 4.656612873e-10 | IV1: HIDE
A2: T2 | B2: 180 | D2: b | E2: T2*R2 | F2: =+B2*B7 -> 9 | H2: bH | I2: =+B11*F2 -> 1350000 | L2: D2 | M2: =+B11-L12 -> -300000 | O2: =+M1*B1+M2*B2+M3*B3+M4*B4+M5*B5 -> 1.490116119e-08
A3: T3 | L3: D3 | O3: =+O1/O2 -> 0.03125
A4: T4 | L4: D4
A5: T5 | L5: D5
A6: R1 | B6: =uw_gekozen_rente -> 0.05 | D6: c | E6: T1 | F6: =+B1 -> 120 | H6: b-a | I6: =+F2-F1 -> 3
A7: R2 | B7: 0.05 | D7: d | E7: T2 | F7: =+B2 -> 180 | H7: d.H.Ropt | I7: =+F7*B11*B12 -> 1485270
A8: R3
A9: R4
A10: R5
A11: H | B11: =+B25 -> 150000 | H11: Ropt(c-d) | I11: =+B12*(F6-F7) -> -3.3006
A12: Ropt | B12: =FLOOR(B6*200,1)/200+0.00501 -> 0.05501 | H12: x= | I12: =+I2-I7 -> -135270 | J12: / | K12: =+I6+I11 -> -0.3006 | L12: =+I12/K12 -> 450000
A15: T1 | B15: 120 | D15: a | E15: T1*R1 | F15: =+B15*B20 -> 6 | H15: dH | I15: =+F21*B25 -> 27000000 | L15: D1 | M15: =+L26 -> 163662.3943 | O15: =+M15*B15*B20+M16*B16*B21+M17*B17*B22+M18*B18*B23+M19*B19*B24 -> 945085.9013
A16: T2 | B16: 180 | D16: b | E16: T2*R2 | F16: =+B16*B21 -> 2.7 | H16: bH | I16: =+B25*F16 -> 405000 | L16: D2 | M16: =+B25-L26 -> -13662.39433 | O16: =+M15*B15+M16*B16+M17*B17+M18*B18+M19*B19 -> 17180256.34
A17: T3 | L17: D3 | O17: =+O15/O16 -> 0.05501
A18: T4 | L18: D4
A19: T5 | L19: D5
A20: R1 | B20: =uw_gekozen_rente -> 0.05 | D20: c | E20: T1 | F20: =+B15 -> 120 | H20: b-a | I20: =+F16-F15 -> -3.3
A21: R2 | B21: =AlgemeenOUD!F45 -> 0.015 | D21: d | E21: T2 | F21: =+B16 -> 180 | H21: d.H.Ropt | I21: =+F21*B25*B26 -> 1485270
A22: R3
A23: R4
A24: R5
A25: H | B25: 150000 | H25: Ropt(c-d) | I25: =+B26*(F20-F21) -> -3.3006
A26: Ropt | B26: =FLOOR(B20*200,1)/200+0.00501 -> 0.05501 | H26: x= | I26: =+I16-I21 -> -1080270 | J26: / | K26: =+I20+I25 -> -6.6006 | L26: =+I26/K26 -> 163662.3943

Sheet Algemeen (hidden)
B2: ="Welkom, "&Gegevens!I4 -> Welkom,
A6: =AlgemeenOUD!$C$6 -> 0 | B6: Naam 1e aanvrager | E6: =AlgemeenOUD!C6 -> 0 | J6: Naam 2e aanvrager
B7: Geboortedatum (aan elkaar) | J7: Geboortedatum (aan elkaar) | Z7: 1
D8: =IF(E7=0,0,TRUNC((TODAY()-E7)/365.25)) -> 0 | E8: =leeftijd1 -> 0 | L8: =IF(D9<2,-1,IF(M7=0,0,TRUNC((TODAY()-M7)/365.25))) -> -1 | M8: =L8& " jaar" -> -1 jaar | Z8: 0
D9: =AlgemeenOUD!C64 -> 1 | E9: Zonder partner
B11: =IF(D8=0,"Vul eerst de geboortedatum in…",IF(OR(leeftijd1>57,leeftijd2>57),"OUDER DAN 57 jaar: gebruik voor maximaal toets andere software!","Inkomen bruto per jaar:")) -> Vul eerst de geboortedatum in… | J11: Inkomen bruto per jaar:
B12: Vast inkomen | J12: Vast inkomen | AI12: 0.0169
A13: 33500 | B13: Variabel inkomen | J13: Variabel inkomen | AI13: =IF(AI12=5%,5,10) -> 10
A14: 40000 | B14: Uitkering | J14: Uitkering
B15: TOTAAL | E15: =SUM(E12:F14) -> 0 | J15: TOTAAL | M15: =IF(E9="Met partner zonder inkomen",0,SUM(M12:N14)) -> 0
BX16: =IF(AlgemeenOUD!G28=TRUE,"Met NHG","Geldverstrekker?") -> Geldverstrekker?
B17: Hoogste IB tarief: | E17: =IF('Financiële Gegevens'!G65<67,'Financiële Gegevens'!D69,'Financiële Gegevens'!C73) -> 0.3655 | BX17: =Ropslag!$A$2:$A$18 -> Argenta
B19: Extra maandlast:
B20: =IF(V20=TRUE,"Vul maandlast krediet(en) in","Krediet(en)") -> Krediet(en) | E20: TRUE | V20: FALSE
B21: =IF(AB21=TRUE,"Vul maandlast erfpacht in","Erfpacht") -> Erfpacht | E21: FALSE | S21: =INDEX(Ropsl_banken,Y21) -> ING | V21: =IF(U22,"RVP kent geen afslag!","") ->  | X21: =Ropslag!$A$2:$A$32 -> NIBC | Y21: 10 | Z21: =INDEX(RO_bstart,Y21) -> 134 | AA21: =INDEX(OFFSET(RO_bstart,0,2),Y21) -> 11 | AB21: FALSE
B22: =IF(V22=TRUE,"Partneralimentatie per maand","Partneralimentatie") -> Partneralimentatie | E22: FALSE | T22: =MATCH(E26,OFFSET(Ropslag!AA1,Z21,0,AA21,1),) -> 4 | U22: =AND(NOT(nhg),ISERROR(T22)) -> FALSE | V22: FALSE
A24: https://www.geld.nl/hypotheek/hypotheekrente | B24: Nieuwe hypotheek: | M24: FALSE
A25: ='Financiële Gegevens'!P35 -> 0.05 | B25: Rentepercentage | E25: ='Financiële Gegevens'!P35 -> 0.05 | F25: Toetsrente | H25: =AlgemeenOUD!E35 -> 0.05
B26: Rentevast periode | E26: =IF(E25<>'Financiële Gegevens'!P35,10,5) -> 5 | F26: Jaar | G26: Jaren aftrek | J26: =IF(AlgemeenOUD!C43=1,"Kies hier uw optimaalrente:","Optimaalrente") -> Kies hier uw optimaalrente: | N26: 16
B27: Looptijd | E27: 30 | F27: Jaar | G27: =E27 -> 30
B29: Maximale hypotheek | E29: =AlgemeenOUD!C35 -> 64257.09867 | G29: =AlgemeenOUD!D35 -> 2017 | J29: Jaren 2e rentevastperiode | M29: =IF(AlgemeenOUD!C43=2,5,20) -> 20 | N29: =IF(E41>P29," OPTIMAAL totaal","Maximaal optimaal") ->  | P29: =+Reba_Copy+M33 ->  | S29: =Reba_Copy+M33 -> 
B30: Verantwoorde jaarlast | E30: =AlgemeenOUD!C36 -> 1995.759 | J30: Rente optimaal | M30: =IF(AlgemeenOUD!C43=3,2.34%,1.5%) -> 0.015 | N30: Rente optimaal | P30: =AlgemeenOUD!F37 -> 
A32: =VLOOKUP(E32,AlgemeenOUD!E62:F74,2,FALSE) -> 1 | B32: Reden afsluiten hypotheek | E32: Aankoop bestaande woning | J32: Leningdeel 1 | M32: =IF(Alg_Schuifwaarde=16,AlgemeenOUD!B45,AlgemeenOUD!B46) -> XXX | O32: =E26 -> 5 | P32: jaar | Q32: =E25 -> 0.05
B33: =IF(A32=1,"Koopsom Kosten Koper (KK)",IF(A32=2,"Koopsom Vrij Op Naam (VON)",IF(A32>2,"Restschuld huidige hypotheek"))) -> Koopsom Kosten Koper (KK) | J33: Leningdeel 2 | M33: =IF(Alg_Schuifwaarde=16,AlgemeenOUD!C45,AlgemeenOUD!C46) -> XXX | O33: =M29 -> 20 | P33: jaar | Q33: =M30 -> 0.015
B35: Overige gegevens hypotheek: | M35: Leningdelen staan in tabblad 'optimaalhypotheek'
A36: https://www.wozwaardeloket.nl/index.jsp?a=1&accept=true& | B36: =IF(Algemeen!A37=TRUE,"WOZ (loket)","WOZ waarde") -> WOZ waarde | E36: =E33 -> 0 | M36: Aflosvrij NIET mogelijk bij deze keuze.
A37: FALSE | B37: Marktwaarde | E37: =E36 -> 0
A38: =IF(AlgemeenOUD!$C$43>1,P29,E29) -> 64257.09867 | B38: =IF(E32="Aankoop nieuwbouw woning","Meerwerk","Verbouwing") -> Verbouwing | E38: =IF(AND(E32="Aankoop nieuwbouw woning",V38=TRUE)," Meerwerk is",IF(V38=TRUE," De verbouwkosten zijn"," ")) ->  | I38: Toename MW met | K38: =IF(B38="Meerwerk",100%,70%) -> 0.7 | L38: =(H38*K38)+E37 -> 0 | V38: FALSE
B39: =IF(V39=TRUE,"Vul percentage in","Index marktwaarde") -> Index marktwaarde | V39: FALSE
B40: =IF(nhg=TRUE,"Met NHG","Zonder NHG. Met NHG?") -> Zonder NHG. Met NHG?
A41: Indicatie benodigd | B41: =IF(E41>(A38+1),"Hypotheeksom te hoog","Gewenste hypotheeksom") -> Gewenste hypotheeksom | G41: =IF('Voorstel HOR'!K34>0,'Voorstel HOR'!K34,0) -> 0 | H41: Deel aflosvrij? | J41: =IF(R41=TRUE," Bedrag",0) -> 0 | M41: Opslag | O41: Aftrek | P41: 30 | Q41: jaar | R41: FALSE
A42: ='Voorstel HOR'!E42-('Voorstel HOR'!E42*2) -> 2705 | B42: =IF(E42=TRUE,"Vul box 3 deel in","Box 3 deel") -> Box 3 deel | H42: Het box 3 deel is | M42: FALSE | N42: TRUE | V42: FALSE
A43: =IF(nhg=TRUE,"(excl. 1% NHG)",0) -> 0 | B43: Onderhoud | E43: 14.5 | M43: FALSE | N43: 16
B44: Adviestarief | J44: =IF(M42=FALSE,"1, 2, 3, 4, 5, 6,7 etc.","2017, 2018, 2019, 2020, etc. ") -> 1, 2, 3, 4, 5, 6,7 etc.
J45: Zichtbaar in berekeningen
B56: FALSE

Sheet ReBa (hidden)
I1: Absoluut verschil tussen gegeven rente en optimaal rente | IV1: HIDE
K2: Deel van het verschil | M2: Deel van de hoofdsom
A3: optimumrente vanuit | C3: Hypotheeksom | F3: =IF(Nieuwe_hypotheeksom=0,Optimaal_max_verstrekking,Nieuwe_hypotheeksom) -> XXX | G3: =F3 -> XXX | O3: Omge-draaid | P3: looptijd | Q3: =Algemeen!E27 -> 30
A4: authentieke RVP | C4: Optimaalrente% | F4: =HLOOKUP(AlgemeenOUD!F35,F32:AT34,3,TRUE) -> 0.04001 | P4: verantwoord | Q4: =+Reba_MaxOrg ->  | R4: =IF(Alg_Sit=1,'Maximale verstrekking'!T44,'Maximale verstrekking'!S44)/12 ->  | S4: =+Reba_MaxOrg=Reba_Maxres -> 
P6: verschil | Q6: =MIN($Q$4-P9,0) -> 
A7: OPTIMUM ZONDER | C7: Deel 1 | D7: =S7 ->  | F7: =AlgemeenOUD!F35 -> 0.05 | H7: =F7/$F$3*O7 ->  | I7: =ABS($F$4-F7) -> 0.00999 | J7: Procentuele verdeling deel 1 | K7: =I7/I10 -> 0.2854285714 | M7: =K7*$F$3 ->  | O7: =M8 ->  | P7: =-PMT(F7/12,$Q$3*12,O7) ->  | Q7: =P7/P9*Q6 ->  | R7: =+Q7+P7 ->  | S7: =-PV(F7/12,$Q$3*12,R7) ->  | T7: =+S7*F7 -> 
A8: AFLOSVRIJE OPSLAG | C8: Deel 2 | D8: =S8 ->  | F8: =IF(AlgemeenOUD!C43=2,5%,AlgemeenOUD!F45) -> 0.015 | H8: =F8/F3*O8 ->  | I8: =ABS(F4-F8) -> 0.02501 | J8: Procentuele verdeling deel 2 | K8: =I8/I10 -> 0.7145714286 | M8: =K8*F3 ->  | O8: =M7 ->  | P8: =-PMT(F8/12,$Q$3*12,O8) ->  | Q8: =+Q6-Q7 ->  | R8: =+Q8+P8 ->  | S8: =-PV(F8/12,$Q$3*12,R8) ->  | T8: =+S8*F8 -> 
P9: =SUM(P7:P8) ->  | S9: =SUM(S7:S8) ->  | T9: =SUM(T7:T8) ->  | U9: =+T9/S9 -> 
C10: Totaal alles aflossing: | D10: =SUM(D7:D9) ->  | F10: OPTIMAAL | H10: =optimaal!B12 -> 0.05501 | I10: =SUM(I7:I8) -> 0.035 | K10: =SUM(K7:K8) -> 1 | M10: =SUM(M7:M8) ->  | O10: =SUM(O7:O8) -> 
Q11: =MIN($Q$4-P14,0) -> 
A12: OPTIMUM SCHUIF | C12: Deel 1 | D12: =S12 ->  | F12: =AlgemeenOUD!F35 -> 0.05 | O12: =O7-VLOOKUP(A14,AlgemeenOUD!$N$48:$O$97,2,FALSE)*1000 ->  | P12: =-PMT(F12/12,$Q$3*12,O12) ->  | Q12: =P12/P14*Q11 ->  | R12: =+Q12+P12 ->  | S12: =-PV(F12/12,$Q$3*12,R12) ->  | T12: =+S12*F12 -> 
A13: zonder aflosvrije opslag | C13: Deel 2 | D13: =S13 ->  | F13: =IF(AlgemeenOUD!C43=2,5%,AlgemeenOUD!F45) -> 0.015 | H13: =VLOOKUP(A14,AlgemeenOUD!$N$48:$O$97,2,FALSE) -> 0 | O13: =D8+VLOOKUP(A14,AlgemeenOUD!$N$48:$O$97,2,FALSE)*1000 ->  | P13: =-PMT(F13/12,$Q$3*12,O13) ->  | Q13: =+Q11-Q12 ->  | S13: =-PV(F13/12,$Q$3*12,R13) ->  | T13: =+S13*F13 -> 
A14: =Alg_Schuifwaarde -> 16 | B14: GEBALANCEERD | P14: =SUM(P12:P13) ->  | S14: =SUM(S12:S13) ->  | T14: =SUM(T12:T13) ->  | U14: =+T14/S14 -> 
D15: =SUM(D12:D13) ->  | F15: =((S12*F12)+(S13*F13))/D15 -> 
S16: =ALS($P$30<HORIZ.ZOEKEN(E25;ReBa!F32:BF34;3;WAAR);WAAR;ONWAAR)
A17: optimumrente vanuit | C17: Marge | F17: =IF(Nieuwe_hypotheeksom>0,AlgemeenOUD!C37-AlgemeenOUD!C27,0) -> 0
A18: rentemarge als | C18: Optimaalrente% | F18: =HLOOKUP(AlgemeenOUD!F35,F32:AT34,3,TRUE) -> 0.04001
A19: men minder leent
A21: Gewogen rente | C21: ann/lin | D21: =IF(Nieuwe_hypotheeksom=0,1,Nieuwe_hypotheeksom-Aflosvrij_leningdeel) -> 1 | E21: =AlgemeenOUD!F35 -> 0.05 | F21: =((D21*E21)+(D22*E22))/(D21+D22) -> 0.05 | I21: Gewogen rente | J21: ann/lin | K21: =D7-K22 ->  | L21: =F7 -> 0.05 | M21: =((K21*L21)+(K22*L22))/(K21+K22) -> 
A22: zonder optimum | C22: aflosvrij | D22: =Aflosvrij_leningdeel -> 0 | E22: =AlgemeenOUD!F35+AlgemeenOUD!F32 -> 0.05 | I22: zonder optimum | J22: aflosvrij | K22: =AlgemeenOUD!F30 -> 0 | L22: =AlgemeenOUD!F35+AlgemeenOUD!F32 -> 0.05
O25: Omgedraaid
A26: OPTIMUM MET | C26: ann/lin 10 jr vast, of langer: | D26: =O26-D28 ->  | E26: =AlgemeenOUD!F35 -> 0.05 | F26: =E26 -> 0.05 | H26: =F26/D29*O26 ->  | I26: =ABS($F$4-F26) -> 0.00999 | J26: Procentuele verdeling deel 1 | K26: =I26/I29 -> 0.2854285714 | M26: =K26*M29 ->  | N26: 16 | O26: =M27 -> 
A27: AFLOSVRIJE OPSLAG | C27: <10 of > 10 jr vast | D27: =ROUND((O27)+(VLOOKUP(A14,AlgemeenOUD!$N$48:$O$97,2,FALSE)*1000),0) ->  | E27: =AlgemeenOUD!F45 -> 0.015 | F27: =IF(AlgemeenOUD!C43=2,5%,AlgemeenOUD!F45) -> 0.015 | H27: =F27/$D$29*O27 ->  | I27: =ABS($F$4-F27) -> 0.02501 | J27: Procentuele verdeling deel 2 | K27: =I27/I29 -> 0.7145714286 | M27: =K27*M29 ->  | N27: =N8 -> 0 | O27: =M26 -> 
C28: aflosvrij 10 jr | D28: =AlgemeenOUD!F30 -> 0 | E28: =AlgemeenOUD!F35+AlgemeenOUD!F32 -> 0.05 | F28: =AlgemeenOUD!F35+AlgemeenOUD!F32 -> 0.05 | G28: =G9 -> 0
C29: Totaal alles aflossing: | D29: =SUM(D26:D28) ->  | F29: =ROUND(((D26*F26)+(D27*F27)+(D28*F28))/D29,5) ->  | G29: =G10 -> 0 | H29: =H10 -> 0.05501 | I29: =SUM(I26:I28) -> 0.035 | J29: =J10 -> 0 | K29: =K10 -> 1 | L29: =L10 -> 0 | M29: =M10 ->  | N29: =N10 -> 0
D30: =D11 -> 0 | E30: 0 | F30: 0 | G30: 0 | I30: 0 | J30: 0 | K30: 0 | L30: 0 | M30: 0 | N30: 0 | O30: 0
F32: 0.001 | G32: 0.002 | H32: 0.003 | I32: 0.004 | J32: 0.005 | K32: 0.006 | L32: 0.007 | M32: 0.008 | N32: 0.009 | O32: 0.01 | P32: 0.011 | Q32: 0.012 | R32: 0.013 | S32: 0.014 | T32: 0.01501 | U32: 0.016 | V32: 0.017 | W32: 0.018 | X32: 0.019 | Y32: 0.02 | Z32: 0.021 | AA32: 0.022 | AB32: 0.023 | AC32: 0.024 | AD32: 0.025 | AE32: 0.02501 | AF32: 0.027 | AG32: 0.028 | AH32: 0.029 | AI32: 0.03 | AJ32: 0.03001 | AK32: 0.031 | AL32: 0.032 | AM32: 0.033 | AN32: 0.034 | AO32: 0.035 | AP32: 0.036 | AQ32: 0.037 | AR32: 0.038 | AS32: 0.039 | AT32: 0.04
D34: belangrijke rente | F34: 0.01001 | G34: 0.01001 | H34: 0.01001 | I34: 0.01001 | J34: 0.01001 | K34: 0.01001 | L34: 0.01001 | M34: 0.01001 | N34: 0.01001 | O34: 0.01001 | P34: 0.01501 | Q34: 0.01501 | R34: 0.01501 | S34: 0.01501 | T34: 0.02001 | U34: 0.02001 | V34: 0.02001 | W34: 0.02001 | X34: 0.02001 | Y34: 0.02001 | Z34: 0.02501 | AA34: 0.02501 | AB34: 0.02501 | AC34: 0.02501 | AD34: 0.02501 | AE34: 0.03001 | AF34: 0.03001 | AG34: 0.03001 | AH34: 0.03001 | AI34: 0.03001 | AJ34: 0.03501 | AK34: 0.03501 | AL34: 0.03501 | AM34: 0.03501 | AN34: 0.03501 | AO34: 0.03501 | AP34: 0.04001 | AQ34: 0.04001 | AR34: 0.04001 | AS34: 0.04001 | AT34: 0.04001
F36: 0.02 | T36: 0.015 | U36: 0.016 | V36: 0.017 | W36: 0.018 | X36: 0.019 | Y36: 0.02 | Z36: 0.021 | AA36: 0.022 | AB36: 0.023 | AC36: 0.024 | AD36: 0.025 | AE36: 0.026 | AF36: 0.027 | AG36: 0.028 | AH36: 0.029 | AI36: 0.03 | AK36: 0.031 | AL36: 0.032 | AM36: 0.033 | AN36: 0.034 | AO36: 0.035 | AP36: 0.036 | AQ36: 0.037 | AR36: 0.038 | AS36: 0.039 | AT36: 0.04
D38: belangrijke rente | F38: 0.02501 | T38: 0.01501 | U38: 0.02001 | V38: 0.02001 | W38: 0.02001 | X38: 0.02001 | Y38: 0.02001 | Z38: 0.02501 | AA38: 0.02501 | AB38: 0.02501 | AC38: 0.02501 | AD38: 0.02501 | AE38: 0.03001 | AF38: 0.03001 | AG38: 0.03001 | AH38: 0.03001 | AI38: 0.03001 | AK38: 0.03501 | AL38: 0.03501 | AM38: 0.03501 | AN38: 0.03501 | AO38: 0.03501 | AP38: 0.04001 | AQ38: 0.04001 | AR38: 0.04001 | AS38: 0.04001 | AT38: 0.04001

Sheet AlgemeenOUD (hidden)
IV1: HIDE
B5: ="WELKOM "&#REF! ->  | G5: FALSE | H5: =1+(IF(G5=TRUE,1,0)) -> 1
B6: Naam 1e | C6: =C197 -> 0 | E6: Naam 2e | F6: =Algemeen!M6 -> 0 | T6: 0
C7: =Algemeen!D9 -> 1
B8: Geboortedatum invullen zonder streepjes | C8: =Algemeen!E7 -> 00:00:00 | E8: Geboortedatum invullen zonder streepjes | F8: =Algemeen!M7 -> 00:00:00
B9: =IF(leeftijd1>57,"Gebruik adviesbox indien ouder dan 57",IF(leeftijd1>0,"Leeftijd","Leeftijd (wordt automatisch berekend)")) -> Leeftijd (wordt automatisch berekend) | C9: =Algemeen!D8 -> 0 | E9: Leeftijd (wordt automatisch berekend) | F9: =Algemeen!L8 -> -1
B10: =IF(C18=7,"Toetsinkomen uit zelfstandig beroep",IF(C32>0,"Inkomen MINUS partneralimentatie","Bruto jaarinkomen plus vakantiegeld")) -> Bruto jaarinkomen plus vakantiegeld | C10: =Algemeen!E12 -> 0 | E10: Bruto jaarinkomen inclusief vakantiegeld + overig vast | F10: =Algemeen!M15 -> 0
B11: Indien uitkering, hier invullen (WW/AO/ZW) | C11: =Algemeen!E14 -> 0 | E11: Indien uitkering, hier invullen (WW/AO/ZW) | F11: =Algemeen!M14 -> 0
B12: Variabele inkomensbestanddelen per jaar (ort/overwerk) | C12: =Algemeen!E13 -> 0 | E12: Variabele inkomensbestanddelen per jaar (ort/overwerk) | F12: =Algemeen!M13 -> 0
B13: =IF(OR(leeftijd1>66,Gegevens!B415=1),"Totaal pensioen + AOW ","TOTAAL") -> Totaal pensioen + AOW | C13: =IF(OR(leeftijd1>66,Gegevens!B415=1),PensioenOUD!C19,SUM(C10:C12))-C32 -> 14783.4 | E13: TOTAAL | F13: =SUM(F10:F12) -> 0
B15: Netto inkomen per maand / voor vergelijk pensioen | C15: =Algemeen!E15 -> 0 | E15: Netto inkomen pm / voor vergelijk pensioen | F15: =Algemeen!M15 -> 0 | AQ15: 0.0195
A16: 3 | B16: IB Tarief (automatisch op hoogste inkomen) | C16: =IF('Financiële Gegevens'!G65<67,'Financiële Gegevens'!D69,'Financiële Gegevens'!C73) -> 0.3655 | E16: =#REF! ->  | AQ16: 2
B17: Beroep | E17: Beroep
B18: Inkomen | C18: Vast dienstverband | E18: Inkomen | F18: Vast dienstverband | I18: Bruto | J18: Netto
B20: Burgerlijke status | C20: =IF(C7=1,"Alleenstaand","Gehuwd GVG") -> Alleenstaand | H20: =IF(F30>0,"Annuïteit & Afl.vrij","Annuïteit") -> Annuïteit | I20: =Annuiteit!O40 -> 14.5 | J20: =Annuiteit!P40 -> 14.5 | AB20: =PMT(J20/12,AlgemeenOUD!C123,-D5,0,0) -> 0
B21: Spaarsaldo | C21: 500 | D21: => | E21: Mee te nemen in de hypotheekberekening? | F21: 2 | H21: =IF(F30>0,"Lineair & Afl.vrij","Lineair") -> Lineair | I21: =Lineair!O40 -> 14.5 | J21: =Lineair!P40 -> 14.5
B22: Spaarbedrag per maand | E22: Vrij beschikbaar vermogen | H22: =IF(F30>0,"Balans & Afl.vrij","Balans") -> Balans | I22: =Balans!O40 -> 14.5 | J22: =Balans!P40 -> 14.5
B23: =IF(AND(leeftijd1>0,C10>0),2,0) -> 0 | H23: =IF(F30>0,"Optimaal & Afl.vrij","Optimaal") -> Optimaal | I23: =Optimaalhypotheek1!N19 ->  | J23: =Optimaalhypotheek1!O19 -> 
N26: 16
B27: =IF(Alg_naschuif>(F51*'Financiële Gegevens'!R7),"Let op NHG regels, zie marktwaarde!","Nieuwe hypotheeksom") -> Nieuwe hypotheeksom | C27: =Algemeen!E41 -> 0 | D27: 0 | E27: Logo zichtbaar op 'Voorstel' | F27: ='Voorstel HOR'!T42 -> Logo CalFin | H27: Risicoklasse | M27: 0.0195
B28: Maandlast van krediet wat blijft lopen | C28: =Algemeen!F20 -> 0 | E28: Geldverstrekker bij NIET NHG i.v.m. afslag NHG | F28: =Algemeen!S21 -> ING | G28: FALSE | H28: =IF(nhg=TRUE,0,Alg_naschuif/F51) ->  | M28: 2
B29: =IF(F30>0,"Aantal jaren looptijd ANN./LIN. deel","Aantal jaren looptijd hypotheek") -> Aantal jaren looptijd hypotheek | C29: =Algemeen!E27 -> 30 | E29: =IF(F29>C35,"LET OP; BOX 3 > maximale verstrekking!","Box 3 deel hypotheeksom") -> Box 3 deel hypotheeksom | F29: =Algemeen!J42 -> 0 | G29: =IF(F28>0,1,0) -> 1 | M29: =#REF!&" jaar" -> 
B30: Duur is jaren plus 1 | C30: =Algemeen!G27+1 -> 31 | E30: Aflosvrij deel van de nieuwe hypotheek | F30: =Algemeen!K41 -> 0 | K30: 0.017
B31: Erfpacht per jaar | C31: =Algemeen!F21*12 -> 0 | E31: Duur rente aftrek AFLOSVRIJ | F31: =Algemeen!P41+1 -> 31 | J31: Looptijd aflosvrij + 1 jaar
B32: Te betalen partneralimentatie per jaar | C32: =Algemeen!F22*12 -> 0 | E32: Opslag AFLOSVRIJ | F32: =IF(Algemeen!R41=FALSE,0,Algemeen!N41) -> 0 | G32: KRINGVERWIJZING
A34: 2015 | B34: =IF(Gegevens!I415>0,"Zie pensioen voor verplichte afbouw!",0) -> 0 | C34: Maximale verstrekking | D34: Jaar | E34: Werkelijke toetsrente | F34: =IF(uw_gekozen_rente=0,"VUL EEN RENTE IN!","Uw gekozen rente") -> Uw gekozen rente
B35: Maximale verstrekking | C35: =Gegevens!G415 -> 64257.09867 | D35: 2017 | E35: =ROUND(SUM(I50:I53),5) -> 0.05 | F35: =Algemeen!E25 -> 0.05 | N35: 0.017
B36: Ter info; verantwoorde jaarlast conform GHF norm | C36: =Gegevens!J415 -> 1995.759
A37: =AND(IF(F35>0.025,FALSE,FALSE),IF(F35<=0.0269,FALSE,FALSE)) -> FALSE | B37: =IF(C43=1,0,IF(A37=TRUE,"Geen balans mogelijk indien rente >2,50% & <2,69%",IF(C10=0," ",IF($C$43=""," ","Gedragscode met optimaalrente: ")))) -> 0 | C37: =IF(Gegevens!I8=0,"XXX",IF(C43=1,0,IF(C7=2,'Maximale verstrekking'!S50,IF(C43=1,0,IF(A37=TRUE,"-",IF(C10=0," ",IF(C43=1," ",IF(C7=3,'Maximale verstrekking'!S50,'Maximale verstrekking'!T50)))))))) -> XXX | E37: Uw optimaalrente | F37: =ROUND(IF(Gegevens!I8=0,"XXX",IF(uw_gekozen_rente=0,0,IF(Opslag_aflosvrij>0,ReBa!F29,IF(ReBa!A14<>16,ReBa!U14,ReBa!F4)))),5) -> 
B39: Maximale hypotheek inkomen 1e aanvrager | C39: =IF(OR(C10=0,F35=0),0,'Maximale verstrekking'!F50) -> 0 | E39: Maximale hypotheek 2e aanvrager | F39: =IF(F35=0,0,'Maximale verstrekking'!G50) -> 0
A41: 2 | B41: Comfort Service Pakket | C41: =Algemeen!E43 -> 14.5 | E41: Kies hier uw rentevastperiode | F41: 2 | G41: 5 | H41: 1 | I41: bij waar dan:
A42: 0 | C42: 2
A43: 0 | B43: =IF(C27=0,"Optimaalrente",IF(C37>C27,"Optimaliseren met schuif:","Optimaalrente")) -> Optimaalrente | C43: 1 | E43: Aantal jaren rentevast | F43: 10 | G43: 10+ | H43: =IF(C43=1,TRUE,FALSE) -> TRUE | I43: =HLOOKUP(F35,ReBa!F32:AT34,3,TRUE) -> 0.04001 | J43: =AND(C10>0,F35=0) -> FALSE
A45: =AND(C43>1,C27=0) -> FALSE | B45: =IF(Gegevens!I8=0,"XXX",ReBa!D7) -> XXX | C45: =IF(Gegevens!I8=0,"XXX",ReBa!D8) -> XXX | D45: =IF(C43=1,0,"Marge:") -> 0 | E45: =IF(C43=2,"Uw rente KORTER DAN 10 jaar vast :",IF(C43=3,"Uw rente LANGER DAN 10 jr vast:"," ")) ->  | F45: =Algemeen!M30 -> 0.015 | H45: =IF(C43=2,TRUE,FALSE) -> FALSE | I45: =HLOOKUP(F35,ReBa!F36:AT38,3,TRUE) -> 0.04001
B46: =IF(C27=0,0,IF(C43=1,0,ReBa!D12)) -> 0 | C46: =IF(C27=0,0,IF(C43=1,0,ReBa!D13)) -> 0 | D46: =IF(C43=1,0,IF(ReBa!A14=0,0,IF(Nieuwe_hypotheeksom>0,AlgemeenOUD!C37-AlgemeenOUD!C27,0))) -> 0 | E46: =IF(C43=1," ","Rentevastperiode leningdeel 2 ") ->  | F46: =Algemeen!M29 -> 20
N47: 0 | O47: -16
B48: Reden afsluiten hypotheek | C48: =Algemeen!A32 -> 1 | E48: Advies- & bemiddelingstarief | F48: =Algemeen!E44 -> 0 | H48: Annuiteti | I48: Bepaling toetsrente | N48: 1 | O48: -60
C49: 200000 | E49: =IF(C48=1,"Koopsom Kosten Koper (KK):",IF(C48=2,"Koopsom Vrij Op Naam (VON)",IF(C48>2,"Restschuld huidige hypotheek",""))) -> Koopsom Kosten Koper (KK): | N49: 2 | O49: -14
B50: =IF(C48=1,"Koopsom Kosten Koper (KK):",IF(C48=2,"Koopsom Vrij Op Naam (VON)",IF(C48>2,"Restschuld huidige hypotheek"))) -> Koopsom Kosten Koper (KK): | C50: =Algemeen!E33 -> 0 | E50: WOZ-waarde | F50: =Algemeen!E36 -> 0 | I50: =IF(F43<10,'Financiële Gegevens'!C49,0) -> 0 | N50: 3 | O50: -55
E51: =IF(Algemeen!H38>0,"Martkwaarde na verbouw","Marktwaarde") -> Marktwaarde | F51: =IF(Algemeen!H38>0,Algemeen!L38,Algemeen!E37) -> 0 | I51: =IF(AND(F43>9.99999,F30>0),D58,0) -> 0 | N51: 4 | O51: -50
B52: =IF(D52=1,"Cataloguswaarde auto van de zaak","Auto van de zaak") -> Auto van de zaak | D52: =IF(AND(leeftijd1>0,C10>0),2,0) -> 0 | E52: Index markwaarde | F52: =IF(G52=1,Algemeen!F39,0) -> 0 | G52: =IF(Algemeen!E39="Ja",1,0) -> 0 | H52: Ja | N52: 5 | O52: -45
B53: Bijtellingpercentage | F53: =IF(F54>0,"Kredietlast bruto per maand",0) -> Kredietlast bruto per maand | H53: Nee | I53: =IF(AND(F43>9.9999999,F30=0),F35,0) -> 0.05 | N53: 6 | O53: -40
E54: Krediet | F54: ='Restschuld rekenblad'!B16 -> 16.08197602 | G54: FALSE | H54: FALSE | N54: 7 | O54: -35
B55: =IF(AND($F$30>0,$C$43=1),ReBa!C22,IF(AND($F$30>0,$C$43>1),E45,0)) -> 0 | C55: =Alg_naschuif-Aflosvrij_leningdeel -> 0 | D55: =IF(AND($F$30>0,$C$43=1),ReBa!E21,IF(AND($F$30>0,$C$43>1),ReBa!E26,0)) -> 0 | E55: Bedrag | N55: 8 | O55: -30
B56: =IF(AND($F$30>0,$C$43=1),ReBa!C22,IF(AND($F$30>0,$C$43>1),E45,0)) -> 0 | C56: =IF(AND($F$30>0,$C$43=1),ReBa!D22,IF(AND($F$30>0,$C$43>1),ReBa!D27,0)) -> 0 | D56: =IF(AND($F$30>0,$C$43=1),ReBa!E22,IF(AND($F$30>0,$C$43>1),ReBa!E27,0)) -> 0 | E56: Looptijd | F56: 1 | N56: 9 | O56: -25
B57: =IF(AND($F$30>0,$C$43=1),ReBa!C23,IF(AND($F$30>0,$C$43>1),ReBa!C28,0)) -> 0 | C57: =IF(AND($F$30>0,$C$43=1),ReBa!D23,IF(AND($F$30>0,$C$43>1),ReBa!D28,0)) -> 0 | D57: =IF(AND($F$30>0,$C$43=1),ReBa!E23,IF(AND($F$30>0,$C$43>1),ReBa!E28,0)) -> 0 | E57: Duur aftrek | F57: =F56 -> 1 | N57: 10 | O57: -20
C58: =SUM(C53:C57) -> 0 | D58: =IF(AND(F30>0,C43=1),ReBa!F21,IF(AND(F30>0,C43>1),ReBa!F29,0)) -> 0 | E58: Vorm | F58: 1 | G58: =+F58 -> 1 | N58: 11 | O58: -15
B59: Eerst geb.datum & inkomen invoeren | E59: Rentepercentage | N59: 12 | O59: -10
A60: 1 | B60: Zonder partner | C60: 1 | D60: 1 | E60: Rentevast periode | F60: 1 | G60: =+F60 -> 1 | N60: 13 | O60: -8
A61: 2 | B61: Met partner zonder inkomen | C61: 2 | D61: 2 | E61: Is krediet een restschuld | F61: 1 | H61: Ja | N61: 14 | O61: -6
A62: 3 | B62: Met partner met inkomen | C62: 3 | E62: Aankoop bestaande woning | F62: 1 | H62: Nee | N62: 15 | O62: -4
E63: Aankoop nieuwbouw woning | F63: =F62+1 -> 2 | N63: 16 | O63: 0
B64: =Algemeen!E9 -> Zonder partner | C64: =VLOOKUP(B64,B60:C62,2,FALSE) -> 1 | D64: 1 | E64: Lagere maandlast | F64: 3 | N64: 17 | O64: 1
D65: =D64+1 -> 2 | E65: Wijzigen hypotheekvorm | F65: 4 | N65: 18 | O65: 2
D66: 3 | E66: Beter rentevoorstel | F66: 5 | N66: 19 | O66: 3
D67: 4 | E67: Zekere hypotheekopbouw | F67: 6 | N67: 20 | O67: 4
D68: 5 | E68: Verbouwing/woningverbetering | F68: 7 | N68: 21 | O68: 5
D69: 6 | E69: Inkoop zekerheid: langere rentevastperiode | F69: 8 | N69: 22 | O69: 6
D70: 7 | E70: Consumptieve opname | F70: 9 | N70: 23 | O70: 7
D71: 8 | E71: Benutten overwaarde voor extra inkomen | F71: 10 | N71: 24 | O71: 8
D72: 9 | E72: Scheiding/uitkoop ex partner | F72: 11 | N72: 25 | O72: 9
B73: ff | D73: 10 | E73: Totale betere hypotheeksituatie | F73: 12 | N73: 26 | O73: 10
D74: 11 | E74: Oversluiting om diverse redenen | F74: 13 | N74: 27 | O74: 11
C75: Woonsituatie thuiswonend. Kostgeld: | D75: 12 | N75: 28 | O75: 12
B76: ff | C76: Woonsituatie huurwoning. Huur: | D76: 15 | N76: 29 | O76: 13
B77: 1 | C77: Huidige hypotheek | N77: 30 | O77: 14
B78: 2 | C78: Overig | N78: 31 | O78: 15
B79: 3 | N79: 32 | O79: 16
B80: 4 | C80: 1 | N80: 33 | O80: 17
C81: AAN | N81: 34 | O81: 18
C82: UIT | N82: 35 | O82: 19
B83: 1 | C83: Rentescenario aan | N83: 36 | O83: 20
B84: 2 | C84: Rentescenario uit | N84: 37 | O84: 21
N85: 38 | O85: 22
E86: 0 | N86: 39 | O86: 23
E87: 1 | N87: 40 | O87: 24
E88: =E87+1 -> 2 | N88: 41 | O88: 25
E89: 3 | N89: 42 | O89: 26
E90: 4 | N90: 43 | O90: 27
E91: 5 | N91: 44 | O91: 28
E92: 6 | N92: 45 | O92: 29
E93: 7 | N93: 46 | O93: 30
E94: 8 | N94: 47 | O94: 31
A95: 5 | E95: 9 | N95: 48 | O95: 32
A96: 7 | E96: 10 | N96: 49 | O96: 33
A97: 10 | B97: 1 | C97: 5 | E97: 11 | N97: 50 | O97: 34
A98: 12 | B98: 2 | C98: 10 | E98: 12
A99: 15 | B99: =B98+1 -> 3 | C99: 15 | E99: 13
A100: 20 | B100: =B99+1 -> 4 | C100: 20 | E100: 14
A101: 25 | B101: =B100+1 -> 5 | C101: 25 | E101: 15
A102: 30 | B102: =B101+1 -> 6 | C102: 30 | E102: 16
E103: 17
A104: 1 | E104: 18
A105: =A104+1 -> 2 | E105: 19
A106: =A105+1 -> 3 | E106: 20
A107: =A106+1 -> 4 | E107: 21
A108: =A107+1 -> 5 | E108: 22
A109: =A108+1 -> 6 | E109: 23
E110: 24
E111: 25
E112: 26
E113: 27
E114: 28
E115: 29
E116: 30
B123: =C29 -> 30 | C123: =VLOOKUP(B123,B125:C154,2) -> 360 | D123: is dit niet *12?
B125: 1 | C125: =B125*12 -> 12
B126: =B125+1 -> 2 | C126: =C125+12 -> 24
B127: 3 | C127: 36
B128: 4 | C128: 48
B129: 5 | C129: 60
B130: 6 | C130: 72
B131: 7 | C131: 84
B132: 8 | C132: 96
B133: 9 | C133: 108
B134: 10 | C134: 120
B135: 11 | C135: 132
B136: 12 | C136: 144
B137: 13 | C137: 156
B138: 14 | C138: 168
B139: 15 | C139: 180
B140: 16 | C140: 192
B141: 17 | C141: 204
B142: 18 | C142: 216
B143: 19 | C143: 228
B144: 20 | C144: 240
B145: 21 | C145: 252
B146: 22 | C146: 264
B147: 23 | C147: 276
B148: 24 | C148: 288
B149: 25 | C149: 300
B150: 26 | C150: 312
B151: 27 | C151: 324
B152: 28 | C152: 336
B153: 29 | C153: 348
B154: 30 | C154: 360
B162: CSP
B163: 0 | C163: 1
B164: 14.5 | C164: 2
B165: 19.5 | C165: 3
B166: 25 | C166: 4
B167: Loopt reeds | C167: 5
A168: 1
A169: 2
A170: 3
B197: Eerste naam
A1466: Gemaakt door David de Weijer 1444AL / 18
A1725: Gemaakt door David de Weijer 1705 TR / 2
A1727: Gemaakt door David de Weijer 1705TR / 2

Sheet PRINTEN (hidden)
B2: Welkom David de Weijer, Van Bruggen Adviesgroep Purmerend | E2: Printpagina
G7: Vorm | I7: Bruto | K7: Netto
E12: Hypotheek | L12: Scenario's | S12: Diversen
E14: Maandlast | L14: Arbeidsongeschikheid
L15: Werkloosheid
E16: Berekeningen | L16: Overlijden
E17: ð | F17: Annuïteit | L17: ð | M17: Verloop
E18: ð | F18: Lineair | L18: ð | M18: Vergelijk
E19: ð | F19: Balans | L19: Einde relatie
E20: ð | F20: Vrije Keuze | L20: Pensioen
E22: Financieel overzicht | L22: Alle scenario's
E25: ð | F25: Horizontaal
E26: ð | F26: Verticaal

Sheet Maandlast (hidden)
B2: Welkom David de Weijer, Van Bruggen Adviesgroep Purmerend | E2: =Algemeen!B2 -> Welkom,
G7: Vorm | I7: Bruto | K7: Netto
G9: Annuïteit | I9: =VLOOKUP(1,T11:V14,3,FALSE) -> 14.5 | K9: =VLOOKUP(1,T11:W14,4,FALSE) -> 14.5 | V9: annuiteit | Y9: lineair | AA9: balans
G10: Lineair | I10: =VLOOKUP(1,T11:Y14,6,FALSE) -> 14.5 | K10: =VLOOKUP(1,T11:Z14,7,FALSE) -> 14.5 | V10: B | W10: N | Y10: b | Z10: n | AA10: b | AB10: n
G11: Balans | I11: =VLOOKUP(1,T11:AA14,8,FALSE) -> 14.5 | K11: =VLOOKUP(1,T11:AB14,9,FALSE) -> 14.5 | T11: =IF(AND(X13=FALSE,X12=FALSE),1,0) -> 1 | U11: Normaal | V11: =Annuiteit!O40 -> 14.5 | W11: =Annuiteit!P40 -> 14.5 | Y11: =Lineair!O40 -> 14.5 | Z11: =Lineair!P40 -> 14.5 | AA11: =Balans!O40 -> 14.5 | AB11: =Balans!P40 -> 14.5
T12: =IF(AND(X13=FALSE,X12=TRUE),1,0) -> 0 | U12: restschuld | V12: =Annuiteit!P40 -> 14.5 | W12: =Annuiteit!S40 ->  | X12: =rschuld -> FALSE | Y12: =Lineair!P40 -> 14.5 | Z12: =Lineair!S40 ->  | AA12: =Balans!P40 -> 14.5 | AB12: =Balans!S40 -> 
G13: Hypotheekberekening | T13: =IF(AND(X13=TRUE,X12=FALSE),1,0) -> 0 | U13: krediet | V13: =Annuiteit!P40 -> 14.5 | W13: =Annuiteit!S40 ->  | X13: =IF(Krediet1=0,FALSE,Krediet1) -> FALSE | Y13: =Lineair!P40 -> 14.5 | Z13: =Lineair!S40 ->  | AA13: =Balans!P40 -> 14.5 | AB13: =Balans!S40 -> 
G14: =IF(Algemeen!D9=1,Algemeen!E6,Algemeen!E6&" en "&Algemeen!M6) -> 0 | T14: =IF(AND(X13=TRUE,X12=TRUE),1,0) -> 0 | U14: restschuld + kr | V14: =Annuiteit!S40 ->  | W14: =Annuiteit!S40 ->  | Y14: =Lineair!S40 ->  | Z14: =Lineair!S40 ->  | AA14: =Balans!S40 ->  | AB14: =Balans!S40 -> 
G16: Uitgangspunten van deze berekening | U16: Kolom om te bepalen of er wel- of geen krediet, reestschuld en restschuld en krediet aanwezig is.
G18: ="Inkomen "&Algemeen!E6 -> Inkomen 0 | J18: =Algemeen!E12+Algemeen!E13 -> 0
G19: ="Inkomen "&Algemeen!M6 -> Inkomen | J19: =Algemeen!M12+Algemeen!M13 -> 0
G21: Hypotheeksom | J21: =Algemeen!E41 -> 0
G22: Aflosvrij hypotheekdeel | J22: =IF(Algemeen!R41=FALSE,"Geen aflosvrij deel",Algemeen!K41) -> Geen aflosvrij deel
G23: =IF(Algemeen!R41=FALSE," ","Opslag aflosvrij") ->  | J23: =IF(Algemeen!R41=FALSE,"N.V.T.",Algemeen!O39) -> N.V.T.
G25: Looptijd | J25: =Algemeen!E27&" jaar" -> 30 jaar
G26: WOZ Waarde | J26: =Algemeen!E36 -> 0
G27: Rentepercentage | J27: =Algemeen!E25 -> 0.05
G28: Rentevast periode | J28: =Algemeen!E26& " jaar" -> 5 jaar
G29: Onderhoud | J29: =IF(Algemeen!E43>0,"Met financieel onderhoud","Zonder financieel onderhoud") -> Met financieel onderhoud
G31: Extra maandlast:
G32: Krediet(en) totaal | J32: =IF(Algemeen!V20=TRUE,Algemeen!F20,"Geen") -> Geen
G33: Erfpacht | J33: =IF(Algemeen!AB21=TRUE,Algemeen!F21,"Geen") -> Geen
G34: Partneralimentatie | J34: =IF(Algemeen!V22=TRUE,Algemeen!F22,"Geen") -> Geen

Sheet ROBijAlgOvg (hidden)
B1: =IF(nhg,"geen",AlgemeenOUD!F28) -> ING | C1: =MATCH(ROBijAlgOvg!B1,Ropslag!A:A,) -> 13 | H1: 5 | I1: =+BijAlgOvg!P7 -> 0.05 | K1: =IF(OR($C$7,ISERROR(K$19)),0,OFFSET(Ropslag!$I$1,$C$2+K$19-1,MIN($C$3-1,$A22))) -> -0.0005 | L1: 5 | M1: =+BijAlgOvg!T7 -> 0.06 | O1: =IF(OR($C$7,ISERROR(O$19)),0,OFFSET(Ropslag!$I$1,$C$2+O$19-1,MIN($C$3-1,$A22))) -> -0.0005 | P1: 5 | Q1: =+BijAlgOvg!X7 -> 0.08 | S1: =IF(OR($C$7,ISERROR(S$19)),0,OFFSET(Ropslag!$I$1,$C$2+S$19-1,MIN($C$3-1,$A22))) -> 0 | T1: 5 | U1: =+BijAlgOvg!AB7 -> 0 | W1: =IF(OR($C$7,ISERROR(W$19)),0,OFFSET(Ropslag!$I$1,$C$2+W$19-1,MIN($C$3-1,$A22))) -> 0 | X1: 5 | Y1: =+BijAlgOvg!AF7 -> 0 | AA1: =IF(OR($C$7,ISERROR(AA$19)),0,OFFSET(Ropslag!$I$1,$C$2+AA$19-1,MIN($C$3-1,$A22))) -> 0 | AB1: 5 | AC1: =+BijAlgOvg!AJ7 -> 0 | AE1: =IF(OR($C$7,ISERROR(AE$19)),0,OFFSET(Ropslag!$I$1,$C$2+AE$19-1,MIN($C$3-1,$A22))) -> 0 | AF1: 5 | AG1: =+BijAlgOvg!AN7 -> 0 | AI1: =IF(OR($C$7,ISERROR(AI$19)),0,OFFSET(Ropslag!$I$1,$C$2+AI$19-1,MIN($C$3-1,$A22))) -> 0 | IV1: HIDE | JD1: HIDE
B2: Startrij | C2: =IFERROR(INDEX(Ropslag!B:B,$C$1),0) -> 116 | H2: 10 | I2: =+I1 -> 0.05 | K2: =IF(OR($C$7,ISERROR(K$19)),0,OFFSET(Ropslag!$I$1,$C$2+K$19-1,MIN($C$3-1,$A23))) -> 0 | L2: 10 | M2: =+M1 -> 0.06 | O2: =IF(OR($C$7,ISERROR(O$19)),0,OFFSET(Ropslag!$I$1,$C$2+O$19-1,MIN($C$3-1,$A23))) -> 0 | P2: 10 | Q2: =+Q1 -> 0.08 | S2: =IF(OR($C$7,ISERROR(S$19)),0,OFFSET(Ropslag!$I$1,$C$2+S$19-1,MIN($C$3-1,$A23))) -> 0 | T2: 10 | U2: =+U1 -> 0 | W2: =IF(OR($C$7,ISERROR(W$19)),0,OFFSET(Ropslag!$I$1,$C$2+W$19-1,MIN($C$3-1,$A23))) -> 0 | X2: 10 | Y2: =+Y1 -> 0 | AA2: =IF(OR($C$7,ISERROR(AA$19)),0,OFFSET(Ropslag!$I$1,$C$2+AA$19-1,MIN($C$3-1,$A23))) -> 0 | AB2: 10 | AC2: =+AC1 -> 0 | AE2: =IF(OR($C$7,ISERROR(AE$19)),0,OFFSET(Ropslag!$I$1,$C$2+AE$19-1,MIN($C$3-1,$A23))) -> 0 | AF2: 10 | AG2: =+AG1 -> 0 | AI2: =IF(OR($C$7,ISERROR(AI$19)),0,OFFSET(Ropslag!$I$1,$C$2+AI$19-1,MIN($C$3-1,$A23))) -> 0
B3: Kolommen | C3: =IFERROR(INDEX(Ropslag!C:C,$C$1),0) -> 11 | H3: 15 | I3: =+I2 -> 0.05 | K3: =IF(OR($C$7,ISERROR(K$19)),0,OFFSET(Ropslag!$I$1,$C$2+K$19-1,MIN($C$3-1,$A24))) -> 0.0005 | L3: 15 | M3: =+M2 -> 0.06 | O3: =IF(OR($C$7,ISERROR(O$19)),0,OFFSET(Ropslag!$I$1,$C$2+O$19-1,MIN($C$3-1,$A24))) -> 0.0005 | P3: 15 | Q3: =+Q2 -> 0.08 | S3: =IF(OR($C$7,ISERROR(S$19)),0,OFFSET(Ropslag!$I$1,$C$2+S$19-1,MIN($C$3-1,$A24))) -> 0 | T3: 15 | U3: =+U2 -> 0 | W3: =IF(OR($C$7,ISERROR(W$19)),0,OFFSET(Ropslag!$I$1,$C$2+W$19-1,MIN($C$3-1,$A24))) -> 0 | X3: 15 | Y3: =+Y2 -> 0 | AA3: =IF(OR($C$7,ISERROR(AA$19)),0,OFFSET(Ropslag!$I$1,$C$2+AA$19-1,MIN($C$3-1,$A24))) -> 0 | AB3: 15 | AC3: =+AC2 -> 0 | AE3: =IF(OR($C$7,ISERROR(AE$19)),0,OFFSET(Ropslag!$I$1,$C$2+AE$19-1,MIN($C$3-1,$A24))) -> 0 | AF3: 15 | AG3: =+AG2 -> 0 | AI3: =IF(OR($C$7,ISERROR(AI$19)),0,OFFSET(Ropslag!$I$1,$C$2+AI$19-1,MIN($C$3-1,$A24))) -> 0
B4: #RVP | C4: =IFERROR(INDEX(Ropslag!D:D,$C$1),0) -> 8 | H4: 20 | I4: =+I3 -> 0.05 | K4: =IF(OR($C$7,ISERROR(K$19)),0,OFFSET(Ropslag!$I$1,$C$2+K$19-1,MIN($C$3-1,$A25))) -> 0.001 | L4: 20 | M4: =+M3 -> 0.06 | O4: =IF(OR($C$7,ISERROR(O$19)),0,OFFSET(Ropslag!$I$1,$C$2+O$19-1,MIN($C$3-1,$A25))) -> 0.001 | P4: 20 | Q4: =+Q3 -> 0.08 | S4: =IF(OR($C$7,ISERROR(S$19)),0,OFFSET(Ropslag!$I$1,$C$2+S$19-1,MIN($C$3-1,$A25))) -> 0 | T4: 20 | U4: =+U3 -> 0 | W4: =IF(OR($C$7,ISERROR(W$19)),0,OFFSET(Ropslag!$I$1,$C$2+W$19-1,MIN($C$3-1,$A25))) -> 0 | X4: 20 | Y4: =+Y3 -> 0 | AA4: =IF(OR($C$7,ISERROR(AA$19)),0,OFFSET(Ropslag!$I$1,$C$2+AA$19-1,MIN($C$3-1,$A25))) -> 0 | AB4: 20 | AC4: =+AC3 -> 0 | AE4: =IF(OR($C$7,ISERROR(AE$19)),0,OFFSET(Ropslag!$I$1,$C$2+AE$19-1,MIN($C$3-1,$A25))) -> 0 | AF4: 20 | AG4: =+AG3 -> 0 | AI4: =IF(OR($C$7,ISERROR(AI$19)),0,OFFSET(Ropslag!$I$1,$C$2+AI$19-1,MIN($C$3-1,$A25))) -> 0
B5: Op aanvraag | C5: =IFERROR(INDEX(Ropslag!E:E,$C$1),0)<>"x" -> FALSE | K5: =IF(OR($C$7,ISERROR(K$19)),0,OFFSET(Ropslag!$I$1,$C$2+K$19-1,MIN($C$3-1,$A26))) -> 0.0015 | O5: =IF(OR($C$7,ISERROR(O$19)),0,OFFSET(Ropslag!$I$1,$C$2+O$19-1,MIN($C$3-1,$A26))) -> 0.0015 | S5: =IF(OR($C$7,ISERROR(S$19)),0,OFFSET(Ropslag!$I$1,$C$2+S$19-1,MIN($C$3-1,$A26))) -> 0 | W5: =IF(OR($C$7,ISERROR(W$19)),0,OFFSET(Ropslag!$I$1,$C$2+W$19-1,MIN($C$3-1,$A26))) -> 0 | AA5: =IF(OR($C$7,ISERROR(AA$19)),0,OFFSET(Ropslag!$I$1,$C$2+AA$19-1,MIN($C$3-1,$A26))) -> 0 | AE5: =IF(OR($C$7,ISERROR(AE$19)),0,OFFSET(Ropslag!$I$1,$C$2+AE$19-1,MIN($C$3-1,$A26))) -> 0 | AI5: =IF(OR($C$7,ISERROR(AI$19)),0,OFFSET(Ropslag!$I$1,$C$2+AI$19-1,MIN($C$3-1,$A26))) -> 0
B6: Mon. Uit | C6: FALSE | K6: =IF(OR($C$7,ISERROR(K$19)),0,OFFSET(Ropslag!$I$1,$C$2+K$19-1,MIN($C$3-1,$A27))) -> 0.002 | O6: =IF(OR($C$7,ISERROR(O$19)),0,OFFSET(Ropslag!$I$1,$C$2+O$19-1,MIN($C$3-1,$A27))) -> 0.002 | S6: =IF(OR($C$7,ISERROR(S$19)),0,OFFSET(Ropslag!$I$1,$C$2+S$19-1,MIN($C$3-1,$A27))) -> 0 | W6: =IF(OR($C$7,ISERROR(W$19)),0,OFFSET(Ropslag!$I$1,$C$2+W$19-1,MIN($C$3-1,$A27))) -> 0 | AA6: =IF(OR($C$7,ISERROR(AA$19)),0,OFFSET(Ropslag!$I$1,$C$2+AA$19-1,MIN($C$3-1,$A27))) -> 0 | AE6: =IF(OR($C$7,ISERROR(AE$19)),0,OFFSET(Ropslag!$I$1,$C$2+AE$19-1,MIN($C$3-1,$A27))) -> 0 | AI6: =IF(OR($C$7,ISERROR(AI$19)),0,OFFSET(Ropslag!$I$1,$C$2+AI$19-1,MIN($C$3-1,$A27))) -> 0
B7: Uit | C7: =OR(ISERROR(C1),C6) -> FALSE | H7: =COUNTIF(H1:H5,0) -> 0 | K7: =IF(OR($C$7,ISERROR(K$19)),0,OFFSET(Ropslag!$I$1,$C$2+K$19-1,MIN($C$3-1,$A28))) -> 0.0025 | O7: =IF(OR($C$7,ISERROR(O$19)),0,OFFSET(Ropslag!$I$1,$C$2+O$19-1,MIN($C$3-1,$A28))) -> 0.0025 | S7: =IF(OR($C$7,ISERROR(S$19)),0,OFFSET(Ropslag!$I$1,$C$2+S$19-1,MIN($C$3-1,$A28))) -> 0 | W7: =IF(OR($C$7,ISERROR(W$19)),0,OFFSET(Ropslag!$I$1,$C$2+W$19-1,MIN($C$3-1,$A28))) -> 0 | AA7: =IF(OR($C$7,ISERROR(AA$19)),0,OFFSET(Ropslag!$I$1,$C$2+AA$19-1,MIN($C$3-1,$A28))) -> 0 | AE7: =IF(OR($C$7,ISERROR(AE$19)),0,OFFSET(Ropslag!$I$1,$C$2+AE$19-1,MIN($C$3-1,$A28))) -> 0 | AI7: =IF(OR($C$7,ISERROR(AI$19)),0,OFFSET(Ropslag!$I$1,$C$2+AI$19-1,MIN($C$3-1,$A28))) -> 0
B8: Toon mon | C8: =NOT(ISERROR(C1)) -> TRUE | K8: =IF(OR($C$7,ISERROR(K$19)),0,OFFSET(Ropslag!$I$1,$C$2+K$19-1,MIN($C$3-1,$A29))) -> 0.0035 | O8: =IF(OR($C$7,ISERROR(O$19)),0,OFFSET(Ropslag!$I$1,$C$2+O$19-1,MIN($C$3-1,$A29))) -> 0.0035 | S8: =IF(OR($C$7,ISERROR(S$19)),0,OFFSET(Ropslag!$I$1,$C$2+S$19-1,MIN($C$3-1,$A29))) -> 0 | W8: =IF(OR($C$7,ISERROR(W$19)),0,OFFSET(Ropslag!$I$1,$C$2+W$19-1,MIN($C$3-1,$A29))) -> 0 | AA8: =IF(OR($C$7,ISERROR(AA$19)),0,OFFSET(Ropslag!$I$1,$C$2+AA$19-1,MIN($C$3-1,$A29))) -> 0 | AE8: =IF(OR($C$7,ISERROR(AE$19)),0,OFFSET(Ropslag!$I$1,$C$2+AE$19-1,MIN($C$3-1,$A29))) -> 0 | AI8: =IF(OR($C$7,ISERROR(AI$19)),0,OFFSET(Ropslag!$I$1,$C$2+AI$19-1,MIN($C$3-1,$A29))) -> 0
K9: =IF(OR($C$7,ISERROR(K$19)),0,OFFSET(Ropslag!$I$1,$C$2+K$19-1,MIN($C$3-1,$A30))) -> 0.005 | O9: =IF(OR($C$7,ISERROR(O$19)),0,OFFSET(Ropslag!$I$1,$C$2+O$19-1,MIN($C$3-1,$A30))) -> 0.005 | S9: =IF(OR($C$7,ISERROR(S$19)),0,OFFSET(Ropslag!$I$1,$C$2+S$19-1,MIN($C$3-1,$A30))) -> 0 | W9: =IF(OR($C$7,ISERROR(W$19)),0,OFFSET(Ropslag!$I$1,$C$2+W$19-1,MIN($C$3-1,$A30))) -> 0 | AA9: =IF(OR($C$7,ISERROR(AA$19)),0,OFFSET(Ropslag!$I$1,$C$2+AA$19-1,MIN($C$3-1,$A30))) -> 0 | AE9: =IF(OR($C$7,ISERROR(AE$19)),0,OFFSET(Ropslag!$I$1,$C$2+AE$19-1,MIN($C$3-1,$A30))) -> 0 | AI9: =IF(OR($C$7,ISERROR(AI$19)),0,OFFSET(Ropslag!$I$1,$C$2+AI$19-1,MIN($C$3-1,$A30))) -> 0
K10: =IF(OR($C$7,ISERROR(K$19)),0,OFFSET(Ropslag!$I$1,$C$2+K$19-1,MIN($C$3-1,$A31))) -> 0.007 | O10: =IF(OR($C$7,ISERROR(O$19)),0,OFFSET(Ropslag!$I$1,$C$2+O$19-1,MIN($C$3-1,$A31))) -> 0.007 | S10: =IF(OR($C$7,ISERROR(S$19)),0,OFFSET(Ropslag!$I$1,$C$2+S$19-1,MIN($C$3-1,$A31))) -> 0 | W10: =IF(OR($C$7,ISERROR(W$19)),0,OFFSET(Ropslag!$I$1,$C$2+W$19-1,MIN($C$3-1,$A31))) -> 0 | AA10: =IF(OR($C$7,ISERROR(AA$19)),0,OFFSET(Ropslag!$I$1,$C$2+AA$19-1,MIN($C$3-1,$A31))) -> 0 | AE10: =IF(OR($C$7,ISERROR(AE$19)),0,OFFSET(Ropslag!$I$1,$C$2+AE$19-1,MIN($C$3-1,$A31))) -> 0 | AI10: =IF(OR($C$7,ISERROR(AI$19)),0,OFFSET(Ropslag!$I$1,$C$2+AI$19-1,MIN($C$3-1,$A31))) -> 0
K11: =IF(OR($C$7,ISERROR(K$19)),0,OFFSET(Ropslag!$I$1,$C$2+K$19-1,MIN($C$3-1,$A32))) -> 0.0125 | O11: =IF(OR($C$7,ISERROR(O$19)),0,OFFSET(Ropslag!$I$1,$C$2+O$19-1,MIN($C$3-1,$A32))) -> 0.0125 | S11: =IF(OR($C$7,ISERROR(S$19)),0,OFFSET(Ropslag!$I$1,$C$2+S$19-1,MIN($C$3-1,$A32))) -> 0 | W11: =IF(OR($C$7,ISERROR(W$19)),0,OFFSET(Ropslag!$I$1,$C$2+W$19-1,MIN($C$3-1,$A32))) -> 0 | AA11: =IF(OR($C$7,ISERROR(AA$19)),0,OFFSET(Ropslag!$I$1,$C$2+AA$19-1,MIN($C$3-1,$A32))) -> 0 | AE11: =IF(OR($C$7,ISERROR(AE$19)),0,OFFSET(Ropslag!$I$1,$C$2+AE$19-1,MIN($C$3-1,$A32))) -> 0 | AI11: =IF(OR($C$7,ISERROR(AI$19)),0,OFFSET(Ropslag!$I$1,$C$2+AI$19-1,MIN($C$3-1,$A32))) -> 0
K12: =IF(OR($C$7,ISERROR(K$19)),0,OFFSET(Ropslag!$I$1,$C$2+K$19-1,MIN($C$3-1,$A33))) -> 0.0125 | O12: =IF(OR($C$7,ISERROR(O$19)),0,OFFSET(Ropslag!$I$1,$C$2+O$19-1,MIN($C$3-1,$A33))) -> 0.0125 | S12: =IF(OR($C$7,ISERROR(S$19)),0,OFFSET(Ropslag!$I$1,$C$2+S$19-1,MIN($C$3-1,$A33))) -> 0 | W12: =IF(OR($C$7,ISERROR(W$19)),0,OFFSET(Ropslag!$I$1,$C$2+W$19-1,MIN($C$3-1,$A33))) -> 0 | AA12: =IF(OR($C$7,ISERROR(AA$19)),0,OFFSET(Ropslag!$I$1,$C$2+AA$19-1,MIN($C$3-1,$A33))) -> 0 | AE12: =IF(OR($C$7,ISERROR(AE$19)),0,OFFSET(Ropslag!$I$1,$C$2+AE$19-1,MIN($C$3-1,$A33))) -> 0 | AI12: =IF(OR($C$7,ISERROR(AI$19)),0,OFFSET(Ropslag!$I$1,$C$2+AI$19-1,MIN($C$3-1,$A33))) -> 0
K13: =IF(OR($C$7,ISERROR(K$19)),0,OFFSET(Ropslag!$I$1,$C$2+K$19-1,MIN($C$3-1,$A34))) -> 0.0125 | O13: =IF(OR($C$7,ISERROR(O$19)),0,OFFSET(Ropslag!$I$1,$C$2+O$19-1,MIN($C$3-1,$A34))) -> 0.0125 | S13: =IF(OR($C$7,ISERROR(S$19)),0,OFFSET(Ropslag!$I$1,$C$2+S$19-1,MIN($C$3-1,$A34))) -> 0 | W13: =IF(OR($C$7,ISERROR(W$19)),0,OFFSET(Ropslag!$I$1,$C$2+W$19-1,MIN($C$3-1,$A34))) -> 0 | AA13: =IF(OR($C$7,ISERROR(AA$19)),0,OFFSET(Ropslag!$I$1,$C$2+AA$19-1,MIN($C$3-1,$A34))) -> 0 | AE13: =IF(OR($C$7,ISERROR(AE$19)),0,OFFSET(Ropslag!$I$1,$C$2+AE$19-1,MIN($C$3-1,$A34))) -> 0 | AI13: =IF(OR($C$7,ISERROR(AI$19)),0,OFFSET(Ropslag!$I$1,$C$2+AI$19-1,MIN($C$3-1,$A34))) -> 0
K14: =IF(OR($C$7,ISERROR(K$19)),0,OFFSET(Ropslag!$I$1,$C$2+K$19-1,MIN($C$3-1,$A35))) -> 0.0125 | O14: =IF(OR($C$7,ISERROR(O$19)),0,OFFSET(Ropslag!$I$1,$C$2+O$19-1,MIN($C$3-1,$A35))) -> 0.0125 | S14: =IF(OR($C$7,ISERROR(S$19)),0,OFFSET(Ropslag!$I$1,$C$2+S$19-1,MIN($C$3-1,$A35))) -> 0 | W14: =IF(OR($C$7,ISERROR(W$19)),0,OFFSET(Ropslag!$I$1,$C$2+W$19-1,MIN($C$3-1,$A35))) -> 0 | AA14: =IF(OR($C$7,ISERROR(AA$19)),0,OFFSET(Ropslag!$I$1,$C$2+AA$19-1,MIN($C$3-1,$A35))) -> 0 | AE14: =IF(OR($C$7,ISERROR(AE$19)),0,OFFSET(Ropslag!$I$1,$C$2+AE$19-1,MIN($C$3-1,$A35))) -> 0 | AI14: =IF(OR($C$7,ISERROR(AI$19)),0,OFFSET(Ropslag!$I$1,$C$2+AI$19-1,MIN($C$3-1,$A35))) -> 0
K15: =IF(OR($C$7,ISERROR(K$19)),0,OFFSET(Ropslag!$I$1,$C$2+K$19-1,MIN($C$3-1,$A36))) -> 0.0125 | O15: =IF(OR($C$7,ISERROR(O$19)),0,OFFSET(Ropslag!$I$1,$C$2+O$19-1,MIN($C$3-1,$A36))) -> 0.0125 | S15: =IF(OR($C$7,ISERROR(S$19)),0,OFFSET(Ropslag!$I$1,$C$2+S$19-1,MIN($C$3-1,$A36))) -> 0 | W15: =IF(OR($C$7,ISERROR(W$19)),0,OFFSET(Ropslag!$I$1,$C$2+W$19-1,MIN($C$3-1,$A36))) -> 0 | AA15: =IF(OR($C$7,ISERROR(AA$19)),0,OFFSET(Ropslag!$I$1,$C$2+AA$19-1,MIN($C$3-1,$A36))) -> 0 | AE15: =IF(OR($C$7,ISERROR(AE$19)),0,OFFSET(Ropslag!$I$1,$C$2+AE$19-1,MIN($C$3-1,$A36))) -> 0 | AI15: =IF(OR($C$7,ISERROR(AI$19)),0,OFFSET(Ropslag!$I$1,$C$2+AI$19-1,MIN($C$3-1,$A36))) -> 0
C16: =MATCH(75%,rafslag,1) -> 6 | K16: =IF(OR($C$7,ISERROR(K$19)),0,OFFSET(Ropslag!$I$1,$C$2+K$19-1,MIN($C$3-1,$A37))) -> 0.0125 | O16: =IF(OR($C$7,ISERROR(O$19)),0,OFFSET(Ropslag!$I$1,$C$2+O$19-1,MIN($C$3-1,$A37))) -> 0.0125 | S16: =IF(OR($C$7,ISERROR(S$19)),0,OFFSET(Ropslag!$I$1,$C$2+S$19-1,MIN($C$3-1,$A37))) -> 0 | W16: =IF(OR($C$7,ISERROR(W$19)),0,OFFSET(Ropslag!$I$1,$C$2+W$19-1,MIN($C$3-1,$A37))) -> 0 | AA16: =IF(OR($C$7,ISERROR(AA$19)),0,OFFSET(Ropslag!$I$1,$C$2+AA$19-1,MIN($C$3-1,$A37))) -> 0 | AE16: =IF(OR($C$7,ISERROR(AE$19)),0,OFFSET(Ropslag!$I$1,$C$2+AE$19-1,MIN($C$3-1,$A37))) -> 0 | AI16: =IF(OR($C$7,ISERROR(AI$19)),0,OFFSET(Ropslag!$I$1,$C$2+AI$19-1,MIN($C$3-1,$A37))) -> 0
J18: Rentevast | K18: =INT(+BijAlgOvg!P4)&"" -> 10 | N18: Rentevast | O18: =INT(+BijAlgOvg!T4)&"" -> 5 | R18: Rentevast | S18: =INT(+BijAlgOvg!X4)&"" -> 9 | V18: Rentevast | W18: =INT(+BijAlgOvg!AB4)&"" -> 0 | Z18: Rentevast | AA18: =INT(+BijAlgOvg!AF4)&"" -> 0 | AD18: Rentevast | AE18: =INT(+BijAlgOvg!AJ4)&"" -> 0 | AH18: Rentevast | AI18: =INT(+BijAlgOvg!AN4)&"" -> 0
G19: #treden-v | J19: RVP rij | K19: =MATCH(K18,OFFSET(Ropslag!$H:$H,$C$2,0,$C$4,1),) -> 5 | N19: RVP rij | O19: =MATCH(O18,OFFSET(Ropslag!$H:$H,$C$2,0,$C$4,1),) -> 3 | R19: RVP rij | S19: =MATCH(S18,OFFSET(Ropslag!$H:$H,$C$2,0,$C$4,1),) ->  | V19: RVP rij | W19: =MATCH(W18,OFFSET(Ropslag!$H:$H,$C$2,0,$C$4,1),) ->  | Z19: RVP rij | AA19: =MATCH(AA18,OFFSET(Ropslag!$H:$H,$C$2,0,$C$4,1),) ->  | AD19: RVP rij | AE19: =MATCH(AE18,OFFSET(Ropslag!$H:$H,$C$2,0,$C$4,1),) ->  | AH19: RVP rij | AI19: =MATCH(AI18,OFFSET(Ropslag!$H:$H,$C$2,0,$C$4,1),) -> 
F20: %tovEW | G20: =+C3 -> 11 | H20: Rente | J20: Ropslag | L20: Rente | N20: Ropslag | P20: Rente | R20: Ropslag | T20: Rente | V20: Ropslag | X20: Rente | Z20: Ropslag | AB20: Rente | AD20: Ropslag | AF20: Rente | AH20: Ropslag
B21: Treden | C21: Nw trede | D21: Nw rente | E21: R. begin: | F21: +spaar | H21: trede | I21: rente | J21: Som | K21: delta | L21: trede | M21: rente | N21: Som | O21: delta | P21: trede | Q21: rente | R21: Som | S21: delta | T21: trede | U21: rente | V21: Som | W21: delta | X21: trede | Y21: rente | Z21: Som | AA21: delta | AB21: trede | AC21: rente | AD21: Som | AE21: delta | AF21: trede | AG21: rente | AH21: Som | AI21: delta
A22: 0 | B22: 0 | C22: =+F22 -> 1000 | D22: =BijAlgOvg!M12 -> 0 | E22: 1 | F22: =IF(BijAlgOvg!BB11=0,1000,(BijAlgOvg!AW11-IF($G$21,BijAlgOvg!AS11,0))/BijAlgOvg!BB11) -> 1000 | G22: =IFERROR(MATCH(F22,rafslag),0) -> 12 | H22: 0 | I22: =IF(H22=0,BijAlgOvg!P$7,OFFSET(I$1,H22-1,0)) -> 0.05 | J22: =INDEX(K$1:K$18,$G22) -> 0.0125 | K22: =IF(J22=J21,0,J22) -> 0.0125 | L22: 0 | M22: =IF(L22=0,BijAlgOvg!T$7,OFFSET(M$1,L22-1,0)) -> 0.06 | N22: =INDEX(O$1:O$18,$G22) -> 0.0125 | O22: =IF(N22=N21,0,N22) -> 0.0125 | P22: 0 | Q22: =IF(P22=0,BijAlgOvg!X$7,OFFSET(Q$1,P22-1,0)) -> 0.08 | R22: =INDEX(S$1:S$18,$G22) -> 0 | S22: =IF(R22=R21,0,R22) -> 0 | T22: 0 | U22: =IF(T22=0,BijAlgOvg!AB$7,OFFSET(U$1,T22-1,0)) -> 0 | V22: =INDEX(W$1:W$18,$G22) -> 0 | W22: =IF(V22=V21,0,V22) -> 0 | X22: 0 | Y22: =IF(X22=0,BijAlgOvg!AF$7,OFFSET(Y$1,X22-1,0)) -> 0 | Z22: =INDEX(AA$1:AA$18,$G22) -> 0 | AA22: =IF(Z22=Z21,0,Z22) -> 0 | AB22: 0 | AC22: =IF(AB22=0,BijAlgOvg!AJ$7,OFFSET(AC$1,AB22-1,0)) -> 0 | AD22: =INDEX(AE$1:AE$18,$G22) -> 0 | AE22: =IF(AD22=AD21,0,AD22) -> 0 | AF22: 0 | AG22: =IF(AF22=0,BijAlgOvg!AN$7,OFFSET(AG$1,AF22-1,0)) -> 0 | AH22: =INDEX(AI$1:AI$18,$G22) -> 0 | AI22: =IF(AH22=AH21,0,AH22) -> 0
A23: =+A22+1 -> 1 | B23: =IF($C$7,0,IF(A23>$C$3,"",OFFSET(Ropslag!$I$1,$C$2-1,A23-1))) -> 0.55 | C23: =IF($C$7,"",IF(G23=G22,"",F23)) ->  | D23: =IF(BijAlgOvg!M13<>BijAlgOvg!M12,BijAlgOvg!M13,"") ->  | E23: =+E22+1 -> 2 | F23: =IF(BijAlgOvg!BB12=0,1000,(BijAlgOvg!AW12-IF($G$21,BijAlgOvg!AS12,0))/BijAlgOvg!BB12) -> 1000 | G23: 12 | H23: =IF(OFFSET(H$1,H22,0)>$E23,H22,H22+1) -> 0 | I23: =IF(H23=0,BijAlgOvg!P$7,OFFSET(I$1,H23-1,0)) -> 0.05 | J23: =IFERROR(INDEX(K$1:K$18,$G23),0)-J$22 -> 0 | K23: =+J23 -> 0 | L23: =IF(OFFSET(L$1,L22,0)>$E23,L22,L22+1) -> 0 | M23: =IF(L23=0,BijAlgOvg!T$7,OFFSET(M$1,L23-1,0)) -> 0.06 | N23: =IFERROR(INDEX(O$1:O$18,$G23),0)-N$22 -> 0 | O23: =+N23 -> 0 | P23: =IF(OFFSET(P$1,P22,0)>$E23,P22,P22+1) -> 0 | Q23: =IF(P23=0,BijAlgOvg!X$7,OFFSET(Q$1,P23-1,0)) -> 0.08 | R23: =IFERROR(INDEX(S$1:S$18,$G23),0)-R$22 -> 0 | S23: =+R23 -> 0 | T23: =IF(OFFSET(T$1,T22,0)>$E23,T22,T22+1) -> 0 | U23: =IF(T23=0,BijAlgOvg!AB$7,OFFSET(U$1,T23-1,0)) -> 0 | V23: =IFERROR(INDEX(W$1:W$18,$G23),0)-V$22 -> 0 | W23: =+V23 -> 0 | X23: =IF($E23<OFFSET(X$1,X22,0),X22,X22+1) -> 0 | Y23: =IF(X23=0,BijAlgOvg!AF$7,OFFSET(Y$1,X23-1,0)) -> 0 | Z23: =IFERROR(INDEX(AA$1:AA$18,$G23),0)-Z$22 -> 0 | AA23: =+Z23 -> 0 | AB23: =IF($E23<OFFSET(AB$1,AB22,0),AB22,AB22+1) -> 0 | AC23: =IF(AB23=0,BijAlgOvg!AJ$7,OFFSET(AC$1,AB23-1,0)) -> 0 | AD23: =IFERROR(INDEX(AE$1:AE$18,$G23),0)-AD$22 -> 0 | AE23: =+AD23 -> 0 | AF23: =IF($E23<OFFSET(AF$1,AF22,0),AF22,AF22+1) -> 0 | AG23: =IF(AF23=0,BijAlgOvg!AN$7,OFFSET(AG$1,AF23-1,0)) -> 0 | AH23: =IFERROR(INDEX(AI$1:AI$18,$G23),0)-AH$22 -> 0 | AI23: =+AH23 -> 0
A24: =+A23+1 -> 2 | B24: =IF($C$7,0,IF(A24>$C$3,"",OFFSET(Ropslag!$I$1,$C$2-1,A24-1))) -> 0.6 | D24: =IF(BijAlgOvg!M14<>BijAlgOvg!M13,BijAlgOvg!M14,"") ->  | E24: =+E23+1 -> 3 | F24: =IF(BijAlgOvg!BB13=0,1000,(BijAlgOvg!AW13-IF($G$21,BijAlgOvg!AS13,0))/BijAlgOvg!BB13) -> 1000 | G24: 12 | H24: 0 | I24: =IF(H24=0,BijAlgOvg!P$7,OFFSET(I$1,H24-1,0)) -> 0.05 | J24: 0 | K24: =IF(J24=J23,0,J24-J23) -> 0 | L24: 0 | M24: =IF(L24=0,BijAlgOvg!T$7,OFFSET(M$1,L24-1,0)) -> 0.06 | N24: 0 | O24: =IF(N24=N23,0,N24-N23) -> 0 | P24: 0 | Q24: =IF(P24=0,BijAlgOvg!X$7,OFFSET(Q$1,P24-1,0)) -> 0.08 | R24: 0 | S24: =IF(R24=R23,0,R24-R23) -> 0 | T24: 0 | U24: =IF(T24=0,BijAlgOvg!AB$7,OFFSET(U$1,T24-1,0)) -> 0 | V24: 0 | W24: =IF(V24=V23,0,V24-V23) -> 0 | X24: 0 | Y24: =IF(X24=0,BijAlgOvg!AF$7,OFFSET(Y$1,X24-1,0)) -> 0 | Z24: 0 | AA24: =IF(Z24=Z23,0,Z24-Z23) -> 0 | AB24: 0 | AC24: =IF(AB24=0,BijAlgOvg!AJ$7,OFFSET(AC$1,AB24-1,0)) -> 0 | AD24: 0 | AE24: =IF(AD24=AD23,0,AD24-AD23) -> 0 | AF24: 0 | AG24: =IF(AF24=0,BijAlgOvg!AN$7,OFFSET(AG$1,AF24-1,0)) -> 0 | AH24: 0 | AI24: =IF(AH24=AH23,0,AH24-AH23) -> 0
A25: 3 | B25: =IF($C$7,0,IF(A25>$C$3,"",OFFSET(Ropslag!$I$1,$C$2-1,A25-1))) -> 0.65 | D25: =IF(BijAlgOvg!M15<>BijAlgOvg!M14,BijAlgOvg!M15,"") ->  | E25: 4 | F25: =IF(BijAlgOvg!BB14=0,1000,(BijAlgOvg!AW14-IF($G$21,BijAlgOvg!AS14,0))/BijAlgOvg!BB14) -> 1000 | G25: 12 | H25: 0 | I25: =IF(H25=0,BijAlgOvg!P$7,OFFSET(I$1,H25-1,0)) -> 0.05 | J25: 0 | K25: =IF(J25=J24,0,J25-J24) -> 0 | L25: 0 | M25: =IF(L25=0,BijAlgOvg!T$7,OFFSET(M$1,L25-1,0)) -> 0.06 | N25: 0 | O25: =IF(N25=N24,0,N25-N24) -> 0 | P25: 0 | Q25: =IF(P25=0,BijAlgOvg!X$7,OFFSET(Q$1,P25-1,0)) -> 0.08 | R25: 0 | S25: =IF(R25=R24,0,R25-R24) -> 0 | T25: 0 | U25: =IF(T25=0,BijAlgOvg!AB$7,OFFSET(U$1,T25-1,0)) -> 0 | V25: 0 | W25: =IF(V25=V24,0,V25-V24) -> 0 | X25: 0 | Y25: =IF(X25=0,BijAlgOvg!AF$7,OFFSET(Y$1,X25-1,0)) -> 0 | Z25: 0 | AA25: =IF(Z25=Z24,0,Z25-Z24) -> 0 | AB25: 0 | AC25: =IF(AB25=0,BijAlgOvg!AJ$7,OFFSET(AC$1,AB25-1,0)) -> 0 | AD25: 0 | AE25: =IF(AD25=AD24,0,AD25-AD24) -> 0 | AF25: 0 | AG25: =IF(AF25=0,BijAlgOvg!AN$7,OFFSET(AG$1,AF25-1,0)) -> 0 | AH25: 0 | AI25: =IF(AH25=AH24,0,AH25-AH24) -> 0
A26: 4 | B26: =IF($C$7,0,IF(A26>$C$3,"",OFFSET(Ropslag!$I$1,$C$2-1,A26-1))) -> 0.7 | D26: =IF(BijAlgOvg!M16<>BijAlgOvg!M15,BijAlgOvg!M16,"") ->  | E26: 5 | F26: =IF(BijAlgOvg!BB15=0,1000,(BijAlgOvg!AW15-IF($G$21,BijAlgOvg!AS15,0))/BijAlgOvg!BB15) -> 1000 | G26: 12 | H26: 1 | I26: =IF(H26=0,BijAlgOvg!P$7,OFFSET(I$1,H26-1,0)) -> 0.05 | J26: 0 | K26: 0 | L26: 1 | M26: =IF(L26=0,BijAlgOvg!T$7,OFFSET(M$1,L26-1,0)) -> 0.06 | N26: 0 | O26: 0 | P26: 1 | Q26: =IF(P26=0,BijAlgOvg!X$7,OFFSET(Q$1,P26-1,0)) -> 0.08 | R26: 0 | S26: 0 | T26: 1 | U26: =IF(T26=0,BijAlgOvg!AB$7,OFFSET(U$1,T26-1,0)) -> 0 | V26: 0 | W26: 0 | X26: 1 | Y26: =IF(X26=0,BijAlgOvg!AF$7,OFFSET(Y$1,X26-1,0)) -> 0 | Z26: 0 | AA26: 0 | AB26: 1 | AC26: =IF(AB26=0,BijAlgOvg!AJ$7,OFFSET(AC$1,AB26-1,0)) -> 0 | AD26: 0 | AE26: 0 | AF26: 1 | AG26: =IF(AF26=0,BijAlgOvg!AN$7,OFFSET(AG$1,AF26-1,0)) -> 0 | AH26: 0 | AI26: 0
A27: 5 | B27: =IF($C$7,0,IF(A27>$C$3,"",OFFSET(Ropslag!$I$1,$C$2-1,A27-1))) -> 0.75 | D27: =IF(BijAlgOvg!M17<>BijAlgOvg!M16,BijAlgOvg!M17,"") ->  | E27: 6 | F27: =IF(BijAlgOvg!BB16=0,1000,(BijAlgOvg!AW16-IF($G$21,BijAlgOvg!AS16,0))/BijAlgOvg!BB16) -> 1000 | G27: 12 | H27: 1 | I27: =IF(H27=0,BijAlgOvg!P$7,OFFSET(I$1,H27-1,0)) -> 0.05 | J27: 0 | K27: 0 | L27: 1 | M27: =IF(L27=0,BijAlgOvg!T$7,OFFSET(M$1,L27-1,0)) -> 0.06 | N27: 0 | O27: 0 | P27: 1 | Q27: =IF(P27=0,BijAlgOvg!X$7,OFFSET(Q$1,P27-1,0)) -> 0.08 | R27: 0 | S27: 0 | T27: 1 | U27: =IF(T27=0,BijAlgOvg!AB$7,OFFSET(U$1,T27-1,0)) -> 0 | V27: 0 | W27: 0 | X27: 1 | Y27: =IF(X27=0,BijAlgOvg!AF$7,OFFSET(Y$1,X27-1,0)) -> 0 | Z27: 0 | AA27: 0 | AB27: 1 | AC27: =IF(AB27=0,BijAlgOvg!AJ$7,OFFSET(AC$1,AB27-1,0)) -> 0 | AD27: 0 | AE27: 0 | AF27: 1 | AG27: =IF(AF27=0,BijAlgOvg!AN$7,OFFSET(AG$1,AF27-1,0)) -> 0 | AH27: 0 | AI27: 0
A28: 6 | B28: =IF($C$7,0,IF(A28>$C$3,"",OFFSET(Ropslag!$I$1,$C$2-1,A28-1))) -> 0.8 | D28: =IF(BijAlgOvg!M18<>BijAlgOvg!M17,BijAlgOvg!M18,"") ->  | E28: 7 | F28: =IF(BijAlgOvg!BB17=0,1000,(BijAlgOvg!AW17-IF($G$21,BijAlgOvg!AS17,0))/BijAlgOvg!BB17) -> 1000 | G28: 12 | H28: 1 | I28: =IF(H28=0,BijAlgOvg!P$7,OFFSET(I$1,H28-1,0)) -> 0.05 | J28: 0 | K28: 0 | L28: 1 | M28: =IF(L28=0,BijAlgOvg!T$7,OFFSET(M$1,L28-1,0)) -> 0.06 | N28: 0 | O28: 0 | P28: 1 | Q28: =IF(P28=0,BijAlgOvg!X$7,OFFSET(Q$1,P28-1,0)) -> 0.08 | R28: 0 | S28: 0 | T28: 1 | U28: =IF(T28=0,BijAlgOvg!AB$7,OFFSET(U$1,T28-1,0)) -> 0 | V28: 0 | W28: 0 | X28: 1 | Y28: =IF(X28=0,BijAlgOvg!AF$7,OFFSET(Y$1,X28-1,0)) -> 0 | Z28: 0 | AA28: 0 | AB28: 1 | AC28: =IF(AB28=0,BijAlgOvg!AJ$7,OFFSET(AC$1,AB28-1,0)) -> 0 | AD28: 0 | AE28: 0 | AF28: 1 | AG28: =IF(AF28=0,BijAlgOvg!AN$7,OFFSET(AG$1,AF28-1,0)) -> 0 | AH28: 0 | AI28: 0
A29: 7 | B29: =IF($C$7,0,IF(A29>$C$3,"",OFFSET(Ropslag!$I$1,$C$2-1,A29-1))) -> 0.85 | D29: =IF(BijAlgOvg!M19<>BijAlgOvg!M18,BijAlgOvg!M19,"") ->  | E29: 8 | F29: =IF(BijAlgOvg!BB18=0,1000,(BijAlgOvg!AW18-IF($G$21,BijAlgOvg!AS18,0))/BijAlgOvg!BB18) -> 1000 | G29: 12 | H29: 1 | I29: =IF(H29=0,BijAlgOvg!P$7,OFFSET(I$1,H29-1,0)) -> 0.05 | J29: 0 | K29: 0 | L29: 1 | M29: =IF(L29=0,BijAlgOvg!T$7,OFFSET(M$1,L29-1,0)) -> 0.06 | N29: 0 | O29: 0 | P29: 1 | Q29: =IF(P29=0,BijAlgOvg!X$7,OFFSET(Q$1,P29-1,0)) -> 0.08 | R29: 0 | S29: 0 | T29: 1 | U29: =IF(T29=0,BijAlgOvg!AB$7,OFFSET(U$1,T29-1,0)) -> 0 | V29: 0 | W29: 0 | X29: 1 | Y29: =IF(X29=0,BijAlgOvg!AF$7,OFFSET(Y$1,X29-1,0)) -> 0 | Z29: 0 | AA29: 0 | AB29: 1 | AC29: =IF(AB29=0,BijAlgOvg!AJ$7,OFFSET(AC$1,AB29-1,0)) -> 0 | AD29: 0 | AE29: 0 | AF29: 1 | AG29: =IF(AF29=0,BijAlgOvg!AN$7,OFFSET(AG$1,AF29-1,0)) -> 0 | AH29: 0 | AI29: 0
A30: 8 | B30: =IF($C$7,0,IF(A30>$C$3,"",OFFSET(Ropslag!$I$1,$C$2-1,A30-1))) -> 0.9 | D30: =IF(BijAlgOvg!M20<>BijAlgOvg!M19,BijAlgOvg!M20,"") ->  | E30: 9 | F30: =IF(BijAlgOvg!BB19=0,1000,(BijAlgOvg!AW19-IF($G$21,BijAlgOvg!AS19,0))/BijAlgOvg!BB19) -> 1000 | G30: 12 | H30: 1 | I30: =IF(H30=0,BijAlgOvg!P$7,OFFSET(I$1,H30-1,0)) -> 0.05 | J30: 0 | K30: 0 | L30: 1 | M30: =IF(L30=0,BijAlgOvg!T$7,OFFSET(M$1,L30-1,0)) -> 0.06 | N30: 0 | O30: 0 | P30: 1 | Q30: =IF(P30=0,BijAlgOvg!X$7,OFFSET(Q$1,P30-1,0)) -> 0.08 | R30: 0 | S30: 0 | T30: 1 | U30: =IF(T30=0,BijAlgOvg!AB$7,OFFSET(U$1,T30-1,0)) -> 0 | V30: 0 | W30: 0 | X30: 1 | Y30: =IF(X30=0,BijAlgOvg!AF$7,OFFSET(Y$1,X30-1,0)) -> 0 | Z30: 0 | AA30: 0 | AB30: 1 | AC30: =IF(AB30=0,BijAlgOvg!AJ$7,OFFSET(AC$1,AB30-1,0)) -> 0 | AD30: 0 | AE30: 0 | AF30: 1 | AG30: =IF(AF30=0,BijAlgOvg!AN$7,OFFSET(AG$1,AF30-1,0)) -> 0 | AH30: 0 | AI30: 0
A31: 9 | B31: =IF($C$7,0,IF(A31>$C$3,"",OFFSET(Ropslag!$I$1,$C$2-1,A31-1))) -> 0.95 | D31: =IF(BijAlgOvg!M21<>BijAlgOvg!M20,BijAlgOvg!M21,"") ->  | E31: 10 | F31: =IF(BijAlgOvg!BB20=0,1000,(BijAlgOvg!AW20-IF($G$21,BijAlgOvg!AS20,0))/BijAlgOvg!BB20) -> 1000 | G31: 12 | H31: 2 | I31: =IF(H31=0,BijAlgOvg!P$7,OFFSET(I$1,H31-1,0)) -> 0.05 | J31: 0 | K31: 0 | L31: 2 | M31: =IF(L31=0,BijAlgOvg!T$7,OFFSET(M$1,L31-1,0)) -> 0.06 | N31: 0 | O31: 0 | P31: 2 | Q31: =IF(P31=0,BijAlgOvg!X$7,OFFSET(Q$1,P31-1,0)) -> 0.08 | R31: 0 | S31: 0 | T31: 2 | U31: =IF(T31=0,BijAlgOvg!AB$7,OFFSET(U$1,T31-1,0)) -> 0 | V31: 0 | W31: 0 | X31: 2 | Y31: =IF(X31=0,BijAlgOvg!AF$7,OFFSET(Y$1,X31-1,0)) -> 0 | Z31: 0 | AA31: 0 | AB31: 2 | AC31: =IF(AB31=0,BijAlgOvg!AJ$7,OFFSET(AC$1,AB31-1,0)) -> 0 | AD31: 0 | AE31: 0 | AF31: 2 | AG31: =IF(AF31=0,BijAlgOvg!AN$7,OFFSET(AG$1,AF31-1,0)) -> 0 | AH31: 0 | AI31: 0
A32: 10 | B32: =IF($C$7,0,IF(A32>$C$3,"",OFFSET(Ropslag!$I$1,$C$2-1,A32-1))) -> 1.01 | D32: =IF(BijAlgOvg!M22<>BijAlgOvg!M21,BijAlgOvg!M22,"") ->  | E32: 11 | F32: =IF(BijAlgOvg!BB21=0,1000,(BijAlgOvg!AW21-IF($G$21,BijAlgOvg!AS21,0))/BijAlgOvg!BB21) -> 1000 | G32: 12 | H32: =IF(OFFSET(H$1,H31,0)>$E32,H31,H31+1) -> 2 | I32: =IF(H32=0,BijAlgOvg!P$7,OFFSET(I$1,H32-1,0)) -> 0.05 | J32: 0 | K32: 0 | L32: =IF(OFFSET(L$1,L31,0)>$E32,L31,L31+1) -> 2 | M32: =IF(L32=0,BijAlgOvg!T$7,OFFSET(M$1,L32-1,0)) -> 0.06 | N32: 0 | O32: 0 | P32: =IF(OFFSET(P$1,P31,0)>$E32,P31,P31+1) -> 2 | Q32: =IF(P32=0,BijAlgOvg!X$7,OFFSET(Q$1,P32-1,0)) -> 0.08 | R32: 0 | S32: 0 | T32: =IF(OFFSET(T$1,T31,0)>$E32,T31,T31+1) -> 2 | U32: =IF(T32=0,BijAlgOvg!AB$7,OFFSET(U$1,T32-1,0)) -> 0 | V32: 0 | W32: 0 | X32: 2 | Y32: =IF(X32=0,BijAlgOvg!AF$7,OFFSET(Y$1,X32-1,0)) -> 0 | Z32: 0 | AA32: 0 | AB32: 2 | AC32: =IF(AB32=0,BijAlgOvg!AJ$7,OFFSET(AC$1,AB32-1,0)) -> 0 | AD32: 0 | AE32: 0 | AF32: 2 | AG32: =IF(AF32=0,BijAlgOvg!AN$7,OFFSET(AG$1,AF32-1,0)) -> 0 | AH32: 0 | AI32: 0
A33: 11 | B33: =IF($C$7,0,IF(A33>$C$3,"",OFFSET(Ropslag!$I$1,$C$2-1,A33-1))) -> 1.1 | D33: =IF(BijAlgOvg!M23<>BijAlgOvg!M22,BijAlgOvg!M23,"") ->  | E33: 12 | F33: =IF(BijAlgOvg!BB22=0,1000,(BijAlgOvg!AW22-IF($G$21,BijAlgOvg!AS22,0))/BijAlgOvg!BB22) -> 1000 | G33: 12 | H33: =IF(OFFSET(H$1,H32,0)>$E33,H32,H32+1) -> 2 | I33: =IF(H33=0,BijAlgOvg!P$7,OFFSET(I$1,H33-1,0)) -> 0.05 | J33: 0 | K33: 0 | L33: =IF(OFFSET(L$1,L32,0)>$E33,L32,L32+1) -> 2 | M33: =IF(L33=0,BijAlgOvg!T$7,OFFSET(M$1,L33-1,0)) -> 0.06 | N33: 0 | O33: 0 | P33: =IF(OFFSET(P$1,P32,0)>$E33,P32,P32+1) -> 2 | Q33: =IF(P33=0,BijAlgOvg!X$7,OFFSET(Q$1,P33-1,0)) -> 0.08 | R33: 0 | S33: 0 | T33: =IF(OFFSET(T$1,T32,0)>$E33,T32,T32+1) -> 2 | U33: =IF(T33=0,BijAlgOvg!AB$7,OFFSET(U$1,T33-1,0)) -> 0 | V33: 0 | W33: 0 | X33: 2 | Y33: =IF(X33=0,BijAlgOvg!AF$7,OFFSET(Y$1,X33-1,0)) -> 0 | Z33: 0 | AA33: 0 | AB33: 2 | AC33: =IF(AB33=0,BijAlgOvg!AJ$7,OFFSET(AC$1,AB33-1,0)) -> 0 | AD33: 0 | AE33: 0 | AF33: 2 | AG33: =IF(AF33=0,BijAlgOvg!AN$7,OFFSET(AG$1,AF33-1,0)) -> 0 | AH33: 0 | AI33: 0
A34: 12 | B34: =IF($C$7,0,IF(A34>$C$3,"",OFFSET(Ropslag!$I$1,$C$2-1,A34-1))) ->  | D34: =IF(BijAlgOvg!M24<>BijAlgOvg!M23,BijAlgOvg!M24,"") ->  | E34: 13 | F34: =IF(BijAlgOvg!BB23=0,1000,(BijAlgOvg!AW23-IF($G$21,BijAlgOvg!AS23,0))/BijAlgOvg!BB23) -> 1000 | G34: 12 | H34: 2 | I34: =IF(H34=0,BijAlgOvg!P$7,OFFSET(I$1,H34-1,0)) -> 0.05 | J34: 0 | K34: 0 | L34: 2 | M34: =IF(L34=0,BijAlgOvg!T$7,OFFSET(M$1,L34-1,0)) -> 0.06 | N34: 0 | O34: 0 | P34: 2 | Q34: =IF(P34=0,BijAlgOvg!X$7,OFFSET(Q$1,P34-1,0)) -> 0.08 | R34: 0 | S34: 0 | T34: 2 | U34: =IF(T34=0,BijAlgOvg!AB$7,OFFSET(U$1,T34-1,0)) -> 0 | V34: 0 | W34: 0 | X34: 2 | Y34: =IF(X34=0,BijAlgOvg!AF$7,OFFSET(Y$1,X34-1,0)) -> 0 | Z34: 0 | AA34: 0 | AB34: 2 | AC34: =IF(AB34=0,BijAlgOvg!AJ$7,OFFSET(AC$1,AB34-1,0)) -> 0 | AD34: 0 | AE34: 0 | AF34: 2 | AG34: =IF(AF34=0,BijAlgOvg!AN$7,OFFSET(AG$1,AF34-1,0)) -> 0 | AH34: 0 | AI34: 0
A35: 13 | B35: =IF($C$7,0,IF(A35>$C$3,"",OFFSET(Ropslag!$I$1,$C$2-1,A35-1))) ->  | D35: =IF(BijAlgOvg!M25<>BijAlgOvg!M24,BijAlgOvg!M25,"") ->  | E35: 14 | F35: =IF(BijAlgOvg!BB24=0,1000,(BijAlgOvg!AW24-IF($G$21,BijAlgOvg!AS24,0))/BijAlgOvg!BB24) -> 1000 | G35: 12 | H35: 2 | I35: =IF(H35=0,BijAlgOvg!P$7,OFFSET(I$1,H35-1,0)) -> 0.05 | J35: 0 | K35: 0 | L35: 2 | M35: =IF(L35=0,BijAlgOvg!T$7,OFFSET(M$1,L35-1,0)) -> 0.06 | N35: 0 | O35: 0 | P35: 2 | Q35: =IF(P35=0,BijAlgOvg!X$7,OFFSET(Q$1,P35-1,0)) -> 0.08 | R35: 0 | S35: 0 | T35: 2 | U35: =IF(T35=0,BijAlgOvg!AB$7,OFFSET(U$1,T35-1,0)) -> 0 | V35: 0 | W35: 0 | X35: 2 | Y35: =IF(X35=0,BijAlgOvg!AF$7,OFFSET(Y$1,X35-1,0)) -> 0 | Z35: 0 | AA35: 0 | AB35: 2 | AC35: =IF(AB35=0,BijAlgOvg!AJ$7,OFFSET(AC$1,AB35-1,0)) -> 0 | AD35: 0 | AE35: 0 | AF35: 2 | AG35: =IF(AF35=0,BijAlgOvg!AN$7,OFFSET(AG$1,AF35-1,0)) -> 0 | AH35: 0 | AI35: 0
A36: 14 | B36: =IF($C$7,0,IF(A36>$C$3,"",OFFSET(Ropslag!$I$1,$C$2-1,A36-1))) ->  | D36: =IF(BijAlgOvg!M26<>BijAlgOvg!M25,BijAlgOvg!M26,"") ->  | E36: 15 | F36: =IF(BijAlgOvg!BB25=0,1000,(BijAlgOvg!AW25-IF($G$21,BijAlgOvg!AS25,0))/BijAlgOvg!BB25) -> 1000 | G36: 12 | H36: 3 | I36: =IF(H36=0,BijAlgOvg!P$7,OFFSET(I$1,H36-1,0)) -> 0.05 | J36: 0 | K36: 0 | L36: 3 | M36: =IF(L36=0,BijAlgOvg!T$7,OFFSET(M$1,L36-1,0)) -> 0.06 | N36: 0 | O36: 0 | P36: 3 | Q36: =IF(P36=0,BijAlgOvg!X$7,OFFSET(Q$1,P36-1,0)) -> 0.08 | R36: 0 | S36: 0 | T36: 3 | U36: =IF(T36=0,BijAlgOvg!AB$7,OFFSET(U$1,T36-1,0)) -> 0 | V36: 0 | W36: 0 | X36: 3 | Y36: =IF(X36=0,BijAlgOvg!AF$7,OFFSET(Y$1,X36-1,0)) -> 0 | Z36: 0 | AA36: 0 | AB36: 3 | AC36: =IF(AB36=0,BijAlgOvg!AJ$7,OFFSET(AC$1,AB36-1,0)) -> 0 | AD36: 0 | AE36: 0 | AF36: 3 | AG36: =IF(AF36=0,BijAlgOvg!AN$7,OFFSET(AG$1,AF36-1,0)) -> 0 | AH36: 0 | AI36: 0
A37: 15 | B37: =IF($C$7,0,IF(A37>$C$3,"",OFFSET(Ropslag!$I$1,$C$2-1,A37-1))) ->  | D37: =IF(BijAlgOvg!M27<>BijAlgOvg!M26,BijAlgOvg!M27,"") ->  | E37: 16 | F37: =IF(BijAlgOvg!BB26=0,1000,(BijAlgOvg!AW26-IF($G$21,BijAlgOvg!AS26,0))/BijAlgOvg!BB26) -> 1000 | G37: 12 | H37: 3 | I37: =IF(H37=0,BijAlgOvg!P$7,OFFSET(I$1,H37-1,0)) -> 0.05 | J37: 0 | K37: 0 | L37: 3 | M37: =IF(L37=0,BijAlgOvg!T$7,OFFSET(M$1,L37-1,0)) -> 0.06 | N37: 0 | O37: 0 | P37: 3 | Q37: =IF(P37=0,BijAlgOvg!X$7,OFFSET(Q$1,P37-1,0)) -> 0.08 | R37: 0 | S37: 0 | T37: 3 | U37: =IF(T37=0,BijAlgOvg!AB$7,OFFSET(U$1,T37-1,0)) -> 0 | V37: 0 | W37: 0 | X37: 3 | Y37: =IF(X37=0,BijAlgOvg!AF$7,OFFSET(Y$1,X37-1,0)) -> 0 | Z37: 0 | AA37: 0 | AB37: 3 | AC37: =IF(AB37=0,BijAlgOvg!AJ$7,OFFSET(AC$1,AB37-1,0)) -> 0 | AD37: 0 | AE37: 0 | AF37: 3 | AG37: =IF(AF37=0,BijAlgOvg!AN$7,OFFSET(AG$1,AF37-1,0)) -> 0 | AH37: 0 | AI37: 0
D38: =IF(BijAlgOvg!M28<>BijAlgOvg!M27,BijAlgOvg!M28,"") ->  | E38: 17 | F38: =IF(BijAlgOvg!BB27=0,1000,(BijAlgOvg!AW27-IF($G$21,BijAlgOvg!AS27,0))/BijAlgOvg!BB27) -> 1000 | G38: 12 | H38: 3 | I38: =IF(H38=0,BijAlgOvg!P$7,OFFSET(I$1,H38-1,0)) -> 0.05 | J38: 0 | K38: 0 | L38: 3 | M38: =IF(L38=0,BijAlgOvg!T$7,OFFSET(M$1,L38-1,0)) -> 0.06 | N38: 0 | O38: 0 | P38: 3 | Q38: =IF(P38=0,BijAlgOvg!X$7,OFFSET(Q$1,P38-1,0)) -> 0.08 | R38: 0 | S38: 0 | T38: 3 | U38: =IF(T38=0,BijAlgOvg!AB$7,OFFSET(U$1,T38-1,0)) -> 0 | V38: 0 | W38: 0 | X38: 3 | Y38: =IF(X38=0,BijAlgOvg!AF$7,OFFSET(Y$1,X38-1,0)) -> 0 | Z38: 0 | AA38: 0 | AB38: 3 | AC38: =IF(AB38=0,BijAlgOvg!AJ$7,OFFSET(AC$1,AB38-1,0)) -> 0 | AD38: 0 | AE38: 0 | AF38: 3 | AG38: =IF(AF38=0,BijAlgOvg!AN$7,OFFSET(AG$1,AF38-1,0)) -> 0 | AH38: 0 | AI38: 0
D39: =IF(BijAlgOvg!M29<>BijAlgOvg!M28,BijAlgOvg!M29,"") ->  | E39: 18 | F39: =IF(BijAlgOvg!BB28=0,1000,(BijAlgOvg!AW28-IF($G$21,BijAlgOvg!AS28,0))/BijAlgOvg!BB28) -> 1000 | G39: 12 | H39: 3 | I39: =IF(H39=0,BijAlgOvg!P$7,OFFSET(I$1,H39-1,0)) -> 0.05 | J39: 0 | K39: 0 | L39: 3 | M39: =IF(L39=0,BijAlgOvg!T$7,OFFSET(M$1,L39-1,0)) -> 0.06 | N39: 0 | O39: 0 | P39: 3 | Q39: =IF(P39=0,BijAlgOvg!X$7,OFFSET(Q$1,P39-1,0)) -> 0.08 | R39: 0 | S39: 0 | T39: 3 | U39: =IF(T39=0,BijAlgOvg!AB$7,OFFSET(U$1,T39-1,0)) -> 0 | V39: 0 | W39: 0 | X39: 3 | Y39: =IF(X39=0,BijAlgOvg!AF$7,OFFSET(Y$1,X39-1,0)) -> 0 | Z39: 0 | AA39: 0 | AB39: 3 | AC39: =IF(AB39=0,BijAlgOvg!AJ$7,OFFSET(AC$1,AB39-1,0)) -> 0 | AD39: 0 | AE39: 0 | AF39: 3 | AG39: =IF(AF39=0,BijAlgOvg!AN$7,OFFSET(AG$1,AF39-1,0)) -> 0 | AH39: 0 | AI39: 0
D40: =IF(BijAlgOvg!M30<>BijAlgOvg!M29,BijAlgOvg!M30,"") ->  | E40: 19 | F40: =IF(BijAlgOvg!BB29=0,1000,(BijAlgOvg!AW29-IF($G$21,BijAlgOvg!AS29,0))/BijAlgOvg!BB29) -> 1000 | G40: 12 | H40: 3 | I40: =IF(H40=0,BijAlgOvg!P$7,OFFSET(I$1,H40-1,0)) -> 0.05 | J40: 0 | K40: 0 | L40: 3 | M40: =IF(L40=0,BijAlgOvg!T$7,OFFSET(M$1,L40-1,0)) -> 0.06 | N40: 0 | O40: 0 | P40: 3 | Q40: =IF(P40=0,BijAlgOvg!X$7,OFFSET(Q$1,P40-1,0)) -> 0.08 | R40: 0 | S40: 0 | T40: 3 | U40: =IF(T40=0,BijAlgOvg!AB$7,OFFSET(U$1,T40-1,0)) -> 0 | V40: 0 | W40: 0 | X40: 3 | Y40: =IF(X40=0,BijAlgOvg!AF$7,OFFSET(Y$1,X40-1,0)) -> 0 | Z40: 0 | AA40: 0 | AB40: 3 | AC40: =IF(AB40=0,BijAlgOvg!AJ$7,OFFSET(AC$1,AB40-1,0)) -> 0 | AD40: 0 | AE40: 0 | AF40: 3 | AG40: =IF(AF40=0,BijAlgOvg!AN$7,OFFSET(AG$1,AF40-1,0)) -> 0 | AH40: 0 | AI40: 0
D41: =IF(BijAlgOvg!M31<>BijAlgOvg!M30,BijAlgOvg!M31,"") ->  | E41: 20 | F41: =IF(BijAlgOvg!BB30=0,1000,(BijAlgOvg!AW30-IF($G$21,BijAlgOvg!AS30,0))/BijAlgOvg!BB30) -> 1000 | G41: 12 | H41: 4 | I41: =IF(H41=0,BijAlgOvg!P$7,OFFSET(I$1,H41-1,0)) -> 0.05 | J41: 0 | K41: 0 | L41: 4 | M41: =IF(L41=0,BijAlgOvg!T$7,OFFSET(M$1,L41-1,0)) -> 0.06 | N41: 0 | O41: 0 | P41: 4 | Q41: =IF(P41=0,BijAlgOvg!X$7,OFFSET(Q$1,P41-1,0)) -> 0.08 | R41: 0 | S41: 0 | T41: 4 | U41: =IF(T41=0,BijAlgOvg!AB$7,OFFSET(U$1,T41-1,0)) -> 0 | V41: 0 | W41: 0 | X41: 4 | Y41: =IF(X41=0,BijAlgOvg!AF$7,OFFSET(Y$1,X41-1,0)) -> 0 | Z41: 0 | AA41: 0 | AB41: 4 | AC41: =IF(AB41=0,BijAlgOvg!AJ$7,OFFSET(AC$1,AB41-1,0)) -> 0 | AD41: 0 | AE41: 0 | AF41: 4 | AG41: =IF(AF41=0,BijAlgOvg!AN$7,OFFSET(AG$1,AF41-1,0)) -> 0 | AH41: 0 | AI41: 0
D42: =IF(BijAlgOvg!M32<>BijAlgOvg!M31,BijAlgOvg!M32,"") ->  | E42: 21 | F42: =IF(BijAlgOvg!BB31=0,1000,(BijAlgOvg!AW31-IF($G$21,BijAlgOvg!AS31,0))/BijAlgOvg!BB31) -> 1000 | G42: 12 | H42: 5 | I42: =IF(H42=0,BijAlgOvg!P$7,OFFSET(I$1,H42-1,0)) -> 0 | J42: 0 | K42: 0 | L42: 5 | M42: =IF(L42=0,BijAlgOvg!T$7,OFFSET(M$1,L42-1,0)) -> 0 | N42: 0 | O42: 0 | P42: 5 | Q42: =IF(P42=0,BijAlgOvg!X$7,OFFSET(Q$1,P42-1,0)) -> 0 | R42: 0 | S42: 0 | T42: 5 | U42: =IF(T42=0,BijAlgOvg!AB$7,OFFSET(U$1,T42-1,0)) -> 0 | V42: 0 | W42: 0 | X42: 5 | Y42: =IF(X42=0,BijAlgOvg!AF$7,OFFSET(Y$1,X42-1,0)) -> 0 | Z42: 0 | AA42: 0 | AB42: 5 | AC42: =IF(AB42=0,BijAlgOvg!AJ$7,OFFSET(AC$1,AB42-1,0)) -> 0 | AD42: 0 | AE42: 0 | AF42: 5 | AG42: =IF(AF42=0,BijAlgOvg!AN$7,OFFSET(AG$1,AF42-1,0)) -> 0 | AH42: 0 | AI42: 0
D43: =IF(BijAlgOvg!M33<>BijAlgOvg!M32,BijAlgOvg!M33,"") ->  | E43: 22 | F43: =IF(BijAlgOvg!BB32=0,1000,(BijAlgOvg!AW32-IF($G$21,BijAlgOvg!AS32,0))/BijAlgOvg!BB32) -> 1000 | G43: 12 | H43: 6 | I43: =IF(H43=0,BijAlgOvg!P$7,OFFSET(I$1,H43-1,0)) -> 0 | J43: 0 | K43: 0 | L43: 6 | M43: =IF(L43=0,BijAlgOvg!T$7,OFFSET(M$1,L43-1,0)) -> 0 | N43: 0 | O43: 0 | P43: 6 | Q43: =IF(P43=0,BijAlgOvg!X$7,OFFSET(Q$1,P43-1,0)) -> 0 | R43: 0 | S43: 0 | T43: 6 | U43: =IF(T43=0,BijAlgOvg!AB$7,OFFSET(U$1,T43-1,0)) -> 0 | V43: 0 | W43: 0 | X43: 6 | Y43: =IF(X43=0,BijAlgOvg!AF$7,OFFSET(Y$1,X43-1,0)) -> 0 | Z43: 0 | AA43: 0 | AB43: 6 | AC43: =IF(AB43=0,BijAlgOvg!AJ$7,OFFSET(AC$1,AB43-1,0)) -> 0 | AD43: 0 | AE43: 0 | AF43: 6 | AG43: =IF(AF43=0,BijAlgOvg!AN$7,OFFSET(AG$1,AF43-1,0)) -> 0 | AH43: 0 | AI43: 0
D44: =IF(BijAlgOvg!M34<>BijAlgOvg!M33,BijAlgOvg!M34,"") ->  | E44: 23 | F44: =IF(BijAlgOvg!BB33=0,1000,(BijAlgOvg!AW33-IF($G$21,BijAlgOvg!AS33,0))/BijAlgOvg!BB33) -> 1000 | G44: 12 | H44: 7 | I44: =IF(H44=0,BijAlgOvg!P$7,OFFSET(I$1,H44-1,0)) -> 0 | J44: 0 | K44: 0 | L44: 7 | M44: =IF(L44=0,BijAlgOvg!T$7,OFFSET(M$1,L44-1,0)) -> 0 | N44: 0 | O44: 0 | P44: 7 | Q44: =IF(P44=0,BijAlgOvg!X$7,OFFSET(Q$1,P44-1,0)) -> 0 | R44: 0 | S44: 0 | T44: 7 | U44: =IF(T44=0,BijAlgOvg!AB$7,OFFSET(U$1,T44-1,0)) -> 0 | V44: 0 | W44: 0 | X44: 7 | Y44: =IF(X44=0,BijAlgOvg!AF$7,OFFSET(Y$1,X44-1,0)) -> 0 | Z44: 0 | AA44: 0 | AB44: 7 | AC44: =IF(AB44=0,BijAlgOvg!AJ$7,OFFSET(AC$1,AB44-1,0)) -> 0 | AD44: 0 | AE44: 0 | AF44: 7 | AG44: =IF(AF44=0,BijAlgOvg!AN$7,OFFSET(AG$1,AF44-1,0)) -> 0 | AH44: 0 | AI44: 0
D45: =IF(BijAlgOvg!M35<>BijAlgOvg!M34,BijAlgOvg!M35,"") ->  | E45: 24 | F45: =IF(BijAlgOvg!BB34=0,1000,(BijAlgOvg!AW34-IF($G$21,BijAlgOvg!AS34,0))/BijAlgOvg!BB34) -> 1000 | G45: 12 | H45: 8 | I45: =IF(H45=0,BijAlgOvg!P$7,OFFSET(I$1,H45-1,0)) -> 0 | J45: 0 | K45: 0 | L45: 8 | M45: =IF(L45=0,BijAlgOvg!T$7,OFFSET(M$1,L45-1,0)) -> 0 | N45: 0 | O45: 0 | P45: 8 | Q45: =IF(P45=0,BijAlgOvg!X$7,OFFSET(Q$1,P45-1,0)) -> 0 | R45: 0 | S45: 0 | T45: 8 | U45: =IF(T45=0,BijAlgOvg!AB$7,OFFSET(U$1,T45-1,0)) -> 0 | V45: 0 | W45: 0 | X45: 8 | Y45: =IF(X45=0,BijAlgOvg!AF$7,OFFSET(Y$1,X45-1,0)) -> 0 | Z45: 0 | AA45: 0 | AB45: 8 | AC45: =IF(AB45=0,BijAlgOvg!AJ$7,OFFSET(AC$1,AB45-1,0)) -> 0 | AD45: 0 | AE45: 0 | AF45: 8 | AG45: =IF(AF45=0,BijAlgOvg!AN$7,OFFSET(AG$1,AF45-1,0)) -> 0 | AH45: 0 | AI45: 0
D46: =IF(BijAlgOvg!M36<>BijAlgOvg!M35,BijAlgOvg!M36,"") ->  | E46: 25 | F46: =IF(BijAlgOvg!BB35=0,1000,(BijAlgOvg!AW35-IF($G$21,BijAlgOvg!AS35,0))/BijAlgOvg!BB35) -> 1000 | G46: 12 | H46: 9 | I46: =IF(H46=0,BijAlgOvg!P$7,OFFSET(I$1,H46-1,0)) -> 0 | J46: 0 | K46: 0 | L46: 9 | M46: =IF(L46=0,BijAlgOvg!T$7,OFFSET(M$1,L46-1,0)) -> 0 | N46: 0 | O46: 0 | P46: 9 | Q46: =IF(P46=0,BijAlgOvg!X$7,OFFSET(Q$1,P46-1,0)) -> 0 | R46: 0 | S46: 0 | T46: 9 | U46: =IF(T46=0,BijAlgOvg!AB$7,OFFSET(U$1,T46-1,0)) -> 0 | V46: 0 | W46: 0 | X46: 9 | Y46: =IF(X46=0,BijAlgOvg!AF$7,OFFSET(Y$1,X46-1,0)) -> 0 | Z46: 0 | AA46: 0 | AB46: 9 | AC46: =IF(AB46=0,BijAlgOvg!AJ$7,OFFSET(AC$1,AB46-1,0)) -> 0 | AD46: 0 | AE46: 0 | AF46: 9 | AG46: =IF(AF46=0,BijAlgOvg!AN$7,OFFSET(AG$1,AF46-1,0)) -> 0 | AH46: 0 | AI46: 0
D47: =IF(BijAlgOvg!M37<>BijAlgOvg!M36,BijAlgOvg!M37,"") ->  | E47: 26 | F47: =IF(BijAlgOvg!BB36=0,1000,(BijAlgOvg!AW36-IF($G$21,BijAlgOvg!AS36,0))/BijAlgOvg!BB36) -> 1000 | G47: 12 | H47: 10 | I47: =IF(H47=0,BijAlgOvg!P$7,OFFSET(I$1,H47-1,0)) -> 0 | J47: 0 | K47: 0 | L47: 10 | M47: =IF(L47=0,BijAlgOvg!T$7,OFFSET(M$1,L47-1,0)) -> 0 | N47: 0 | O47: 0 | P47: 10 | Q47: =IF(P47=0,BijAlgOvg!X$7,OFFSET(Q$1,P47-1,0)) -> 0 | R47: 0 | S47: 0 | T47: 10 | U47: =IF(T47=0,BijAlgOvg!AB$7,OFFSET(U$1,T47-1,0)) -> 0 | V47: 0 | W47: 0 | X47: 10 | Y47: =IF(X47=0,BijAlgOvg!AF$7,OFFSET(Y$1,X47-1,0)) -> 0 | Z47: 0 | AA47: 0 | AB47: 10 | AC47: =IF(AB47=0,BijAlgOvg!AJ$7,OFFSET(AC$1,AB47-1,0)) -> 0 | AD47: 0 | AE47: 0 | AF47: 10 | AG47: =IF(AF47=0,BijAlgOvg!AN$7,OFFSET(AG$1,AF47-1,0)) -> 0 | AH47: 0 | AI47: 0
D48: =IF(BijAlgOvg!M38<>BijAlgOvg!M37,BijAlgOvg!M38,"") ->  | E48: 27 | F48: =IF(BijAlgOvg!BB37=0,1000,(BijAlgOvg!AW37-IF($G$21,BijAlgOvg!AS37,0))/BijAlgOvg!BB37) -> 1000 | G48: 12 | H48: 11 | I48: =IF(H48=0,BijAlgOvg!P$7,OFFSET(I$1,H48-1,0)) -> 0 | J48: 0 | K48: 0 | L48: 11 | M48: =IF(L48=0,BijAlgOvg!T$7,OFFSET(M$1,L48-1,0)) -> 0 | N48: 0 | O48: 0 | P48: 11 | Q48: =IF(P48=0,BijAlgOvg!X$7,OFFSET(Q$1,P48-1,0)) -> 0 | R48: 0 | S48: 0 | T48: 11 | U48: =IF(T48=0,BijAlgOvg!AB$7,OFFSET(U$1,T48-1,0)) -> 0 | V48: 0 | W48: 0 | X48: 11 | Y48: =IF(X48=0,BijAlgOvg!AF$7,OFFSET(Y$1,X48-1,0)) -> 0 | Z48: 0 | AA48: 0 | AB48: 11 | AC48: =IF(AB48=0,BijAlgOvg!AJ$7,OFFSET(AC$1,AB48-1,0)) -> 0 | AD48: 0 | AE48: 0 | AF48: 11 | AG48: =IF(AF48=0,BijAlgOvg!AN$7,OFFSET(AG$1,AF48-1,0)) -> 0 | AH48: 0 | AI48: 0
D49: =IF(BijAlgOvg!M39<>BijAlgOvg!M38,BijAlgOvg!M39,"") ->  | E49: 28 | F49: =IF(BijAlgOvg!BB38=0,1000,(BijAlgOvg!AW38-IF($G$21,BijAlgOvg!AS38,0))/BijAlgOvg!BB38) -> 1000 | G49: 12 | H49: 12 | I49: =IF(H49=0,BijAlgOvg!P$7,OFFSET(I$1,H49-1,0)) -> 0 | J49: 0 | K49: 0 | L49: 12 | M49: =IF(L49=0,BijAlgOvg!T$7,OFFSET(M$1,L49-1,0)) -> 0 | N49: 0 | O49: 0 | P49: 12 | Q49: =IF(P49=0,BijAlgOvg!X$7,OFFSET(Q$1,P49-1,0)) -> 0 | R49: 0 | S49: 0 | T49: 12 | U49: =IF(T49=0,BijAlgOvg!AB$7,OFFSET(U$1,T49-1,0)) -> 0 | V49: 0 | W49: 0 | X49: 12 | Y49: =IF(X49=0,BijAlgOvg!AF$7,OFFSET(Y$1,X49-1,0)) -> 0 | Z49: 0 | AA49: 0 | AB49: 12 | AC49: =IF(AB49=0,BijAlgOvg!AJ$7,OFFSET(AC$1,AB49-1,0)) -> 0 | AD49: 0 | AE49: 0 | AF49: 12 | AG49: =IF(AF49=0,BijAlgOvg!AN$7,OFFSET(AG$1,AF49-1,0)) -> 0 | AH49: 0 | AI49: 0
D50: =IF(BijAlgOvg!M40<>BijAlgOvg!M39,BijAlgOvg!M40,"") ->  | E50: 29 | F50: =IF(BijAlgOvg!BB39=0,1000,(BijAlgOvg!AW39-IF($G$21,BijAlgOvg!AS39,0))/BijAlgOvg!BB39) -> 1000 | G50: 12 | H50: 13 | I50: =IF(H50=0,BijAlgOvg!P$7,OFFSET(I$1,H50-1,0)) -> 0 | J50: 0 | K50: 0 | L50: 13 | M50: =IF(L50=0,BijAlgOvg!T$7,OFFSET(M$1,L50-1,0)) -> 0 | N50: 0 | O50: 0 | P50: 13 | Q50: =IF(P50=0,BijAlgOvg!X$7,OFFSET(Q$1,P50-1,0)) -> 0 | R50: 0 | S50: 0 | T50: 13 | U50: =IF(T50=0,BijAlgOvg!AB$7,OFFSET(U$1,T50-1,0)) -> 0 | V50: 0 | W50: 0 | X50: 13 | Y50: =IF(X50=0,BijAlgOvg!AF$7,OFFSET(Y$1,X50-1,0)) -> 0 | Z50: 0 | AA50: 0 | AB50: 13 | AC50: =IF(AB50=0,BijAlgOvg!AJ$7,OFFSET(AC$1,AB50-1,0)) -> 0 | AD50: 0 | AE50: 0 | AF50: 13 | AG50: =IF(AF50=0,BijAlgOvg!AN$7,OFFSET(AG$1,AF50-1,0)) -> 0 | AH50: 0 | AI50: 0
D51: =IF(BijAlgOvg!M41<>BijAlgOvg!M40,BijAlgOvg!M41,"") ->  | E51: 30 | F51: =IF(BijAlgOvg!BB40=0,1000,(BijAlgOvg!AW40-IF($G$21,BijAlgOvg!AS40,0))/BijAlgOvg!BB40) -> 1000 | G51: 12 | H51: 14 | I51: =IF(H51=0,BijAlgOvg!P$7,OFFSET(I$1,H51-1,0)) -> 0 | J51: 0 | K51: 0 | L51: 14 | M51: =IF(L51=0,BijAlgOvg!T$7,OFFSET(M$1,L51-1,0)) -> 0 | N51: 0 | O51: 0 | P51: 14 | Q51: =IF(P51=0,BijAlgOvg!X$7,OFFSET(Q$1,P51-1,0)) -> 0 | R51: 0 | S51: 0 | T51: 14 | U51: =IF(T51=0,BijAlgOvg!AB$7,OFFSET(U$1,T51-1,0)) -> 0 | V51: 0 | W51: 0 | X51: 14 | Y51: =IF(X51=0,BijAlgOvg!AF$7,OFFSET(Y$1,X51-1,0)) -> 0 | Z51: 0 | AA51: 0 | AB51: 14 | AC51: =IF(AB51=0,BijAlgOvg!AJ$7,OFFSET(AC$1,AB51-1,0)) -> 0 | AD51: 0 | AE51: 0 | AF51: 14 | AG51: =IF(AF51=0,BijAlgOvg!AN$7,OFFSET(AG$1,AF51-1,0)) -> 0 | AH51: 0 | AI51: 0

Sheet BijAlgOvg (hidden)
K1: $m$1ad: | M1: =MID(K2,SEARCH("]",K2,1)+1,255) -> Algemeen overig | P1: =IF(P5="B",P2,0) -> 0 | T1: =IF(T5="B",T2,0) -> 0 | X1: =IF(X5="B",X2,0) -> 0 | AB1: =IF(AB5="B",AB2,0) -> 0 | AF1: =IF(AF5="B",AF2,0) -> 0 | AJ1: =IF(AJ5="B",AJ2,0) -> 0 | AN1: =IF(AN5="B",AN2,0) -> 0 | AS1: =IF(AS2>2*P2,"X","") ->  | AT1: =MATCH(AS2,O1:AQ1,)-1 -> 1 | IV1: HIDE
J2: Pas verwijzing aan=> | K2: =CELL("bestandsnaam",'Algemeen overig'!A49) -> C:\Users\Gebruiker\Google Drive\CalFin\[Calfin 4.6.6 D.xlsm]Algemeen overig | P2: =ROW('Algemeen overig'!A49) -> 49 | T2: =+P2+1 -> 50 | X2: =+T2+1 -> 51 | AB2: =+X2+1 -> 52 | AF2: =+AB2+1 -> 53 | AJ2: =+AF2+1 -> 54 | AN2: =+AJ2+1 -> 55 | AS2: =SUM(P1:AH1) -> 0 | AT2: Band | AU2: =MAX(IFERROR(1/(((AT12:AT41)*12)/(((AT12:AT41)*12)+$AU$11)),0)) -> 0
B3: In jaar | C3: verandering | N3: REST($P13;R$4)>1 | P3: =MATCH(0,P12:P41,-1) -> 1 | T3: =MATCH(0,T12:T41,-1) -> 1 | X3: =MATCH(0,X12:X41,-1) -> 1 | AB3: =MATCH(0,AB12:AB41,-1) -> 1 | AF3: =MATCH(0,AF12:AF41,-1) -> 1 | AJ3: =MATCH(0,AJ12:AJ41,-1) -> 1 | AN3: =MATCH(0,AN12:AN41,-1) -> 1 | AQ3: voeg hier blok toe | AR3: Banksparen; spaarpot
A4: rente scenario | K4: =+'Algemeen overig'!Y47&"" -> J | L4: =+'Algemeen overig'!Z47&"" ->  | N4: Vast | P4: =INDIRECT("'"&$M$1&"'!"&$K4&P$2)+0.000001 -> 10.000001 | T4: =INDIRECT("'"&$M$1&"'!"&$K4&T$2)+0.000001 -> 5.000001 | X4: =INDIRECT("'"&$M$1&"'!"&$K4&X$2)+0.000001 -> 9.000001 | AB4: =INDIRECT("'"&$M$1&"'!"&$K4&AB$2)+0.000001 -> 1e-06 | AF4: =INDIRECT("'"&$M$1&"'!"&$K4&AF$2)+0.000001 -> 1e-06 | AJ4: =INDIRECT("'"&$M$1&"'!"&$K4&AJ$2)+0.000001 -> 1e-06 | AN4: =INDIRECT("'"&$M$1&"'!"&$K4&AN$2)+0.000001 -> 1e-06 | AR4: Vast | AS4: =IF(AS$2=0,0,INDIRECT("'"&$M$1&"'!"&$K4&AS$2)) -> 0 | AW4: Waarde | AX4: =+#REF!+1 -> 
K5: =+'Algemeen overig'!Y48&"" -> V | L5: =+'Algemeen overig'!Z48&"" -> T | N5: Type(A/L/) en % | P5: =INDIRECT("'"&$M$1&"'!"&$K5&P$2) -> L | Q5: =INDIRECT("'"&$M$1&"'!"&$L5&P$2) -> 0 | T5: =INDIRECT("'"&$M$1&"'!"&$K5&T$2) -> A | U5: =INDIRECT("'"&$M$1&"'!"&$L5&T$2) -> 0 | X5: =INDIRECT("'"&$M$1&"'!"&$K5&X$2) -> A | Y5: =INDIRECT("'"&$M$1&"'!"&$L5&X$2) -> 0 | AB5: =INDIRECT("'"&$M$1&"'!"&$K5&AB$2) -> 0 | AC5: =INDIRECT("'"&$M$1&"'!"&$L5&AB$2) -> 0 | AF5: =INDIRECT("'"&$M$1&"'!"&$K5&AF$2) -> 0 | AG5: =INDIRECT("'"&$M$1&"'!"&$L5&AF$2) -> 0 | AJ5: =INDIRECT("'"&$M$1&"'!"&$K5&AJ$2) -> 0 | AK5: =INDIRECT("'"&$M$1&"'!"&$L5&AJ$2) -> 0 | AN5: =INDIRECT("'"&$M$1&"'!"&$K5&AN$2) -> 0 | AO5: =INDIRECT("'"&$M$1&"'!"&$L5&AN$2) -> 0 | AR5: Spaardepot | AS5: =IF(AS$2=0,0,INDIRECT("'"&$M$1&"'!"&$K5&AS$2)) -> 0 | AW5: WOZ | AX5: =+#REF! -> 
K6: =+'Algemeen overig'!Y49&"" -> H | L6: =+'Algemeen overig'!Z49&"" -> I | M6: =+'Algemeen overig'!AA49&"" -> L | N6: Looptijd | P6: =INDIRECT("'"&$M$1&"'!"&$K6&P$2) -> 11 | Q6: =INDIRECT("'"&$M$1&"'!"&$L6&P$2) -> 0 | R6: =INDIRECT("'"&$M$1&"'!"&$M6&P$2) -> 12 | T6: =INDIRECT("'"&$M$1&"'!"&$K6&T$2) -> 6 | U6: =INDIRECT("'"&$M$1&"'!"&$L6&T$2) -> 0 | V6: =INDIRECT("'"&$M$1&"'!"&$M6&T$2) -> 7 | X6: =INDIRECT("'"&$M$1&"'!"&$K6&X$2) -> 7 | Y6: =INDIRECT("'"&$M$1&"'!"&$L6&X$2) -> 0 | Z6: =INDIRECT("'"&$M$1&"'!"&$M6&X$2) -> 11 | AB6: =INDIRECT("'"&$M$1&"'!"&$K6&AB$2) -> 0 | AC6: =INDIRECT("'"&$M$1&"'!"&$L6&AB$2) -> 0 | AD6: =INDIRECT("'"&$M$1&"'!"&$M6&AB$2) -> 0 | AF6: =INDIRECT("'"&$M$1&"'!"&$K6&AF$2) -> 0 | AG6: =INDIRECT("'"&$M$1&"'!"&$L6&AF$2) -> 0 | AH6: =INDIRECT("'"&$M$1&"'!"&$M6&AF$2) -> 0 | AJ6: =INDIRECT("'"&$M$1&"'!"&$K6&AJ$2) -> 0 | AK6: =INDIRECT("'"&$M$1&"'!"&$L6&AJ$2) -> 0 | AL6: =INDIRECT("'"&$M$1&"'!"&$M6&AJ$2) -> 0 | AN6: =INDIRECT("'"&$M$1&"'!"&$K6&AN$2) -> 0 | AO6: =INDIRECT("'"&$M$1&"'!"&$L6&AN$2) -> 0 | AP6: =INDIRECT("'"&$M$1&"'!"&$M6&AN$2) -> 0 | AR6: Tijd | AS6: =IF(AS$2=0,0,INDIRECT("'"&$M$1&"'!"&$K6&AS$2))+1 -> 1 | AW6: Index | AX6: =+#REF! -> 
K7: =+'Algemeen overig'!Y50&"" -> K | L7: =+'Algemeen overig'!Z50&"" ->  | N7: Percentage | P7: =INDIRECT("'"&$M$1&"'!"&$K7&P$2) -> 0.05 | T7: =INDIRECT("'"&$M$1&"'!"&$K7&T$2) -> 0.06 | X7: =INDIRECT("'"&$M$1&"'!"&$K7&X$2) -> 0.08 | AB7: =INDIRECT("'"&$M$1&"'!"&$K7&AB$2) -> 0 | AF7: =INDIRECT("'"&$M$1&"'!"&$K7&AF$2) -> 0 | AJ7: =INDIRECT("'"&$M$1&"'!"&$K7&AJ$2) -> 0 | AN7: =INDIRECT("'"&$M$1&"'!"&$K7&AN$2) -> 0 | AR7: Perc | AS7: =IF(AS$2=0,0,INDIRECT("'"&$M$1&"'!"&$K7&AS$2)) -> 0
K8: =+'Algemeen overig'!Y51&"" -> P | L8: =+'Algemeen overig'!Z51&"" -> O | M8: =+'Algemeen overig'!AA51&"" -> R | N8: Extra | P8: =INDIRECT("'"&$M$1&"'!"&$K8&P$2) -> 0 | Q8: =INDIRECT("'"&$M$1&"'!"&$L8&P$2) -> 0 | R8: =INDIRECT("'"&$M$1&"'!"&$M8&P$2) -> FALSE | T8: =INDIRECT("'"&$M$1&"'!"&$K8&T$2) -> 0 | U8: =INDIRECT("'"&$M$1&"'!"&$L8&T$2) -> 0 | V8: =INDIRECT("'"&$M$1&"'!"&$M8&T$2) -> FALSE | X8: =INDIRECT("'"&$M$1&"'!"&$K8&X$2) -> 0 | Y8: =INDIRECT("'"&$M$1&"'!"&$L8&X$2) -> 0 | Z8: =INDIRECT("'"&$M$1&"'!"&$M8&X$2) -> FALSE | AB8: =INDIRECT("'"&$M$1&"'!"&$K8&AB$2) -> 0 | AC8: =INDIRECT("'"&$M$1&"'!"&$L8&AB$2) -> 0 | AD8: =INDIRECT("'"&$M$1&"'!"&$M8&AB$2) -> 0 | AF8: =INDIRECT("'"&$M$1&"'!"&$K8&AF$2) -> 0 | AG8: =INDIRECT("'"&$M$1&"'!"&$L8&AF$2) -> 0 | AH8: =INDIRECT("'"&$M$1&"'!"&$M8&AF$2) -> 0 | AJ8: =INDIRECT("'"&$M$1&"'!"&$K8&AJ$2) -> 0 | AK8: =INDIRECT("'"&$M$1&"'!"&$L8&AJ$2) -> 0 | AL8: =INDIRECT("'"&$M$1&"'!"&$M8&AJ$2) -> 0 | AN8: =INDIRECT("'"&$M$1&"'!"&$K8&AN$2) -> 0 | AO8: =INDIRECT("'"&$M$1&"'!"&$L8&AN$2) -> 0 | AP8: =INDIRECT("'"&$M$1&"'!"&$M8&AN$2) -> 0
A9: =>cellen toevoegen | M9: =+'Algemeen overig'!AA52&"" -> U | N9: Aftrekbaar | R9: =INDIRECT("'"&$M$1&"'!"&$M9&P$2) -> 1 | V9: =INDIRECT("'"&$M$1&"'!"&$M9&T$2) -> 1 | Z9: =INDIRECT("'"&$M$1&"'!"&$M9&X$2) -> 1 | AD9: =INDIRECT("'"&$M$1&"'!"&$M9&AB$2) -> 0 | AH9: =INDIRECT("'"&$M$1&"'!"&$M9&AF$2) -> 0 | AL9: =INDIRECT("'"&$M$1&"'!"&$M9&AJ$2) -> 0 | AP9: =INDIRECT("'"&$M$1&"'!"&$M9&AN$2) -> 0
L10: FALSE | N10: Afsl direct | P10: =+L10 -> FALSE | T10: =+P10 -> FALSE | X10: =+T10 -> FALSE | AB10: =+X10 -> FALSE | AF10: =+AB10 -> FALSE | AJ10: =+AF10 -> FALSE | AN10: =+AJ10 -> FALSE | AR10: Inleg | AS10: 0 | AW10: Restschuld | AX10: rente & | AY10: Rente | BB10: Restschuld | BC10: PL
K11: =+'Algemeen overig'!Y54&"" -> G | N11: Hoofdsom | O11: =INDIRECT("'"&$M$1&"'!"&$K11&P$2) -> 0 | S11: =INDIRECT("'"&$M$1&"'!"&$K11&T$2) -> 0 | W11: =INDIRECT("'"&$M$1&"'!"&$K11&X$2) -> 0 | AA11: =INDIRECT("'"&$M$1&"'!"&$K11&AB$2) -> 0 | AE11: =INDIRECT("'"&$M$1&"'!"&$K11&AF$2) -> 0 | AI11: =INDIRECT("'"&$M$1&"'!"&$K11&AJ$2) -> 0 | AM11: =INDIRECT("'"&$M$1&"'!"&$K11&AN$2) -> 0 | AS11: =IF(AS$2=0,0,INDIRECT("'"&$M$1&"'!"&$K11&AS$2)) -> 0 | AU11: =+AS10 -> 0 | AW11: =SUM((O11:AQ11)*(MOD(COLUMN(O11:AQ11),4)=MOD(COLUMN(O11),4)))-IF($AS$6-1=$N11,AU11,0) -> 0 | AX11: aflossing | AY11: Bruto | AZ11: %aftrek | BB11: =+O11 -> 0 | BC11: =+AW11-BB11 -> 0
G12: Let op formules in eerste rij zijn anders | M12: =SUM((O12:AH12)*($O$11:$AH$11)*(MOD(COLUMN(O12:AH12),4)=MOD(COLUMN(O12),4)))/(SUM($O$11:$AH$11)+0.000001) -> 0 | N12: 1 | O12: =+P$7 -> 0.05 | P12: =IF($N12>P$6,0,(IF(P$5="A",FV(O12/12,12,Q12/12,-O11),IF(P$5="L",O11-O11/(P$6-$N12+1),IF(P$5="D",MAX(O11-Q$5*O$11*12,0),O11))))-IF(OR(AND(R$8,$N12<P$6),Q$8=$N12),P$8,0)) -> 0 | Q12: =IF($N12>P$6,0,IF(P$5="A",PMT(O12/12,P$6*12,-O11)*12,IF(OR(P$5="L",P$5="D"),O11-P12+R12,R12))) -> 0 | R12: =IF($N12>P$6,0,IF(P$5="A",Q12-(O11-P12)+IF(OR(AND(R$8,P$6<$N12),Q$8=$N12),P$8,0),IF(OR(P$5="L",P$5="d"),(O11+P12)/2*O12,O11*O12))) -> 0 | S12: =+T$7 -> 0.06 | T12: =IF($N12>T$6,0,(IF(T$5="A",FV(S12/12,12,U12/12,-S11),IF(T$5="L",S11-S11/(T$6-$N12+1),IF(T$5="D",MAX(S11-U$5*S$11*12,0),S11))))-IF(OR(AND(V$8,$N12<T$6),U$8=$N12),T$8,0)) -> 0 | U12: =IF($N12>T$6,0,IF(T$5="A",PMT(S12/12,T$6*12,-S11)*12,IF(OR(T$5="L",T$5="D"),S11-T12+V12,V12))) -> 0 | V12: =IF($N12>T$6,0,IF(T$5="A",U12-(S11-T12)+IF(OR(AND(V$8,T$6<$N12),U$8=$N12),T$8,0),IF(OR(T$5="L",T$5="d"),(S11+T12)/2*S12,S11*S12))) -> 0 | W12: =+X$7 -> 0.08 | X12: =IF($N12>X$6,0,(IF(X$5="A",FV(W12/12,12,Y12/12,-W11),IF(X$5="L",W11-W11/(X$6-$N12+1),IF(X$5="D",MAX(W11-Y$5*W$11*12,0),W11))))-IF(OR(AND(Z$8,$N12<X$6),Y$8=$N12),X$8,0)) -> 0 | Y12: =IF($N12>X$6,0,IF(X$5="A",PMT(W12/12,X$6*12,-W11)*12,IF(OR(X$5="L",X$5="D"),W11-X12+Z12,Z12))) -> 0 | Z12: =IF($N12>X$6,0,IF(X$5="A",Y12-(W11-X12)+IF(OR(AND(Z$8,X$6<$N12),Y$8=$N12),X$8,0),IF(OR(X$5="L",X$5="d"),(W11+X12)/2*W12,W11*W12))) -> 0 | AA12: =+AB$7 -> 0 | AB12: =IF($N12>AB$6,0,(IF(AB$5="A",FV(AA12/12,12,AC12/12,-AA11),IF(AB$5="L",AA11-AA11/(AB$6-$N12+1),IF(AB$5="D",MAX(AA11-AC$5*AA$11*12,0),AA11))))-IF(OR(AND(AD$8,$N12<AB$6),AC$8=$N12),AB$8,0)) -> 0 | AC12: =IF($N12>AB$6,0,IF(AB$5="A",PMT(AA12/12,AB$6*12,-AA11)*12,IF(OR(AB$5="L",AB$5="D"),AA11-AB12+AD12,AD12))) -> 0 | AD12: =IF($N12>AB$6,0,IF(AB$5="A",AC12-(AA11-AB12)+IF(OR(AND(AD$8,AB$6<$N12),AC$8=$N12),AB$8,0),IF(OR(AB$5="L",AB$5="d"),(AA11+AB12)/2*AA12,AA11*AA12))) -> 0 | AE12: =+AF$7 -> 0 | AF12: =IF($N12>AF$6,0,(IF(AF$5="A",FV(AE12/12,12,AG12/12,-AE11),IF(AF$5="L",AE11-AE11/(AF$6-$N12+1),IF(AF$5="D",MAX(AE11-AG$5*AE$11*12,0),AE11))))-IF(OR(AND(AH$8,$N12<AF$6),AG$8=$N12),AF$8,0)) -> 0 | AG12: =IF($N12>AF$6,0,IF(AF$5="A",PMT(AE12/12,AF$6*12,-AE11)*12,IF(OR(AF$5="L",AF$5="D"),AE11-AF12+AH12,AH12))) -> 0 | AH12: =IF($N12>AF$6,0,IF(AF$5="A",AG12-(AE11-AF12)+IF(OR(AND(AH$8,AF$6<$N12),AG$8=$N12),AF$8,0),IF(OR(AF$5="L",AF$5="d"),(AE11+AF12)/2*AE12,AE11*AE12))) -> 0 | AI12: =+AJ$7 -> 0 | AJ12: =IF($N12>AJ$6,0,(IF(AJ$5="A",FV(AI12/12,12,AK12/12,-AI11),IF(AJ$5="L",AI11-AI11/(AJ$6-$N12+1),IF(AJ$5="D",MAX(AI11-AK$5*AI$11*12,0),AI11))))-IF(OR(AND(AL$8,$N12<AJ$6),AK$8=$N12),AJ$8,0)) -> 0 | AK12: =IF($N12>AJ$6,0,IF(AJ$5="A",PMT(AI12/12,AJ$6*12,-AI11)*12,IF(OR(AJ$5="L",AJ$5="D"),AI11-AJ12+AL12,AL12))) -> 0 | AL12: =IF($N12>AJ$6,0,IF(AJ$5="A",AK12-(AI11-AJ12)+IF(OR(AND(AL$8,AJ$6<$N12),AK$8=$N12),AJ$8,0),IF(OR(AJ$5="L",AJ$5="d"),(AI11+AJ12)/2*AI12,AI11*AI12))) -> 0 | AM12: =+AN$7 -> 0 | AN12: =IF($N12>AN$6,0,(IF(AN$5="A",FV(AM12/12,12,AO12/12,-AM11),IF(AN$5="L",AM11-AM11/(AN$6-$N12+1),IF(AN$5="D",MAX(AM11-AO$5*AM$11*12,0),AM11))))-IF(OR(AND(AP$8,$N12<AN$6),AO$8=$N12),AN$8,0)) -> 0 | AO12: =IF($N12>AN$6,0,IF(AN$5="A",PMT(AM12/12,AN$6*12,-AM11)*12,IF(OR(AN$5="L",AN$5="D"),AM11-AN12+AP12,AP12))) -> 0 | AP12: =IF($N12>AN$6,0,IF(AN$5="A",AO12-(AM11-AN12)+IF(OR(AND(AP$8,AN$6<$N12),AO$8=$N12),AN$8,0),IF(OR(AN$5="L",AN$5="d"),(AM11+AN12)/2*AM12,AM11*AM12))) -> 0 | AR12: =INDEX(O12:AQ12,$AT$1) -> 0.05 | AT12: =IF($N12>AS$6-1,0,(AS$11-POWER((1+(AR12/12)),(AS$6-$N12)*12)*AU11)*(AR12/12)/(POWER((1+(AR12/12)),(AS$6-$N12)*12)-1)) -> 0 | AU12: =IF(N12>AS$6-1,0,-FV(AR12/12,12*$N$12,AT12,AU11)) -> 0 | AW12: =SUM((O12:AQ12)*(MOD(COLUMN(O12:AQ12),4)=MOD(COLUMN(P12),4)))-IF($AS$6-1=$N12,AU12,0) -> 0 | AX12: =SUM((P12:AR12)*(MOD(COLUMN(P12:AR12),4)=MOD(COLUMN(Q12),4)))+AT12*12 -> 0 | AY12: =CEILING(SUM((P12:AQ12)*(MOD(COLUMN(P12:AQ12),4)=MOD(COLUMN(R12),4))),1) -> 0 | AZ12: =SUM((P12:AQ12)*(MOD(COLUMN(P12:AQ12),4)=MOD(COLUMN(R12),4))*(P$9:AQ$9)*(P$6:AQ$6>=$N12)) -> 0 | BB12: =+P12 -> 0 | BC12: =+AW12-BB12 -> 0
M13: =SUM((O13:AH13)*($O$11:$AH$11)*(MOD(COLUMN(O13:AH13),4)=MOD(COLUMN(O13),4)))/(SUM($O$11:$AH$11)+0.000001) -> 0 | N13: 2 | O13: =IF($N13<=P$4,IF(P$10,ROBijAlgOvg!K23,0)+O12,IF(AlgemeenOUD!$F$41=1,ROBijAlgOvg!I23,P$7)+ROBijAlgOvg!J23) -> 0.05 | P13: =IF($N13>P$6,0,(IF(P$5="A",FV(O13/12,12,Q13/12,-P12),IF(P$5="L",P12-P12/(P$6-$N13+1),IF(P$5="D",MAX(P12-Q$5*O$11*12,0),P12))))-IF(OR(AND(R$8,$N13<P$6),Q$8=$N13),P$8,0)) -> 0 | Q13: =IF($N13-0.99>P$6,0,IF(P$5="A",PMT(O13/12,(P$6-$N13+1)*12,-P12)*IF($N13>P$6,Q$6,12),IF(OR(P$5="L",P$5="D"),IF($N13>P$6,P12,P12-P13+R13),R13))) -> 0 | R13: =IF($N13-0.99>P$6,0,IF(P$5="A",Q13-(P12-P13)+IF(OR(AND(R$8,P$6<$N13),Q$8=$N13),P$8,0),IF(OR(P$5="L",P$5="d"),IF($N13>P$6,P12*O13/12*P$6,(P12+P13)/2*O13),P12*O13))) -> 0 | S13: =IF($N13<=T$4,IF(T$10,ROBijAlgOvg!O23,0)+S12,IF(AlgemeenOUD!$F$41=1,ROBijAlgOvg!M23,T$7)+ROBijAlgOvg!N23) -> 0.06 | T13: =IF($N13>T$6,0,(IF(T$5="A",FV(S13/12,12,U13/12,-T12),IF(T$5="L",T12-T12/(T$6-$N13+1),IF(T$5="D",MAX(T12-U$5*S$11*12,0),T12))))-IF(OR(AND(V$8,$N13<T$6),U$8=$N13),T$8,0)) -> 0 | U13: =IF($N13-0.99>T$6,0,IF(T$5="A",PMT(S13/12,(T$6-$N13+1)*12,-T12)*IF($N13>T$6,U$6,12),IF(OR(T$5="L",T$5="D"),IF($N13>T$6,T12,T12-T13+V13),V13))) -> 0 | V13: =IF($N13-0.99>T$6,0,IF(T$5="A",U13-(T12-T13)+IF(OR(AND(V$8,T$6<$N13),U$8=$N13),T$8,0),IF(OR(T$5="L",T$5="d"),IF($N13>T$6,T12*S13/12*T$6,(T12+T13)/2*S13),T12*S13))) -> 0 | W13: =IF($N13<=X$4,IF(X$10,ROBijAlgOvg!S23,0)+W12,IF(AlgemeenOUD!$F$41=1,ROBijAlgOvg!Q23,X$7)+ROBijAlgOvg!R23) -> 0.08 | X13: =IF($N13>X$6,0,(IF(X$5="A",FV(W13/12,12,Y13/12,-X12),IF(X$5="L",X12-X12/(X$6-$N13+1),IF(X$5="D",MAX(X12-Y$5*W$11*12,0),X12))))-IF(OR(AND(Z$8,$N13<X$6),Y$8=$N13),X$8,0)) -> 0 | Y13: =IF($N13-0.99>X$6,0,IF(X$5="A",PMT(W13/12,(X$6-$N13+1)*12,-X12)*IF($N13>X$6,Y$6,12),IF(OR(X$5="L",X$5="D"),IF($N13>X$6,X12,X12-X13+Z13),Z13))) -> 0 | Z13: =IF($N13-0.99>X$6,0,IF(X$5="A",Y13-(X12-X13)+IF(OR(AND(Z$8,X$6<$N13),Y$8=$N13),X$8,0),IF(OR(X$5="L",X$5="d"),IF($N13>X$6,X12*W13/12*X$6,(X12+X13)/2*W13),X12*W13))) -> 0 | AA13: =IF($N13<=AB$4,IF(AB$10,ROBijAlgOvg!W23,0)+AA12,IF(AlgemeenOUD!$F$41=1,ROBijAlgOvg!U23,AB$7)+ROBijAlgOvg!V23) -> 0 | AB13: =IF($N13>AB$6,0,(IF(AB$5="A",FV(AA13/12,12,AC13/12,-AB12),IF(AB$5="L",AB12-AB12/(AB$6-$N13+1),IF(AB$5="D",MAX(AB12-AC$5*AA$11*12,0),AB12))))-IF(OR(AND(AD$8,$N13<AB$6),AC$8=$N13),AB$8,0)) -> 0 | AC13: =IF($N13-0.99>AB$6,0,IF(AB$5="A",PMT(AA13/12,(AB$6-$N13+1)*12,-AB12)*IF($N13>AB$6,AC$6,12),IF(OR(AB$5="L",AB$5="D"),IF($N13>AB$6,AB12,AB12-AB13+AD13),AD13))) -> 0 | AD13: =IF($N13-0.99>AB$6,0,IF(AB$5="A",AC13-(AB12-AB13)+IF(OR(AND(AD$8,AB$6<$N13),AC$8=$N13),AB$8,0),IF(OR(AB$5="L",AB$5="d"),IF($N13>AB$6,AB12*AA13/12*AB$6,(AB12+AB13)/2*AA13),AB12*AA13))) -> 0 | AE13: =IF($N13<=AF$4,IF(AF$10,ROBijAlgOvg!AA23,0)+AE12,IF(AlgemeenOUD!$F$41=1,ROBijAlgOvg!Y23,AF$7)+ROBijAlgOvg!Z23) -> 0 | AF13: =IF($N13>AF$6,0,(IF(AF$5="A",FV(AE13/12,12,AG13/12,-AF12),IF(AF$5="L",AF12-AF12/(AF$6-$N13+1),IF(AF$5="D",MAX(AF12-AG$5*AE$11*12,0),AF12))))-IF(OR(AND(AH$8,$N13<AF$6),AG$8=$N13),AF$8,0)) -> 0 | AG13: =IF($N13-0.99>AF$6,0,IF(AF$5="A",PMT(AE13/12,(AF$6-$N13+1)*12,-AF12)*IF($N13>AF$6,AG$6,12),IF(OR(AF$5="L",AF$5="D"),IF($N13>AF$6,AF12,AF12-AF13+AH13),AH13))) -> 0 | AH13: =IF($N13-0.99>AF$6,0,IF(AF$5="A",AG13-(AF12-AF13)+IF(OR(AND(AH$8,AF$6<$N13),AG$8=$N13),AF$8,0),IF(OR(AF$5="L",AF$5="d"),IF($N13>AF$6,AF12*AE13/12*AF$6,(AF12+AF13)/2*AE13),AF12*AE13))) -> 0 | AI13: =IF($N13<=AJ$4,IF(AJ$10,ROBijAlgOvg!AE23,0)+AI12,IF(AlgemeenOUD!$F$41=1,ROBijAlgOvg!AC23,AJ$7)+ROBijAlgOvg!AD23) -> 0 | AJ13: =IF($N13>AJ$6,0,(IF(AJ$5="A",FV(AI13/12,12,AK13/12,-AJ12),IF(AJ$5="L",AJ12-AJ12/(AJ$6-$N13+1),IF(AJ$5="D",MAX(AJ12-AK$5*AI$11*12,0),AJ12))))-IF(OR(AND(AL$8,$N13<AJ$6),AK$8=$N13),AJ$8,0)) -> 0 | AK13: =IF($N13-0.99>AJ$6,0,IF(AJ$5="A",PMT(AI13/12,(AJ$6-$N13+1)*12,-AJ12)*IF($N13>AJ$6,AK$6,12),IF(OR(AJ$5="L",AJ$5="D"),IF($N13>AJ$6,AJ12,AJ12-AJ13+AL13),AL13))) -> 0 | AL13: =IF($N13-0.99>AJ$6,0,IF(AJ$5="A",AK13-(AJ12-AJ13)+IF(OR(AND(AL$8,AJ$6<$N13),AK$8=$N13),AJ$8,0),IF(OR(AJ$5="L",AJ$5="d"),IF($N13>AJ$6,AJ12*AI13/12*AJ$6,(AJ12+AJ13)/2*AI13),AJ12*AI13))) -> 0 | AM13: =IF($N13<=AN$4,IF(AN$10,ROBijAlgOvg!AI23,0)+AM12,IF(AlgemeenOUD!$F$41=1,ROBijAlgOvg!AG23,AN$7)+ROBijAlgOvg!AH23) -> 0 | AN13: =IF($N13>AN$6,0,(IF(AN$5="A",FV(AM13/12,12,AO13/12,-AN12),IF(AN$5="L",AN12-AN12/(AN$6-$N13+1),IF(AN$5="D",MAX(AN12-AO$5*AM$11*12,0),AN12))))-IF(OR(AND(AP$8,$N13<AN$6),AO$8=$N13),AN$8,0)) -> 0 | AO13: =IF($N13-0.99>AN$6,0,IF(AN$5="A",PMT(AM13/12,(AN$6-$N13+1)*12,-AN12)*IF($N13>AN$6,AO$6,12),IF(OR(AN$5="L",AN$5="D"),IF($N13>AN$6,AN12,AN12-AN13+AP13),AP13))) -> 0 | AP13: =IF($N13-0.99>AN$6,0,IF(AN$5="A",AO13-(AN12-AN13)+IF(OR(AND(AP$8,AN$6<$N13),AO$8=$N13),AN$8,0),IF(OR(AN$5="L",AN$5="d"),IF($N13>AN$6,AN12*AM13/12*AN$6,(AN12+AN13)/2*AM13),AN12*AM13))) -> 0 | AR13: 0.05 | AT13: 0 | AU13: 0 | AW13: =SUM((O13:AQ13)*(MOD(COLUMN(O13:AQ13),4)=MOD(COLUMN(P13),4)))-IF($AS$6-1=$N13,AU13,0) -> 0 | AX13: =SUM((P13:AR13)*(MOD(COLUMN(P13:AR13),4)=MOD(COLUMN(Q13),4)))+AT13*12 -> 0 | AY13: =CEILING(SUM((P13:AQ13)*(MOD(COLUMN(P13:AQ13),4)=MOD(COLUMN(R13),4))),1) -> 0 | AZ13: =SUM((P13:AQ13)*(MOD(COLUMN(P13:AQ13),4)=MOD(COLUMN(R13),4))*(P$9:AQ$9)*(P$6:AQ$6>=$N13)) -> 0 | BB13: =+P13 -> 0 | BC13: =+AW13-BB13 -> 0
D14: extra aflossing | M14: =SUM((O14:AH14)*($O$11:$AH$11)*(MOD(COLUMN(O14:AH14),4)=MOD(COLUMN(O14),4)))/(SUM($O$11:$AH$11)+0.000001) -> 0 | N14: 3 | O14: =IF($N14<=P$4,IF(P$10,ROBijAlgOvg!K24,0)+O13,IF(AlgemeenOUD!$F$41=1,ROBijAlgOvg!I24,P$7)+ROBijAlgOvg!J24) -> 0.05 | P14: 0 | Q14: =IF($N14-0.99>P$6,0,IF(P$5="A",PMT(O14/12,(P$6-$N14+1)*12,-P13)*IF($N14>P$6,Q$6,12),IF(OR(P$5="L",P$5="D"),IF($N14>P$6,P13,P13-P14+R14),R14))) -> 0 | R14: =IF($N14-0.99>P$6,0,IF(P$5="A",Q14-(P13-P14)+IF(OR(AND(R$8,P$6<$N14),Q$8=$N14),P$8,0),IF(OR(P$5="L",P$5="d"),IF($N14>P$6,P13*O14/12*P$6,(P13+P14)/2*O14),P13*O14))) -> 0 | S14: =IF($N14<=T$4,IF(T$10,ROBijAlgOvg!O24,0)+S13,IF(AlgemeenOUD!$F$41=1,ROBijAlgOvg!M24,T$7)+ROBijAlgOvg!N24) -> 0.06 | T14: 0 | U14: =IF($N14-0.99>T$6,0,IF(T$5="A",PMT(S14/12,(T$6-$N14+1)*12,-T13)*IF($N14>T$6,U$6,12),IF(OR(T$5="L",T$5="D"),IF($N14>T$6,T13,T13-T14+V14),V14))) -> 0 | V14: =IF($N14-0.99>T$6,0,IF(T$5="A",U14-(T13-T14)+IF(OR(AND(V$8,T$6<$N14),U$8=$N14),T$8,0),IF(OR(T$5="L",T$5="d"),IF($N14>T$6,T13*S14/12*T$6,(T13+T14)/2*S14),T13*S14))) -> 0 | W14: =IF($N14<=X$4,IF(X$10,ROBijAlgOvg!S24,0)+W13,IF(AlgemeenOUD!$F$41=1,ROBijAlgOvg!Q24,X$7)+ROBijAlgOvg!R24) -> 0.08 | X14: 0 | Y14: =IF($N14-0.99>X$6,0,IF(X$5="A",PMT(W14/12,(X$6-$N14+1)*12,-X13)*IF($N14>X$6,Y$6,12),IF(OR(X$5="L",X$5="D"),IF($N14>X$6,X13,X13-X14+Z14),Z14))) -> 0 | Z14: =IF($N14-0.99>X$6,0,IF(X$5="A",Y14-(X13-X14)+IF(OR(AND(Z$8,X$6<$N14),Y$8=$N14),X$8,0),IF(OR(X$5="L",X$5="d"),IF($N14>X$6,X13*W14/12*X$6,(X13+X14)/2*W14),X13*W14))) -> 0 | AA14: =IF($N14<=AB$4,IF(AB$10,ROBijAlgOvg!W24,0)+AA13,IF(AlgemeenOUD!$F$41=1,ROBijAlgOvg!U24,AB$7)+ROBijAlgOvg!V24) -> 0 | AB14: 0 | AC14: =IF($N14-0.99>AB$6,0,IF(AB$5="A",PMT(AA14/12,(AB$6-$N14+1)*12,-AB13)*IF($N14>AB$6,AC$6,12),IF(OR(AB$5="L",AB$5="D"),IF($N14>AB$6,AB13,AB13-AB14+AD14),AD14))) -> 0 | AD14: =IF($N14-0.99>AB$6,0,IF(AB$5="A",AC14-(AB13-AB14)+IF(OR(AND(AD$8,AB$6<$N14),AC$8=$N14),AB$8,0),IF(OR(AB$5="L",AB$5="d"),IF($N14>AB$6,AB13*AA14/12*AB$6,(AB13+AB14)/2*AA14),AB13*AA14))) -> 0 | AE14: =IF($N14<=AF$4,IF(AF$10,ROBijAlgOvg!AA24,0)+AE13,IF(AlgemeenOUD!$F$41=1,ROBijAlgOvg!Y24,AF$7)+ROBijAlgOvg!Z24) -> 0 | AF14: 0 | AG14: =IF($N14-0.99>AF$6,0,IF(AF$5="A",PMT(AE14/12,(AF$6-$N14+1)*12,-AF13)*IF($N14>AF$6,AG$6,12),IF(OR(AF$5="L",AF$5="D"),IF($N14>AF$6,AF13,AF13-AF14+AH14),AH14))) -> 0 | AH14: =IF($N14-0.99>AF$6,0,IF(AF$5="A",AG14-(AF13-AF14)+IF(OR(AND(AH$8,AF$6<$N14),AG$8=$N14),AF$8,0),IF(OR(AF$5="L",AF$5="d"),IF($N14>AF$6,AF13*AE14/12*AF$6,(AF13+AF14)/2*AE14),AF13*AE14))) -> 0 | AI14: =IF($N14<=AJ$4,IF(AJ$10,ROBijAlgOvg!AE24,0)+AI13,IF(AlgemeenOUD!$F$41=1,ROBijAlgOvg!AC24,AJ$7)+ROBijAlgOvg!AD24) -> 0 | AJ14: 0 | AK14: =IF($N14-0.99>AJ$6,0,IF(AJ$5="A",PMT(AI14/12,(AJ$6-$N14+1)*12,-AJ13)*IF($N14>AJ$6,AK$6,12),IF(OR(AJ$5="L",AJ$5="D"),IF($N14>AJ$6,AJ13,AJ13-AJ14+AL14),AL14))) -> 0 | AL14: =IF($N14-0.99>AJ$6,0,IF(AJ$5="A",AK14-(AJ13-AJ14)+IF(OR(AND(AL$8,AJ$6<$N14),AK$8=$N14),AJ$8,0),IF(OR(AJ$5="L",AJ$5="d"),IF($N14>AJ$6,AJ13*AI14/12*AJ$6,(AJ13+AJ14)/2*AI14),AJ13*AI14))) -> 0 | AM14: =IF($N14<=AN$4,IF(AN$10,ROBijAlgOvg!AI24,0)+AM13,IF(AlgemeenOUD!$F$41=1,ROBijAlgOvg!AG24,AN$7)+ROBijAlgOvg!AH24) -> 0 | AN14: 0 | AO14: =IF($N14-0.99>AN$6,0,IF(AN$5="A",PMT(AM14/12,(AN$6-$N14+1)*12,-AN13)*IF($N14>AN$6,AO$6,12),IF(OR(AN$5="L",AN$5="D"),IF($N14>AN$6,AN13,AN13-AN14+AP14),AP14))) -> 0 | AP14: =IF($N14-0.99>AN$6,0,IF(AN$5="A",AO14-(AN13-AN14)+IF(OR(AND(AP$8,AN$6<$N14),AO$8=$N14),AN$8,0),IF(OR(AN$5="L",AN$5="d"),IF($N14>AN$6,AN13*AM14/12*AN$6,(AN13+AN14)/2*AM14),AN13*AM14))) -> 0 | AR14: 0.05 | AT14: 0 | AU14: 0 | AW14: =SUM((O14:AQ14)*(MOD(COLUMN(O14:AQ14),4)=MOD(COLUMN(P14),4)))-IF($AS$6-1=$N14,AU14,0) -> 0 | AX14: =SUM((P14:AR14)*(MOD(COLUMN(P14:AR14),4)=MOD(COLUMN(Q14),4)))+AT14*12 -> 0 | AY14: =CEILING(SUM((P14:AQ14)*(MOD(COLUMN(P14:AQ14),4)=MOD(COLUMN(R14),4))),1) -> 0 | AZ14: =SUM((P14:AQ14)*(MOD(COLUMN(P14:AQ14),4)=MOD(COLUMN(R14),4))*(P$9:AQ$9)*(P$6:AQ$6>=$N14)) -> 0 | BB14: 0 | BC14: 0
B15: 0 | C15: =+'Algemeen overig'!O49 -> 0 | D15: =IF(C15<=0,0,INDEX($P$12:$AQ$45,C15,1+B15*4)) -> 0 | E15: =IF(D15<0,INDEX($P$1:AQ45,8,1+B15*4)+D15,'Algemeen overig'!P49) -> 0 | M15: =SUM((O15:AH15)*($O$11:$AH$11)*(MOD(COLUMN(O15:AH15),4)=MOD(COLUMN(O15),4)))/(SUM($O$11:$AH$11)+0.000001) -> 0 | N15: 4 | O15: =IF($N15<=P$4,IF(P$10,ROBijAlgOvg!K25,0)+O14,IF(AlgemeenOUD!$F$41=1,ROBijAlgOvg!I25,P$7)+ROBijAlgOvg!J25) -> 0.05 | P15: 0 | Q15: =IF($N15-0.99>P$6,0,IF(P$5="A",PMT(O15/12,(P$6-$N15+1)*12,-P14)*IF($N15>P$6,Q$6,12),IF(OR(P$5="L",P$5="D"),IF($N15>P$6,P14,P14-P15+R15),R15))) -> 0 | R15: 0 | S15: =IF($N15<=T$4,IF(T$10,ROBijAlgOvg!O25,0)+S14,IF(AlgemeenOUD!$F$41=1,ROBijAlgOvg!M25,T$7)+ROBijAlgOvg!N25) -> 0.06 | T15: 0 | U15: =IF($N15-0.99>T$6,0,IF(T$5="A",PMT(S15/12,(T$6-$N15+1)*12,-T14)*IF($N15>T$6,U$6,12),IF(OR(T$5="L",T$5="D"),IF($N15>T$6,T14,T14-T15+V15),V15))) -> 0 | V15: 0 | W15: =IF($N15<=X$4,IF(X$10,ROBijAlgOvg!S25,0)+W14,IF(AlgemeenOUD!$F$41=1,ROBijAlgOvg!Q25,X$7)+ROBijAlgOvg!R25) -> 0.08 | X15: 0 | Y15: =IF($N15-0.99>X$6,0,IF(X$5="A",PMT(W15/12,(X$6-$N15+1)*12,-X14)*IF($N15>X$6,Y$6,12),IF(OR(X$5="L",X$5="D"),IF($N15>X$6,X14,X14-X15+Z15),Z15))) -> 0 | Z15: 0 | AA15: =IF($N15<=AB$4,IF(AB$10,ROBijAlgOvg!W25,0)+AA14,IF(AlgemeenOUD!$F$41=1,ROBijAlgOvg!U25,AB$7)+ROBijAlgOvg!V25) -> 0 | AB15: 0 | AC15: =IF($N15-0.99>AB$6,0,IF(AB$5="A",PMT(AA15/12,(AB$6-$N15+1)*12,-AB14)*IF($N15>AB$6,AC$6,12),IF(OR(AB$5="L",AB$5="D"),IF($N15>AB$6,AB14,AB14-AB15+AD15),AD15))) -> 0 | AD15: 0 | AE15: =IF($N15<=AF$4,IF(AF$10,ROBijAlgOvg!AA25,0)+AE14,IF(AlgemeenOUD!$F$41=1,ROBijAlgOvg!Y25,AF$7)+ROBijAlgOvg!Z25) -> 0 | AF15: 0 | AG15: =IF($N15-0.99>AF$6,0,IF(AF$5="A",PMT(AE15/12,(AF$6-$N15+1)*12,-AF14)*IF($N15>AF$6,AG$6,12),IF(OR(AF$5="L",AF$5="D"),IF($N15>AF$6,AF14,AF14-AF15+AH15),AH15))) -> 0 | AH15: 0 | AI15: =IF($N15<=AJ$4,IF(AJ$10,ROBijAlgOvg!AE25,0)+AI14,IF(AlgemeenOUD!$F$41=1,ROBijAlgOvg!AC25,AJ$7)+ROBijAlgOvg!AD25) -> 0 | AJ15: 0 | AK15: =IF($N15-0.99>AJ$6,0,IF(AJ$5="A",PMT(AI15/12,(AJ$6-$N15+1)*12,-AJ14)*IF($N15>AJ$6,AK$6,12),IF(OR(AJ$5="L",AJ$5="D"),IF($N15>AJ$6,AJ14,AJ14-AJ15+AL15),AL15))) -> 0 | AL15: 0 | AM15: =IF($N15<=AN$4,IF(AN$10,ROBijAlgOvg!AI25,0)+AM14,IF(AlgemeenOUD!$F$41=1,ROBijAlgOvg!AG25,AN$7)+ROBijAlgOvg!AH25) -> 0 | AN15: 0 | AO15: =IF($N15-0.99>AN$6,0,IF(AN$5="A",PMT(AM15/12,(AN$6-$N15+1)*12,-AN14)*IF($N15>AN$6,AO$6,12),IF(OR(AN$5="L",AN$5="D"),IF($N15>AN$6,AN14,AN14-AN15+AP15),AP15))) -> 0 | AP15: 0 | AR15: 0.05 | AT15: 0 | AU15: 0 | AW15: =SUM((O15:AQ15)*(MOD(COLUMN(O15:AQ15),4)=MOD(COLUMN(P15),4)))-IF($AS$6-1=$N15,AU15,0) -> 0 | AX15: =SUM((P15:AR15)*(MOD(COLUMN(P15:AR15),4)=MOD(COLUMN(Q15),4)))+AT15*12 -> 0 | AY15: =CEILING(SUM((P15:AQ15)*(MOD(COLUMN(P15:AQ15),4)=MOD(COLUMN(R15),4))),1) -> 0 | AZ15: =SUM((P15:AQ15)*(MOD(COLUMN(P15:AQ15),4)=MOD(COLUMN(R15),4))*(P$9:AQ$9)*(P$6:AQ$6>=$N15)) -> 0 | BB15: 0 | BC15: 0
B16: =+B15+1 -> 1 | C16: =+'Algemeen overig'!O50 -> 0 | D16: =IF(C16<=0,0,INDEX($P$12:$AQ$45,C16,1+B16*4)) -> 0 | E16: =IF(D16<0,INDEX($P$1:AQ46,8,1+B16*4)+D16,'Algemeen overig'!P50) -> 0 | M16: =SUM((O16:AH16)*($O$11:$AH$11)*(MOD(COLUMN(O16:AH16),4)=MOD(COLUMN(O16),4)))/(SUM($O$11:$AH$11)+0.000001) -> 0 | N16: 5 | O16: =IF($N16<=P$4,IF(P$10,ROBijAlgOvg!K26,0)+O15,IF(AlgemeenOUD!$F$41=1,ROBijAlgOvg!I26,P$7)+ROBijAlgOvg!J26) -> 0.05 | P16: 0 | Q16: 0 | R16: 0 | S16: =IF($N16<=T$4,IF(T$10,ROBijAlgOvg!O26,0)+S15,IF(AlgemeenOUD!$F$41=1,ROBijAlgOvg!M26,T$7)+ROBijAlgOvg!N26) -> 0.06 | T16: 0 | U16: 0 | V16: 0 | W16: =IF($N16<=X$4,IF(X$10,ROBijAlgOvg!S26,0)+W15,IF(AlgemeenOUD!$F$41=1,ROBijAlgOvg!Q26,X$7)+ROBijAlgOvg!R26) -> 0.08 | X16: 0 | Y16: 0 | Z16: 0 | AA16: =IF($N16<=AB$4,IF(AB$10,ROBijAlgOvg!W26,0)+AA15,IF(AlgemeenOUD!$F$41=1,ROBijAlgOvg!U26,AB$7)+ROBijAlgOvg!V26) -> 0 | AB16: 0 | AC16: 0 | AD16: 0 | AE16: =IF($N16<=AF$4,IF(AF$10,ROBijAlgOvg!AA26,0)+AE15,IF(AlgemeenOUD!$F$41=1,ROBijAlgOvg!Y26,AF$7)+ROBijAlgOvg!Z26) -> 0 | AF16: 0 | AG16: 0 | AH16: 0 | AI16: =IF($N16<=AJ$4,IF(AJ$10,ROBijAlgOvg!AE26,0)+AI15,IF(AlgemeenOUD!$F$41=1,ROBijAlgOvg!AC26,AJ$7)+ROBijAlgOvg!AD26) -> 0 | AJ16: 0 | AK16: 0 | AL16: 0 | AM16: =IF($N16<=AN$4,IF(AN$10,ROBijAlgOvg!AI26,0)+AM15,IF(AlgemeenOUD!$F$41=1,ROBijAlgOvg!AG26,AN$7)+ROBijAlgOvg!AH26) -> 0 | AN16: 0 | AO16: 0 | AP16: 0 | AR16: 0.05 | AT16: 0 | AU16: 0 | AW16: =SUM((O16:AQ16)*(MOD(COLUMN(O16:AQ16),4)=MOD(COLUMN(P16),4)))-IF($AS$6-1=$N16,AU16,0) -> 0 | AX16: =SUM((P16:AR16)*(MOD(COLUMN(P16:AR16),4)=MOD(COLUMN(Q16),4)))+AT16*12 -> 0 | AY16: =CEILING(SUM((P16:AQ16)*(MOD(COLUMN(P16:AQ16),4)=MOD(COLUMN(R16),4))),1) -> 0 | AZ16: =SUM((P16:AQ16)*(MOD(COLUMN(P16:AQ16),4)=MOD(COLUMN(R16),4))*(P$9:AQ$9)*(P$6:AQ$6>=$N16)) -> 0 | BB16: 0 | BC16: 0
B17: 2 | C17: =+'Algemeen overig'!O51 -> 0 | D17: =IF(C17<=0,0,INDEX($P$12:$AQ$45,C17,1+B17*4)) -> 0 | E17: =IF(D17<0,INDEX($P$1:AQ47,8,1+B17*4)+D17,'Algemeen overig'!P51) -> 0 | M17: =SUM((O17:AH17)*($O$11:$AH$11)*(MOD(COLUMN(O17:AH17),4)=MOD(COLUMN(O17),4)))/(SUM($O$11:$AH$11)+0.000001) -> 0 | N17: 6 | O17: =IF($N17<=P$4,IF(P$10,ROBijAlgOvg!K27,0)+O16,IF(AlgemeenOUD!$F$41=1,ROBijAlgOvg!I27,P$7)+ROBijAlgOvg!J27) -> 0.05 | P17: 0 | Q17: 0 | R17: 0 | S17: =IF($N17<=T$4,IF(T$10,ROBijAlgOvg!O27,0)+S16,IF(AlgemeenOUD!$F$41=1,ROBijAlgOvg!M27,T$7)+ROBijAlgOvg!N27) -> 0.06 | T17: 0 | U17: 0 | V17: 0 | W17: =IF($N17<=X$4,IF(X$10,ROBijAlgOvg!S27,0)+W16,IF(AlgemeenOUD!$F$41=1,ROBijAlgOvg!Q27,X$7)+ROBijAlgOvg!R27) -> 0.08 | X17: 0 | Y17: 0 | Z17: 0 | AA17: =IF($N17<=AB$4,IF(AB$10,ROBijAlgOvg!W27,0)+AA16,IF(AlgemeenOUD!$F$41=1,ROBijAlgOvg!U27,AB$7)+ROBijAlgOvg!V27) -> 0 | AB17: 0 | AC17: 0 | AD17: 0 | AE17: =IF($N17<=AF$4,IF(AF$10,ROBijAlgOvg!AA27,0)+AE16,IF(AlgemeenOUD!$F$41=1,ROBijAlgOvg!Y27,AF$7)+ROBijAlgOvg!Z27) -> 0 | AF17: 0 | AG17: 0 | AH17: 0 | AI17: =IF($N17<=AJ$4,IF(AJ$10,ROBijAlgOvg!AE27,0)+AI16,IF(AlgemeenOUD!$F$41=1,ROBijAlgOvg!AC27,AJ$7)+ROBijAlgOvg!AD27) -> 0 | AJ17: 0 | AK17: 0 | AL17: 0 | AM17: =IF($N17<=AN$4,IF(AN$10,ROBijAlgOvg!AI27,0)+AM16,IF(AlgemeenOUD!$F$41=1,ROBijAlgOvg!AG27,AN$7)+ROBijAlgOvg!AH27) -> 0 | AN17: 0 | AO17: 0 | AP17: 0 | AR17: 0.05 | AT17: 0 | AU17: 0 | AW17: =SUM((O17:AQ17)*(MOD(COLUMN(O17:AQ17),4)=MOD(COLUMN(P17),4)))-IF($AS$6-1=$N17,AU17,0) -> 0 | AX17: =SUM((P17:AR17)*(MOD(COLUMN(P17:AR17),4)=MOD(COLUMN(Q17),4)))+AT17*12 -> 0 | AY17: =CEILING(SUM((P17:AQ17)*(MOD(COLUMN(P17:AQ17),4)=MOD(COLUMN(R17),4))),1) -> 0 | AZ17: =SUM((P17:AQ17)*(MOD(COLUMN(P17:AQ17),4)=MOD(COLUMN(R17),4))*(P$9:AQ$9)*(P$6:AQ$6>=$N17)) -> 0 | BB17: 0 | BC17: 0
B18: 3 | M18: =SUM((O18:AH18)*($O$11:$AH$11)*(MOD(COLUMN(O18:AH18),4)=MOD(COLUMN(O18),4)))/(SUM($O$11:$AH$11)+0.000001) -> 0 | N18: 7 | O18: =IF($N18<=P$4,IF(P$10,ROBijAlgOvg!K28,0)+O17,IF(AlgemeenOUD!$F$41=1,ROBijAlgOvg!I28,P$7)+ROBijAlgOvg!J28) -> 0.05 | P18: 0 | Q18: 0 | R18: 0 | S18: =IF($N18<=T$4,IF(T$10,ROBijAlgOvg!O28,0)+S17,IF(AlgemeenOUD!$F$41=1,ROBijAlgOvg!M28,T$7)+ROBijAlgOvg!N28) -> 0.06 | T18: 0 | U18: 0 | V18: 0 | W18: =IF($N18<=X$4,IF(X$10,ROBijAlgOvg!S28,0)+W17,IF(AlgemeenOUD!$F$41=1,ROBijAlgOvg!Q28,X$7)+ROBijAlgOvg!R28) -> 0.08 | X18: 0 | Y18: 0 | Z18: 0 | AA18: =IF($N18<=AB$4,IF(AB$10,ROBijAlgOvg!W28,0)+AA17,IF(AlgemeenOUD!$F$41=1,ROBijAlgOvg!U28,AB$7)+ROBijAlgOvg!V28) -> 0 | AB18: 0 | AC18: 0 | AD18: 0 | AE18: =IF($N18<=AF$4,IF(AF$10,ROBijAlgOvg!AA28,0)+AE17,IF(AlgemeenOUD!$F$41=1,ROBijAlgOvg!Y28,AF$7)+ROBijAlgOvg!Z28) -> 0 | AF18: 0 | AG18: 0 | AH18: 0 | AI18: =IF($N18<=AJ$4,IF(AJ$10,ROBijAlgOvg!AE28,0)+AI17,IF(AlgemeenOUD!$F$41=1,ROBijAlgOvg!AC28,AJ$7)+ROBijAlgOvg!AD28) -> 0 | AJ18: 0 | AK18: 0 | AL18: 0 | AM18: =IF($N18<=AN$4,IF(AN$10,ROBijAlgOvg!AI28,0)+AM17,IF(AlgemeenOUD!$F$41=1,ROBijAlgOvg!AG28,AN$7)+ROBijAlgOvg!AH28) -> 0 | AN18: 0 | AO18: 0 | AP18: 0 | AR18: 0.05 | AT18: 0 | AU18: 0 | AW18: =SUM((O18:AQ18)*(MOD(COLUMN(O18:AQ18),4)=MOD(COLUMN(P18),4)))-IF($AS$6-1=$N18,AU18,0) -> 0 | AX18: =SUM((P18:AR18)*(MOD(COLUMN(P18:AR18),4)=MOD(COLUMN(Q18),4)))+AT18*12 -> 0 | AY18: =CEILING(SUM((P18:AQ18)*(MOD(COLUMN(P18:AQ18),4)=MOD(COLUMN(R18),4))),1) -> 0 | AZ18: =SUM((P18:AQ18)*(MOD(COLUMN(P18:AQ18),4)=MOD(COLUMN(R18),4))*(P$9:AQ$9)*(P$6:AQ$6>=$N18)) -> 0 | BB18: 0 | BC18: 0
B19: 4 | M19: =SUM((O19:AH19)*($O$11:$AH$11)*(MOD(COLUMN(O19:AH19),4)=MOD(COLUMN(O19),4)))/(SUM($O$11:$AH$11)+0.000001) -> 0 | N19: 8 | O19: =IF($N19<=P$4,IF(P$10,ROBijAlgOvg!K29,0)+O18,IF(AlgemeenOUD!$F$41=1,ROBijAlgOvg!I29,P$7)+ROBijAlgOvg!J29) -> 0.05 | P19: 0 | Q19: 0 | R19: 0 | S19: =IF($N19<=T$4,IF(T$10,ROBijAlgOvg!O29,0)+S18,IF(AlgemeenOUD!$F$41=1,ROBijAlgOvg!M29,T$7)+ROBijAlgOvg!N29) -> 0.06 | T19: 0 | U19: 0 | V19: 0 | W19: =IF($N19<=X$4,IF(X$10,ROBijAlgOvg!S29,0)+W18,IF(AlgemeenOUD!$F$41=1,ROBijAlgOvg!Q29,X$7)+ROBijAlgOvg!R29) -> 0.08 | X19: 0 | Y19: 0 | Z19: 0 | AA19: =IF($N19<=AB$4,IF(AB$10,ROBijAlgOvg!W29,0)+AA18,IF(AlgemeenOUD!$F$41=1,ROBijAlgOvg!U29,AB$7)+ROBijAlgOvg!V29) -> 0 | AB19: 0 | AC19: 0 | AD19: 0 | AE19: =IF($N19<=AF$4,IF(AF$10,ROBijAlgOvg!AA29,0)+AE18,IF(AlgemeenOUD!$F$41=1,ROBijAlgOvg!Y29,AF$7)+ROBijAlgOvg!Z29) -> 0 | AF19: 0 | AG19: 0 | AH19: 0 | AI19: =IF($N19<=AJ$4,IF(AJ$10,ROBijAlgOvg!AE29,0)+AI18,IF(AlgemeenOUD!$F$41=1,ROBijAlgOvg!AC29,AJ$7)+ROBijAlgOvg!AD29) -> 0 | AJ19: 0 | AK19: 0 | AL19: 0 | AM19: =IF($N19<=AN$4,IF(AN$10,ROBijAlgOvg!AI29,0)+AM18,IF(AlgemeenOUD!$F$41=1,ROBijAlgOvg!AG29,AN$7)+ROBijAlgOvg!AH29) -> 0 | AN19: 0 | AO19: 0 | AP19: 0 | AR19: 0.05 | AT19: 0 | AU19: 0 | AW19: =SUM((O19:AQ19)*(MOD(COLUMN(O19:AQ19),4)=MOD(COLUMN(P19),4)))-IF($AS$6-1=$N19,AU19,0) -> 0 | AX19: =SUM((P19:AR19)*(MOD(COLUMN(P19:AR19),4)=MOD(COLUMN(Q19),4)))+AT19*12 -> 0 | AY19: =CEILING(SUM((P19:AQ19)*(MOD(COLUMN(P19:AQ19),4)=MOD(COLUMN(R19),4))),1) -> 0 | AZ19: =SUM((P19:AQ19)*(MOD(COLUMN(P19:AQ19),4)=MOD(COLUMN(R19),4))*(P$9:AQ$9)*(P$6:AQ$6>=$N19)) -> 0 | BB19: 0 | BC19: 0
B20: 5 | M20: =SUM((O20:AH20)*($O$11:$AH$11)*(MOD(COLUMN(O20:AH20),4)=MOD(COLUMN(O20),4)))/(SUM($O$11:$AH$11)+0.000001) -> 0 | N20: 9 | O20: =IF($N20<=P$4,IF(P$10,ROBijAlgOvg!K30,0)+O19,IF(AlgemeenOUD!$F$41=1,ROBijAlgOvg!I30,P$7)+ROBijAlgOvg!J30) -> 0.05 | P20: 0 | Q20: 0 | R20: 0 | S20: =IF($N20<=T$4,IF(T$10,ROBijAlgOvg!O30,0)+S19,IF(AlgemeenOUD!$F$41=1,ROBijAlgOvg!M30,T$7)+ROBijAlgOvg!N30) -> 0.06 | T20: 0 | U20: 0 | V20: 0 | W20: =IF($N20<=X$4,IF(X$10,ROBijAlgOvg!S30,0)+W19,IF(AlgemeenOUD!$F$41=1,ROBijAlgOvg!Q30,X$7)+ROBijAlgOvg!R30) -> 0.08 | X20: 0 | Y20: 0 | Z20: 0 | AA20: =IF($N20<=AB$4,IF(AB$10,ROBijAlgOvg!W30,0)+AA19,IF(AlgemeenOUD!$F$41=1,ROBijAlgOvg!U30,AB$7)+ROBijAlgOvg!V30) -> 0 | AB20: 0 | AC20: 0 | AD20: 0 | AE20: =IF($N20<=AF$4,IF(AF$10,ROBijAlgOvg!AA30,0)+AE19,IF(AlgemeenOUD!$F$41=1,ROBijAlgOvg!Y30,AF$7)+ROBijAlgOvg!Z30) -> 0 | AF20: 0 | AG20: 0 | AH20: 0 | AI20: =IF($N20<=AJ$4,IF(AJ$10,ROBijAlgOvg!AE30,0)+AI19,IF(AlgemeenOUD!$F$41=1,ROBijAlgOvg!AC30,AJ$7)+ROBijAlgOvg!AD30) -> 0 | AJ20: 0 | AK20: 0 | AL20: 0 | AM20: =IF($N20<=AN$4,IF(AN$10,ROBijAlgOvg!AI30,0)+AM19,IF(AlgemeenOUD!$F$41=1,ROBijAlgOvg!AG30,AN$7)+ROBijAlgOvg!AH30) -> 0 | AN20: 0 | AO20: 0 | AP20: 0 | AR20: 0.05 | AT20: 0 | AU20: 0 | AW20: =SUM((O20:AQ20)*(MOD(COLUMN(O20:AQ20),4)=MOD(COLUMN(P20),4)))-IF($AS$6-1=$N20,AU20,0) -> 0 | AX20: =SUM((P20:AR20)*(MOD(COLUMN(P20:AR20),4)=MOD(COLUMN(Q20),4)))+AT20*12 -> 0 | AY20: =CEILING(SUM((P20:AQ20)*(MOD(COLUMN(P20:AQ20),4)=MOD(COLUMN(R20),4))),1) -> 0 | AZ20: =SUM((P20:AQ20)*(MOD(COLUMN(P20:AQ20),4)=MOD(COLUMN(R20),4))*(P$9:AQ$9)*(P$6:AQ$6>=$N20)) -> 0 | BB20: 0 | BC20: 0
B21: 6 | M21: =SUM((O21:AH21)*($O$11:$AH$11)*(MOD(COLUMN(O21:AH21),4)=MOD(COLUMN(O21),4)))/(SUM($O$11:$AH$11)+0.000001) -> 0 | N21: 10 | O21: =IF($N21<=P$4,IF(P$10,ROBijAlgOvg!K31,0)+O20,IF(AlgemeenOUD!$F$41=1,ROBijAlgOvg!I31,P$7)+ROBijAlgOvg!J31) -> 0.05 | P21: 0 | Q21: 0 | R21: 0 | S21: =IF($N21<=T$4,IF(T$10,ROBijAlgOvg!O31,0)+S20,IF(AlgemeenOUD!$F$41=1,ROBijAlgOvg!M31,T$7)+ROBijAlgOvg!N31) -> 0.06 | T21: 0 | U21: 0 | V21: 0 | W21: =IF($N21<=X$4,IF(X$10,ROBijAlgOvg!S31,0)+W20,IF(AlgemeenOUD!$F$41=1,ROBijAlgOvg!Q31,X$7)+ROBijAlgOvg!R31) -> 0.08 | X21: 0 | Y21: 0 | Z21: 0 | AA21: =IF($N21<=AB$4,IF(AB$10,ROBijAlgOvg!W31,0)+AA20,IF(AlgemeenOUD!$F$41=1,ROBijAlgOvg!U31,AB$7)+ROBijAlgOvg!V31) -> 0 | AB21: 0 | AC21: 0 | AD21: 0 | AE21: =IF($N21<=AF$4,IF(AF$10,ROBijAlgOvg!AA31,0)+AE20,IF(AlgemeenOUD!$F$41=1,ROBijAlgOvg!Y31,AF$7)+ROBijAlgOvg!Z31) -> 0 | AF21: 0 | AG21: 0 | AH21: 0 | AI21: =IF($N21<=AJ$4,IF(AJ$10,ROBijAlgOvg!AE31,0)+AI20,IF(AlgemeenOUD!$F$41=1,ROBijAlgOvg!AC31,AJ$7)+ROBijAlgOvg!AD31) -> 0 | AJ21: 0 | AK21: 0 | AL21: 0 | AM21: =IF($N21<=AN$4,IF(AN$10,ROBijAlgOvg!AI31,0)+AM20,IF(AlgemeenOUD!$F$41=1,ROBijAlgOvg!AG31,AN$7)+ROBijAlgOvg!AH31) -> 0 | AN21: 0 | AO21: 0 | AP21: 0 | AR21: 0.05 | AT21: 0 | AU21: 0 | AW21: =SUM((O21:AQ21)*(MOD(COLUMN(O21:AQ21),4)=MOD(COLUMN(P21),4)))-IF($AS$6-1=$N21,AU21,0) -> 0 | AX21: =SUM((P21:AR21)*(MOD(COLUMN(P21:AR21),4)=MOD(COLUMN(Q21),4)))+AT21*12 -> 0 | AY21: =CEILING(SUM((P21:AQ21)*(MOD(COLUMN(P21:AQ21),4)=MOD(COLUMN(R21),4))),1) -> 0 | AZ21: =SUM((P21:AQ21)*(MOD(COLUMN(P21:AQ21),4)=MOD(COLUMN(R21),4))*(P$9:AQ$9)*(P$6:AQ$6>=$N21)) -> 0 | BB21: 0 | BC21: 0
D22: =COUNTIF(D15:D17,"<0")>0 -> FALSE | M22: =SUM((O22:AH22)*($O$11:$AH$11)*(MOD(COLUMN(O22:AH22),4)=MOD(COLUMN(O22),4)))/(SUM($O$11:$AH$11)+0.000001) -> 0 | N22: 11 | O22: =IF($N22<=P$4,IF(P$10,ROBijAlgOvg!K32,0)+O21,IF(AlgemeenOUD!$F$41=1,ROBijAlgOvg!I32,P$7)+ROBijAlgOvg!J32) -> 0.05 | P22: 0 | Q22: =IF($N22-0.99>P$6,0,IF(P$5="A",PMT(O22/12,(P$6-$N22+1)*12,-P21)*IF($N22>P$6,Q$6,12),IF(OR(P$5="L",P$5="D"),IF($N22>P$6,P21,P21/(P$6-$N22+1)+R22),R22))) -> 0 | R22: 0 | S22: =IF($N22<=T$4,IF(T$10,ROBijAlgOvg!O32,0)+S21,IF(AlgemeenOUD!$F$41=1,ROBijAlgOvg!M32,T$7)+ROBijAlgOvg!N32) -> 0.06 | T22: 0 | U22: =IF($N22-0.99>T$6,0,IF(T$5="A",PMT(S22/12,(T$6-$N22+1)*12,-T21)*IF($N22>T$6,U$6,12),IF(OR(T$5="L",T$5="D"),IF($N22>T$6,T21,T21/(T$6-$N22+1)+V22),V22))) -> 0 | V22: 0 | W22: =IF($N22<=X$4,IF(X$10,ROBijAlgOvg!S32,0)+W21,IF(AlgemeenOUD!$F$41=1,ROBijAlgOvg!Q32,X$7)+ROBijAlgOvg!R32) -> 0.08 | X22: 0 | Y22: =IF($N22-0.99>X$6,0,IF(X$5="A",PMT(W22/12,(X$6-$N22+1)*12,-X21)*IF($N22>X$6,Y$6,12),IF(OR(X$5="L",X$5="D"),IF($N22>X$6,X21,X21/(X$6-$N22+1)+Z22),Z22))) -> 0 | Z22: 0 | AA22: =IF($N22<=AB$4,IF(AB$10,ROBijAlgOvg!W32,0)+AA21,IF(AlgemeenOUD!$F$41=1,ROBijAlgOvg!U32,AB$7)+ROBijAlgOvg!V32) -> 0 | AB22: 0 | AC22: =IF($N22-0.99>AB$6,0,IF(AB$5="A",PMT(AA22/12,(AB$6-$N22+1)*12,-AB21)*IF($N22>AB$6,AC$6,12),IF(OR(AB$5="L",AB$5="D"),IF($N22>AB$6,AB21,AB21/(AB$6-$N22+1)+AD22),AD22))) -> 0 | AD22: 0 | AE22: =IF($N22<=AF$4,IF(AF$10,ROBijAlgOvg!AA32,0)+AE21,IF(AlgemeenOUD!$F$41=1,ROBijAlgOvg!Y32,AF$7)+ROBijAlgOvg!Z32) -> 0 | AF22: 0 | AG22: =IF($N22-0.99>AF$6,0,IF(AF$5="A",PMT(AE22/12,(AF$6-$N22+1)*12,-AF21)*IF($N22>AF$6,AG$6,12),IF(OR(AF$5="L",AF$5="D"),IF($N22>AF$6,AF21,AF21/(AF$6-$N22+1)+AH22),AH22))) -> 0 | AH22: 0 | AI22: =IF($N22<=AJ$4,IF(AJ$10,ROBijAlgOvg!AE32,0)+AI21,IF(AlgemeenOUD!$F$41=1,ROBijAlgOvg!AC32,AJ$7)+ROBijAlgOvg!AD32) -> 0 | AJ22: 0 | AK22: =IF($N22-0.99>AJ$6,0,IF(AJ$5="A",PMT(AI22/12,(AJ$6-$N22+1)*12,-AJ21)*IF($N22>AJ$6,AK$6,12),IF(OR(AJ$5="L",AJ$5="D"),IF($N22>AJ$6,AJ21,AJ21/(AJ$6-$N22+1)+AL22),AL22))) -> 0 | AL22: 0 | AM22: =IF($N22<=AN$4,IF(AN$10,ROBijAlgOvg!AI32,0)+AM21,IF(AlgemeenOUD!$F$41=1,ROBijAlgOvg!AG32,AN$7)+ROBijAlgOvg!AH32) -> 0 | AN22: 0 | AO22: =IF($N22-0.99>AN$6,0,IF(AN$5="A",PMT(AM22/12,(AN$6-$N22+1)*12,-AN21)*IF($N22>AN$6,AO$6,12),IF(OR(AN$5="L",AN$5="D"),IF($N22>AN$6,AN21,AN21/(AN$6-$N22+1)+AP22),AP22))) -> 0 | AP22: 0 | AR22: 0.05 | AT22: 0 | AU22: 0 | AW22: =SUM((O22:AQ22)*(MOD(COLUMN(O22:AQ22),4)=MOD(COLUMN(P22),4)))-IF($AS$6-1=$N22,AU22,0) -> 0 | AX22: =SUM((P22:AR22)*(MOD(COLUMN(P22:AR22),4)=MOD(COLUMN(Q22),4)))+AT22*12 -> 0 | AY22: =CEILING(SUM((P22:AQ22)*(MOD(COLUMN(P22:AQ22),4)=MOD(COLUMN(R22),4))),1) -> 0 | AZ22: =SUM((P22:AQ22)*(MOD(COLUMN(P22:AQ22),4)=MOD(COLUMN(R22),4))*(P$9:AQ$9)*(P$6:AQ$6>=$N22)) -> 0 | BB22: 0 | BC22: 0
M23: =SUM((O23:AH23)*($O$11:$AH$11)*(MOD(COLUMN(O23:AH23),4)=MOD(COLUMN(O23),4)))/(SUM($O$11:$AH$11)+0.000001) -> 0 | N23: 12 | O23: =IF($N23<=P$4,IF(P$10,ROBijAlgOvg!K33,0)+O22,IF(AlgemeenOUD!$F$41=1,ROBijAlgOvg!I33,P$7)+ROBijAlgOvg!J33) -> 0.05 | P23: 0 | Q23: 0 | R23: 0 | S23: =IF($N23<=T$4,IF(T$10,ROBijAlgOvg!O33,0)+S22,IF(AlgemeenOUD!$F$41=1,ROBijAlgOvg!M33,T$7)+ROBijAlgOvg!N33) -> 0.06 | T23: 0 | U23: 0 | V23: 0 | W23: =IF($N23<=X$4,IF(X$10,ROBijAlgOvg!S33,0)+W22,IF(AlgemeenOUD!$F$41=1,ROBijAlgOvg!Q33,X$7)+ROBijAlgOvg!R33) -> 0.08 | X23: 0 | Y23: 0 | Z23: 0 | AA23: =IF($N23<=AB$4,IF(AB$10,ROBijAlgOvg!W33,0)+AA22,IF(AlgemeenOUD!$F$41=1,ROBijAlgOvg!U33,AB$7)+ROBijAlgOvg!V33) -> 0 | AB23: 0 | AC23: 0 | AD23: 0 | AE23: =IF($N23<=AF$4,IF(AF$10,ROBijAlgOvg!AA33,0)+AE22,IF(AlgemeenOUD!$F$41=1,ROBijAlgOvg!Y33,AF$7)+ROBijAlgOvg!Z33) -> 0 | AF23: 0 | AG23: 0 | AH23: 0 | AI23: =IF($N23<=AJ$4,IF(AJ$10,ROBijAlgOvg!AE33,0)+AI22,IF(AlgemeenOUD!$F$41=1,ROBijAlgOvg!AC33,AJ$7)+ROBijAlgOvg!AD33) -> 0 | AJ23: 0 | AK23: 0 | AL23: 0 | AM23: =IF($N23<=AN$4,IF(AN$10,ROBijAlgOvg!AI33,0)+AM22,IF(AlgemeenOUD!$F$41=1,ROBijAlgOvg!AG33,AN$7)+ROBijAlgOvg!AH33) -> 0 | AN23: 0 | AO23: 0 | AP23: 0 | AR23: 0.05 | AT23: 0 | AU23: 0 | AW23: =SUM((O23:AQ23)*(MOD(COLUMN(O23:AQ23),4)=MOD(COLUMN(P23),4)))-IF($AS$6-1=$N23,AU23,0) -> 0 | AX23: =SUM((P23:AR23)*(MOD(COLUMN(P23:AR23),4)=MOD(COLUMN(Q23),4)))+AT23*12 -> 0 | AY23: =CEILING(SUM((P23:AQ23)*(MOD(COLUMN(P23:AQ23),4)=MOD(COLUMN(R23),4))),1) -> 0 | AZ23: =SUM((P23:AQ23)*(MOD(COLUMN(P23:AQ23),4)=MOD(COLUMN(R23),4))*(P$9:AQ$9)*(P$6:AQ$6>=$N23)) -> 0 | BB23: 0 | BC23: 0
M24: =SUM((O24:AH24)*($O$11:$AH$11)*(MOD(COLUMN(O24:AH24),4)=MOD(COLUMN(O24),4)))/(SUM($O$11:$AH$11)+0.000001) -> 0 | N24: 13 | O24: =IF($N24<=P$4,IF(P$10,ROBijAlgOvg!K34,0)+O23,IF(AlgemeenOUD!$F$41=1,ROBijAlgOvg!I34,P$7)+ROBijAlgOvg!J34) -> 0.05 | P24: 0 | Q24: 0 | R24: 0 | S24: =IF($N24<=T$4,IF(T$10,ROBijAlgOvg!O34,0)+S23,IF(AlgemeenOUD!$F$41=1,ROBijAlgOvg!M34,T$7)+ROBijAlgOvg!N34) -> 0.06 | T24: 0 | U24: 0 | V24: 0 | W24: =IF($N24<=X$4,IF(X$10,ROBijAlgOvg!S34,0)+W23,IF(AlgemeenOUD!$F$41=1,ROBijAlgOvg!Q34,X$7)+ROBijAlgOvg!R34) -> 0.08 | X24: 0 | Y24: 0 | Z24: 0 | AA24: =IF($N24<=AB$4,IF(AB$10,ROBijAlgOvg!W34,0)+AA23,IF(AlgemeenOUD!$F$41=1,ROBijAlgOvg!U34,AB$7)+ROBijAlgOvg!V34) -> 0 | AB24: 0 | AC24: 0 | AD24: 0 | AE24: =IF($N24<=AF$4,IF(AF$10,ROBijAlgOvg!AA34,0)+AE23,IF(AlgemeenOUD!$F$41=1,ROBijAlgOvg!Y34,AF$7)+ROBijAlgOvg!Z34) -> 0 | AF24: 0 | AG24: 0 | AH24: 0 | AI24: =IF($N24<=AJ$4,IF(AJ$10,ROBijAlgOvg!AE34,0)+AI23,IF(AlgemeenOUD!$F$41=1,ROBijAlgOvg!AC34,AJ$7)+ROBijAlgOvg!AD34) -> 0 | AJ24: 0 | AK24: 0 | AL24: 0 | AM24: =IF($N24<=AN$4,IF(AN$10,ROBijAlgOvg!AI34,0)+AM23,IF(AlgemeenOUD!$F$41=1,ROBijAlgOvg!AG34,AN$7)+ROBijAlgOvg!AH34) -> 0 | AN24: 0 | AO24: 0 | AP24: 0 | AR24: 0.05 | AT24: 0 | AU24: 0 | AW24: =SUM((O24:AQ24)*(MOD(COLUMN(O24:AQ24),4)=MOD(COLUMN(P24),4)))-IF($AS$6-1=$N24,AU24,0) -> 0 | AX24: =SUM((P24:AR24)*(MOD(COLUMN(P24:AR24),4)=MOD(COLUMN(Q24),4)))+AT24*12 -> 0 | AY24: =CEILING(SUM((P24:AQ24)*(MOD(COLUMN(P24:AQ24),4)=MOD(COLUMN(R24),4))),1) -> 0 | AZ24: =SUM((P24:AQ24)*(MOD(COLUMN(P24:AQ24),4)=MOD(COLUMN(R24),4))*(P$9:AQ$9)*(P$6:AQ$6>=$N24)) -> 0 | BB24: 0 | BC24: 0
M25: =SUM((O25:AH25)*($O$11:$AH$11)*(MOD(COLUMN(O25:AH25),4)=MOD(COLUMN(O25),4)))/(SUM($O$11:$AH$11)+0.000001) -> 0 | N25: 14 | O25: =IF($N25<=P$4,IF(P$10,ROBijAlgOvg!K35,0)+O24,IF(AlgemeenOUD!$F$41=1,ROBijAlgOvg!I35,P$7)+ROBijAlgOvg!J35) -> 0.05 | P25: 0 | Q25: 0 | R25: 0 | S25: =IF($N25<=T$4,IF(T$10,ROBijAlgOvg!O35,0)+S24,IF(AlgemeenOUD!$F$41=1,ROBijAlgOvg!M35,T$7)+ROBijAlgOvg!N35) -> 0.06 | T25: 0 | U25: 0 | V25: 0 | W25: =IF($N25<=X$4,IF(X$10,ROBijAlgOvg!S35,0)+W24,IF(AlgemeenOUD!$F$41=1,ROBijAlgOvg!Q35,X$7)+ROBijAlgOvg!R35) -> 0.08 | X25: 0 | Y25: 0 | Z25: 0 | AA25: =IF($N25<=AB$4,IF(AB$10,ROBijAlgOvg!W35,0)+AA24,IF(AlgemeenOUD!$F$41=1,ROBijAlgOvg!U35,AB$7)+ROBijAlgOvg!V35) -> 0 | AB25: 0 | AC25: 0 | AD25: 0 | AE25: =IF($N25<=AF$4,IF(AF$10,ROBijAlgOvg!AA35,0)+AE24,IF(AlgemeenOUD!$F$41=1,ROBijAlgOvg!Y35,AF$7)+ROBijAlgOvg!Z35) -> 0 | AF25: 0 | AG25: 0 | AH25: 0 | AI25: =IF($N25<=AJ$4,IF(AJ$10,ROBijAlgOvg!AE35,0)+AI24,IF(AlgemeenOUD!$F$41=1,ROBijAlgOvg!AC35,AJ$7)+ROBijAlgOvg!AD35) -> 0 | AJ25: 0 | AK25: 0 | AL25: 0 | AM25: =IF($N25<=AN$4,IF(AN$10,ROBijAlgOvg!AI35,0)+AM24,IF(AlgemeenOUD!$F$41=1,ROBijAlgOvg!AG35,AN$7)+ROBijAlgOvg!AH35) -> 0 | AN25: 0 | AO25: 0 | AP25: 0 | AR25: 0.05 | AT25: 0 | AU25: 0 | AW25: =SUM((O25:AQ25)*(MOD(COLUMN(O25:AQ25),4)=MOD(COLUMN(P25),4)))-IF($AS$6-1=$N25,AU25,0) -> 0 | AX25: =SUM((P25:AR25)*(MOD(COLUMN(P25:AR25),4)=MOD(COLUMN(Q25),4)))+AT25*12 -> 0 | AY25: =CEILING(SUM((P25:AQ25)*(MOD(COLUMN(P25:AQ25),4)=MOD(COLUMN(R25),4))),1) -> 0 | AZ25: =SUM((P25:AQ25)*(MOD(COLUMN(P25:AQ25),4)=MOD(COLUMN(R25),4))*(P$9:AQ$9)*(P$6:AQ$6>=$N25)) -> 0 | BB25: 0 | BC25: 0
M26: =SUM((O26:AH26)*($O$11:$AH$11)*(MOD(COLUMN(O26:AH26),4)=MOD(COLUMN(O26),4)))/(SUM($O$11:$AH$11)+0.000001) -> 0 | N26: 15 | O26: =IF($N26<=P$4,IF(P$10,ROBijAlgOvg!K36,0)+O25,IF(AlgemeenOUD!$F$41=1,ROBijAlgOvg!I36,P$7)+ROBijAlgOvg!J36) -> 0.05 | P26: 0 | Q26: 0 | R26: 0 | S26: =IF($N26<=T$4,IF(T$10,ROBijAlgOvg!O36,0)+S25,IF(AlgemeenOUD!$F$41=1,ROBijAlgOvg!M36,T$7)+ROBijAlgOvg!N36) -> 0.06 | T26: 0 | U26: 0 | V26: 0 | W26: =IF($N26<=X$4,IF(X$10,ROBijAlgOvg!S36,0)+W25,IF(AlgemeenOUD!$F$41=1,ROBijAlgOvg!Q36,X$7)+ROBijAlgOvg!R36) -> 0.08 | X26: 0 | Y26: 0 | Z26: 0 | AA26: =IF($N26<=AB$4,IF(AB$10,ROBijAlgOvg!W36,0)+AA25,IF(AlgemeenOUD!$F$41=1,ROBijAlgOvg!U36,AB$7)+ROBijAlgOvg!V36) -> 0 | AB26: 0 | AC26: 0 | AD26: 0 | AE26: =IF($N26<=AF$4,IF(AF$10,ROBijAlgOvg!AA36,0)+AE25,IF(AlgemeenOUD!$F$41=1,ROBijAlgOvg!Y36,AF$7)+ROBijAlgOvg!Z36) -> 0 | AF26: 0 | AG26: 0 | AH26: 0 | AI26: =IF($N26<=AJ$4,IF(AJ$10,ROBijAlgOvg!AE36,0)+AI25,IF(AlgemeenOUD!$F$41=1,ROBijAlgOvg!AC36,AJ$7)+ROBijAlgOvg!AD36) -> 0 | AJ26: 0 | AK26: 0 | AL26: 0 | AM26: =IF($N26<=AN$4,IF(AN$10,ROBijAlgOvg!AI36,0)+AM25,IF(AlgemeenOUD!$F$41=1,ROBijAlgOvg!AG36,AN$7)+ROBijAlgOvg!AH36) -> 0 | AN26: 0 | AO26: 0 | AP26: 0 | AR26: 0.05 | AT26: 0 | AU26: 0 | AW26: =SUM((O26:AQ26)*(MOD(COLUMN(O26:AQ26),4)=MOD(COLUMN(P26),4)))-IF($AS$6-1=$N26,AU26,0) -> 0 | AX26: =SUM((P26:AR26)*(MOD(COLUMN(P26:AR26),4)=MOD(COLUMN(Q26),4)))+AT26*12 -> 0 | AY26: =CEILING(SUM((P26:AQ26)*(MOD(COLUMN(P26:AQ26),4)=MOD(COLUMN(R26),4))),1) -> 0 | AZ26: =SUM((P26:AQ26)*(MOD(COLUMN(P26:AQ26),4)=MOD(COLUMN(R26),4))*(P$9:AQ$9)*(P$6:AQ$6>=$N26)) -> 0 | BB26: 0 | BC26: 0
M27: =SUM((O27:AH27)*($O$11:$AH$11)*(MOD(COLUMN(O27:AH27),4)=MOD(COLUMN(O27),4)))/(SUM($O$11:$AH$11)+0.000001) -> 0 | N27: 16 | O27: =IF($N27<=P$4,IF(P$10,ROBijAlgOvg!K37,0)+O26,IF(AlgemeenOUD!$F$41=1,ROBijAlgOvg!I37,P$7)+ROBijAlgOvg!J37) -> 0.05 | P27: 0 | Q27: 0 | R27: 0 | S27: =IF($N27<=T$4,IF(T$10,ROBijAlgOvg!O37,0)+S26,IF(AlgemeenOUD!$F$41=1,ROBijAlgOvg!M37,T$7)+ROBijAlgOvg!N37) -> 0.06 | T27: 0 | U27: 0 | V27: 0 | W27: =IF($N27<=X$4,IF(X$10,ROBijAlgOvg!S37,0)+W26,IF(AlgemeenOUD!$F$41=1,ROBijAlgOvg!Q37,X$7)+ROBijAlgOvg!R37) -> 0.08 | X27: 0 | Y27: 0 | Z27: 0 | AA27: =IF($N27<=AB$4,IF(AB$10,ROBijAlgOvg!W37,0)+AA26,IF(AlgemeenOUD!$F$41=1,ROBijAlgOvg!U37,AB$7)+ROBijAlgOvg!V37) -> 0 | AB27: 0 | AC27: 0 | AD27: 0 | AE27: =IF($N27<=AF$4,IF(AF$10,ROBijAlgOvg!AA37,0)+AE26,IF(AlgemeenOUD!$F$41=1,ROBijAlgOvg!Y37,AF$7)+ROBijAlgOvg!Z37) -> 0 | AF27: 0 | AG27: 0 | AH27: 0 | AI27: =IF($N27<=AJ$4,IF(AJ$10,ROBijAlgOvg!AE37,0)+AI26,IF(AlgemeenOUD!$F$41=1,ROBijAlgOvg!AC37,AJ$7)+ROBijAlgOvg!AD37) -> 0 | AJ27: 0 | AK27: 0 | AL27: 0 | AM27: =IF($N27<=AN$4,IF(AN$10,ROBijAlgOvg!AI37,0)+AM26,IF(AlgemeenOUD!$F$41=1,ROBijAlgOvg!AG37,AN$7)+ROBijAlgOvg!AH37) -> 0 | AN27: 0 | AO27: 0 | AP27: 0 | AR27: 0.05 | AT27: 0 | AU27: 0 | AW27: =SUM((O27:AQ27)*(MOD(COLUMN(O27:AQ27),4)=MOD(COLUMN(P27),4)))-IF($AS$6-1=$N27,AU27,0) -> 0 | AX27: =SUM((P27:AR27)*(MOD(COLUMN(P27:AR27),4)=MOD(COLUMN(Q27),4)))+AT27*12 -> 0 | AY27: =CEILING(SUM((P27:AQ27)*(MOD(COLUMN(P27:AQ27),4)=MOD(COLUMN(R27),4))),1) -> 0 | AZ27: =SUM((P27:AQ27)*(MOD(COLUMN(P27:AQ27),4)=MOD(COLUMN(R27),4))*(P$9:AQ$9)*(P$6:AQ$6>=$N27)) -> 0 | BB27: 0 | BC27: 0
A28: WOZ bijtelling | M28: =SUM((O28:AH28)*($O$11:$AH$11)*(MOD(COLUMN(O28:AH28),4)=MOD(COLUMN(O28),4)))/(SUM($O$11:$AH$11)+0.000001) -> 0 | N28: 17 | O28: =IF($N28<=P$4,IF(P$10,ROBijAlgOvg!K38,0)+O27,IF(AlgemeenOUD!$F$41=1,ROBijAlgOvg!I38,P$7)+ROBijAlgOvg!J38) -> 0.05 | P28: 0 | Q28: 0 | R28: 0 | S28: =IF($N28<=T$4,IF(T$10,ROBijAlgOvg!O38,0)+S27,IF(AlgemeenOUD!$F$41=1,ROBijAlgOvg!M38,T$7)+ROBijAlgOvg!N38) -> 0.06 | T28: 0 | U28: 0 | V28: 0 | W28: =IF($N28<=X$4,IF(X$10,ROBijAlgOvg!S38,0)+W27,IF(AlgemeenOUD!$F$41=1,ROBijAlgOvg!Q38,X$7)+ROBijAlgOvg!R38) -> 0.08 | X28: 0 | Y28: 0 | Z28: 0 | AA28: =IF($N28<=AB$4,IF(AB$10,ROBijAlgOvg!W38,0)+AA27,IF(AlgemeenOUD!$F$41=1,ROBijAlgOvg!U38,AB$7)+ROBijAlgOvg!V38) -> 0 | AB28: 0 | AC28: 0 | AD28: 0 | AE28: =IF($N28<=AF$4,IF(AF$10,ROBijAlgOvg!AA38,0)+AE27,IF(AlgemeenOUD!$F$41=1,ROBijAlgOvg!Y38,AF$7)+ROBijAlgOvg!Z38) -> 0 | AF28: 0 | AG28: 0 | AH28: 0 | AI28: =IF($N28<=AJ$4,IF(AJ$10,ROBijAlgOvg!AE38,0)+AI27,IF(AlgemeenOUD!$F$41=1,ROBijAlgOvg!AC38,AJ$7)+ROBijAlgOvg!AD38) -> 0 | AJ28: 0 | AK28: 0 | AL28: 0 | AM28: =IF($N28<=AN$4,IF(AN$10,ROBijAlgOvg!AI38,0)+AM27,IF(AlgemeenOUD!$F$41=1,ROBijAlgOvg!AG38,AN$7)+ROBijAlgOvg!AH38) -> 0 | AN28: 0 | AO28: 0 | AP28: 0 | AR28: 0.05 | AT28: 0 | AU28: 0 | AW28: =SUM((O28:AQ28)*(MOD(COLUMN(O28:AQ28),4)=MOD(COLUMN(P28),4)))-IF($AS$6-1=$N28,AU28,0) -> 0 | AX28: =SUM((P28:AR28)*(MOD(COLUMN(P28:AR28),4)=MOD(COLUMN(Q28),4)))+AT28*12 -> 0 | AY28: =CEILING(SUM((P28:AQ28)*(MOD(COLUMN(P28:AQ28),4)=MOD(COLUMN(R28),4))),1) -> 0 | AZ28: =SUM((P28:AQ28)*(MOD(COLUMN(P28:AQ28),4)=MOD(COLUMN(R28),4))*(P$9:AQ$9)*(P$6:AQ$6>=$N28)) -> 0 | BB28: 0 | BC28: 0
A29: tot | M29: =SUM((O29:AH29)*($O$11:$AH$11)*(MOD(COLUMN(O29:AH29),4)=MOD(COLUMN(O29),4)))/(SUM($O$11:$AH$11)+0.000001) -> 0 | N29: 18 | O29: =IF($N29<=P$4,IF(P$10,ROBijAlgOvg!K39,0)+O28,IF(AlgemeenOUD!$F$41=1,ROBijAlgOvg!I39,P$7)+ROBijAlgOvg!J39) -> 0.05 | P29: 0 | Q29: 0 | R29: 0 | S29: =IF($N29<=T$4,IF(T$10,ROBijAlgOvg!O39,0)+S28,IF(AlgemeenOUD!$F$41=1,ROBijAlgOvg!M39,T$7)+ROBijAlgOvg!N39) -> 0.06 | T29: 0 | U29: 0 | V29: 0 | W29: =IF($N29<=X$4,IF(X$10,ROBijAlgOvg!S39,0)+W28,IF(AlgemeenOUD!$F$41=1,ROBijAlgOvg!Q39,X$7)+ROBijAlgOvg!R39) -> 0.08 | X29: 0 | Y29: 0 | Z29: 0 | AA29: =IF($N29<=AB$4,IF(AB$10,ROBijAlgOvg!W39,0)+AA28,IF(AlgemeenOUD!$F$41=1,ROBijAlgOvg!U39,AB$7)+ROBijAlgOvg!V39) -> 0 | AB29: 0 | AC29: 0 | AD29: 0 | AE29: =IF($N29<=AF$4,IF(AF$10,ROBijAlgOvg!AA39,0)+AE28,IF(AlgemeenOUD!$F$41=1,ROBijAlgOvg!Y39,AF$7)+ROBijAlgOvg!Z39) -> 0 | AF29: 0 | AG29: 0 | AH29: 0 | AI29: =IF($N29<=AJ$4,IF(AJ$10,ROBijAlgOvg!AE39,0)+AI28,IF(AlgemeenOUD!$F$41=1,ROBijAlgOvg!AC39,AJ$7)+ROBijAlgOvg!AD39) -> 0 | AJ29: 0 | AK29: 0 | AL29: 0 | AM29: =IF($N29<=AN$4,IF(AN$10,ROBijAlgOvg!AI39,0)+AM28,IF(AlgemeenOUD!$F$41=1,ROBijAlgOvg!AG39,AN$7)+ROBijAlgOvg!AH39) -> 0 | AN29: 0 | AO29: 0 | AP29: 0 | AR29: 0.05 | AT29: 0 | AU29: 0 | AW29: =SUM((O29:AQ29)*(MOD(COLUMN(O29:AQ29),4)=MOD(COLUMN(P29),4)))-IF($AS$6-1=$N29,AU29,0) -> 0 | AX29: =SUM((P29:AR29)*(MOD(COLUMN(P29:AR29),4)=MOD(COLUMN(Q29),4)))+AT29*12 -> 0 | AY29: =CEILING(SUM((P29:AQ29)*(MOD(COLUMN(P29:AQ29),4)=MOD(COLUMN(R29),4))),1) -> 0 | AZ29: =SUM((P29:AQ29)*(MOD(COLUMN(P29:AQ29),4)=MOD(COLUMN(R29),4))*(P$9:AQ$9)*(P$6:AQ$6>=$N29)) -> 0 | BB29: 0 | BC29: 0
A30: =INDEX('Financiële Gegevens'!B$54:B$58,ROWS($25:25)) -> 12500 | B30: =INDEX('Financiële Gegevens'!C$54:C$58,ROWS($25:25)) -> 0 | M30: =SUM((O30:AH30)*($O$11:$AH$11)*(MOD(COLUMN(O30:AH30),4)=MOD(COLUMN(O30),4)))/(SUM($O$11:$AH$11)+0.000001) -> 0 | N30: 19 | O30: =IF($N30<=P$4,IF(P$10,ROBijAlgOvg!K40,0)+O29,IF(AlgemeenOUD!$F$41=1,ROBijAlgOvg!I40,P$7)+ROBijAlgOvg!J40) -> 0.05 | P30: 0 | Q30: 0 | R30: 0 | S30: =IF($N30<=T$4,IF(T$10,ROBijAlgOvg!O40,0)+S29,IF(AlgemeenOUD!$F$41=1,ROBijAlgOvg!M40,T$7)+ROBijAlgOvg!N40) -> 0.06 | T30: 0 | U30: 0 | V30: 0 | W30: =IF($N30<=X$4,IF(X$10,ROBijAlgOvg!S40,0)+W29,IF(AlgemeenOUD!$F$41=1,ROBijAlgOvg!Q40,X$7)+ROBijAlgOvg!R40) -> 0.08 | X30: 0 | Y30: 0 | Z30: 0 | AA30: =IF($N30<=AB$4,IF(AB$10,ROBijAlgOvg!W40,0)+AA29,IF(AlgemeenOUD!$F$41=1,ROBijAlgOvg!U40,AB$7)+ROBijAlgOvg!V40) -> 0 | AB30: 0 | AC30: 0 | AD30: 0 | AE30: =IF($N30<=AF$4,IF(AF$10,ROBijAlgOvg!AA40,0)+AE29,IF(AlgemeenOUD!$F$41=1,ROBijAlgOvg!Y40,AF$7)+ROBijAlgOvg!Z40) -> 0 | AF30: 0 | AG30: 0 | AH30: 0 | AI30: =IF($N30<=AJ$4,IF(AJ$10,ROBijAlgOvg!AE40,0)+AI29,IF(AlgemeenOUD!$F$41=1,ROBijAlgOvg!AC40,AJ$7)+ROBijAlgOvg!AD40) -> 0 | AJ30: 0 | AK30: 0 | AL30: 0 | AM30: =IF($N30<=AN$4,IF(AN$10,ROBijAlgOvg!AI40,0)+AM29,IF(AlgemeenOUD!$F$41=1,ROBijAlgOvg!AG40,AN$7)+ROBijAlgOvg!AH40) -> 0 | AN30: 0 | AO30: 0 | AP30: 0 | AR30: 0.05 | AT30: 0 | AU30: 0 | AW30: =SUM((O30:AQ30)*(MOD(COLUMN(O30:AQ30),4)=MOD(COLUMN(P30),4)))-IF($AS$6-1=$N30,AU30,0) -> 0 | AX30: =SUM((P30:AR30)*(MOD(COLUMN(P30:AR30),4)=MOD(COLUMN(Q30),4)))+AT30*12 -> 0 | AY30: =CEILING(SUM((P30:AQ30)*(MOD(COLUMN(P30:AQ30),4)=MOD(COLUMN(R30),4))),1) -> 0 | AZ30: =SUM((P30:AQ30)*(MOD(COLUMN(P30:AQ30),4)=MOD(COLUMN(R30),4))*(P$9:AQ$9)*(P$6:AQ$6>=$N30)) -> 0 | BB30: 0 | BC30: 0
A31: =INDEX('Financiële Gegevens'!B$54:B$58,ROWS($25:26)) -> 25000 | B31: =INDEX('Financiële Gegevens'!C$54:C$58,ROWS($25:26)) -> 0.003 | M31: =SUM((O31:AH31)*($O$11:$AH$11)*(MOD(COLUMN(O31:AH31),4)=MOD(COLUMN(O31),4)))/(SUM($O$11:$AH$11)+0.000001) -> 0 | N31: 20 | O31: =IF($N31<=P$4,IF(P$10,ROBijAlgOvg!K41,0)+O30,IF(AlgemeenOUD!$F$41=1,ROBijAlgOvg!I41,P$7)+ROBijAlgOvg!J41) -> 0.05 | P31: 0 | Q31: 0 | R31: 0 | S31: =IF($N31<=T$4,IF(T$10,ROBijAlgOvg!O41,0)+S30,IF(AlgemeenOUD!$F$41=1,ROBijAlgOvg!M41,T$7)+ROBijAlgOvg!N41) -> 0.06 | T31: 0 | U31: 0 | V31: 0 | W31: =IF($N31<=X$4,IF(X$10,ROBijAlgOvg!S41,0)+W30,IF(AlgemeenOUD!$F$41=1,ROBijAlgOvg!Q41,X$7)+ROBijAlgOvg!R41) -> 0.08 | X31: 0 | Y31: 0 | Z31: 0 | AA31: =IF($N31<=AB$4,IF(AB$10,ROBijAlgOvg!W41,0)+AA30,IF(AlgemeenOUD!$F$41=1,ROBijAlgOvg!U41,AB$7)+ROBijAlgOvg!V41) -> 0 | AB31: 0 | AC31: 0 | AD31: 0 | AE31: =IF($N31<=AF$4,IF(AF$10,ROBijAlgOvg!AA41,0)+AE30,IF(AlgemeenOUD!$F$41=1,ROBijAlgOvg!Y41,AF$7)+ROBijAlgOvg!Z41) -> 0 | AF31: 0 | AG31: 0 | AH31: 0 | AI31: =IF($N31<=AJ$4,IF(AJ$10,ROBijAlgOvg!AE41,0)+AI30,IF(AlgemeenOUD!$F$41=1,ROBijAlgOvg!AC41,AJ$7)+ROBijAlgOvg!AD41) -> 0 | AJ31: 0 | AK31: 0 | AL31: 0 | AM31: =IF($N31<=AN$4,IF(AN$10,ROBijAlgOvg!AI41,0)+AM30,IF(AlgemeenOUD!$F$41=1,ROBijAlgOvg!AG41,AN$7)+ROBijAlgOvg!AH41) -> 0 | AN31: 0 | AO31: 0 | AP31: 0 | AR31: 0.05 | AT31: 0 | AU31: 0 | AW31: =SUM((O31:AQ31)*(MOD(COLUMN(O31:AQ31),4)=MOD(COLUMN(P31),4)))-IF($AS$6-1=$N31,AU31,0) -> 0 | AX31: =SUM((P31:AR31)*(MOD(COLUMN(P31:AR31),4)=MOD(COLUMN(Q31),4)))+AT31*12 -> 0 | AY31: =CEILING(SUM((P31:AQ31)*(MOD(COLUMN(P31:AQ31),4)=MOD(COLUMN(R31),4))),1) -> 0 | AZ31: =SUM((P31:AQ31)*(MOD(COLUMN(P31:AQ31),4)=MOD(COLUMN(R31),4))*(P$9:AQ$9)*(P$6:AQ$6>=$N31)) -> 0 | BB31: 0 | BC31: 0
A32: =INDEX('Financiële Gegevens'!B$54:B$58,ROWS($25:27)) -> 50000 | B32: =INDEX('Financiële Gegevens'!C$54:C$58,ROWS($25:27)) -> 0.0045 | M32: =SUM((O32:AH32)*($O$11:$AH$11)*(MOD(COLUMN(O32:AH32),4)=MOD(COLUMN(O32),4)))/(SUM($O$11:$AH$11)+0.000001) -> 0 | N32: 21 | O32: =IF($N32<=P$4,IF(P$10,ROBijAlgOvg!K42,0)+O31,IF(AlgemeenOUD!$F$41=1,ROBijAlgOvg!I42,P$7)+ROBijAlgOvg!J42) -> 0.05 | P32: 0 | Q32: 0 | R32: 0 | S32: =IF($N32<=T$4,IF(T$10,ROBijAlgOvg!O42,0)+S31,IF(AlgemeenOUD!$F$41=1,ROBijAlgOvg!M42,T$7)+ROBijAlgOvg!N42) -> 0.06 | T32: 0 | U32: 0 | V32: 0 | W32: =IF($N32<=X$4,IF(X$10,ROBijAlgOvg!S42,0)+W31,IF(AlgemeenOUD!$F$41=1,ROBijAlgOvg!Q42,X$7)+ROBijAlgOvg!R42) -> 0.08 | X32: 0 | Y32: 0 | Z32: 0 | AA32: =IF($N32<=AB$4,IF(AB$10,ROBijAlgOvg!W42,0)+AA31,IF(AlgemeenOUD!$F$41=1,ROBijAlgOvg!U42,AB$7)+ROBijAlgOvg!V42) -> 0 | AB32: 0 | AC32: 0 | AD32: 0 | AE32: =IF($N32<=AF$4,IF(AF$10,ROBijAlgOvg!AA42,0)+AE31,IF(AlgemeenOUD!$F$41=1,ROBijAlgOvg!Y42,AF$7)+ROBijAlgOvg!Z42) -> 0 | AF32: 0 | AG32: 0 | AH32: 0 | AI32: =IF($N32<=AJ$4,IF(AJ$10,ROBijAlgOvg!AE42,0)+AI31,IF(AlgemeenOUD!$F$41=1,ROBijAlgOvg!AC42,AJ$7)+ROBijAlgOvg!AD42) -> 0 | AJ32: 0 | AK32: 0 | AL32: 0 | AM32: =IF($N32<=AN$4,IF(AN$10,ROBijAlgOvg!AI42,0)+AM31,IF(AlgemeenOUD!$F$41=1,ROBijAlgOvg!AG42,AN$7)+ROBijAlgOvg!AH42) -> 0 | AN32: 0 | AO32: 0 | AP32: 0 | AR32: 0.05 | AT32: 0 | AU32: 0 | AW32: =SUM((O32:AQ32)*(MOD(COLUMN(O32:AQ32),4)=MOD(COLUMN(P32),4))) -> 0 | AX32: =SUM((P32:AR32)*(MOD(COLUMN(P32:AR32),4)=MOD(COLUMN(Q32),4)))+AT32*12 -> 0 | AY32: =CEILING(SUM((P32:AQ32)*(MOD(COLUMN(P32:AQ32),4)=MOD(COLUMN(R32),4))),1) -> 0 | AZ32: =SUM((P32:AQ32)*(MOD(COLUMN(P32:AQ32),4)=MOD(COLUMN(R32),4))*(P$9:AQ$9)*(P$6:AQ$6>=$N32)) -> 0 | BB32: 0 | BC32: 0
A33: =INDEX('Financiële Gegevens'!B$54:B$58,ROWS($25:28)) -> 75000 | B33: =INDEX('Financiële Gegevens'!C$54:C$58,ROWS($25:28)) -> 0.006 | M33: =SUM((O33:AH33)*($O$11:$AH$11)*(MOD(COLUMN(O33:AH33),4)=MOD(COLUMN(O33),4)))/(SUM($O$11:$AH$11)+0.000001) -> 0 | N33: 22 | O33: =IF($N33<=P$4,IF(P$10,ROBijAlgOvg!K43,0)+O32,IF(AlgemeenOUD!$F$41=1,ROBijAlgOvg!I43,P$7)+ROBijAlgOvg!J43) -> 0.05 | P33: 0 | Q33: 0 | R33: 0 | S33: =IF($N33<=T$4,IF(T$10,ROBijAlgOvg!O43,0)+S32,IF(AlgemeenOUD!$F$41=1,ROBijAlgOvg!M43,T$7)+ROBijAlgOvg!N43) -> 0.06 | T33: 0 | U33: 0 | V33: 0 | W33: =IF($N33<=X$4,IF(X$10,ROBijAlgOvg!S43,0)+W32,IF(AlgemeenOUD!$F$41=1,ROBijAlgOvg!Q43,X$7)+ROBijAlgOvg!R43) -> 0.08 | X33: 0 | Y33: 0 | Z33: 0 | AA33: =IF($N33<=AB$4,IF(AB$10,ROBijAlgOvg!W43,0)+AA32,IF(AlgemeenOUD!$F$41=1,ROBijAlgOvg!U43,AB$7)+ROBijAlgOvg!V43) -> 0 | AB33: 0 | AC33: 0 | AD33: 0 | AE33: =IF($N33<=AF$4,IF(AF$10,ROBijAlgOvg!AA43,0)+AE32,IF(AlgemeenOUD!$F$41=1,ROBijAlgOvg!Y43,AF$7)+ROBijAlgOvg!Z43) -> 0 | AF33: 0 | AG33: 0 | AH33: 0 | AI33: =IF($N33<=AJ$4,IF(AJ$10,ROBijAlgOvg!AE43,0)+AI32,IF(AlgemeenOUD!$F$41=1,ROBijAlgOvg!AC43,AJ$7)+ROBijAlgOvg!AD43) -> 0 | AJ33: 0 | AK33: 0 | AL33: 0 | AM33: =IF($N33<=AN$4,IF(AN$10,ROBijAlgOvg!AI43,0)+AM32,IF(AlgemeenOUD!$F$41=1,ROBijAlgOvg!AG43,AN$7)+ROBijAlgOvg!AH43) -> 0 | AN33: 0 | AO33: 0 | AP33: 0 | AR33: 0.05 | AT33: 0 | AU33: 0 | AW33: =SUM((O33:AQ33)*(MOD(COLUMN(O33:AQ33),4)=MOD(COLUMN(P33),4))) -> 0 | AX33: =SUM((P33:AR33)*(MOD(COLUMN(P33:AR33),4)=MOD(COLUMN(Q33),4)))+AT33*12 -> 0 | AY33: =CEILING(SUM((P33:AQ33)*(MOD(COLUMN(P33:AQ33),4)=MOD(COLUMN(R33),4))),1) -> 0 | AZ33: =SUM((P33:AQ33)*(MOD(COLUMN(P33:AQ33),4)=MOD(COLUMN(R33),4))*(P$9:AQ$9)*(P$6:AQ$6>=$N33)) -> 0 | BB33: 0 | BC33: 0
A34: =INDEX('Financiële Gegevens'!B$54:B$58,ROWS($25:29)) -> 1060000 | B34: =INDEX('Financiële Gegevens'!C$54:C$58,ROWS($25:29)) -> 0.0075 | M34: =SUM((O34:AH34)*($O$11:$AH$11)*(MOD(COLUMN(O34:AH34),4)=MOD(COLUMN(O34),4)))/(SUM($O$11:$AH$11)+0.000001) -> 0 | N34: 23 | O34: =IF($N34<=P$4,IF(P$10,ROBijAlgOvg!K44,0)+O33,IF(AlgemeenOUD!$F$41=1,ROBijAlgOvg!I44,P$7)+ROBijAlgOvg!J44) -> 0.05 | P34: 0 | Q34: 0 | R34: 0 | S34: =IF($N34<=T$4,IF(T$10,ROBijAlgOvg!O44,0)+S33,IF(AlgemeenOUD!$F$41=1,ROBijAlgOvg!M44,T$7)+ROBijAlgOvg!N44) -> 0.06 | T34: 0 | U34: 0 | V34: 0 | W34: =IF($N34<=X$4,IF(X$10,ROBijAlgOvg!S44,0)+W33,IF(AlgemeenOUD!$F$41=1,ROBijAlgOvg!Q44,X$7)+ROBijAlgOvg!R44) -> 0.08 | X34: 0 | Y34: 0 | Z34: 0 | AA34: =IF($N34<=AB$4,IF(AB$10,ROBijAlgOvg!W44,0)+AA33,IF(AlgemeenOUD!$F$41=1,ROBijAlgOvg!U44,AB$7)+ROBijAlgOvg!V44) -> 0 | AB34: 0 | AC34: 0 | AD34: 0 | AE34: =IF($N34<=AF$4,IF(AF$10,ROBijAlgOvg!AA44,0)+AE33,IF(AlgemeenOUD!$F$41=1,ROBijAlgOvg!Y44,AF$7)+ROBijAlgOvg!Z44) -> 0 | AF34: 0 | AG34: 0 | AH34: 0 | AI34: =IF($N34<=AJ$4,IF(AJ$10,ROBijAlgOvg!AE44,0)+AI33,IF(AlgemeenOUD!$F$41=1,ROBijAlgOvg!AC44,AJ$7)+ROBijAlgOvg!AD44) -> 0 | AJ34: 0 | AK34: 0 | AL34: 0 | AM34: =IF($N34<=AN$4,IF(AN$10,ROBijAlgOvg!AI44,0)+AM33,IF(AlgemeenOUD!$F$41=1,ROBijAlgOvg!AG44,AN$7)+ROBijAlgOvg!AH44) -> 0 | AN34: 0 | AO34: 0 | AP34: 0 | AR34: 0.05 | AT34: 0 | AU34: 0 | AW34: =SUM((O34:AQ34)*(MOD(COLUMN(O34:AQ34),4)=MOD(COLUMN(P34),4))) -> 0 | AX34: =SUM((P34:AR34)*(MOD(COLUMN(P34:AR34),4)=MOD(COLUMN(Q34),4)))+AT34*12 -> 0 | AY34: =CEILING(SUM((P34:AQ34)*(MOD(COLUMN(P34:AQ34),4)=MOD(COLUMN(R34),4))),1) -> 0 | AZ34: =SUM((P34:AQ34)*(MOD(COLUMN(P34:AQ34),4)=MOD(COLUMN(R34),4))*(P$9:AQ$9)*(P$6:AQ$6>=$N34)) -> 0 | BB34: 0 | BC34: 0
M35: =SUM((O35:AH35)*($O$11:$AH$11)*(MOD(COLUMN(O35:AH35),4)=MOD(COLUMN(O35),4)))/(SUM($O$11:$AH$11)+0.000001) -> 0 | N35: 24 | O35: =IF($N35<=P$4,IF(P$10,ROBijAlgOvg!K45,0)+O34,IF(AlgemeenOUD!$F$41=1,ROBijAlgOvg!I45,P$7)+ROBijAlgOvg!J45) -> 0.05 | P35: 0 | Q35: 0 | R35: 0 | S35: =IF($N35<=T$4,IF(T$10,ROBijAlgOvg!O45,0)+S34,IF(AlgemeenOUD!$F$41=1,ROBijAlgOvg!M45,T$7)+ROBijAlgOvg!N45) -> 0.06 | T35: 0 | U35: 0 | V35: 0 | W35: =IF($N35<=X$4,IF(X$10,ROBijAlgOvg!S45,0)+W34,IF(AlgemeenOUD!$F$41=1,ROBijAlgOvg!Q45,X$7)+ROBijAlgOvg!R45) -> 0.08 | X35: 0 | Y35: 0 | Z35: 0 | AA35: =IF($N35<=AB$4,IF(AB$10,ROBijAlgOvg!W45,0)+AA34,IF(AlgemeenOUD!$F$41=1,ROBijAlgOvg!U45,AB$7)+ROBijAlgOvg!V45) -> 0 | AB35: 0 | AC35: 0 | AD35: 0 | AE35: =IF($N35<=AF$4,IF(AF$10,ROBijAlgOvg!AA45,0)+AE34,IF(AlgemeenOUD!$F$41=1,ROBijAlgOvg!Y45,AF$7)+ROBijAlgOvg!Z45) -> 0 | AF35: 0 | AG35: 0 | AH35: 0 | AI35: =IF($N35<=AJ$4,IF(AJ$10,ROBijAlgOvg!AE45,0)+AI34,IF(AlgemeenOUD!$F$41=1,ROBijAlgOvg!AC45,AJ$7)+ROBijAlgOvg!AD45) -> 0 | AJ35: 0 | AK35: 0 | AL35: 0 | AM35: =IF($N35<=AN$4,IF(AN$10,ROBijAlgOvg!AI45,0)+AM34,IF(AlgemeenOUD!$F$41=1,ROBijAlgOvg!AG45,AN$7)+ROBijAlgOvg!AH45) -> 0 | AN35: 0 | AO35: 0 | AP35: 0 | AR35: 0.05 | AT35: 0 | AU35: 0 | AW35: =SUM((O35:AQ35)*(MOD(COLUMN(O35:AQ35),4)=MOD(COLUMN(P35),4))) -> 0 | AX35: =SUM((P35:AR35)*(MOD(COLUMN(P35:AR35),4)=MOD(COLUMN(Q35),4)))+AT35*12 -> 0 | AY35: =CEILING(SUM((P35:AQ35)*(MOD(COLUMN(P35:AQ35),4)=MOD(COLUMN(R35),4))),1) -> 0 | AZ35: =SUM((P35:AQ35)*(MOD(COLUMN(P35:AQ35),4)=MOD(COLUMN(R35),4))*(P$9:AQ$9)*(P$6:AQ$6>=$N35)) -> 0 | BB35: 0 | BC35: 0
A36: =+'Financiële Gegevens'!C59 -> 7950 | B36: =+'Financiële Gegevens'!D59 -> 0.0235 | M36: =SUM((O36:AH36)*($O$11:$AH$11)*(MOD(COLUMN(O36:AH36),4)=MOD(COLUMN(O36),4)))/(SUM($O$11:$AH$11)+0.000001) -> 0 | N36: 25 | O36: =IF($N36<=P$4,IF(P$10,ROBijAlgOvg!K46,0)+O35,IF(AlgemeenOUD!$F$41=1,ROBijAlgOvg!I46,P$7)+ROBijAlgOvg!J46) -> 0.05 | P36: 0 | Q36: 0 | R36: 0 | S36: =IF($N36<=T$4,IF(T$10,ROBijAlgOvg!O46,0)+S35,IF(AlgemeenOUD!$F$41=1,ROBijAlgOvg!M46,T$7)+ROBijAlgOvg!N46) -> 0.06 | T36: 0 | U36: 0 | V36: 0 | W36: =IF($N36<=X$4,IF(X$10,ROBijAlgOvg!S46,0)+W35,IF(AlgemeenOUD!$F$41=1,ROBijAlgOvg!Q46,X$7)+ROBijAlgOvg!R46) -> 0.08 | X36: 0 | Y36: 0 | Z36: 0 | AA36: =IF($N36<=AB$4,IF(AB$10,ROBijAlgOvg!W46,0)+AA35,IF(AlgemeenOUD!$F$41=1,ROBijAlgOvg!U46,AB$7)+ROBijAlgOvg!V46) -> 0 | AB36: 0 | AC36: 0 | AD36: 0 | AE36: =IF($N36<=AF$4,IF(AF$10,ROBijAlgOvg!AA46,0)+AE35,IF(AlgemeenOUD!$F$41=1,ROBijAlgOvg!Y46,AF$7)+ROBijAlgOvg!Z46) -> 0 | AF36: 0 | AG36: 0 | AH36: 0 | AI36: =IF($N36<=AJ$4,IF(AJ$10,ROBijAlgOvg!AE46,0)+AI35,IF(AlgemeenOUD!$F$41=1,ROBijAlgOvg!AC46,AJ$7)+ROBijAlgOvg!AD46) -> 0 | AJ36: 0 | AK36: 0 | AL36: 0 | AM36: =IF($N36<=AN$4,IF(AN$10,ROBijAlgOvg!AI46,0)+AM35,IF(AlgemeenOUD!$F$41=1,ROBijAlgOvg!AG46,AN$7)+ROBijAlgOvg!AH46) -> 0 | AN36: 0 | AO36: 0 | AP36: 0 | AR36: 0.05 | AT36: 0 | AU36: 0 | AW36: =SUM((O36:AQ36)*(MOD(COLUMN(O36:AQ36),4)=MOD(COLUMN(P36),4))) -> 0 | AX36: =SUM((P36:AR36)*(MOD(COLUMN(P36:AR36),4)=MOD(COLUMN(Q36),4)))+AT36*12 -> 0 | AY36: =CEILING(SUM((P36:AQ36)*(MOD(COLUMN(P36:AQ36),4)=MOD(COLUMN(R36),4))),1) -> 0 | AZ36: =SUM((P36:AQ36)*(MOD(COLUMN(P36:AQ36),4)=MOD(COLUMN(R36),4))*(P$9:AQ$9)*(P$6:AQ$6>=$N36)) -> 0 | BB36: 0 | BC36: 0
M37: =SUM((O37:AH37)*($O$11:$AH$11)*(MOD(COLUMN(O37:AH37),4)=MOD(COLUMN(O37),4)))/(SUM($O$11:$AH$11)+0.000001) -> 0 | N37: 26 | O37: =IF($N37<=P$4,IF(P$10,ROBijAlgOvg!K47,0)+O36,IF(AlgemeenOUD!$F$41=1,ROBijAlgOvg!I47,P$7)+ROBijAlgOvg!J47) -> 0.05 | P37: 0 | Q37: 0 | R37: 0 | S37: =IF($N37<=T$4,IF(T$10,ROBijAlgOvg!O47,0)+S36,IF(AlgemeenOUD!$F$41=1,ROBijAlgOvg!M47,T$7)+ROBijAlgOvg!N47) -> 0.06 | T37: 0 | U37: 0 | V37: 0 | W37: =IF($N37<=X$4,IF(X$10,ROBijAlgOvg!S47,0)+W36,IF(AlgemeenOUD!$F$41=1,ROBijAlgOvg!Q47,X$7)+ROBijAlgOvg!R47) -> 0.08 | X37: 0 | Y37: 0 | Z37: 0 | AA37: =IF($N37<=AB$4,IF(AB$10,ROBijAlgOvg!W47,0)+AA36,IF(AlgemeenOUD!$F$41=1,ROBijAlgOvg!U47,AB$7)+ROBijAlgOvg!V47) -> 0 | AB37: 0 | AC37: 0 | AD37: 0 | AE37: =IF($N37<=AF$4,IF(AF$10,ROBijAlgOvg!AA47,0)+AE36,IF(AlgemeenOUD!$F$41=1,ROBijAlgOvg!Y47,AF$7)+ROBijAlgOvg!Z47) -> 0 | AF37: 0 | AG37: 0 | AH37: 0 | AI37: =IF($N37<=AJ$4,IF(AJ$10,ROBijAlgOvg!AE47,0)+AI36,IF(AlgemeenOUD!$F$41=1,ROBijAlgOvg!AC47,AJ$7)+ROBijAlgOvg!AD47) -> 0 | AJ37: 0 | AK37: 0 | AL37: 0 | AM37: =IF($N37<=AN$4,IF(AN$10,ROBijAlgOvg!AI47,0)+AM36,IF(AlgemeenOUD!$F$41=1,ROBijAlgOvg!AG47,AN$7)+ROBijAlgOvg!AH47) -> 0 | AN37: 0 | AO37: 0 | AP37: 0 | AR37: 0.05 | AT37: 0 | AU37: 0 | AW37: =SUM((O37:AQ37)*(MOD(COLUMN(O37:AQ37),4)=MOD(COLUMN(P37),4))) -> 0 | AX37: =SUM((P37:AR37)*(MOD(COLUMN(P37:AR37),4)=MOD(COLUMN(Q37),4)))+AT37*12 -> 0 | AY37: =CEILING(SUM((P37:AQ37)*(MOD(COLUMN(P37:AQ37),4)=MOD(COLUMN(R37),4))),1) -> 0 | AZ37: =SUM((P37:AQ37)*(MOD(COLUMN(P37:AQ37),4)=MOD(COLUMN(R37),4))*(P$9:AQ$9)*(P$6:AQ$6>=$N37)) -> 0 | BB37: 0 | BC37: 0
M38: =SUM((O38:AH38)*($O$11:$AH$11)*(MOD(COLUMN(O38:AH38),4)=MOD(COLUMN(O38),4)))/(SUM($O$11:$AH$11)+0.000001) -> 0 | N38: 27 | O38: =IF($N38<=P$4,IF(P$10,ROBijAlgOvg!K48,0)+O37,IF(AlgemeenOUD!$F$41=1,ROBijAlgOvg!I48,P$7)+ROBijAlgOvg!J48) -> 0.05 | P38: 0 | Q38: 0 | R38: 0 | S38: =IF($N38<=T$4,IF(T$10,ROBijAlgOvg!O48,0)+S37,IF(AlgemeenOUD!$F$41=1,ROBijAlgOvg!M48,T$7)+ROBijAlgOvg!N48) -> 0.06 | T38: 0 | U38: 0 | V38: 0 | W38: =IF($N38<=X$4,IF(X$10,ROBijAlgOvg!S48,0)+W37,IF(AlgemeenOUD!$F$41=1,ROBijAlgOvg!Q48,X$7)+ROBijAlgOvg!R48) -> 0.08 | X38: 0 | Y38: 0 | Z38: 0 | AA38: =IF($N38<=AB$4,IF(AB$10,ROBijAlgOvg!W48,0)+AA37,IF(AlgemeenOUD!$F$41=1,ROBijAlgOvg!U48,AB$7)+ROBijAlgOvg!V48) -> 0 | AB38: 0 | AC38: 0 | AD38: 0 | AE38: =IF($N38<=AF$4,IF(AF$10,ROBijAlgOvg!AA48,0)+AE37,IF(AlgemeenOUD!$F$41=1,ROBijAlgOvg!Y48,AF$7)+ROBijAlgOvg!Z48) -> 0 | AF38: 0 | AG38: 0 | AH38: 0 | AI38: =IF($N38<=AJ$4,IF(AJ$10,ROBijAlgOvg!AE48,0)+AI37,IF(AlgemeenOUD!$F$41=1,ROBijAlgOvg!AC48,AJ$7)+ROBijAlgOvg!AD48) -> 0 | AJ38: 0 | AK38: 0 | AL38: 0 | AM38: =IF($N38<=AN$4,IF(AN$10,ROBijAlgOvg!AI48,0)+AM37,IF(AlgemeenOUD!$F$41=1,ROBijAlgOvg!AG48,AN$7)+ROBijAlgOvg!AH48) -> 0 | AN38: 0 | AO38: 0 | AP38: 0 | AR38: 0.05 | AT38: 0 | AU38: 0 | AW38: =SUM((O38:AQ38)*(MOD(COLUMN(O38:AQ38),4)=MOD(COLUMN(P38),4))) -> 0 | AX38: =SUM((P38:AR38)*(MOD(COLUMN(P38:AR38),4)=MOD(COLUMN(Q38),4)))+AT38*12 -> 0 | AY38: =CEILING(SUM((P38:AQ38)*(MOD(COLUMN(P38:AQ38),4)=MOD(COLUMN(R38),4))),1) -> 0 | AZ38: =SUM((P38:AQ38)*(MOD(COLUMN(P38:AQ38),4)=MOD(COLUMN(R38),4))*(P$9:AQ$9)*(P$6:AQ$6>=$N38)) -> 0 | BB38: 0 | BC38: 0
M39: =SUM((O39:AH39)*($O$11:$AH$11)*(MOD(COLUMN(O39:AH39),4)=MOD(COLUMN(O39),4)))/(SUM($O$11:$AH$11)+0.000001) -> 0 | N39: 28 | O39: =IF($N39<=P$4,IF(P$10,ROBijAlgOvg!K49,0)+O38,IF(AlgemeenOUD!$F$41=1,ROBijAlgOvg!I49,P$7)+ROBijAlgOvg!J49) -> 0.05 | P39: 0 | Q39: 0 | R39: 0 | S39: =IF($N39<=T$4,IF(T$10,ROBijAlgOvg!O49,0)+S38,IF(AlgemeenOUD!$F$41=1,ROBijAlgOvg!M49,T$7)+ROBijAlgOvg!N49) -> 0.06 | T39: 0 | U39: 0 | V39: 0 | W39: =IF($N39<=X$4,IF(X$10,ROBijAlgOvg!S49,0)+W38,IF(AlgemeenOUD!$F$41=1,ROBijAlgOvg!Q49,X$7)+ROBijAlgOvg!R49) -> 0.08 | X39: 0 | Y39: 0 | Z39: 0 | AA39: =IF($N39<=AB$4,IF(AB$10,ROBijAlgOvg!W49,0)+AA38,IF(AlgemeenOUD!$F$41=1,ROBijAlgOvg!U49,AB$7)+ROBijAlgOvg!V49) -> 0 | AB39: 0 | AC39: 0 | AD39: 0 | AE39: =IF($N39<=AF$4,IF(AF$10,ROBijAlgOvg!AA49,0)+AE38,IF(AlgemeenOUD!$F$41=1,ROBijAlgOvg!Y49,AF$7)+ROBijAlgOvg!Z49) -> 0 | AF39: 0 | AG39: 0 | AH39: 0 | AI39: =IF($N39<=AJ$4,IF(AJ$10,ROBijAlgOvg!AE49,0)+AI38,IF(AlgemeenOUD!$F$41=1,ROBijAlgOvg!AC49,AJ$7)+ROBijAlgOvg!AD49) -> 0 | AJ39: 0 | AK39: 0 | AL39: 0 | AM39: =IF($N39<=AN$4,IF(AN$10,ROBijAlgOvg!AI49,0)+AM38,IF(AlgemeenOUD!$F$41=1,ROBijAlgOvg!AG49,AN$7)+ROBijAlgOvg!AH49) -> 0 | AN39: 0 | AO39: 0 | AP39: 0 | AR39: 0.05 | AT39: 0 | AU39: 0 | AW39: =SUM((O39:AQ39)*(MOD(COLUMN(O39:AQ39),4)=MOD(COLUMN(P39),4))) -> 0 | AX39: =SUM((P39:AR39)*(MOD(COLUMN(P39:AR39),4)=MOD(COLUMN(Q39),4)))+AT39*12 -> 0 | AY39: =CEILING(SUM((P39:AQ39)*(MOD(COLUMN(P39:AQ39),4)=MOD(COLUMN(R39),4))),1) -> 0 | AZ39: =SUM((P39:AQ39)*(MOD(COLUMN(P39:AQ39),4)=MOD(COLUMN(R39),4))*(P$9:AQ$9)*(P$6:AQ$6>=$N39)) -> 0 | BB39: 0 | BC39: 0
M40: =SUM((O40:AH40)*($O$11:$AH$11)*(MOD(COLUMN(O40:AH40),4)=MOD(COLUMN(O40),4)))/(SUM($O$11:$AH$11)+0.000001) -> 0 | N40: 29 | O40: =IF($N40<=P$4,IF(P$10,ROBijAlgOvg!K50,0)+O39,IF(AlgemeenOUD!$F$41=1,ROBijAlgOvg!I50,P$7)+ROBijAlgOvg!J50) -> 0.05 | P40: 0 | Q40: 0 | R40: 0 | S40: =IF($N40<=T$4,IF(T$10,ROBijAlgOvg!O50,0)+S39,IF(AlgemeenOUD!$F$41=1,ROBijAlgOvg!M50,T$7)+ROBijAlgOvg!N50) -> 0.06 | T40: 0 | U40: 0 | V40: 0 | W40: =IF($N40<=X$4,IF(X$10,ROBijAlgOvg!S50,0)+W39,IF(AlgemeenOUD!$F$41=1,ROBijAlgOvg!Q50,X$7)+ROBijAlgOvg!R50) -> 0.08 | X40: 0 | Y40: 0 | Z40: 0 | AA40: =IF($N40<=AB$4,IF(AB$10,ROBijAlgOvg!W50,0)+AA39,IF(AlgemeenOUD!$F$41=1,ROBijAlgOvg!U50,AB$7)+ROBijAlgOvg!V50) -> 0 | AB40: 0 | AC40: 0 | AD40: 0 | AE40: =IF($N40<=AF$4,IF(AF$10,ROBijAlgOvg!AA50,0)+AE39,IF(AlgemeenOUD!$F$41=1,ROBijAlgOvg!Y50,AF$7)+ROBijAlgOvg!Z50) -> 0 | AF40: 0 | AG40: 0 | AH40: 0 | AI40: =IF($N40<=AJ$4,IF(AJ$10,ROBijAlgOvg!AE50,0)+AI39,IF(AlgemeenOUD!$F$41=1,ROBijAlgOvg!AC50,AJ$7)+ROBijAlgOvg!AD50) -> 0 | AJ40: 0 | AK40: 0 | AL40: 0 | AM40: =IF($N40<=AN$4,IF(AN$10,ROBijAlgOvg!AI50,0)+AM39,IF(AlgemeenOUD!$F$41=1,ROBijAlgOvg!AG50,AN$7)+ROBijAlgOvg!AH50) -> 0 | AN40: 0 | AO40: 0 | AP40: 0 | AR40: 0.05 | AT40: 0 | AU40: 0 | AW40: =SUM((O40:AQ40)*(MOD(COLUMN(O40:AQ40),4)=MOD(COLUMN(P40),4))) -> 0 | AX40: =SUM((P40:AR40)*(MOD(COLUMN(P40:AR40),4)=MOD(COLUMN(Q40),4)))+AT40*12 -> 0 | AY40: =CEILING(SUM((P40:AQ40)*(MOD(COLUMN(P40:AQ40),4)=MOD(COLUMN(R40),4))),1) -> 0 | AZ40: =SUM((P40:AQ40)*(MOD(COLUMN(P40:AQ40),4)=MOD(COLUMN(R40),4))*(P$9:AQ$9)*(P$6:AQ$6>=$N40)) -> 0 | BB40: 0 | BC40: 0
M41: =SUM((O41:AH41)*($O$11:$AH$11)*(MOD(COLUMN(O41:AH41),4)=MOD(COLUMN(O41),4)))/(SUM($O$11:$AH$11)+0.000001) -> 0 | N41: 30 | O41: =IF($N41<=P$4,IF(P$10,ROBijAlgOvg!K51,0)+O40,IF(AlgemeenOUD!$F$41=1,ROBijAlgOvg!I51,P$7)+ROBijAlgOvg!J51) -> 0.05 | P41: 0 | Q41: 0 | R41: 0 | S41: =IF($N41<=T$4,IF(T$10,ROBijAlgOvg!O51,0)+S40,IF(AlgemeenOUD!$F$41=1,ROBijAlgOvg!M51,T$7)+ROBijAlgOvg!N51) -> 0.06 | T41: 0 | U41: 0 | V41: 0 | W41: =IF($N41<=X$4,IF(X$10,ROBijAlgOvg!S51,0)+W40,IF(AlgemeenOUD!$F$41=1,ROBijAlgOvg!Q51,X$7)+ROBijAlgOvg!R51) -> 0.08 | X41: 0 | Y41: 0 | Z41: 0 | AA41: =IF($N41<=AB$4,IF(AB$10,ROBijAlgOvg!W51,0)+AA40,IF(AlgemeenOUD!$F$41=1,ROBijAlgOvg!U51,AB$7)+ROBijAlgOvg!V51) -> 0 | AB41: 0 | AC41: 0 | AD41: 0 | AE41: =IF($N41<=AF$4,IF(AF$10,ROBijAlgOvg!AA51,0)+AE40,IF(AlgemeenOUD!$F$41=1,ROBijAlgOvg!Y51,AF$7)+ROBijAlgOvg!Z51) -> 0 | AF41: 0 | AG41: 0 | AH41: 0 | AI41: =IF($N41<=AJ$4,IF(AJ$10,ROBijAlgOvg!AE51,0)+AI40,IF(AlgemeenOUD!$F$41=1,ROBijAlgOvg!AC51,AJ$7)+ROBijAlgOvg!AD51) -> 0 | AJ41: 0 | AK41: 0 | AL41: 0 | AM41: =IF($N41<=AN$4,IF(AN$10,ROBijAlgOvg!AI51,0)+AM40,IF(AlgemeenOUD!$F$41=1,ROBijAlgOvg!AG51,AN$7)+ROBijAlgOvg!AH51) -> 0 | AN41: 0 | AO41: 0 | AP41: 0 | AR41: 0.05 | AT41: 0 | AU41: 0 | AW41: =SUM((O41:AQ41)*(MOD(COLUMN(O41:AQ41),4)=MOD(COLUMN(P41),4))) -> 0 | AX41: =SUM((P41:AR41)*(MOD(COLUMN(P41:AR41),4)=MOD(COLUMN(Q41),4)))+AT41*12 -> 0 | AY41: =CEILING(SUM((P41:AQ41)*(MOD(COLUMN(P41:AQ41),4)=MOD(COLUMN(R41),4))),1) -> 0 | AZ41: =SUM((P41:AQ41)*(MOD(COLUMN(P41:AQ41),4)=MOD(COLUMN(R41),4))*(P$9:AQ$9)*(P$6:AQ$6>=$N41)) -> 0 | BB41: 0 | BC41: 0
O43: LET OP: de formule in de rij bij jaar 1, is vaak verschillen. Door kopieren dus pas vanaf jaar 2 naar beneden.
O44: =ALS(REST($M10;O$2)<>0;ALS(O$8;$H10;0)+N9;O$5+$K10+$G10) | AS44: =ALS($M10>AB$4;AB9;-BET(AA10;AB$4-$M10+1;AC9)-AC9*AA10+AB9)
O45: NIET rentevasteper. ; R-afslag; stap;0 )+vorig j; R-start + R-scen + Afslag | AS45: eindlooptijd; hoofdsom; betaling(r,resttijd;vorige) - rente + stand vorigejaar
P46: Stand eind jaar | AU46: afstand tot hoofdsom
P47: =ALS($N34>P$6;0;(ALS(P$5="A";TW(O34/12;12;Q34/12;-P33);ALS(P$5="L";P33-P33/(P$6-$N34+1);P33)))-ALS(OF(EN(R$8;$N34<P$6);Q$8=$N34);P$8;0))
P48: eindlooptijd;0;annutiet; stand na 12 maanden, start in rij-1; linear; vorigjaar - 1/x deel; constant;DK vorigjaar - % * 12 * hoofdsom) | AW48: =SOM((N9:Z9)*(REST(KOLOM(N9:Z9);3)=REST(KOLOM(O9);3)))
AA49: -/- extra aflossing
Q50: Rente en Aflossing | AW50: zogenaamde superfunctie: afsluiten met <Shift><Ctrl><Enter>, anders krijg je #WAARDE
Q51: =ALS($N34-0,99>P$6;0;ALS(P$5="A";BET(O34/12;(P$6-$N34+1)*12;-P33)*ALS($N34>$P$6;Q$6;12);ALS(P$5="L";ALS($N34>P$6;P33;P33/(P$6-$N34+1)+R34);R34))) | AW51: loopt door alle koloomen en telt op:
Q52: N34-0,99, neem ook J+1 mee, als er maanden zijn, anders nul | AW52: N:Z waarbij rest(van kolom;3) = div van kolom O
S53: A: BET, berekent bedrag per maand uit a.d.h.v. stand j -1 * maanden of 12 als niet laatste jaar
R54: Rente | AA54: L:
R55: =ALS($N34-0,99>P$6;0;ALS(P$5="A";Q34-(P33-P34)+ALS(OF(EN(R$8;P$6<$N34);Q$8=$N34);P$8;0);ALS(P$5="L";(P33+P34)/2*O34;P33*O34)))
S56: A: (P33-P34):afgelost af Q34, geeft rente + extra aflossing | AB56: L: Gemiddelde stand * rente

Sheet Restschuld rekenblad (hidden)
IV1: HIDE
J2: Annuiteit en PL | R2: Lineair | Z2: Aflosvrij | AH2: KEUZE
L4: Controle | AD4: Controle | AL4: Controle
D5: 1 | G5: Jaren | H5: Lpt | J5: Begin | K5: Eind | L5: Eind | M5: Rente | N5: Bruto | O5: Terug | P5: Netto | R5: Begin | S5: Aflossing | T5: Eind | U5: Rente | V5: Bruto | W5: Terug | X5: Netto | Z5: Begin | AA5: Rente | AB5: Bruto | AC5: Terug | AD5: Terug | AE5: Netto | AG5: LPT | AH5: Begin | AI5: Rente | AJ5: Bruto | AK5: Terug | AL5: Terug | AM5: Netto
A6: Restschuld AAN | B6: TRUE | D6: 2 | E6: PL | G6: 1 | H6: =IF(B$13>=G6,G6,0) -> 1 | J6: =B10 -> 5000 | K6: =FV(B$12/12,H6*12,B$16,-B$10) -> 4856.359122 | L6: =IF(H6>0,K6,0) -> 4856.359122 | M6: =IF(H6>0,((B$16*12)-(J6-L6)),0) -> 49.34283417 | N6: =IF(H6>0,B$16,0) -> 16.08197602 | O6: =IF(B$14>=H6,M6*'Voorstel HOR'!F$28) -> 18.03480589 | P6: =N6-(O6/12) -> 14.57907553 | R6: =J6 -> 5000 | S6: =IF(H6>0,R$6/B$13,0) -> 166.6666667 | T6: =MAX(0,R6-S6) -> 4833.333333 | U6: =(R6+T6)/2*B$12 -> 49.16666667 | V6: =(S6+U6)/12 -> 17.98611111 | W6: =IF(B$14>=H6,U6*'Voorstel HOR'!F$28) -> 17.97041667 | X6: =V6-(W6/12) -> 16.48857639 | Z6: =R$6 -> 5000 | AA6: =Z6*B$12 -> 50 | AB6: =AA6/12 -> 4.166666667 | AC6: =IF(B$14>=H6,AA6*'Voorstel HOR'!F$28) -> 18.275 | AD6: =IF(H6>0,AC6/12,0) -> 1.522916667 | AE6: =AB6-AD6 -> 2.64375 | AG6: =H6 -> 1 | AH6: =IF(B$11=2,J6,IF(B$11=3,J6,IF(B$11=4,R6,IF(B$11=5,Z6,IF(B$11=1,0))))) -> 0 | AI6: =AH6*I$12 -> 0 | AJ6: =IF(B$11=2,N6,IF(B$11=3,N6,IF(B$11=4,V6,IF(B$11=5,AB6,IF(B$11=1,0))))) -> 0 | AL6: =IF(O6>0,AK6/12,0) -> 0 | AM6: =IF(B$11=2,P6,IF(B$11=3,P6,IF(B$11=4,X6,IF(B$11=5,AE6,IF(B$11=1,0))))) -> 0
A7: Restschuld UIT | D7: 3 | E7: Annuïteit | G7: =G6+1 -> 2 | H7: =IF(B$13>=G7,G7,0) -> 2 | J7: =L6 -> 4856.359122 | K7: =FV(B$12/12,H7*12,B$16,-B$10) -> 4711.275233 | L7: =IF(H7>0,K7,0) -> 4711.275233 | M7: =IF(H7>0,((B$16*12)-(J7-L7)),0) -> 47.89982353 | N7: =IF(H7>0,B$16,0) -> 16.08197602 | O7: =IF(B$14>=H7,M7*'Voorstel HOR'!F$28) -> 17.5073855 | P7: =N7-(O7/12) -> 14.62302723 | R7: =T6 -> 4833.333333 | S7: =IF(H7>0,R$6/B$13,0) -> 166.6666667 | T7: =MAX(0,R7-S7) -> 4666.666667 | U7: =(R7+T7)/2*B$12 -> 47.5 | V7: =(S7+U7)/12 -> 17.84722222 | W7: =IF(B$14>=H7,U7*'Voorstel HOR'!F$28) -> 17.36125 | X7: =V7-(W7/12) -> 16.40045139 | Z7: =R$6 -> 5000 | AA7: =Z7*B$12 -> 50 | AB7: =AA7/12 -> 4.166666667 | AC7: =IF(B$14>=H7,AA7*'Voorstel HOR'!F$28) -> 18.275 | AD7: =IF(H7>0,AC7/12,0) -> 1.522916667 | AE7: =AB7-AD7 -> 2.64375 | AG7: =H7 -> 2 | AH7: =IF(B$11=2,J7,IF(B$11=3,J7,IF(B$11=4,R7,IF(B$11=5,Z7,IF(B$11=1,0))))) -> 0 | AI7: =AH7*I$12 -> 0 | AJ7: =IF(B$11=2,N7,IF(B$11=3,N7,IF(B$11=4,V7,IF(B$11=5,AB7,IF(B$11=1,0))))) -> 0 | AL7: =IF(O7>0,AK7/12,0) -> 0 | AM7: =IF(B$11=2,P7,IF(B$11=3,P7,IF(B$11=4,X7,IF(B$11=5,AE7,IF(B$11=1,0))))) -> 0
D8: 4 | E8: Lineair | G8: =G7+1 -> 3 | H8: 3 | J8: =L7 -> 4711.275233 | K8: 4564.733837 | L8: 4564.733837 | M8: 46.44231646 | N8: 16.08197602 | O8: =IF(B$14>=H8,M8*'Voorstel HOR'!F$28) -> 16.97466667 | P8: 14.66742047 | R8: =T7 -> 4666.666667 | S8: 166.6666667 | T8: 4500 | U8: 45.83333333 | V8: 17.70833333 | W8: =IF(B$14>=H8,U8*'Voorstel HOR'!F$28) -> 16.75208333 | X8: 16.31232639 | Z8: 5000 | AA8: 50 | AB8: 4.166666667 | AC8: =IF(B$14>=H8,AA8*'Voorstel HOR'!F$28) -> 18.275 | AD8: 1.522916667 | AE8: 2.64375 | AG8: 3 | AH8: 0 | AI8: 0 | AJ8: 0 | AL8: 0 | AM8: 0
D9: 5 | E9: Aflosvrij | G9: 4 | H9: 4 | J9: 4564.733837 | K9: 4416.720292 | L9: 4416.720292 | M9: 44.97016733 | N9: 16.08197602 | O9: =IF(B$14>=H9,M9*'Voorstel HOR'!F$28) -> 16.43659616 | P9: 14.71225968 | R9: 4500 | S9: 166.6666667 | T9: 4333.333333 | U9: 44.16666667 | V9: 17.56944444 | W9: =IF(B$14>=H9,U9*'Voorstel HOR'!F$28) -> 16.14291667 | X9: 16.22420139 | Z9: 5000 | AA9: 50 | AB9: 4.166666667 | AC9: =IF(B$14>=H9,AA9*'Voorstel HOR'!F$28) -> 18.275 | AD9: 1.522916667 | AE9: 2.64375 | AG9: 4 | AH9: 0 | AI9: 0 | AJ9: 0 | AL9: 0 | AM9: 0
A10: Bedrag | B10: 5000 | G10: 5 | H10: 5 | J10: 4416.720292 | K10: 4267.219809 | L10: 4267.219809 | M10: 43.48322904 | N10: 16.08197602 | O10: =IF(B$14>=H10,M10*'Voorstel HOR'!F$28) -> 15.89312022 | P10: 14.75754934 | R10: 4333.333333 | S10: 166.6666667 | T10: 4166.666667 | U10: 42.5 | V10: 17.43055556 | W10: =IF(B$14>=H10,U10*'Voorstel HOR'!F$28) -> 15.53375 | X10: 16.13607639 | Z10: 5000 | AA10: 50 | AB10: 4.166666667 | AC10: =IF(B$14>=H10,AA10*'Voorstel HOR'!F$28) -> 18.275 | AD10: 1.522916667 | AE10: 2.64375 | AG10: 5 | AH10: 0 | AI10: 0 | AJ10: 0 | AL10: 0 | AM10: 0
A11: Vorm | B11: =AlgemeenOUD!F58 -> 1 | D11: 1 | G11: 6 | H11: 6 | J11: 4267.219809 | K11: 4116.21745 | L11: 4116.21745 | M11: 41.98135304 | N11: 16.08197602 | O11: =IF(B$14>=H11,M11*'Voorstel HOR'!F$28) -> 15.34418454 | P11: 14.80329398 | R11: 4166.666667 | S11: 166.6666667 | T11: 4000 | U11: 40.83333333 | V11: 17.29166667 | W11: =IF(B$14>=H11,U11*'Voorstel HOR'!F$28) -> 14.92458333 | X11: 16.04795139 | Z11: 5000 | AA11: 50 | AB11: 4.166666667 | AC11: =IF(B$14>=H11,AA11*'Voorstel HOR'!F$28) -> 18.275 | AD11: 1.522916667 | AE11: 2.64375 | AG11: 6 | AH11: 0 | AI11: 0 | AJ11: 0 | AL11: 0 | AM11: 0
A12: Rente | B12: 0.01 | D12: 2 | E12: Variabel | G12: 7 | H12: 7 | J12: 4116.21745 | K12: 3963.698127 | L12: 3963.698127 | M12: 40.46438924 | N12: 16.08197602 | O12: =IF(B$14>=H12,M12*'Voorstel HOR'!F$28) -> 14.78973427 | P12: 14.84949817 | R12: 4000 | S12: 166.6666667 | T12: 3833.333333 | U12: 39.16666667 | V12: 17.15277778 | W12: =IF(B$14>=H12,U12*'Voorstel HOR'!F$28) -> 14.31541667 | X12: 15.95982639 | Z12: 5000 | AA12: 50 | AB12: 4.166666667 | AC12: =IF(B$14>=H12,AA12*'Voorstel HOR'!F$28) -> 18.275 | AD12: 1.522916667 | AE12: 2.64375 | AG12: 7 | AH12: 0 | AI12: 0 | AJ12: 0 | AL12: 0 | AM12: 0
A13: Looptijd | B13: 30 | D13: 3 | E13: Loopt PL | G13: 8 | H13: 8 | J13: 3963.698127 | K13: 3809.646601 | L13: 3809.646601 | M13: 38.93218609 | N13: 16.08197602 | O13: =IF(B$14>=H13,M13*'Voorstel HOR'!F$28) -> 14.22971402 | P13: 14.89616652 | R13: 3833.333333 | S13: 166.6666667 | T13: 3666.666667 | U13: 37.5 | V13: 17.01388889 | W13: =IF(B$14>=H13,U13*'Voorstel HOR'!F$28) -> 13.70625 | X13: 15.87170139 | Z13: 5000 | AA13: 50 | AB13: 4.166666667 | AC13: =IF(B$14>=H13,AA13*'Voorstel HOR'!F$28) -> 18.275 | AD13: 1.522916667 | AE13: 2.64375 | AG13: 8 | AH13: 0 | AI13: 0 | AJ13: 0 | AL13: 0 | AM13: 0
A14: Duur aftrek | B14: 10 | D14: 4 | E14: 5 | G14: 9 | H14: 9 | J14: 3809.646601 | K14: 3654.047479 | L14: 3654.047479 | M14: 37.38459048 | N14: 16.08197602 | O14: =IF(B$14>=H14,M14*'Voorstel HOR'!F$28) -> 13.66406782 | P14: 14.9433037 | R14: 3666.666667 | S14: 166.6666667 | T14: 3500 | U14: 35.83333333 | V14: 16.875 | W14: =IF(B$14>=H14,U14*'Voorstel HOR'!F$28) -> 13.09708333 | X14: 15.78357639 | Z14: 5000 | AA14: 50 | AB14: 4.166666667 | AC14: =IF(B$14>=H14,AA14*'Voorstel HOR'!F$28) -> 18.275 | AD14: 1.522916667 | AE14: 2.64375 | AG14: 9 | AH14: 0 | AI14: 0 | AJ14: 0 | AL14: 0 | AM14: 0
D15: 5 | E15: 10 | G15: 10 | H15: 10 | J15: 3654.047479 | K15: 3496.885214 | L15: 3496.885214 | M15: 35.82144779 | N15: 16.08197602 | O15: =IF(B$14>=H15,M15*'Voorstel HOR'!F$28) -> 13.09273917 | P15: 14.99091443 | R15: 3500 | S15: 166.6666667 | T15: 3333.333333 | U15: 34.16666667 | V15: 16.73611111 | W15: =IF(B$14>=H15,U15*'Voorstel HOR'!F$28) -> 12.48791667 | X15: 15.69545139 | Z15: 5000 | AA15: 50 | AB15: 4.166666667 | AC15: =IF(B$14>=H15,AA15*'Voorstel HOR'!F$28) -> 18.275 | AD15: 1.522916667 | AE15: 2.64375 | AG15: 10 | AH15: 0 | AI15: 0 | AJ15: 0 | AL15: 0 | AM15: 0
A16: Annuiteit | B16: =PMT(B12/12,B13*12,-B10) -> 16.08197602 | D16: 6 | E16: 15 | G16: 11 | H16: 11 | J16: 3496.885214 | K16: 3338.144104 | L16: 3338.144104 | M16: 34.24260183 | N16: 16.08197602 | O16: =IF(B$14>=H16,M16*'Voorstel HOR'!F$28) -> FALSE | P16: 16.08197602 | R16: 3333.333333 | S16: 166.6666667 | T16: 3166.666667 | U16: 32.5 | V16: 16.59722222 | W16: =IF(B$14>=H16,U16*'Voorstel HOR'!F$28) -> FALSE | X16: 16.59722222 | Z16: 5000 | AA16: 50 | AB16: 4.166666667 | AC16: =IF(B$14>=H16,AA16*'Voorstel HOR'!F$28) -> FALSE | AD16: 0 | AE16: 4.166666667 | AG16: 11 | AH16: 0 | AI16: 0 | AJ16: 0 | AL16: 0 | AM16: 0
D17: 7 | E17: 20 | G17: 12 | H17: 12 | J17: 3338.144104 | K17: 3177.808287 | L17: 3177.808287 | M17: 32.64789484 | N17: 16.08197602 | O17: =IF(B$14>=H17,M17*'Voorstel HOR'!F$28) -> FALSE | P17: 16.08197602 | R17: 3166.666667 | S17: 166.6666667 | T17: 3000 | U17: 30.83333333 | V17: 16.45833333 | W17: =IF(B$14>=H17,U17*'Voorstel HOR'!F$28) -> FALSE | X17: 16.45833333 | Z17: 5000 | AA17: 50 | AB17: 4.166666667 | AC17: =IF(B$14>=H17,AA17*'Voorstel HOR'!F$28) -> FALSE | AD17: 0 | AE17: 4.166666667 | AG17: 12 | AH17: 0 | AI17: 0 | AJ17: 0 | AL17: 0 | AM17: 0
D18: 8 | E18: 25 | G18: 13 | H18: 13 | J18: 3177.808287 | K18: 3015.861742 | L18: 3015.861742 | M18: 31.03716749 | N18: 16.08197602 | O18: =IF(B$14>=H18,M18*'Voorstel HOR'!F$28) -> FALSE | P18: 16.08197602 | R18: 3000 | S18: 166.6666667 | T18: 2833.333333 | U18: 29.16666667 | V18: 16.31944444 | W18: =IF(B$14>=H18,U18*'Voorstel HOR'!F$28) -> FALSE | X18: 16.31944444 | Z18: 5000 | AA18: 50 | AB18: 4.166666667 | AC18: =IF(B$14>=H18,AA18*'Voorstel HOR'!F$28) -> FALSE | AD18: 0 | AE18: 4.166666667 | AG18: 13 | AH18: 0 | AI18: 0 | AJ18: 0 | AL18: 0 | AM18: 0
D19: 9 | E19: 30 | G19: 14 | H19: 14 | J19: 3015.861742 | K19: 2852.288288 | L19: 2852.288288 | M19: 29.41025884 | N19: 16.08197602 | O19: =IF(B$14>=H19,M19*'Voorstel HOR'!F$28) -> FALSE | P19: 16.08197602 | R19: 2833.333333 | S19: 166.6666667 | T19: 2666.666667 | U19: 27.5 | V19: 16.18055556 | W19: =IF(B$14>=H19,U19*'Voorstel HOR'!F$28) -> FALSE | X19: 16.18055556 | Z19: 5000 | AA19: 50 | AB19: 4.166666667 | AC19: =IF(B$14>=H19,AA19*'Voorstel HOR'!F$28) -> FALSE | AD19: 0 | AE19: 4.166666667 | AG19: 14 | AH19: 0 | AI19: 0 | AJ19: 0 | AL19: 0 | AM19: 0
G20: 15 | H20: 15 | J20: 2852.288288 | K20: 2687.071582 | L20: 2687.071582 | M20: 27.76700632 | N20: 16.08197602 | O20: =IF(B$14>=H20,M20*'Voorstel HOR'!F$28) -> FALSE | P20: 16.08197602 | R20: 2666.666667 | S20: 166.6666667 | T20: 2500 | U20: 25.83333333 | V20: 16.04166667 | W20: =IF(B$14>=H20,U20*'Voorstel HOR'!F$28) -> FALSE | X20: 16.04166667 | Z20: 5000 | AA20: 50 | AB20: 4.166666667 | AC20: =IF(B$14>=H20,AA20*'Voorstel HOR'!F$28) -> FALSE | AD20: 0 | AE20: 4.166666667 | AG20: 15 | AH20: 0 | AI20: 0 | AJ20: 0 | AL20: 0 | AM20: 0
G21: 16 | H21: 16 | J21: 2687.071582 | K21: 2520.195116 | L21: 2520.195116 | M21: 26.10724576 | N21: 16.08197602 | O21: =IF(B$14>=H21,M21*'Voorstel HOR'!F$28) -> FALSE | P21: 16.08197602 | R21: 2500 | S21: 166.6666667 | T21: 2333.333333 | U21: 24.16666667 | V21: 15.90277778 | W21: =IF(B$14>=H21,U21*'Voorstel HOR'!F$28) -> FALSE | X21: 15.90277778 | Z21: 5000 | AA21: 50 | AB21: 4.166666667 | AC21: =IF(B$14>=H21,AA21*'Voorstel HOR'!F$28) -> FALSE | AD21: 0 | AE21: 4.166666667 | AG21: 16 | AH21: 0 | AI21: 0 | AJ21: 0 | AL21: 0 | AM21: 0
G22: 17 | H22: 17 | J22: 2520.195116 | K22: 2351.642215 | L22: 2351.642215 | M22: 24.4308113 | N22: 16.08197602 | O22: =IF(B$14>=H22,M22*'Voorstel HOR'!F$28) -> FALSE | P22: 16.08197602 | R22: 2333.333333 | S22: 166.6666667 | T22: 2166.666667 | U22: 22.5 | V22: 15.76388889 | W22: =IF(B$14>=H22,U22*'Voorstel HOR'!F$28) -> FALSE | X22: 15.76388889 | Z22: 5000 | AA22: 50 | AB22: 4.166666667 | AC22: =IF(B$14>=H22,AA22*'Voorstel HOR'!F$28) -> FALSE | AD22: 0 | AE22: 4.166666667 | AG22: 17 | AH22: 0 | AI22: 0 | AJ22: 0 | AL22: 0 | AM22: 0
G23: 18 | H23: 18 | J23: 2351.642215 | K23: 2181.396038 | L23: 2181.396038 | M23: 22.73753545 | N23: 16.08197602 | O23: =IF(B$14>=H23,M23*'Voorstel HOR'!F$28) -> FALSE | P23: 16.08197602 | R23: 2166.666667 | S23: 166.6666667 | T23: 2000 | U23: 20.83333333 | V23: 15.625 | W23: =IF(B$14>=H23,U23*'Voorstel HOR'!F$28) -> FALSE | X23: 15.625 | Z23: 5000 | AA23: 50 | AB23: 4.166666667 | AC23: =IF(B$14>=H23,AA23*'Voorstel HOR'!F$28) -> FALSE | AD23: 0 | AE23: 4.166666667 | AG23: 18 | AH23: 0 | AI23: 0 | AJ23: 0 | AL23: 0 | AM23: 0
G24: 19 | H24: 19 | J24: 2181.396038 | K24: 2009.439575 | L24: 2009.439575 | M24: 21.02724902 | N24: 16.08197602 | O24: =IF(B$14>=H24,M24*'Voorstel HOR'!F$28) -> FALSE | P24: 16.08197602 | R24: 2000 | S24: 166.6666667 | T24: 1833.333333 | U24: 19.16666667 | V24: 15.48611111 | W24: =IF(B$14>=H24,U24*'Voorstel HOR'!F$28) -> FALSE | X24: 15.48611111 | Z24: 5000 | AA24: 50 | AB24: 4.166666667 | AC24: =IF(B$14>=H24,AA24*'Voorstel HOR'!F$28) -> FALSE | AD24: 0 | AE24: 4.166666667 | AG24: 19 | AH24: 0 | AI24: 0 | AJ24: 0 | AL24: 0 | AM24: 0
G25: 20 | H25: 20 | J25: 2009.439575 | K25: 1835.755644 | L25: 1835.755644 | M25: 19.29978111 | N25: 16.08197602 | O25: =IF(B$14>=H25,M25*'Voorstel HOR'!F$28) -> FALSE | P25: 16.08197602 | R25: 1833.333333 | S25: 166.6666667 | T25: =MAX(0,R25-S25) -> 1666.666667 | U25: 17.5 | V25: 15.34722222 | W25: =IF(B$14>=H25,U25*'Voorstel HOR'!F$28) -> FALSE | X25: 15.34722222 | Z25: 5000 | AA25: 50 | AB25: 4.166666667 | AC25: =IF(B$14>=H25,AA25*'Voorstel HOR'!F$28) -> FALSE | AD25: 0 | AE25: 4.166666667 | AG25: 20 | AH25: 0 | AI25: 0 | AJ25: 0 | AL25: 0 | AM25: 0
G26: 21 | H26: 21 | J26: 1835.755644 | K26: 1660.326891 | L26: 1660.326891 | M26: 17.55495913 | N26: 16.08197602 | O26: =IF(B$14>=H26,M26*'Voorstel HOR'!F$28) -> FALSE | P26: 16.08197602 | R26: 1666.666667 | S26: 166.6666667 | T26: 1500 | U26: 15.83333333 | V26: 15.20833333 | W26: =IF(B$14>=H26,U26*'Voorstel HOR'!F$28) -> FALSE | X26: 15.20833333 | Z26: 5000 | AA26: 50 | AB26: 4.166666667 | AC26: =IF(B$14>=H26,AA26*'Voorstel HOR'!F$28) -> FALSE | AD26: =IF(H26>0,AC26/12,0) -> 0 | AE26: 4.166666667 | AG26: 21 | AH26: 0 | AI26: 0 | AJ26: 0 | AL26: =IF(O26>0,AK26/12,0) -> 0 | AM26: 0
G27: 22 | H27: 22 | J27: 1660.326891 | K27: 1483.135787 | L27: 1483.135787 | M27: 15.79260874 | N27: 16.08197602 | O27: =IF(B$14>=H27,M27*'Voorstel HOR'!F$28) -> FALSE | P27: 16.08197602 | R27: 1500 | S27: 166.6666667 | T27: 1333.333333 | U27: 14.16666667 | V27: 15.06944444 | W27: =IF(B$14>=H27,U27*'Voorstel HOR'!F$28) -> FALSE | X27: 15.06944444 | Z27: 5000 | AA27: 50 | AB27: 4.166666667 | AC27: =IF(B$14>=H27,AA27*'Voorstel HOR'!F$28) -> FALSE | AD27: 0 | AE27: 4.166666667 | AG27: 22 | AH27: 0 | AI27: 0 | AJ27: 0 | AL27: =IF(O27>0,AK27/12,0) -> 0 | AM27: 0
G28: 23 | H28: 23 | J28: 1483.135787 | K28: 1304.164629 | L28: 1304.164629 | M28: 14.01255384 | N28: 16.08197602 | O28: =IF(B$14>=H28,M28*'Voorstel HOR'!F$28) -> FALSE | P28: 16.08197602 | R28: 1333.333333 | S28: 166.6666667 | T28: 1166.666667 | U28: 12.5 | V28: 14.93055556 | W28: =IF(B$14>=H28,U28*'Voorstel HOR'!F$28) -> FALSE | X28: 14.93055556 | Z28: 5000 | AA28: 50 | AB28: 4.166666667 | AC28: =IF(B$14>=H28,AA28*'Voorstel HOR'!F$28) -> FALSE | AD28: 0 | AE28: 4.166666667 | AG28: 23 | AH28: 0 | AI28: 0 | AJ28: 0 | AL28: 0 | AM28: 0
G29: 24 | H29: 24 | J29: 1304.164629 | K29: 1123.395533 | L29: 1123.395533 | M29: 12.21461659 | N29: 16.08197602 | O29: =IF(B$14>=H29,M29*'Voorstel HOR'!F$28) -> FALSE | P29: 16.08197602 | R29: 1166.666667 | S29: 166.6666667 | T29: 1000 | U29: 10.83333333 | V29: 14.79166667 | W29: =IF(B$14>=H29,U29*'Voorstel HOR'!F$28) -> FALSE | X29: 14.79166667 | Z29: 5000 | AA29: 50 | AB29: 4.166666667 | AC29: =IF(B$14>=H29,AA29*'Voorstel HOR'!F$28) -> FALSE | AD29: 0 | AE29: 4.166666667 | AG29: 24 | AH29: 0 | AI29: 0 | AJ29: 0 | AL29: 0 | AM29: 0
G30: 25 | H30: 25 | J30: 1123.395533 | K30: 940.8104381 | L30: 940.8104381 | M30: 10.39861732 | N30: 16.08197602 | O30: =IF(B$14>=H30,M30*'Voorstel HOR'!F$28) -> FALSE | P30: 16.08197602 | R30: 1000 | S30: 166.6666667 | T30: 833.3333333 | U30: 9.166666667 | V30: 14.65277778 | W30: =IF(B$14>=H30,U30*'Voorstel HOR'!F$28) -> FALSE | X30: 14.65277778 | Z30: 5000 | AA30: 50 | AB30: 4.166666667 | AC30: =IF(B$14>=H30,AA30*'Voorstel HOR'!F$28) -> FALSE | AD30: 0 | AE30: 4.166666667 | AG30: 25 | AH30: 0 | AI30: 0 | AJ30: 0 | AL30: 0 | AM30: 0
G31: 26 | H31: 26 | J31: 940.8104381 | K31: 756.3911004 | L31: 756.3911004 | M31: 8.5643746 | N31: 16.08197602 | O31: =IF(B$14>=H31,M31*'Voorstel HOR'!F$28) -> FALSE | P31: 16.08197602 | R31: 833.3333333 | S31: 166.6666667 | T31: 666.6666667 | U31: 7.5 | V31: 14.51388889 | W31: =IF(B$14>=H31,U31*'Voorstel HOR'!F$28) -> FALSE | X31: 14.51388889 | Z31: 5000 | AA31: 50 | AB31: 4.166666667 | AC31: =IF(B$14>=H31,AA31*'Voorstel HOR'!F$28) -> FALSE | AD31: 0 | AE31: 4.166666667 | AG31: 26 | AH31: 0 | AI31: 0 | AJ31: 0 | AL31: 0 | AM31: 0
G32: 27 | H32: 27 | J32: 756.3911004 | K32: 570.1190933 | L32: 570.1190933 | M32: 6.711705147 | N32: 16.08197602 | O32: =IF(B$14>=H32,M32*'Voorstel HOR'!F$28) -> FALSE | P32: 16.08197602 | R32: 666.6666667 | S32: 166.6666667 | T32: 500 | U32: 5.833333333 | V32: 14.375 | W32: =IF(B$14>=H32,U32*'Voorstel HOR'!F$28) -> FALSE | X32: 14.375 | Z32: 5000 | AA32: 50 | AB32: 4.166666667 | AC32: =IF(B$14>=H32,AA32*'Voorstel HOR'!F$28) -> FALSE | AD32: 0 | AE32: 4.166666667 | AG32: 27 | AH32: 0 | AI32: 0 | AJ32: 0 | AL32: 0 | AM32: 0
G33: 28 | H33: 28 | J33: 570.1190933 | K33: 381.9758049 | L33: 381.9758049 | M33: 4.840423849 | N33: 16.08197602 | O33: =IF(B$14>=H33,M33*'Voorstel HOR'!F$28) -> FALSE | P33: 16.08197602 | R33: 500 | S33: 166.6666667 | T33: 333.3333333 | U33: 4.166666667 | V33: 14.23611111 | W33: =IF(B$14>=H33,U33*'Voorstel HOR'!F$28) -> FALSE | X33: 14.23611111 | Z33: 5000 | AA33: 50 | AB33: 4.166666667 | AC33: =IF(B$14>=H33,AA33*'Voorstel HOR'!F$28) -> FALSE | AD33: 0 | AE33: 4.166666667 | AG33: 28 | AH33: 0 | AI33: 0 | AJ33: 0 | AL33: 0 | AM33: 0
G34: 29 | H34: 29 | J34: 381.9758049 | K34: 191.9424363 | L34: 191.9424363 | M34: 2.950343733 | N34: 16.08197602 | O34: =IF(B$14>=H34,M34*'Voorstel HOR'!F$28) -> FALSE | P34: 16.08197602 | R34: 333.3333333 | S34: 166.6666667 | T34: 166.6666667 | U34: 2.5 | V34: 14.09722222 | W34: =IF(B$14>=H34,U34*'Voorstel HOR'!F$28) -> FALSE | X34: 14.09722222 | Z34: 5000 | AA34: 50 | AB34: 4.166666667 | AC34: =IF(B$14>=H34,AA34*'Voorstel HOR'!F$28) -> FALSE | AD34: 0 | AE34: 4.166666667 | AG34: 29 | AH34: 0 | AI34: 0 | AJ34: 0 | AL34: 0 | AM34: 0
G35: 30 | H35: 30 | J35: 191.9424363 | K35: 7.7761797e-10 | L35: 7.7761797e-10 | M35: 1.041275945 | N35: 16.08197602 | O35: =IF(B$14>=H35,M35*'Voorstel HOR'!F$28) -> FALSE | P35: 16.08197602 | R35: 166.6666667 | S35: 166.6666667 | T35: 5.684341886e-14 | U35: 0.8333333333 | V35: 13.95833333 | W35: =IF(B$14>=H35,U35*'Voorstel HOR'!F$28) -> FALSE | X35: 13.95833333 | Z35: 5000 | AA35: 50 | AB35: 4.166666667 | AC35: =IF(B$14>=H35,AA35*'Voorstel HOR'!F$28) -> FALSE | AD35: 0 | AE35: 4.166666667 | AG35: 30 | AH35: 0 | AI35: 0 | AJ35: 0 | AL35: 0 | AM35: 0

Sheet Callas handmatig (hidden)
IV1: HIDE
B3: Arbeidonsgeschiktheid
B5: Elk jaar jonger dan 35 | E5: -0.04 | F5: afslag per jaar
B6: Elk jaar ouder dan 35 | E6: 0.05 | F6: opslag per jaar
B8: Looptijd korter dan 15 jaar | E8: -0.07 | F8: afslag per jaar
B9: Looptijd langer dan 15 jaar | E9: 0.09 | F9: opslag per jaar
B13: Basispremie | E13: 0.016 | F13: van het verzekerd maandbedrag. | J13: Basispremie is:
B14: OPSLAG BeroepsAO | E14: 0.1 | J14: - Passende arbeid
B15: OPSLAG Indexatie | E15: 0.1 | J15: - Wachttijd 365 dagen
J16: - Volledige uitkering, dus niet naar rato
J17: - Geen indexatie
B21: 1e AANVRAGER | Q21: 2e AANVRAGER
B22: Leeftijd 1e | D22: =AlgemeenOUD!C9 -> 0 | E22: ALGEMEEN | Q22: Leeftijd 1e | S22: =AlgemeenOUD!F9 -> -1 | T22: ALGEMEEN
B23: Looptijd | D23: =MIN(30,67-D22) -> 30 | E23: => Pensioenleeftijd 67 -/- leeftijd | H23: MAXIMAAL 30 jaar | Q23: Looptijd | S23: =MIN(30,67-S22) -> 30 | T23: => Pensioenleeftijd 67 -/- leeftijd | W23: MAXIMAAL 30 jaar
B25: LEEFTIJD | H25: AO | K25: WW 12 | M25: WW 24 | Q25: LEEFTIJD | Z25: WW 12 | AB25: WW 24
F26: Hoeveel jaar | H26: Afslag/opslag | K26: Afslag/opslag | M26: Afslag/opslag | U26: Hoeveel jaar | W26: Afslag/opslag | Z26: Afslag/opslag | AB26: Afslag/opslag
B27: Jonger dan 35 | D27: =IF(D22<35,1,0) -> 1 | F27: =IF(D27=1,35-D22,0) -> 35 | H27: =F27*E5 -> -1.4 | K27: =F27*E53 -> -0.9625 | M27: =F27*I53 -> -1.75 | Q27: Jonger dan 35 | S27: =IF(S22<35,1,0) -> 1 | U27: =IF(S27=1,35-S22,0) -> 36 | W27: =U27*E5 -> -1.44 | Z27: =U27*T53 -> -0.99 | AB27: =U27*X53 -> -1.8
B28: 35 jaar | D28: =IF(D22=35,1,0) -> 0 | F28: 0 | Q28: 35 jaar | S28: =IF(S22=35,1,0) -> 0 | U28: 0
B29: Ouder dan 35 | D29: =IF(D22>35,1,0) -> 0 | F29: =IF(D29=1,D22-35,0) -> 0 | H29: =F29*E6 -> 0 | K29: =F29*E54 -> 0 | M29: =F29*I54 -> 0 | Q29: Ouder dan 35 | S29: =IF(S22>35,1,0) -> 0 | U29: =IF(S29=1,S22-35,0) -> 0 | W29: =U29*E6 -> 0 | Z29: =U29*T54 -> 0 | AB29: =U29*X54 -> 0
M30: SOM | AB30: SOM
B31: Als het getal 1 is, is dat het juiste uitgangspunt voor de berekening | M31: =SUM(M27:M29) -> -1.75 | Q31: Als het getal 1 is, is dat het juiste uitgangspunt voor de berekening | AB31: =SUM(AB27:AB29) -> -1.8
B33: LOOPTIJD | H33: AO | K33: WW 12 | M33: WW 24 | Q33: LOOPTIJD | Z33: WW 12 | AB33: WW 24
F34: Korter/Langer 15 jr | H34: Afslag/opslag | K34: Afslag/opslag | M34: Afslag/opslag | U34: Korter/Langer 15 jr | W34: Afslag/opslag | Z34: Afslag/opslag | AB34: Afslag/opslag
B35: Looptijd < 15 jaar | D35: =IF(D23<15,1,0) -> 0 | F35: =IF(D35=1,15-D23,0) -> 0 | H35: =F35*E8 -> 0 | K35: =F35*E56 -> 0 | M35: =F35*I56 -> 0 | Q35: Looptijd < 15 jaar | S35: =IF(S23<15,1,0) -> 0 | U35: =IF(S35=1,15-S23,0) -> 0 | W35: =U35*E8 -> 0 | Z35: =U35*T56 -> 0 | AB35: =U35*X56 -> 0
B36: Looptijd 15 jaar | D36: =IF(D23=15,1,0) -> 0 | F36: 0 | Q36: Looptijd 15 jaar | S36: =IF(S23=15,1,0) -> 0 | U36: 0
B37: Looptijd > 15 jaar | D37: =IF(D23>15,1,0) -> 1 | F37: =IF(D37=1,D23-15,0) -> 15 | H37: =F37*E9 -> 1.35 | K37: =F37*E57 -> 0.3 | M37: =F37*I57 -> 0.6 | Q37: Looptijd > 15 jaar | S37: =IF(S23>15,1,0) -> 1 | U37: =IF(S37=1,S23-15,0) -> 15 | W37: =U37*E9 -> 1.35 | Z37: =U37*T57 -> 0.3 | AB37: =U37*X57 -> 0.6
M38: SOM | AB38: SOM
B39: Als het getal 1 is, is dat het juiste uitgangspunt voor de berekening | M39: =SUM(M35:M37) -> 0.6 | Q39: Als het getal 1 is, is dat het juiste uitgangspunt voor de berekening | AB39: =SUM(AB35:AB37) -> 0.6
B41: PREMIE | C41: AO | Q41: PREMIE | R41: AO
J42: 1e | K42: 2e | L42: Beroeps | M42: Met | O42: Opslag | Y42: 1e | Z42: 2e | AA42: Beroeps | AB42: Met | AD42: Opslag
G43: Basis | H43: Leeftijd | I43: Looptijd | J43: Leeftijd | K43: Looptijd | L43: AO | M43: Indexatie | N43: TOTAAL | O43: =2.72 -> 2.72 | V43: Basis | W43: Leeftijd | X43: Looptijd | Y43: Leeftijd | Z43: Looptijd | AA43: AO | AB43: Indexatie | AC43: TOTAAL | AD43: =2.72 -> 2.72
B45: Verzekerd bedrag 30% terugval | E45: ='AO en WW'!C37 -> 125 | G45: =E45*E$13 -> 2 | H45: =SUM(H27:H29) -> -1.4 | I45: =SUM(H35:H37) -> 1.35 | J45: =G45*(100%+H45) -> -0.8 | K45: =J45*(100%+I45) -> -1.88 | L45: 0.1 | N45: =K45*(1+L45)*(1+M45) -> -2.068 | O45: =N45+O43 -> 0.652 | Q45: Verzekerd bedrag 30% terugval | T45: ='AO en WW'!F37 -> 125 | V45: =T45*E13 -> 2 | W45: =SUM(W27:W29) -> -1.44 | X45: =SUM(W35:W37) -> 1.35 | Y45: =V45*(100%+W45) -> -0.88 | Z45: =Y45*(100%+X45) -> -2.068 | AA45: 0.1 | AC45: =Z45*(1+AA45)*(1+AB45) -> -2.2748 | AD45: =AC45+AD43 -> 0.4452
B46: Verzekerd bedrag gedragscode | E46: =IF('AO en WW'!C32<125,125,'AO en WW'!C32) -> 125 | G46: =E46*E$13 -> 2 | H46: =SUM(H27:H29) -> -1.4 | I46: =SUM(H35:H37) -> 1.35 | J46: =G46*(100%+H46) -> -0.8 | K46: =J46*(100%+I46) -> -1.88 | L46: 0.1 | N46: =K46*(1+L46)*(1+M46) -> -2.068 | O46: =N46+O43 -> 0.652 | Q46: Verzekerd bedrag gedragscode | T46: =IF('AO en WW'!F32<125,125,'AO en WW'!F32) -> 125 | V46: =T46*E13 -> 2 | W46: =SUM(W27:W29) -> -1.44 | X46: =SUM(W35:W37) -> 1.35 | Y46: =V46*(100%+W46) -> -0.88 | Z46: =Y46*(100%+X46) -> -2.068 | AA46: 0.1 | AC46: =Z46*(1+AA46)*(1+AB46) -> -2.2748 | AD46: =AC46+AD43 -> 0.4452
B50: Werkloosheid
B52: WW 12 | I52: WW 24 | Q52: WW 12 | X52: WW 24
B53: Elk jaar jonger dan 35 | E53: -0.0275 | F53: afslag per jaar | I53: -0.05 | Q53: Elk jaar jonger dan 35 | T53: =E53 -> -0.0275 | U53: afslag per jaar | X53: =I53 -> -0.05
B54: Elk jaar ouder dan 35 | E54: 0.04 | F54: opslag per jaar | I54: 0.13 | Q54: Elk jaar ouder dan 35 | T54: =E54 -> 0.04 | U54: opslag per jaar | X54: =I54 -> 0.13
B56: Looptijd korter dan 15 jaar | E56: -0.025 | F56: afslag per jaar | I56: -0.04 | Q56: Looptijd korter dan 15 jaar | T56: =E56 -> -0.025 | U56: afslag per jaar | X56: =I56 -> -0.04
B57: Looptijd langer dan 15 jaar | E57: 0.02 | F57: opslag per jaar | I57: 0.04 | Q57: Looptijd langer dan 15 jaar | T57: =E57 -> 0.02 | U57: opslag per jaar | X57: =I57 -> 0.04
B59: Basispremie | E59: 0.02382 | F59: van het verzekerd maandbedrag. | I59: Vaste opslag voor 24 maanden | L59: 0.22 | Q59: Basispremie | T59: =E59 -> 0.02382 | U59: van het verzekerd maandbedrag. | X59: Vaste opslag voor 24 maanden | AA59: =L59 -> 0.22
B61: PREMIE | C61: WW | Q61: PREMIE | R61: WW
J62: 1e | K62: 2e | L62: 24 maanden doorrekening | Y62: 1e | Z62: 2e | AA62: 24 maanden doorrekening
G63: Basis | H63: Leeftijd | I63: Looptijd | J63: Leeftijd | K63: Looptijd | L63: Leeftijd | M63: Looptijd | N63: TOTAAL | V63: Basis | W63: Leeftijd | X63: Looptijd | Y63: Leeftijd | Z63: Looptijd | AA63: Leeftijd | AB63: Looptijd | AC63: TOTAAL
